Workbook

Sheet read me
A1: This Excel file is provided in support of the manuscript entitled "Simple Method for Measuring the Spectral Absorption Cross-Section of Microalgae", Chemical Engineering Science, Vol. 146, No. 2, pp. 357-368.
A2: by Razmig Kandilian, Antoine Soulies, Jeremy Pruvost, Benoit Rousseau, Jack Legrand, and Laurent Pilon
A3: doi: 10.1016/j.ces.2016.02.039
A5: Software
A6: Excel has a built-in optimization package that you can activate by
A7: a. Under the menu Tools select Adds-In
A8: b. In Adds-In check the boxes for
A9: (i) Analysis ToolPak
A10: (ii) Analysis ToolPak- VBA
A11: (iii) Solver Add-in
A13: Data processing for a given dilution
A14: c. select the worksheet of interest
A15: d. To minimize the error between experimental measurements and predictions from the two-flux approximation computed in column AO
A16: (i) Select the cell (AO4) containing the value of the error
A17: (ii) In the tab Data select the function Solver
A18: (iii) Fill out the fields based on the cells that you want to optimize (B4, C4, G4)
A19: e. A good match is obtained when the error is small (<1E-12) and the experimental and prediction points are superimposed.
A20: f. Repeat the procedure for each row of data
A21: e. Note: you might have to optimize yourself manually before running the Excel Solver.

Sheet Low concentration
A1: Radiation characteristics obtained from direct measurements
A3: Cx (g/l) = | B3: 0.049 | F3: Cx (g/l) = | G3: 0.035
A4: Wavelength | B4: Abs(m2/kg) | C4: Ssca (m2/kg) | D4: Eext (m2/kg) | E4: Ssca,tr (m2/kg) | F4: Wavelength | G4: Abs(m2/kg) | H4: Ssca (m2/kg) | I4: Eext (m2/kg)
A5: 750 | B5: 0 | C5: 1559.277177 | D5: =B5+C5 -> 1559.277177 | E5: =C5*(1-0.97) -> 46.77831531 | F5: 750 | G5: 0 | H5: 1570.200778 | I5: =G5+H5 -> 1570.200778
A6: 749 | B6: 0.040790902 | C6: 1562.034 | D6: =B6+C6 -> 1562.074791 | E6: =C6*(1-0.97) -> 46.86102 | F6: 749 | G6: -0.022986966 | H6: 1572.598648 | I6: =G6+H6 -> 1572.575661
A7: 748 | B7: 2.251427984 | C7: 1564.921553 | D7: 1567.172981 | E7: 46.94764659 | F7: 748 | G7: -0.011799195 | H7: 1577.378538 | I7: 1577.366739
A8: 747 | B8: 0.488161131 | C8: 1567.807213 | D8: 1568.295374 | E8: 47.03421639 | F8: 747 | G8: -2.408963026 | H8: 1581.046904 | I8: 1578.637941
A9: 746 | B9: 0.299391912 | C9: 1571.226815 | D9: 1571.526207 | E9: 47.13680445 | F9: 746 | G9: -2.243427435 | H9: 1584.590469 | I9: 1582.347042
A10: 745 | B10: -0.539076152 | C10: 1573.975813 | D10: 1573.436737 | E10: 47.21927439 | F10: 745 | G10: -3.480157126 | H10: 1589.242066 | I10: 1585.761909
A11: 744 | B11: 1.415511147 | C11: 1576.797801 | D11: 1578.213312 | E11: 47.30393403 | F11: 744 | G11: -1.586857013 | H11: 1591.010327 | I11: 1589.42347
A12: 743 | B12: 0.620016602 | C12: 1580.66557 | D12: 1581.285587 | E12: 47.4199671 | F12: 743 | G12: -0.889618171 | H12: 1593.501765 | I12: 1592.612147
A13: 742 | B13: -0.8214718 | C13: 1583.786669 | D13: 1582.965197 | E13: 47.51360007 | F13: 742 | G13: -1.895993862 | H13: 1598.004711 | I13: 1596.108717
A14: 741 | B14: 1.594343376 | C14: 1586.949593 | D14: 1588.543936 | E14: 47.60848779 | F14: 741 | G14: 0.33480788 | H14: 1600.978645 | I14: 1601.313453
A15: 740 | B15: -0.98109793 | C15: 1592.386471 | D15: 1591.405373 | E15: 47.77159413 | F15: 740 | G15: 0.821649177 | H15: 1604.474102 | I15: 1605.295751
A16: 739 | B16: -1.382937876 | C16: 1596.730957 | D16: 1595.348019 | E16: 47.90192871 | F16: 739 | G16: -2.97321848 | H16: 1609.331656 | I16: 1606.358438
A17: 738 | B17: 2.597892799 | C17: 1597.680219 | D17: 1600.278112 | E17: 47.93040657 | F17: 738 | G17: 2.53187981 | H17: 1611.363231 | I17: 1613.895111
A18: 737 | B18: -0.451258331 | C18: 1602.908442 | D18: 1602.457184 | E18: 48.08725326 | F18: 737 | G18: -0.658662504 | H18: 1615.468128 | I18: 1614.809465
A19: 736 | B19: 3.857088483 | C19: 1604.546315 | D19: 1608.403403 | E19: 48.13638945 | F19: 736 | G19: 2.92126936 | H19: 1618.824947 | I19: 1621.746216
A20: 735 | B20: -0.040188243 | C20: 1610.500227 | D20: 1610.460039 | E20: 48.31500681 | F20: 735 | G20: -2.939882798 | H20: 1626.025751 | I20: 1623.085868
A21: 734 | B21: -0.727438316 | C21: 1615.294288 | D21: 1614.56685 | E21: 48.45882864 | F21: 734 | G21: -1.373797717 | H21: 1629.300014 | I21: 1627.926216
A22: 733 | B22: 1.458479234 | C22: 1618.221829 | D22: 1619.680308 | E22: 48.54665487 | F22: 733 | G22: 1.402347094 | H22: 1632.008481 | I22: 1633.410828
A23: 732 | B23: 1.913268107 | C23: 1623.270108 | D23: 1625.183376 | E23: 48.69810324 | F23: 732 | G23: 1.504479118 | H23: 1636.635686 | I23: 1638.140165
A24: 731 | B24: 3.880927228 | C24: 1626.361663 | D24: 1630.24259 | E24: 48.79084989 | F24: 731 | G24: 4.955922584 | H24: 1639.675628 | I24: 1644.631551
A25: 730 | B25: 3.40264866 | C25: 1629.998889 | D25: 1633.401538 | E25: 48.89996667 | F25: 730 | G25: 3.322503448 | H25: 1643.708552 | I25: 1647.031055
A26: 729 | B26: 3.886396856 | C26: 1635.822124 | D26: 1639.708521 | E26: 49.07466372 | F26: 729 | G26: 3.725562658 | H26: 1649.71655 | I26: 1653.442113
A27: 728 | B27: 4.498319279 | C27: 1640.263478 | D27: 1644.761797 | E27: 49.20790434 | F27: 728 | G27: 3.060641832 | H27: 1654.000717 | I27: 1657.061359
A28: 727 | B28: 3.596598898 | C28: 1645.441148 | D28: 1649.037747 | E28: 49.36323444 | F28: 727 | G28: 1.089656481 | H28: 1660.851459 | I28: 1661.941115
A29: 726 | B29: 4.798961046 | C29: 1649.652803 | D29: 1654.451764 | E29: 49.48958409 | F29: 726 | G29: 3.165941205 | H29: 1663.862577 | I29: 1667.028518
A30: 725 | B30: 3.055584325 | C30: 1656.354767 | D30: 1659.410351 | E30: 49.69064301 | F30: 725 | G30: 2.565221797 | H30: 1669.683799 | I30: 1672.249021
A31: 724 | B31: 5.35265399 | C31: 1661.186275 | D31: 1666.538929 | E31: 49.83558825 | F31: 724 | G31: 5.229277315 | H31: 1673.920294 | I31: 1679.149571
A32: 723 | B32: 7.770289662 | C32: 1665.488697 | D32: 1673.258987 | E32: 49.96466091 | F32: 723 | G32: 7.012009539 | H32: 1680.056461 | I32: 1687.068471
A33: 722 | B33: 7.103755112 | C33: 1670.264172 | D33: 1677.367927 | E33: 50.10792516 | F33: 722 | G33: 5.959116596 | H33: 1685.4272 | I33: 1691.386317
A34: 721 | B34: 7.959700348 | C34: 1677.418643 | D34: 1685.378343 | E34: 50.32255929 | F34: 721 | G34: 6.738270375 | H34: 1691.645008 | I34: 1698.383278
A35: 720 | B35: 8.471765575 | C35: 1682.95266 | D35: 1691.424426 | E35: 50.4885798 | F35: 720 | G35: 7.218162333 | H35: 1696.044321 | I35: 1703.262483
A36: 719 | B36: 10.45056746 | C36: 1688.463887 | D36: 1698.914454 | E36: 50.65391661 | F36: 719 | G36: 8.856402828 | H36: 1702.291205 | I36: 1711.147608
A37: 718 | B37: 8.308172844 | C37: 1695.887847 | D37: 1704.19602 | E37: 50.87663541 | F37: 718 | G37: 9.832026149 | H37: 1708.570399 | I37: 1718.402425
A38: 717 | B38: 13.39568754 | C38: 1699.43938 | D38: 1712.835068 | E38: 50.9831814 | F38: 717 | G38: 13.38013465 | H38: 1712.613677 | I38: 1725.993812
A39: 716 | B39: 13.46988907 | C39: 1706.709133 | D39: 1720.179022 | E39: 51.20127399 | F39: 716 | G39: 13.21764453 | H39: 1719.974004 | I39: 1733.191649
A40: 715 | B40: 14.74297373 | C40: 1712.857633 | D40: 1727.600607 | E40: 51.38572899 | F40: 715 | G40: 14.05885538 | H40: 1726.53507 | I40: 1740.593925
A41: 714 | B41: 17.18984273 | C41: 1719.580492 | D41: 1736.770335 | E41: 51.58741476 | F41: 714 | G41: 16.30785979 | H41: 1732.869535 | I41: 1749.177395
A42: 713 | B42: 17.90919587 | C42: 1727.553912 | D42: 1745.463108 | E42: 51.82661736 | F42: 713 | G42: 19.06366954 | H42: 1740.002629 | I42: 1759.066299
A43: 712 | B43: 21.26995993 | C43: 1733.646179 | D43: 1754.916139 | E43: 52.00938537 | F43: 712 | G43: 21.16235939 | H43: 1747.578466 | I43: 1768.740825
A44: 711 | B44: 23.59556468 | C44: 1740.768825 | D44: 1764.36439 | E44: 52.22306475 | F44: 711 | G44: 22.83323576 | H44: 1753.595576 | I44: 1776.428812
A45: 710 | B45: 27.77427428 | C45: 1747.994595 | D45: 1775.768869 | E45: 52.43983785 | F45: 710 | G45: 25.98579016 | H45: 1762.198599 | I45: 1788.184389
A46: 709 | B46: 29.63641244 | C46: 1756.581215 | D46: 1786.217627 | E46: 52.69743645 | F46: 709 | G46: 30.82939168 | H46: 1768.920398 | I46: 1799.74979
A47: 708 | B47: 34.14806496 | C47: 1764.014624 | D47: 1798.162689 | E47: 52.92043872 | F47: 708 | G47: 34.89169499 | H47: 1776.646299 | I47: 1811.537994
A48: 707 | B48: 38.00465947 | C48: 1772.123379 | D48: 1810.128038 | E48: 53.16370137 | F48: 707 | G48: 38.98512059 | H48: 1783.769521 | I48: 1822.754642
A49: 706 | B49: 42.82740635 | C49: 1779.592264 | D49: 1822.41967 | E49: 53.38776792 | F49: 706 | G49: 42.06681146 | H49: 1792.577597 | I49: 1834.644408
A50: 705 | B50: 46.55678698 | C50: 1789.505066 | D50: 1836.061853 | E50: 53.68515198 | F50: 705 | G50: 48.77515196 | H50: 1800.90582 | I50: 1849.680972
A51: 704 | B51: 53.33751573 | C51: 1797.725834 | D51: 1851.06335 | E51: 53.93177502 | F51: 704 | G51: 54.50200498 | H51: 1809.924902 | I51: 1864.426907
A52: 703 | B52: 58.07055638 | C52: 1806.620567 | D52: 1864.691123 | E52: 54.19861701 | F52: 703 | G52: 58.22696694 | H52: 1819.388151 | I52: 1877.615118
A53: 702 | B53: 67.26278447 | C53: 1815.44733 | D53: 1882.710114 | E53: 54.4634199 | F53: 702 | G53: 67.18463959 | H53: 1827.038996 | I53: 1894.223636
A54: 701 | B54: 74.97597391 | C54: 1824.262953 | D54: 1899.238927 | E54: 54.72788859 | F54: 701 | G54: 74.58853406 | H54: 1837.079426 | I54: 1911.66796
A55: 700 | B55: 82.38497798 | C55: 1834.178093 | D55: 1916.563071 | E55: 55.02534279 | F55: 700 | G55: 84.10420829 | H55: 1845.269206 | I55: 1929.373414
A56: 699 | B56: 96.66761706 | C56: 1841.074152 | D56: 1937.741769 | E56: 55.23222456 | F56: 699 | G56: 98.28307209 | H56: 1853.079257 | I56: 1951.362329
A57: 698 | B57: 106.8756833 | C57: 1849.67247 | D57: 1956.548153 | E57: 55.4901741 | F57: 698 | G57: 107.6540992 | H57: 1861.524855 | I57: 1969.178954
A58: 697 | B58: 121.6439693 | C58: 1856.940567 | D58: 1978.584536 | E58: 55.70821701 | F58: 697 | G58: 124.3545347 | H58: 1867.038994 | I58: 1991.393529
A59: 696 | B59: 135.0269717 | C59: 1866.382714 | D59: 2001.409686 | E59: 55.99148142 | F59: 696 | G59: 136.9222855 | H59: 1876.707178 | I59: 2013.629464
A60: 695 | B60: 152.5039571 | C60: 1871.83538 | D60: 2024.339337 | E60: 56.1550614 | F60: 695 | G60: 155.6915495 | H60: 1881.216638 | I60: 2036.908188
A61: 694 | B61: 171.8666721 | C61: 1877.42188 | D61: 2049.288552 | E61: 56.3226564 | F61: 694 | G61: 175.0025524 | H61: 1885.758047 | I61: 2060.760599
A62: 693 | B62: 193.8666734 | C62: 1879.868378 | D62: 2073.735051 | E62: 56.39605134 | F62: 693 | G62: 196.1125563 | H62: 1888.169132 | I62: 2084.281688
A63: 692 | B63: 217.8044292 | C63: 1880.296194 | D63: 2098.100623 | E63: 56.40888582 | F63: 692 | G63: 220.4459947 | H63: 1887.94814 | I63: 2108.394135
A64: 691 | B64: 242.0070346 | C64: 1879.091378 | D64: 2121.098413 | E64: 56.37274134 | F64: 691 | G64: 244.7680605 | H64: 1885.028614 | I64: 2129.796674
A65: 690 | B65: 270.5824472 | C65: 1872.891842 | D65: 2143.474289 | E65: 56.18675526 | F65: 690 | G65: 273.8194361 | H65: 1878.094297 | I65: 2151.913733
A66: 689 | B66: 298.9014472 | C66: 1863.256883 | D66: 2162.15833 | E66: 55.89770649 | F66: 689 | G66: 303.2712919 | H66: 1866.17062 | I66: 2169.441912
A67: 688 | B67: 326.6227041 | C67: 1849.092162 | D67: 2175.714866 | E67: 55.47276486 | F67: 688 | G67: 329.784236 | H67: 1852.142405 | I67: 2181.926641
A68: 687 | B68: 354.8731126 | C68: 1830.101823 | D68: 2184.974936 | E68: 54.90305469 | F68: 687 | G68: 359.3725367 | H68: 1830.795916 | I68: 2190.168453
A69: 686 | B69: 379.4306486 | C69: 1807.553122 | D69: 2186.983771 | E69: 54.22659366 | F69: 686 | G69: 385.3465198 | H69: 1806.448227 | I69: 2191.794747
A70: 685 | B70: 402.9373724 | C70: 1780.175126 | D70: =B70+C70 -> 2183.112498 | E70: =C70*(1-0.97) -> 53.40525378 | F70: 685 | G70: 408.0529814 | H70: 1777.781212 | I70: =G70+H70 -> 2185.834193
A71: 684 | B71: 419.1691651 | C71: 1752.879094 | D71: 2172.048259 | E71: 52.58637282 | F71: 684 | G71: 424.4305912 | H71: 1750.074912 | I71: 2174.505503
A72: 683 | B72: 431.5062318 | C72: 1724.725403 | D72: 2156.231635 | E72: 51.74176209 | F72: 683 | G72: 438.0616326 | H72: 1720.109623 | I72: 2158.171256
A73: 682 | B73: 441.7025778 | C73: 1696.347886 | D73: 2138.050464 | E73: 50.89043658 | F73: 682 | G73: 447.6261258 | H73: 1691.266369 | I73: 2138.892495
A74: 681 | B74: 445.209225 | C74: 1671.004166 | D74: 2116.213391 | E74: 50.13012498 | F74: 681 | G74: 452.3205975 | H74: 1665.47008 | I74: 2117.790678
A75: 680 | B75: 448.1288451 | C75: 1648.777273 | D75: 2096.906118 | E75: 49.46331819 | F75: 680 | G75: 453.2586509 | H75: 1643.390784 | I75: 2096.649435
A76: 679 | B76: 448.7144222 | C76: 1627.82238 | D76: 2076.536802 | E76: 48.8346714 | F76: 679 | G76: 454.9606742 | H76: 1622.435255 | I76: 2077.395929
A77: 678 | B77: 445.779187 | C77: 1611.3476 | D77: 2057.126787 | E77: 48.340428 | F77: 678 | G77: 452.8697624 | H77: 1604.344244 | I77: 2057.214006
A78: 677 | B78: 446.7710909 | C78: 1594.126644 | D78: 2040.897735 | E78: 47.82379932 | F78: 677 | G78: 453.8417855 | H78: 1587.339492 | I78: 2041.181278
A79: 676 | B79: 447.2780859 | C79: 1577.619461 | D79: 2024.897547 | E79: 47.32858383 | F79: 676 | G79: 453.8930792 | H79: 1570.991984 | I79: 2024.885063
A80: 675 | B80: 446.1168805 | C80: 1562.180373 | D80: 2008.297253 | E80: 46.86541119 | F80: 675 | G80: 452.8341557 | H80: 1555.61161 | I80: 2008.445766
A81: 674 | B81: 443.6283923 | C81: 1546.795119 | D81: 1990.423511 | E81: 46.40385357 | F81: 674 | G81: 451.283988 | H81: 1539.026294 | I81: 1990.310282
A82: 673 | B82: 442.1903483 | C82: 1528.65071 | D82: 1970.841058 | E82: 45.8595213 | F82: 673 | G82: 449.344158 | H82: 1521.023822 | I82: 1970.36798
A83: 672 | B83: 438.2657416 | C83: 1512.064029 | D83: 1950.329771 | E83: 45.36192087 | F83: 672 | G83: 443.3483476 | H83: 1505.383983 | I83: 1948.732331
A84: 671 | B84: 432.6869771 | C84: 1494.603161 | D84: 1927.290138 | E84: 44.83809483 | F84: 671 | G84: 439.0941964 | H84: 1486.753687 | I84: 1925.847883
A85: 670 | B85: 426.189806 | C85: 1477.335627 | D85: 1903.525433 | E85: 44.32006881 | F85: 670 | G85: 432.0016929 | H85: 1470.088362 | I85: 1902.090055
A86: 669 | B86: 416.3689634 | C86: 1461.285833 | D86: 1877.654796 | E86: 43.83857499 | F86: 669 | G86: 424.4215122 | H86: 1452.629739 | I86: 1877.051251
A87: 668 | B87: 408.0028285 | C87: 1444.97496 | D87: 1852.977789 | E87: 43.3492488 | F87: 668 | G87: 414.4654856 | H87: 1437.417645 | I87: 1851.883131
A88: 667 | B88: 395.1364832 | C88: 1432.616158 | D88: 1827.752641 | E88: 42.97848474 | F88: 667 | G88: 400.0052378 | H88: 1425.90241 | I88: 1825.907648
A89: 666 | B89: 381.4298006 | C89: 1421.281507 | D89: 1802.711308 | E89: 42.63844521 | F89: 666 | G89: 387.3632156 | H89: 1414.575494 | I89: 1801.93871
A90: 665 | B90: 367.0070068 | C90: 1412.608119 | D90: 1779.615126 | E90: 42.37824357 | F90: 665 | G90: 372.5031146 | H90: 1406.424969 | I90: 1778.928084
A91: 664 | B91: 352.3864749 | C91: 1407.133794 | D91: 1759.520269 | E91: 42.21401382 | F91: 664 | G91: 357.9424719 | H91: 1400.857759 | I91: 1758.800231
A92: 663 | B92: 337.901962 | C92: 1403.307594 | D92: 1741.209556 | E92: 42.09922782 | F92: 663 | G92: 342.7192034 | H92: 1397.630624 | I92: 1740.349827
A93: 662 | B93: 322.6801703 | C93: 1402.917609 | D93: 1725.597779 | E93: 42.08752827 | F93: 662 | G93: 328.3421261 | H93: 1397.29177 | I93: 1725.633896
A94: 661 | B94: 308.5377211 | C94: 1404.914825 | D94: 1713.452546 | E94: 42.14744475 | F94: 661 | G94: 313.4969742 | H94: 1400.197658 | I94: 1713.694632
A95: 660 | B95: 296.6869819 | C95: 1407.887072 | D95: 1704.574054 | E95: 42.23661216 | F95: 660 | G95: 301.6191591 | H95: 1403.584842 | I95: 1705.204001
A96: 659 | B96: 286.3951551 | C96: 1412.435539 | D96: 1698.830694 | E96: 42.37306617 | F96: 659 | G96: 290.3338363 | H96: 1408.440659 | I96: 1698.774495
A97: 658 | B97: 277.7731512 | C97: 1417.994644 | D97: 1695.767795 | E97: 42.53983932 | F97: 658 | G97: 282.111556 | H97: 1414.254055 | I97: 1696.365611
A98: 657 | B98: 270.8610958 | C98: 1423.697671 | D98: 1694.558767 | E98: 42.71093013 | F98: 657 | G98: 275.6238033 | H98: 1420.407004 | I98: 1696.030807
A99: 656 | B99: 264.4601746 | C99: 1430.009261 | D99: 1694.469436 | E99: 42.90027783 | F99: 656 | G99: 268.8739564 | H99: 1426.920798 | I99: 1695.794754
A100: 655 | B100: 260.9291606 | C100: 1434.877364 | D100: 1695.806525 | E100: 43.04632092 | F100: 655 | G100: 265.2760026 | H100: 1431.88534 | I100: 1697.161343
A101: 654 | B101: 258.4193781 | C101: 1438.184569 | D101: 1696.603947 | E101: 43.14553707 | F101: 654 | G101: 263.1052595 | H101: 1435.159101 | I101: 1698.26436
A102: 653 | B102: 255.8191076 | C102: 1440.57525 | D102: 1696.394358 | E102: 43.2172575 | F102: 653 | G102: 259.1825266 | H102: 1437.596946 | I102: 1696.779473
A103: 652 | B103: 252.2140048 | C103: 1441.340606 | D103: 1693.554611 | E103: 43.24021818 | F103: 652 | G103: 257.363637 | H103: 1438.272374 | I103: 1695.636011
A104: 651 | B104: 250.8048591 | C104: 1439.374155 | D104: 1690.179014 | E104: 43.18122465 | F104: 651 | G104: 254.2240793 | H104: 1436.968802 | I104: 1691.192881
A105: 650 | B105: 246.590856 | C105: 1437.838973 | D105: 1684.429829 | E105: 43.13516919 | F105: 650 | G105: 249.2673321 | H105: 1435.827831 | I105: 1685.095163
A106: 649 | B106: 239.5359258 | C106: 1437.095826 | D106: 1676.631752 | E106: 43.11287478 | F106: 649 | G106: 242.8933238 | H106: 1434.837466 | I106: 1677.73079
A107: 648 | B107: 231.6366177 | C107: 1436.716863 | D107: 1668.353481 | E107: 43.10150589 | F107: 648 | G107: 235.6749953 | H107: 1434.306893 | I107: 1669.981888
A108: 647 | B108: 224.1907006 | C108: 1436.568384 | D108: 1660.759085 | E108: 43.09705152 | F108: 647 | G108: 227.9951861 | H108: 1435.092294 | I108: 1663.08748
A109: 646 | B109: 215.4317573 | C109: 1438.027017 | D109: 1653.458774 | E109: 43.14081051 | F109: 646 | G109: 218.9655576 | H109: 1437.231721 | I109: 1656.197279
A110: 645 | B110: 206.6617227 | C110: 1441.128157 | D110: 1647.78988 | E110: 43.23384471 | F110: 645 | G110: 209.4722955 | H110: 1440.179474 | I110: 1649.65177
A111: 644 | B111: 199.1471884 | C111: 1445.606457 | D111: 1644.753645 | E111: 43.36819371 | F111: 644 | G111: 201.0691475 | H111: 1445.165398 | I111: 1646.234546
A112: 643 | B112: 191.3203295 | C112: 1450.464993 | D112: 1641.785323 | E112: 43.51394979 | F112: 643 | G112: 194.2864347 | H112: 1450.737164 | I112: 1645.023599
A113: 642 | B113: 184.427265 | C113: 1456.064003 | D113: 1640.491268 | E113: 43.68192009 | F113: 642 | G113: 187.1458261 | H113: 1456.974052 | I113: 1644.119878
A114: 641 | B114: 178.5666603 | C114: 1462.685293 | D114: 1641.251953 | E114: 43.88055879 | F114: 641 | G114: 181.3680261 | H114: 1462.882217 | I114: 1644.250243
A115: 640 | B115: 173.6858063 | C115: 1469.391069 | D115: 1643.076875 | E115: 44.08173207 | F115: 640 | G115: 177.181722 | H115: 1469.690097 | I115: 1646.871819
A116: 639 | B116: 169.8908172 | C116: 1475.985436 | D116: 1645.876253 | E116: 44.27956308 | F116: 639 | G116: 173.961372 | H116: 1476.558537 | I116: 1650.519909
A117: 638 | B117: 166.6536921 | C117: 1482.488722 | D117: 1649.142414 | E117: 44.47466166 | F117: 638 | G117: 169.5776601 | H117: 1483.347412 | I117: 1652.925072
A118: 637 | B118: 164.1704407 | C118: 1489.097224 | D118: 1653.267665 | E118: 44.67291672 | F118: 637 | G118: 166.5521573 | H118: 1491.212931 | I118: 1657.765088
A119: 636 | B119: 163.7306508 | C119: 1494.469438 | D119: 1658.200089 | E119: 44.83408314 | F119: 636 | G119: 167.2673963 | H119: 1495.707853 | I119: 1662.975249
A120: 635 | B120: 163.6206327 | C120: 1499.370569 | D120: 1662.991202 | E120: 44.98111707 | F120: 635 | G120: 166.1135805 | H120: 1500.994517 | I120: 1667.108097
A121: 634 | B121: 162.2205985 | C121: 1504.604735 | D121: 1666.825333 | E121: 45.13814205 | F121: 634 | G121: 165.762759 | H121: 1506.617793 | I121: 1672.380552
A122: 633 | B122: 161.3038814 | C122: 1509.951072 | D122: 1671.254953 | E122: 45.29853216 | F122: 633 | G122: 165.4839258 | H122: 1510.90578 | I122: 1676.389706
A123: 632 | B123: 162.985589 | C123: 1513.011275 | D123: 1675.996864 | E123: 45.39033825 | F123: 632 | G123: 166.3751903 | H123: 1514.762358 | I123: 1681.137548
A124: 631 | B124: 162.643617 | C124: 1516.803985 | D124: 1679.447602 | E124: 45.50411955 | F124: 631 | G124: 166.141293 | H124: 1518.220547 | I124: 1684.36184
A125: 630 | B125: 163.003951 | C125: 1519.396328 | D125: 1682.400279 | E125: 45.58188984 | F125: 630 | G125: 166.3242331 | H125: 1521.896303 | I125: 1688.220536
A126: 629 | B126: 162.806142 | C126: 1522.287849 | D126: 1685.093991 | E126: 45.66863547 | F126: 629 | G126: 166.3203079 | H126: 1524.474936 | I126: 1690.795244
A127: 628 | B127: 162.0162231 | C127: 1524.793544 | D127: 1686.809767 | E127: 45.74380632 | F127: 628 | G127: 165.0493755 | H127: 1527.343989 | I127: 1692.393364
A128: 627 | B128: 163.0918473 | C128: 1526.413929 | D128: 1689.505776 | E128: 45.79241787 | F128: 627 | G128: 166.6003471 | H128: 1529.056119 | I128: 1695.656466
A129: 626 | B129: 162.0685447 | C129: 1528.679979 | D129: 1690.748524 | E129: 45.86039937 | F129: 626 | G129: 165.2126892 | H129: 1531.169755 | I129: 1696.382444
A130: 625 | B130: 162.1291215 | C130: 1529.827211 | D130: 1691.956332 | E130: 45.89481633 | F130: 625 | G130: 164.3898492 | H130: 1532.48246 | I130: 1696.872309
A131: 624 | B131: 161.2232784 | C131: 1531.831523 | D131: 1693.054801 | E131: 45.95494569 | F131: 624 | G131: 164.1995316 | H131: 1534.356707 | I131: 1698.556239
A132: 623 | B132: 160.3875152 | C132: 1533.598007 | D132: 1693.985522 | E132: 46.00794021 | F132: 623 | G132: 164.3684119 | H132: 1536.040601 | I132: 1700.409013
A133: 622 | B133: 159.4251033 | C133: 1534.881405 | D133: 1694.306508 | E133: 46.04644215 | F133: 622 | G133: 162.5481118 | H133: 1537.803467 | I133: 1700.351579
A134: 621 | B134: 159.5027831 | C134: 1535.971075 | D134: =B134+C134 -> 1695.473858 | E134: =C134*(1-0.97) -> 46.07913225 | F134: 621 | G134: 162.9208292 | H134: 1538.666531 | I134: =G134+H134 -> 1701.58736
A135: 620 | B135: 158.6904523 | C135: 1537.155788 | D135: 1695.84624 | E135: 46.11467364 | F135: 620 | G135: 162.4811299 | H135: 1539.555032 | I135: 1702.036162
A136: 619 | B136: 156.2847178 | C136: 1538.890031 | D136: 1695.174749 | E136: 46.16670093 | F136: 619 | G136: 158.7046987 | H136: 1542.632349 | I136: 1701.337048
A137: 618 | B137: 153.5116603 | C137: 1541.59378 | D137: 1695.10544 | E137: 46.2478134 | F137: 618 | G137: 156.4100906 | H137: 1544.384789 | I137: 1700.79488
A138: 617 | B138: 152.0356857 | C138: 1542.592124 | D138: 1694.62781 | E138: 46.27776372 | F138: 617 | G138: 156.2855175 | H138: 1545.293844 | I138: 1701.579362
A139: 616 | B139: 149.9622724 | C139: 1544.382221 | D139: 1694.344493 | E139: 46.33146663 | F139: 616 | G139: 152.9664552 | H139: 1547.921946 | I139: 1700.888401
A140: 615 | B140: 147.8399769 | C140: 1546.317833 | D140: 1694.15781 | E140: 46.38953499 | F140: 615 | G140: 151.0115485 | H140: 1549.867005 | I140: 1700.878554
A141: 614 | B141: 146.5484896 | C141: 1547.687863 | D141: 1694.236353 | E141: 46.43063589 | F141: 614 | G141: 149.9599448 | H141: 1551.46704 | I141: 1701.426985
A142: 613 | B142: 144.4177953 | C142: 1549.552719 | D142: 1693.970514 | E142: 46.48658157 | F142: 613 | G142: 147.3026994 | H142: 1553.781091 | I142: 1701.08379
A143: 612 | B143: 142.2942179 | C143: 1551.934903 | D143: 1694.229121 | E143: 46.55804709 | F143: 612 | G143: 145.8365728 | H143: 1556.286447 | I143: 1702.12302
A144: 611 | B144: 139.3556002 | C144: 1555.430482 | D144: 1694.786082 | E144: 46.66291446 | F144: 611 | G144: 143.4907466 | H144: 1558.649156 | I144: 1702.139903
A145: 610 | B145: 137.9259941 | C145: 1557.511394 | D145: 1695.437388 | E145: 46.72534182 | F145: 610 | G145: 141.5177258 | H145: 1561.642461 | I145: 1703.160187
A146: 609 | B146: 135.375218 | C146: 1560.444615 | D146: 1695.819833 | E146: 46.81333845 | F146: 609 | G146: 138.7208925 | H146: 1564.646677 | I146: 1703.367569
A147: 608 | B147: 133.3464058 | C147: 1563.122854 | D147: 1696.46926 | E147: 46.89368562 | F147: 608 | G147: 137.6640126 | H147: 1566.935054 | I147: 1704.599067
A148: 607 | B148: 131.2174473 | C148: 1565.5355 | D148: 1696.752947 | E148: 46.966065 | F148: 607 | G148: 135.0157922 | H148: 1570.212632 | I148: 1705.228424
A149: 606 | B149: 129.5627449 | C149: 1568.443962 | D149: 1698.006707 | E149: 47.05331886 | F149: 606 | G149: 133.5257082 | H149: 1573.141349 | I149: 1706.667057
A150: 605 | B150: 127.8563301 | C150: 1571.445635 | D150: 1699.301965 | E150: 47.14336905 | F150: 605 | G150: 131.8010249 | H150: 1576.529445 | I150: 1708.33047
A151: 604 | B151: 126.1777441 | C151: 1574.374314 | D151: 1700.552058 | E151: 47.23122942 | F151: 604 | G151: 129.410529 | H151: 1579.899371 | I151: 1709.3099
A152: 603 | B152: 124.6930329 | C152: 1577.91278 | D152: 1702.605813 | E152: 47.3373834 | F152: 603 | G152: 126.99886 | H152: 1583.861273 | I152: 1710.860133
A153: 602 | B153: 124.2133927 | C153: 1580.688458 | D153: 1704.901851 | E153: 47.42065374 | F153: 602 | G153: 126.2013681 | H153: 1586.94173 | I153: 1713.143098
A154: 601 | B154: 122.1555316 | C154: 1584.063738 | D154: 1706.21927 | E154: 47.52191214 | F154: 601 | G154: 125.2871457 | H154: 1590.087263 | I154: 1715.374409
A155: 600 | B155: 120.8995817 | C155: 1587.060794 | D155: 1707.960376 | E155: 47.61182382 | F155: 600 | G155: 124.7537048 | H155: 1592.315089 | I155: 1717.068794
A156: 599 | B156: 120.7554098 | C156: 1589.588416 | D156: 1710.343826 | E156: 47.68765248 | F156: 599 | G156: 122.6333847 | H156: 1595.957053 | I156: 1718.590438
A157: 598 | B157: 118.7528667 | C157: 1592.992795 | D157: 1711.745662 | E157: 47.78978385 | F157: 598 | G157: 121.9147821 | H157: 1598.806578 | I157: 1720.72136
A158: 597 | B158: 117.1255753 | C158: 1596.47059 | D158: 1713.596165 | E158: 47.8941177 | F158: 597 | G158: 121.1961086 | H158: 1602.189362 | I158: 1723.385471
A159: 596 | B159: 118.1111389 | C159: 1597.681843 | D159: 1715.792982 | E159: 47.93045529 | F159: 596 | G159: 121.6644649 | H159: 1603.631094 | I159: 1725.295559
A160: 595 | B160: 116.4943818 | C160: 1600.839038 | D160: 1717.33342 | E160: 48.02517114 | F160: 595 | G160: 121.3016289 | H160: 1606.504614 | I160: 1727.806243
A161: 594 | B161: 116.5322366 | C161: 1603.132141 | D161: 1719.664378 | E161: 48.09396423 | F161: 594 | G161: 119.4552401 | H161: 1610.055824 | I161: 1729.511064
A162: 593 | B162: 115.2150692 | C162: 1605.938314 | D162: 1721.153383 | E162: 48.17814942 | F162: 593 | G162: 119.012657 | H162: 1611.868466 | I162: 1730.881123
A163: 592 | B163: 114.2109535 | C163: 1607.921002 | D163: 1722.131956 | E163: 48.23763006 | F163: 592 | G163: 117.3137348 | H163: 1614.440653 | I163: 1731.754388
A164: 591 | B164: 113.478686 | C164: 1610.397148 | D164: 1723.875834 | E164: 48.31191444 | F164: 591 | G164: 117.1639191 | H164: 1616.904546 | I164: 1734.068465
A165: 590 | B165: 113.1523623 | C165: 1611.653147 | D165: 1724.805509 | E165: 48.34959441 | F165: 590 | G165: 115.2987775 | H165: 1619.43947 | I165: 1734.738247
A166: 589 | B166: 111.9145393 | C166: 1614.221782 | D166: 1726.136321 | E166: 48.42665346 | F166: 589 | G166: 116.2563846 | H166: 1620.333682 | I166: 1736.590067
A167: 588 | B167: 110.4755989 | C167: 1615.971988 | D167: 1726.447587 | E167: 48.47915964 | F167: 588 | G167: 113.8055767 | H167: 1623.160451 | I167: 1736.966028
A168: 587 | B168: 108.2960739 | C168: 1619.175072 | D168: 1727.471146 | E168: 48.57525216 | F168: 587 | G168: 111.7094873 | H168: 1626.335352 | I168: 1738.044839
A169: 586 | B169: 107.5097118 | C169: 1621.023852 | D169: 1728.533564 | E169: 48.63071556 | F169: 586 | G169: 110.4274632 | H169: 1628.648695 | I169: 1739.076158
A170: 585 | B170: 106.0678914 | C170: 1623.466853 | D170: 1729.534744 | E170: 48.70400559 | F170: 585 | G170: 108.9534872 | H170: 1631.120294 | I170: 1740.073781
A171: 584 | B171: 104.7288379 | C171: 1625.918444 | D171: 1730.647282 | E171: 48.77755332 | F171: 584 | G171: 108.8195804 | H171: 1633.140431 | I171: 1741.960011
A172: 583 | B172: 102.8668728 | C172: 1629.165775 | D172: 1732.032648 | E172: 48.87497325 | F172: 583 | G172: 106.6365137 | H172: 1636.87855 | I172: 1743.515064
A173: 582 | B173: 102.6265161 | C173: 1630.145496 | D173: 1732.772012 | E173: 48.90436488 | F173: 582 | G173: 105.6079345 | H173: 1638.762444 | I173: 1744.370379
A174: 581 | B174: 100.1177747 | C174: 1633.714436 | D174: 1733.832211 | E174: 49.01143308 | F174: 581 | G174: 104.0723955 | H174: 1641.714476 | I174: 1745.786872
A175: 580 | B175: 98.0523431 | C175: 1636.538128 | D175: 1734.590471 | E175: 49.09614384 | F175: 580 | G175: 101.7389573 | H175: 1644.83289 | I175: 1746.571847
A176: 579 | B176: 98.06743357 | C176: 1638.194547 | D176: 1736.261981 | E176: 49.14583641 | F176: 579 | G176: 101.8824324 | H176: 1646.999401 | I176: 1748.881833
A177: 578 | B177: 95.09717515 | C177: 1641.863813 | D177: 1736.960988 | E177: 49.25591439 | F177: 578 | G177: 99.7131729 | H177: 1650.35688 | I177: 1750.070053
A178: 577 | B178: 94.53380815 | C178: 1643.74665 | D178: 1738.280458 | E178: 49.3123995 | F178: 577 | G178: 98.5551635 | H178: 1651.993604 | I178: 1750.548767
A179: 576 | B179: 92.81629081 | C179: 1646.395185 | D179: 1739.211476 | E179: 49.39185555 | F179: 576 | G179: 96.53595828 | H179: 1655.022636 | I179: 1751.558594
A180: 575 | B180: 91.43758439 | C180: 1649.185304 | D180: 1740.622888 | E180: 49.47555912 | F180: 575 | G180: 93.98736583 | H180: 1659.131837 | I180: 1753.119203
A181: 574 | B181: 88.76770965 | C181: 1652.138499 | D181: 1740.906209 | E181: 49.56415497 | F181: 574 | G181: 91.70076455 | H181: 1661.544645 | I181: 1753.24541
A182: 573 | B182: 86.08238296 | C182: 1655.505063 | D182: 1741.587446 | E182: 49.66515189 | F182: 573 | G182: 89.47554088 | H182: 1664.794305 | I182: 1754.269846
A183: 572 | B183: 85.30474163 | C183: 1657.970044 | D183: 1743.274786 | E183: 49.73910132 | F183: 572 | G183: 89.47531658 | H183: 1667.985395 | I183: 1757.460712
A184: 571 | B184: 82.33444415 | C184: 1661.696787 | D184: 1744.031231 | E184: 49.85090361 | F184: 571 | G184: 85.97544071 | H184: 1671.720571 | I184: 1757.696012
A185: 570 | B185: 81.27661287 | C185: 1664.558641 | D185: 1745.835254 | E185: 49.93675923 | F185: 570 | G185: 85.12909739 | H185: 1674.197039 | I185: 1759.326136
A186: 569 | B186: 78.55678567 | C186: 1668.306632 | D186: 1746.863418 | E186: 50.04919896 | F186: 569 | G186: 81.96843366 | H186: 1679.007522 | I186: 1760.975956
A187: 568 | B187: 76.04666357 | C187: 1672.215694 | D187: 1748.262358 | E187: 50.16647082 | F187: 568 | G187: 79.10174667 | H187: 1682.820095 | I187: 1761.921842
A188: 567 | B188: 74.78612707 | C188: 1675.46799 | D188: 1750.254117 | E188: 50.2640397 | F188: 567 | G188: 78.00262472 | H188: 1685.978214 | I188: 1763.980839
A189: 566 | B189: 71.56810037 | C189: 1680.151531 | D189: 1751.719631 | E189: 50.40454593 | F189: 566 | G189: 75.40210947 | H189: 1690.89508 | I189: 1766.297189
A190: 565 | B190: 71.44790022 | C190: 1683.619451 | D190: 1755.067351 | E190: 50.50858353 | F190: 565 | G190: 76.07752696 | H190: 1694.028066 | I190: 1770.105593
A191: 564 | B191: 70.40414636 | C191: 1687.474194 | D191: 1757.87834 | E191: 50.62422582 | F191: 564 | G191: 74.0273195 | H191: 1698.853139 | I191: 1772.880459
A192: 563 | B192: 69.10365809 | C192: 1691.469702 | D192: 1760.57336 | E192: 50.74409106 | F192: 563 | G192: 71.01833537 | H192: 1703.672423 | I192: 1774.690758
A193: 562 | B193: 65.77515468 | C193: 1696.928091 | D193: 1762.703246 | E193: 50.90784273 | F193: 562 | G193: 70.06919037 | H193: 1708.192814 | I193: 1778.262004
A194: 561 | B194: 65.58475337 | C194: 1701.109254 | D194: 1766.694007 | E194: 51.03327762 | F194: 561 | G194: 69.33133913 | H194: 1712.600032 | I194: 1781.931371
A195: 560 | B195: 63.91233146 | C195: 1705.129404 | D195: 1769.041735 | E195: 51.15388212 | F195: 560 | G195: 66.25193611 | H195: 1717.760636 | I195: 1784.012572
A196: 559 | B196: 63.90967434 | C196: 1708.121697 | D196: 1772.031371 | E196: 51.24365091 | F196: 559 | G196: 67.1299621 | H196: 1720.315072 | I196: 1787.445034
A197: 558 | B197: 65.15223662 | C197: 1712.185446 | D197: 1777.337683 | E197: 51.36556338 | F197: 558 | G197: 69.24339695 | H197: 1724.144557 | I197: 1793.387954
A198: 557 | B198: 63.22697724 | C198: 1716.553346 | D198: =B198+C198 -> 1779.780323 | E198: =C198*(1-0.97) -> 51.49660038 | F198: 557 | G198: 66.80865524 | H198: 1728.425369 | I198: =G198+H198 -> 1795.234024
A199: 556 | B199: 63.07569459 | C199: 1720.149877 | D199: 1783.225572 | E199: 51.60449631 | F199: 556 | G199: 66.91216301 | H199: 1732.32507 | I199: 1799.237233
A200: 555 | B200: 63.9572527 | C200: 1723.922906 | D200: 1787.880159 | E200: 51.71768718 | F200: 555 | G200: 67.25692341 | H200: 1736.812616 | I200: 1804.069539
A201: 554 | B201: 62.28016344 | C201: 1728.683612 | D201: 1790.963775 | E201: 51.86050836 | F201: 554 | G201: 65.97606021 | H201: 1741.18653 | I201: 1807.16259
... 204 more rows

Sheet Dilution6
A1: X= | B1: 0.1113 | C1: g/L | AI1: dilution 6
A3: l (nm) | B3: Abs,l (m2/kg) | C3: Ssca,l (m2/kg) | D3: n | E3: k (1/m) | F3: ss (1/m) | G3: g | H3: d (m) | J3: wtr | K3: ttr | L3: mc | M3: R1 | N3: Ctr | O3: Etr | P3: c | Q3: k2 | R3: g | S3: gbar | T3: j | U3: s | V3: c | W3: k1 | X3: k2 | Y3: D1 | Z3: D | AA3: A | AB3: B | AC3: R0dh | AD3: T0dh | AE3: Rdh | AF3: Tdh | AG3: Adh | AI3: l (nm) | AJ3: Rdh | AK3: Tdh | AL3: Rdh | AM3: Tdh | AO3: error
A4: 750 | B4: 42.90803126 | C4: 120.038893 | D4: =1.32711+0.0026/(A4/1000)^2+0.00005/(A4/1000)^4 -> 1.331890247 | E4: =B4*B$1 -> 4.775663879 | F4: =C4*B$1 -> 13.3603288 | G4: 0.3997882495 | H4: 0.01 | J4: =F4*(1-G4)/(F4*(1-G4)+E4) -> 0.6267464237 | K4: =(F4*(1-G4)+E4)*H4 -> 0.1279469021 | L4: =SQRT(1-1/D4^2) -> 0.6605152657 | M4: =(D4-1)^2/(D4+1)^2 -> 0.02025688994 | N4: =M4*EXP(-2*K4) -> 0.01568337408 | O4: =EXP(-K4) -> 0.8799000987 | P4: =J4/(1-J4)*(1-M4)/(1-M4*N4) -> 1.645652374 | Q4: =4/(1+L4)^2*(1-J4)/(1-J4*L4) -> 0.9239798716 | R4: =(1-M4)/(1+M4) -> 0.9602906089 | S4: =R4/(1+L4) -> 0.578308811 | T4: =2*S4/SQRT(Q4) -> 1.203257423 | U4: =SINH(SQRT(Q4)*K4) -> 0.1232978007 | V4: =COSH(SQRT(Q4)*K4) -> 1.007572502 | W4: =(1-2*S4)-(1+2*S4)*M4 -> -0.2003039877 | X4: =(1-2*S4)*N4-(1+2*S4) -> -2.159073915 | Y4: =R4*(1-L4^2)*P4/2 -> 0.4454243032 | Z4: =Y4*Q4/(Q4-1) -> -5.413869975 | AA4: =(W4*(T4*U4+V4)*O4+X4)/((1+T4^2)*U4+2*T4*V4) -> -0.8665910798 | AB4: =(W4*O4+X4*(T4*U4+V4))/((1+T4^2)*U4+2*T4*V4) -> -0.9799889947 | AC4: =M4+(1-M4)^2*N4/(1-M4*N4) -> 0.03531609104 | AD4: =(1-M4)^2/(1-M4*N4)*O4 -> 0.8448814952 | AE4: =AC4+Z4*(1+AB4/SQRT(Q4)+N4) -> 0.05601328989 | AF4: =AD4+Z4*(AA4/SQRT(Q4)+(1+M4)*O4) -> 0.8655171327 | AG4: =1-AE4-AF4 -> 0.07846957739 | AI4: 750 | AJ4: 5.601323366 | AK4: 86.55171232 | AL4: =AJ4/100 -> 0.05601323366 | AM4: =AK4/100 -> 0.8655171232 | AO4: =(AJ4/100-AE4)^2+(AK4/100-AF4)^2 -> 3.251943297e-15
A5: 740 | B5: 44.33378369 | C5: 197.965538 | D5: =1.32711+0.0026/(A5/1000)^2+0.00005/(A5/1000)^4 -> 1.332024733 | E5: 4.934350125 | F5: 22.03356437 | G5: 0.6393225782 | H5: 0.01 | J5: =F5*(1-G5)/(F5*(1-G5)+E5) -> 0.6169387094 | K5: =(F5*(1-G5)+E5)*H5 -> 0.1288135932 | L5: =SQRT(1-1/D5^2) -> 0.6606014233 | M5: =(D5-1)^2/(D5+1)^2 -> 0.02027097168 | N5: 0.01566709589 | O5: 0.8791378276 | P5: 1.578402199 | Q5: 0.9378776262 | R5: 0.960263553 | S5: 0.5782625135 | T5: 1.194213421 | U5: 0.1250721527 | V5: 1.007791171 | W5: -0.2002398848 | X5: -2.15897732 | Y5: 0.4271235816 | Z5: -6.448395749 | AA5: -0.8716839894 | AB5: -0.9866551183 | AC5: 0.03531410836 | AD5: 0.8441252035 | AE5: 0.05556697569 | AF5: 0.8643169816 | AG5: 0.08011604274 | AI5: 740 | AJ5: 5.556689262 | AK5: 86.43168766 | AL5: =AJ5/100 -> 0.05556689263 | AM5: 0.8643168766 | AO5: =(AJ5/100-AE5)^2+(AK5/100-AF5)^2 -> 1.791855071e-14
A6: 730 | B6: 41.61988416 | C6: 197.3095351 | D6: 1.332165031 | E6: 4.632293107 | F6: 21.96055125 | G6: 0.6451577763 | H6: 0.01 | J6: =F6*(1-G6)/(F6*(1-G6)+E6) -> 0.6271743466 | K6: 0.1242482395 | L6: =SQRT(1-1/D6^2) -> 0.6606912654 | M6: =(D6-1)^2/(D6+1)^2 -> 0.0202856656 | N6: 0.01582226349 | O6: 0.8831605784 | P6: 1.648623084 | Q6: 0.9233442119 | R6: 0.9602353218 | S6: 0.5782142303 | T6: 1.203474675 | U6: 0.1196749696 | V6: 1.007135591 | W6: -0.2001730472 | X6: -2.158903513 | Y6: 0.4460186297 | Z6: -5.372441279 | AA6: -0.8694508122 | AB6: -0.9797214693 | AC6: 0.0354773858 | AD6: 0.8479651731 | AE6: 0.05565932062 | AF6: 0.8680904804 | AG6: 0.07625019894 | AI6: 730 | AJ6: 5.565922022 | AK6: 86.80903583 | AL6: 0.05565922022 | AM6: 0.8680903583 | AO6: 2.499892493e-14
A7: 720 | B7: 42.6569407 | C7: 210.1277279 | D7: 1.332311487 | E7: 4.7477175 | F7: 23.38721612 | G7: 0.6670194883 | H7: 0.01 | J7: 0.6212493041 | K7: 0.1253520469 | L7: 0.6607850063 | M7: 0.02030100808 | N7: 0.01579931287 | O7: 0.882186277 | P7: 1.607475845 | Q7: 0.9317765951 | R7: 0.9602058453 | S7: 0.5781638452 | T7: 1.197912308 | U7: 0.121296026 | V7: 1.007329502 | W7: -0.2001033162 | X7: -2.15879756 | Y7: 0.4347777004 | Z7: -5.938074858 | AA7: -0.872091763 | AB7: -0.9837882476 | AC7: 0.03547021378 | AD7: 0.8470029812 | AE7: 0.05547306526 | AF7: 0.8669486969 | AG7: 0.07757823786 | AI7: 720 | AJ7: 5.547302007 | AK7: 86.69487289 | AL7: 0.05547302007 | AM7: 0.8669487289 | AO7: 3.06583695e-15
A8: 710 | B8: 56.61972466 | C8: 199.6328741 | D8: 1.332464467 | E8: 6.301775354 | F8: 22.21913888 | G8: 0.6267204148 | H8: 0.01 | J8: 0.5682451681 | K8: 0.145957263 | L8: 0.6608828766 | M8: 0.02031703825 | N8: 0.01517342178 | O8: 0.8641946355 | P8: 1.289787027 | Q8: 1.002575282 | R8: 0.9601750486 | S8: 0.5781112336 | T8: 1.154736537 | U8: 0.1466658757 | V8: 1.010698214 | W8: -0.2000305214 | X8: -2.158592896 | Y8: 0.348760388 | Z8: 135.7748674 | AA8: -0.8827427606 | AB8: -1.016334797 | AC8: 0.03488465625 | AD8: 0.829691385 | AE8: 0.05454167101 | AF8: 0.8492722031 | AG8: 0.09618612593 | AI8: 710 | AJ8: 5.454167127 | AK8: 84.92721685 | AL8: 0.05454167128 | AM8: 0.8492721685 | AO8: 1.195475028e-15
A9: 700 | B9: 101.2372273 | C9: 267.4094571 | D9: 1.332624369 | E9: 11.2677034 | F9: 29.76267257 | G9: 0.6711442622 | H9: 0.01 | J9: 0.4648526568 | K9: 0.2105532905 | L9: 0.6609851238 | M9: 0.02033379827 | N9: 0.01334548146 | O9: 0.8101358815 | P9: 0.8512123913 | Q9: 1.120036168 | R9: 0.9601428507 | S9: 0.5780562613 | T9: 1.092406012 | U9: 0.2246809328 | V9: 1.024930008 | W9: -0.1999544796 | X9: -2.158195919 | Y9: 0.2301061851 | Z9: 2.147079946 | AA9: -0.8652678306 | AB9: -1.062816594 | AC9: 0.03314554559 | AD9: 0.7777356135 | AE9: 0.05267197522 | AF9: 0.7971043643 | AG9: 0.1502236605 | AI9: 700 | AJ9: 5.267193318 | AK9: 79.71041482 | AL9: 0.05267193318 | AM9: 0.7971041482 | AO9: 4.842759249e-14
A10: 690 | B10: 257.1176624 | C10: 249.5081722 | D10: 1.332791621 | E10: 28.61719583 | F10: 27.77025957 | G10: 0.5224549942 | H10: 0.01 | J10: 0.3166653847 | K10: 0.4187874459 | L10: 0.6610920147 | M10: 0.02035133362 | N10: 0.008807217467 | O10: 0.6578440078 | P10: 0.4540622242 | Q10: 1.252907435 | R10: 0.9601091645 | S10: 0.5779987839 | T10: 1.032755288 | U10: 0.4861199616 | V10: 1.111895956 | W10: -0.1998749936 | X10: -2.157371472 | Y10: 0.1227104317 | Z10: 0.6079094212 | AA10: -0.7177855944 | AB10: -1.09454386 | AC10: 0.02880523685 | AD10: 0.6314536467 | AE10: 0.04762245571 | AF10: 0.6496729322 | AG10: 0.3027046121 | AI10: 690 | AJ10: 4.762208701 | AK10: 64.96730624 | AL10: 0.04762208701 | AM10: 0.6496730624 | AO10: 1.528895157e-13
A11: 680 | B11: 415.9439668 | C11: 253.8043897 | D11: 1.332966686 | E11: 46.2945635 | F11: 28.24842857 | G11: 0.42226734 | H11: 0.01 | J11: 0.2606427083 | K11: 0.6261460328 | L11: 0.6612038365 | M11: 0.0203696934 | N11: 0.005822653659 | O11: 0.5346483527 | P11: 0.3453861708 | Q11: 1.29483808 | R11: 0.9600738957 | S11: 0.5779386458 | T11: 1.015790157 | U11: 0.7743298676 | V11: 1.2647477 | W11: -0.1997918511 | X11: -2.156784911 | Y11: 0.09331275663 | Z11: 0.4098009008 | AA11: -0.5735093828 | AB11: -1.093729631 | AC11: 0.02595821451 | AD11: 0.5131498078 | AE11: 0.04425506262 | AF11: 0.5301714429 | AG11: 0.4255734945 | AI11: 680 | AJ11: 4.425462008 | AK11: 53.01715246 | AL11: 0.04425462008 | AM11: 0.5301715246 | AO11: 2.025104948e-13
A12: 670 | B12: 399.0541567 | C12: 304.6822928 | D12: 1.333150061 | E12: 44.41472764 | F12: 33.91113919 | G12: 0.5287420996 | H12: 0.01 | J12: 0.2646034975 | K12: 0.603956199 | L12: 0.6613208995 | M12: 0.02038893071 | N12: 0.006092629386 | O12: 0.5466447173 | P12: 0.3525182914 | Q12: 1.291856086 | R12: 0.9600369426 | S12: 0.5778756789 | T12: 1.016851057 | U12: 0.741652369 | V12: 1.245009332 | W12: -0.1997048228 | X12: -2.156700293 | Y12: 0.09520977354 | Z12: 0.421431422 | AA12: -0.5877862477 | AB12: -1.09411396 | AC12: 0.02623637484 | AD12: 0.5246461323 | AE12: 0.04455653605 | AF12: 0.5417752931 | AG12: 0.4136681709 | AI12: 670 | AJ12: 4.455592155 | AK12: 54.17754179 | AL12: 0.04455592155 | AM12: 0.5417754179 | AO12: 3.931779534e-13
A13: 660 | B13: 286.5504322 | C13: 315.5273809 | D13: 1.333342287 | E13: 31.8930631 | F13: 35.11819749 | G13: 0.60582833 | H13: 0.01 | J13: 0.3026653174 | K13: 0.4573566165 | L13: 0.6614435385 | M13: 0.02040910301 | N13: 0.008176529503 | O13: 0.6329545777 | P13: 0.4252444086 | Q13: 1.263416433 | R13: 0.9599981949 | S13: 0.5778097015 | T13: 1.02811469 | U13: 0.5370211234 | V13: 1.135073428 | W13: -0.1996136614 | X13: -2.15689183 | Y13: 0.1148142324 | Z13: 0.5506801018 | AA13: -0.689245274 | AB13: -1.095038943 | AC13: 0.02825659659 | AD13: 0.6074835271 | AE13: 0.04695669269 | AF13: 0.6254769366 | AG13: 0.3275663707 | AI13: 660 | AJ13: 4.695668221 | AK13: 62.54768973 | AL13: 0.04695668221 | AM13: 0.6254768973 | AO13: 1.656618529e-15
A14: 650 | B14: 248.1491343 | C14: 219.5922373 | D14: 1.333543948 | E14: 27.61899865 | F14: 24.44061601 | G14: 0.4630107628 | H14: 0.01 | J14: 0.3221224792 | K14: 0.407433464 | L14: 0.6615721158 | M14: 0.02043027263 | N14: 0.009044445616 | O14: 0.6653557201 | P14: 0.4655704549 | Q14: 1.248122721 | R14: 0.9599575333 | S14: 0.577740517 | T14: 1.034270593 | U14: 0.4710641845 | V14: 1.10539652 | W14: -0.1995180992 | X14: -2.156887274 | Y14: 0.1256587606 | Z14: 0.6320967043 | AA14: -0.726134171 | AB14: -1.093910432 | AC14: 0.02911053632 | AD14: 0.6385646337 | AE14: 0.04800117172 | AF14: 0.6568870465 | AG14: 0.2951117817 | AI14: 650 | AJ14: 4.800117493 | AK14: 65.68869388 | AL14: 0.04800117493 | AM14: 0.6568869388 | AO14: 1.162760113e-14
A15: 640 | B15: 175.9770572 | C15: 238.7277915 | D15: 1.333755679 | E15: 19.58624647 | F15: 26.5704032 | G15: 0.5611714157 | H15: 0.01 | J15: 0.3731618613 | K15: 0.3124609889 | L15: 0.6617070238 | M15: 0.02045250718 | N15: 0.01094829239 | O15: 0.7316441706 | P15: 0.5832632236 | Q15: 1.205778635 | R15: 0.9599148279 | S15: 0.5776679127 | T15: 1.05214222 | U15: 0.3498786472 | V15: 1.059440922 | W15: -0.1994178468 | X15: -2.157036487 | Y15: 0.1573673874 | Z15: 0.9221085266 | AA15: -0.797328112 | AB15: -1.087187816 | AC15: 0.03095989205 | AD15: 0.7021795378 | AE15: 0.05020167833 | AF15: 0.7210797007 | AG15: 0.2287186209 | AI15: 640 | AJ15: 5.020146131 | AK15: 72.10796518 | AL15: 0.05020146132 | AM15: 0.7210796518 | AO15: 4.948393811e-14
A16: 630 | B16: 161.055619 | C16: 251.0679752 | D16: 1.333978169 | E16: 17.92549039 | F16: 27.94386564 | G16: 0.5945839387 | H16: 0.01 | J16: 0.3872545253 | K16: 0.2925438234 | L16: 0.6618486879 | M16: 0.0204758802 | N16: 0.01140623312 | O16: 0.7463625362 | P16: 0.6192028775 | Q16: 1.193332978 | R16: 0.9598699379 | S16: 0.5775916574 | T16: 1.057474945 | U16: 0.3250416395 | V16: 1.051499913 | W16: -0.1993125901 | X16: -2.156953372 | Y16: 0.1670005556 | Z16: 1.030798122 | AA16: -0.8118781867 | AB16: -1.08439835 | AC16: 0.03142234677 | AD16: 0.7162778862 | AE16: 0.05072824684 | AF16: 0.7352832477 | AG16: 0.2139885055 | AI16: 630 | AJ16: 5.07281208 | AK16: 73.52830302 | AL16: 0.0507281208 | AM16: 0.7352830302 | AO16: 6.320634235e-14
A17: 620 | B17: 157.4783334 | C17: 253.6574447 | D17: 1.334212167 | E17: 17.5273385 | F17: 28.2320736 | G17: 0.6006088794 | H17: 0.01 | J17: 0.3914747811 | K17: 0.2880297801 | L17: 0.6619975703 | M17: 0.02050047174 | N17: 0.01152349895 | O17: 0.7497392646 | P17: 0.6302778551 | Q17: 1.189462232 | R17: 0.9598227099 | S17: 0.5775115001 | T17: 1.05904717 | U17: 0.3193243295 | V17: 1.049746649 | W17: -0.1992019882 | X17: -2.156809407 | Y17: 0.1699195232 | Z17: 1.066771214 | AA17: -0.8149426627 | AB17: -1.083389308 | AC17: 0.03155895176 | AD17: 0.7194843087 | AE17: 0.05092903039 | AF17: 0.7385621275 | AG17: 0.2105088421 | AI17: 620 | AJ17: 5.092884302 | AK17: 73.85619167 | AL17: 0.05092884302 | AM17: 0.7385619167 | AO17: =(AJ17/100-AE17)^2+(AK17/100-AF17)^2 -> 7.954992195e-14
A18: 610 | B18: 142.1408107 | C18: 259.9759553 | D18: 1.334458488 | E18: 15.82027223 | F18: 28.93532382 | G18: 0.6233621719 | H18: 0.01 | J18: 0.4078887038 | K18: 0.2671840975 | L18: 0.6621541732 | M18: 0.02052636908 | N18: 0.01202926176 | O18: 0.765532126 | P18: 0.6748982904 | Q18: 1.174487946 | R18: 0.9597729766 | S18: 0.5774271677 | T18: 1.065621384 | U18: 0.2936207994 | V18: 1.042215512 | W18: -0.1990856708 | X18: -2.156717119 | Y18: 0.1818723645 | Z18: 1.224192871 | AA18: -0.8297161069 | AB18: -1.079601999 | AC18: 0.03206971526 | AD18: 0.7346088666 | AE18: 0.05146783243 | AF18: 0.7537550943 | AG18: 0.1947770733 | AI18: 610 | AJ18: 5.146726131 | AK18: 75.37552051 | AL18: 0.05146726131 | AM18: 0.7537552051 | AO18: 3.384459596e-13
A19: 600 | B19: 128.3598014 | C19: 220.218253 | D19: 1.334718025 | E19: 14.28644589 | F19: 24.51029156 | G19: 0.5667428642 | H19: 0.01 | J19: 0.42637857 | K19: 0.2490570461 | L19: 0.6623190439 | M19: 0.02055366754 | N19: 0.01248996225 | O19: 0.7795355026 | P19: 0.7282192404 | Q19: 1.157106544 | R19: 0.9597205552 | S19: 0.5773383628 | T19: 1.073430021 | U19: 0.2711242453 | V19: 1.036102484 | W19: -0.1989632347 | X19: -2.156608632 | Y19: 0.19615433 | Z19: 1.444697678 | AA19: -0.8413584235 | AB19: -1.074545464 | AC19: 0.03253855385 | AD19: 0.7480122184 | AE19: 0.05211841705 | AF19: 0.7673712123 | AG19: 0.1805103707 | AI19: 600 | AJ19: 5.211839438 | AK19: 76.73711614 | AL19: 0.05211839438 | AM19: 0.7673711614 | AO19: 3.10571886e-15
A20: 590 | B20: 119.9398559 | C20: 273.8503375 | D20: 1.334991749 | E20: 13.34930596 | F20: 30.47954256 | G20: 0.6576330524 | H20: 0.01 | J20: 0.4387391209 | K20: 0.2378449391 | L20: 0.6624927788 | M20: 0.02058247139 | N20: 0.01279110403 | O20: 0.78832492 | P20: 0.7658149033 | Q20: 1.145121835 | R20: 0.9596652461 | S20: 0.5772447606 | T20: 1.078857655 | U20: 0.2572755982 | V20: 1.032565123 | W20: -0.1988342402 | X20: -2.156465613 | Y20: 0.2061846939 | Z20: 1.626954313 | AA20: -0.8481400027 | AB20: -1.070845787 | AC20: 0.03285568036 | AD20: 0.7564066753 | AE20: 0.05253790738 | AF20: 0.7758864722 | AG20: 0.1715756204 | AI20: 590 | AJ20: 5.253787279 | AK20: 77.58865605 | AL20: 0.05253787279 | AM20: 0.7758865605 | AO20: 8.99818928e-15
A21: 580 | B21: 108.3471073 | C21: 275.0469856 | D21: 1.335280727 | E21: 12.05903304 | F21: 30.61272949 | G21: 0.6674571616 | H21: 0.01 | J21: 0.4577547871 | K21: 0.22239077 | L21: 0.66267603 | M21: 0.0206128949 | N21: 0.01321212946 | O21: 0.8006024518 | P21: 0.8270082496 | Q21: 1.126215549 | R21: 0.9596068304 | S21: 0.5771460062 | T21: 1.087689487 | U21: 0.2382054852 | V21: 1.0279795 | W21: -0.1986982073 | X21: -2.156330539 | Y21: 0.2225502136 | Z21: 1.985805341 | AA21: -0.8566218696 | AB21: -1.06464165 | AC21: 0.03328940993 | AD21: 0.7681463497 | AE21: 0.0531478373 | AF21: 0.7878262892 | AG21: 0.1590258735 | AI21: 580 | AJ21: 5.314755439 | AK21: 78.78264895 | AL21: 0.05314755439 | AM21: 0.7878264895 | AO21: 1.201307582e-13
A22: 570 | B22: 95.09958431 | C22: 276.4868462 | D22: 1.335586127 | E22: 10.58458373 | F22: 30.77298598 | G22: 0.6785921487 | H22: 0.01 | J22: 0.4830550545 | K22: 0.2047526304 | L22: 0.6628695103 | M22: 0.0206450635 | N22: 0.0137078817 | O22: 0.8148488604 | P22: 0.9154094196 | Q22: 1.100039703 | R22: 0.9595450677 | S22: 0.5770417111 | T22: 1.10035551 | U22: 0.2164046863 | V22: 1.023147589 | W22: -0.1985546113 | X22: -2.15619558 | Y22: 0.2462107213 | Z22: 2.707340799 | AA22: -0.8645396989 | AB22: -1.055405161 | AC22: 0.03379650944 | AD22: 0.7817721928 | AE22: 0.05393020217 | AF22: 0.8017525915 | AG22: 0.1443172063 | AI22: 570 | AJ22: 5.392974854 | AK22: 80.17526557 | AL22: 0.05392974854 | AM22: 0.8017526557 | AO22: 2.099022073e-13
A23: 560 | B23: 84.53333122 | C23: 278.7831076 | D23: 1.335909231 | E23: 9.408559765 | F23: 31.02855988 | G23: 0.6919286995 | H23: 0.01 | J23: 0.5039659545 | K23: 0.1896756856 | L23: 0.6630740014 | M23: 0.02067911513 | N23: 0.01415082447 | O23: 0.8272273722 | P23: 0.9952721097 | Q23: 1.077414537 | R23: 0.9594796938 | S23: 0.5769314492 | T23: 1.111636489 | U23: 0.1981550518 | V23: 1.019443684 | W23: -0.1984028773 | X23: -2.156040185 | Y23: 0.2675430815 | Z23: 3.723522951 | AA23: -0.870820276 | AB23: -1.047051316 | AC23: 0.03425471038 | AD23: 0.7936006845 | AE23: 0.05442531239 | AF23: 0.8136395525 | AG23: 0.1319351351 | AI23: 560 | AJ23: 5.442494154 | AK23: 81.3639318 | AL23: 0.05442494154 | AM23: 0.813639318 | AO23: 1.92522348e-13
A24: 550 | B24: 85.19330676 | C24: 279.9134042 | D24: 1.336251452 | E24: 9.482015043 | F24: 31.15436188 | G24: 0.6926816421 | H24: 0.01 | J24: 0.5024215662 | K24: 0.1905632238 | L24: 0.6632903612 | M24: 0.0207152018 | N24: 0.01415037845 | O24: 0.826493502 | P24: 0.9891065086 | Q24: 1.079004546 | R24: 0.9594104178 | S24: 0.5768147524 | T24: 1.110592452 | U24: 0.1992430669 | V24: 1.019655726 | W24: -0.1982423745 | X24: -2.15580342 | Y24: 0.2657303219 | Z24: 3.629211735 | AA24: -0.8705785324 | AB24: -1.047684942 | AC24: 0.03428937553 | AD24: 0.7928386104 | AE24: 0.05443202415 | AF24: 0.8128484998 | AG24: 0.132719476 | AI24: 550 | AJ24: 5.44315958 | AK24: 81.28483172 | AL24: 0.0544315958 | AM24: 0.8128483172 | AO24: 2.168079871e-13
A25: 540 | B25: 89.1358137 | C25: 280.2029871 | D25: 1.336614348 | E25: 9.920816065 | F25: 31.18659246 | G25: 0.6895138559 | H25: 0.01 | J25: 0.4939345696 | K25: 0.1960382091 | L25: 0.6635195331 | M25: 0.02075349133 | N25: 0.01402214789 | O25: 0.821980827 | P25: 0.9560512748 | Q25: 1.088104243 | R25: 0.9593369182 | S25: 0.5766911053 | T25: 1.10570175 | U25: 0.2059200236 | V25: 1.020981418 | W25: -0.1980724097 | X25: -2.155532959 | Y25: 0.2566906855 | Z25: 3.170179031 | AA25: -0.8686623144 | AB25: -1.051144249 | AC25: 0.0342035757 | AD25: 0.7884463609 | AE25: 0.05427675233 | AF25: 0.8083795394 | AG25: 0.1373437082 | AI25: 540 | AJ25: 5.427628517 | AK25: 80.83795793 | AL25: 0.05427628517 | AM25: 0.8083795793 | AO25: 2.198291351e-13
A26: 530 | B26: 96.35249804 | C26: 279.5407137 | D26: 1.336999638 | E26: 10.72403303 | F26: 31.11288144 | G26: 0.6807572588 | H26: 0.01 | J26: 0.4808421598 | K26: 0.2065659459 | L26: 0.6637625569 | M26: 0.02079416943 | N26: 0.01375690307 | O26: 0.8133726211 | P26: 0.9071965009 | Q26: 1.10188141 | R26: 0.9592588397 | S26: 0.5765599399 | T26: 1.09851763 | U26: 0.2185365184 | V26: 1.023600611 | W26: -0.1978922193 | X26: -2.155226335 | Y26: 0.2434134666 | Z26: 2.632597789 | AA26: -0.8636050081 | AB26: -1.056133339 | AC26: 0.03398866867 | AD26: 0.7801206692 | AE26: 0.05408415693 | AF26: 0.8000605789 | AG26: 0.1458552641 | AI26: 530 | AJ26: 5.408375502 | AK26: 80.00607295 | AL26: 0.05408375502 | AM26: 0.8000607295 | AO26: 1.842168192e-13
A27: 520 | B27: 126.2577348 | C27: 302.7869187 | D27: 1.337409228 | E27: 14.05248588 | F27: 33.70018405 | G27: 0.6803708203 | H27: 0.01 | J27: 0.4339164248 | K27: 0.2482404806 | L27: 0.6640205801 | M27: 0.02083744199 | N27: 0.01268310132 | O27: 0.7801723044 | P27: 0.7507496279 | Q27: 1.148741006 | R27: 0.9591757882 | S27: 0.5764206282 | T27: 1.075618958 | U27: 0.269212689 | V27: 1.035603917 | W27: -0.1977009612 | X27: -2.154779758 | Y27: 0.2012957968 | Z27: 1.554626683 | AA27: -0.8400096099 | AB27: -1.071635469 | AC27: 0.03300069807 | AD27: 0.7481951997 | AE27: 0.05294720501 | AF27: 0.7679187019 | AG27: 0.1791340931 | AI27: 520 | AJ27: 5.294666291 | AK27: 76.7918766 | AL27: 0.05294666291 | AM27: 0.767918766 | AO27: 2.979814782e-13 | AQ27: n_lambda = A + B/lambda^2 + C/lambda^4
A28: 510 | B28: 198.7442552 | C28: 286.5825394 | D28: 1.337845232 | E28: 22.12023561 | F28: 31.89663664 | G28: 0.606663641 | H28: 0.01 | J28: 0.3619103143 | K28: 0.3466634253 | L28: 0.6642948725 | M28: 0.02088353784 | N28: 0.01043989302 | O28: 0.7070432611 | P28: 0.5554542376 | Q28: 1.213123123 | R28: 0.9590873257 | S28: 0.5762724753 | T28: 1.046418555 | U28: 0.3911669193 | V28: 1.073783758 | W28: -0.1974977044 | X28: -2.154137503 | Y28: 0.1488211617 | Z28: 0.847108423 | AA28: -0.7699489526 | AB28: -1.087295191 | AC28: 0.03089412265 | AD28: 0.6779683009 | AE28: 0.05060031806 | AF28: 0.6972457866 | AG28: 0.2521538953 | AI28: 510 | AJ28: 5.059983254 | AK28: 69.72459797 | AL28: 0.05059983254 | AM28: 0.6972459797 | AO28: 2.73012121e-13 | AQ28: =1.32711+0.0026/(A28/1000)^2+0.00005/(A28/1000)^4 -> 1.337845232
A29: 500 | B29: 303.7770713 | C29: 286.4156393 | D29: 1.33831 | E29: 33.81038803 | F29: 31.87806065 | G29: 0.5373937163 | H29: 0.01 | J29: 0.3037023705 | K29: 0.485573792 | L29: 0.6645868412 | M29: 0.02093271191 | N29: 0.007926134899 | O29: 0.615344016 | P29: 0.4271081589 | Q29: 1.259360838 | R29: 0.9589929646 | S29: 0.5761147096 | T29: 1.026748005 | U29: 0.5722876284 | V29: 1.15217756 | W29: -0.1972814176 | X29: -2.15343601 | Y29: 0.1143430696 | Z29: 0.5552078918 | AA29: -0.6676764209 | AB29: -1.092131842 | AC29: 0.02853174967 | AD29: 0.5899498903 | AE29: 0.04781461479 | AF29: 0.6084163713 | AG29: 0.3437690139 | AI29: 500 | AJ29: 4.781462431 | AK29: 60.84163198 | AL29: 0.04781462431 | AM29: 0.6084163198 | AO29: 2.742543455e-15 | AQ29: A = 1.32711
A30: 490 | B30: 387.6990587 | C30: 271.7124008 | D30: 1.338806154 | E30: 43.15090524 | F30: 30.24159021 | G30: 0.4566795546 | H30: 0.01 | J30: 0.2757701163 | K30: 0.595817795 | L30: 0.6648980496 | M30: 0.02098524889 | N30: 0.006373725612 | O30: 0.5511116852 | P30: 0.3728362142 | Q30: 1.279764237 | R30: 0.9588921605 | S30: 0.5759464735 | T30: 1.018232921 | U30: 0.7262376422 | V30: 1.235888795 | W30: -0.1970509561 | X30: -2.152861071 | Y30: 0.09972922907 | Z30: 0.4562052035 | AA30: -0.592430847 | AB30: -1.09140157 | AC30: 0.02709509015 | AD30: 0.528294614 | AE30: 0.04607918376 | AF30: 0.5460815225 | AG30: 0.4078392937 | AI30: 490 | AJ30: 4.607912064 | AK30: 54.60811815 | AL30: 0.04607912064 | AM30: 0.5460811815 | AO30: 1.202827107e-13 | AQ30: B = 2.6 X 10^-3
A31: 480 | B31: 412.7783913 | C31: 296.7388371 | D31: 1.339336623 | E31: 45.94223495 | F31: 33.02703257 | G31: 0.4862804819 | H31: 0.01 | J31: 0.2697017492 | K31: 0.6290886621 | L31: 0.6652302386 | M31: 0.02104146756 | N31: 0.005979385552 | O31: 0.5330773934 | P31: 0.3615783702 | Q31: 1.283770654 | R31: 0.9587843036 | S31: 0.5757668107 | T31: 1.016325683 | U31: 0.7746873035 | V31: 1.264966568 | W31: -0.1968050464 | X31: -2.152439699 | Y31: 0.09663042153 | Z31: 0.437153376 | AA31: -0.5710775655 | AB31: -1.090748913 | AC31: 0.02677259141 | AD31: 0.5109442329 | AE31: 0.04570191891 | AF31: 0.528548372 | AG31: 0.4257497091 | AI31: 480 | AJ31: 4.570140123 | AK31: 52.85486657 | AL31: 0.04570140123 | AM31: 0.5285486657 | AO31: 3.542629349e-13 | AQ31: C = 5.0 X 10^-5
A32: 470 | B32: 422.1238927 | C32: 300.4598811 | D32: 1.339904689 | E32: 46.98238926 | F32: 33.44118477 | G32: 0.4872354988 | H32: 0.01 | J32: 0.2673864768 | K32: 0.6412984168 | L32: 0.6655853507 | M32: 0.02110172581 | N32: 0.005851850848 | O32: 0.526608223 | P32: 0.3573186649 | Q32: 1.285028291 | R32: 0.9586687099 | S32: 0.5755746528 | T32: 1.015489206 | U32: 0.7927156699 | V32: 1.27608704 | W32: -0.1965422684 | X32: -2.152033809 | Y32: 0.09539957628 | Z32: 0.430101707 | AA32: -0.5634204629 | AB32: -1.090477073 | AC32: 0.02670990661 | AD32: 0.5046803479 | AE32: 0.04558483629 | AF32: 0.522184546 | AG32: 0.4322306177 | AI32: 470 | AJ32: 4.558471918 | AK32: 52.21841903 | AL32: 0.04558471918 | AM32: 0.5221841903 | AO32: 1.402170168e-13
A33: 460 | B33: 419.5937128 | C33: 296.9528584 | D33: 1.34051404 | E33: 46.70078024 | F33: 33.05085313 | G33: 0.4815302863 | H33: 0.01 | J33: 0.2684330596 | K33: 0.638366466 | L33: 0.6659655594 | M33: 0.02116642664 | N33: 0.005904314444 | O33: 0.5281544781 | P33: 0.3592072269 | Q33: 1.283854252 | R33: 0.9585446092 | S33: 0.5753688027 | T33: 1.015590066 | U33: 0.7880577724 | V33: 1.273198748 | W33: -0.1962610351 | X33: -2.151627608 | Y33: 0.09580422567 | Z33: 0.4333162592 | AA33: -0.5652202641 | AB33: -1.090321149 | AC33: 0.02682414691 | AD33: 0.506096063 | AE33: 0.04573196208 | AF33: 0.5236433086 | AG33: 0.4306247294 | AI33: 460 | AJ33: 4.573179007 | AK33: 52.36433447 | AL33: 0.04573179007 | AM33: 0.5236433447 | AO33: 3.089217245e-14
A34: 450 | B34: 458.2272765 | C34: 283.3276649 | D34: 1.341168832 | E34: 51.00069588 | F34: 31.5343691 | G34: 0.4298293912 | H34: 0.01 | J34: 0.260652316 | K34: 0.6898066631 | L34: 0.6663733026 | M34: 0.02123602515 | N34: 0.005344594695 | O34: 0.5016730516 | P34: 0.3450961718 | Q34: 1.288908294 | R34: 0.9584111319 | S34: 0.5751479158 | T34: 1.013207829 | U34: 0.8656795751 | V34: 1.322649283 | W34: -0.195959568 | X34: -2.151099102 | Y34: 0.09193800822 | Z34: 0.4101635839 | AA34: -0.5338349835 | AB34: -1.089207323 | AC34: 0.02635661537 | AD34: 0.4806467598 | AE34: 0.04520156963 | AF34: 0.497919605 | AG34: 0.4568788254 | AI34: 450 | AJ34: 4.520031452 | AK34: 49.7919993 | AL34: 0.04520031452 | AM34: 0.497919993 | AO34: 1.725871024e-12
A35: 440 | B35: 532.8526449 | C35: 428.0068673 | D35: 1.341873763 | E35: 59.30649938 | F35: 47.63716433 | G35: 0.5884377262 | H35: 0.01 | J35: 0.2484491605 | K35: 0.7891215905 | L35: 0.6668113218 | M35: 0.02131103694 | N35: 0.004397261337 | O35: 0.454243632 | P35: 0.3235672515 | Q35: 1.29690135 | R35: 0.9582672934 | S35: 0.5749104778 | T35: 1.009663713 | U35: 1.024603194 | V35: 1.431716349 | W35: -0.1956358693 | X35: -2.150479757 | Y35: 0.08609896028 | Z35: 0.3760907713 | AA35: -0.4777306281 | AB35: -1.087136571 | AC35: 0.02552326967 | AD35: 0.4351299019 | AE35: 0.04424395129 | AF35: 0.4518382255 | AG35: 0.5039178232 | AI35: 440 | AJ35: 4.424399376 | AK35: 45.18382217 | AL35: 0.04424399376 | AM35: 0.4518382217 | AO35: 1.817315171e-15
A36: 430 | B36: 522.9460963 | C36: 1250.221477 | D36: 1.342634156 | E36: 58.20390052 | F36: 139.1496504 | G36: 0.8603504763 | H36: 0.01 | J36: 0.2502983364 | K36: 0.7763608292 | L36: 0.667282709 | M36: 0.02139204808 | N36: 0.004528078192 | O36: 0.4600772682 | P36: 0.3267535381 | Q36: 1.295076044 | R36: 0.9581119745 | S36: 0.5746547777 | T36: 1.009925603 | U36: 1.003022997 | V36: 1.416352757 | W36: -0.1952876887 | X36: -2.149985641 | Y36: 0.08683427623 | Z36: 0.381111897 | AA36: -0.4846151026 | AB36: -1.087171633 | AC36: 0.02572888876 | AD36: 0.4406465017 | AE36: 0.04448132566 | AF36: 0.457444566 | AG36: 0.4980741083 | AI36: 430 | AJ36: 4.447993279 | AK36: 45.74448518 | AL36: 0.04447993279 | AM36: 0.4574448518 | AO36: 2.021792608e-12
A37: 420 | B37: 495.2823897 | C37: 615.7160785 | D37: 1.34345607 | E37: 55.12492998 | F37: 68.52919954 | G37: 0.7222923148 | H37: 0.01 | J37: 0.2566357602 | K37: 0.7415601535 | L37: 0.6677909613 | M37: 0.02147972706 | N37: 0.004874362154 | O37: 0.4763701249 | P37: 0.3378553554 | Q37: 1.290097432 | R37: 0.9579438994 | S37: 0.574378877 | T37: 1.011386612 | U37: 0.9454665634 | V37: 1.376192945 | W37: -0.1949124841 | X37: -2.149482853 | Y37: 0.08965901186 | Z37: 0.3987241808 | AA37: -0.5038100148 | AB37: -1.087312131 | AC37: 0.02614742691 | AD37: 0.4561730727 | AE37: 0.04512094107 | AF37: 0.4733338391 | AG37: 0.4815452198 | AI37: 420 | AJ37: 4.51203394 | AK37: 47.33333071 | AL37: 0.0451203394 | AM37: 0.4733333071 | AO37: 6.451030648e-13
A38: 410 | B38: 460.4481693 | C38: 626.9297233 | D38: 1.344346419 | E38: 51.24788125 | F38: 69.7772782 | G38: 0.7360770872 | H38: 0.01 | J38: 0.2643531928 | K38: 0.6966370376 | L38: 0.6683400459 | M38: 0.02157483921 | N38: 0.005356194326 | O38: 0.4982581127 | P38: 0.351635738 | Q38: 1.284074981 | R38: 0.9577616081 | S38: 0.5740805722 | T38: 1.013229098 | U38: 0.8739899789 | V38: 1.328103341 | W38: -0.1945073756 | X38: -2.148954724 | Y38: 0.09317470943 | Z38: 0.4211680766 | AA38: -0.5296215823 | AB38: -1.087697054 | AC38: 0.02670300125 | AD38: 0.4770454883 | AE38: 0.04586001619 | AF38: 0.4945776902 | AG38: 0.4595622936 | AI38: 410 | AJ38: 4.585999727 | AK38: 49.45774085 | AL38: 0.04585999727 | AM38: 0.4945774085 | AO38: 7.972944004e-14
A39: 400 | B39: 406.3506261 | C39: 430.6979436 | D39: 1.345313125 | E39: 45.22682468 | F39: 47.93668112 | G39: 0.6343555644 | H39: 0.01 | J39: 0.2793066836 | K39: 0.6275460539 | L39: 0.6689344778 | M39: 0.02167826413 | N39: 0.00617938034 | O39: 0.5339003575 | P39: 0.3792020857 | Q39: 1.272784178 | R39: 0.9575634231 | S39: 0.5737573499 | T39: 1.017140328 | U39: 0.7686283179 | V39: 1.261265036 | W39: -0.1940690906 | X39: -2.148426249 | Y39: 0.1003139916 | Z39: 0.4680552303 | AA39: -0.5715121518 | AB39: -1.087997815 | AC39: 0.02759342436 | AD39: 0.5110716587 | AE39: 0.04715530269 | AF39: 0.5292763569 | AG39: 0.4235683404 | AI39: 400 | AJ39: 4.715528727 | AK39: 52.92761485 | AL39: 0.04715528727 | AM39: 0.5292761485 | AO39: 4.366160076e-14
AJ40: 4.776883125 | AK40: 54.17358061
AJ41: 4.824962378 | AK41: 54.87002747
AJ42: 4.909707069 | AK42: 57.07118799
AJ43: 4.993809462 | AK43: 59.01045212
AJ44: 5.058826208 | AK44: 59.60174143

Sheet Dilution5_quartz
A1: X= | B1: 0.5565 | C1: g/L | AI1: dilution 5
A3: l (nm) | B3: Abs,l (m2/kg) | C3: Ssca,l (m2/kg) | D3: n | E3: k (1/m) | F3: ss (1/m) | G3: g | H3: d (m) | I3: Ssca,tr,λ (m2/kg) | J3: wtr | K3: ttr | L3: mc | M3: R1 | N3: Ctr | O3: Etr | P3: c | Q3: k2 | R3: g | S3: gbar | T3: j | U3: s | V3: c | W3: k1 | X3: k2 | Y3: D1 | Z3: D | AA3: A | AB3: B | AC3: R0dh | AD3: T0dh | AE3: Rdh | AF3: Tdh | AG3: Adh | AI3: l (nm) | AJ3: Rdh | AK3: Tdh | AL3: Rdh | AM3: Tdh | AO3: error
A4: 750 | B4: 57.19161701 | C4: 1.001401598 | D4: 1.454241075 | E4: =B4*B$1 -> 31.82713487 | F4: =C4*B$1 -> 0.5572799892 | G4: 0.00983241257 | H4: 0.01 | I4: =(1-G4)*C4 -> 0.9915554041 | J4: =F4*(1-G4)/(F4*(1-G4)+E4) -> 0.01704196184 | K4: =(F4*(1-G4)+E4)*H4 -> 0.3237893545 | L4: =SQRT(1-1/D4^2) -> 0.726048119 | M4: =(D4-1)^2/(D4+1)^2 -> 0.03425613533 | N4: =M4*EXP(-2*K4) -> 0.01792662384 | O4: =EXP(-K4) -> 0.7234026078 | P4: =J4/(1-J4)*(1-M4)/(1-M4*N4) -> 0.01675380085 | Q4: =4/(1+L4)^2*(1-J4)/(1-J4*L4) -> 1.336276537 | R4: =(1-M4)/(1+M4) -> 0.9337569599 | S4: =R4/(1+L4) -> 0.5409796805 | T4: =2*S4/SQRT(Q4) -> 0.9359718286 | U4: =SINH(SQRT(Q4)*K4) -> 0.3830929745 | V4: =COSH(SQRT(Q4)*K4) -> 1.070868912 | W4: =(1-2*S4)-(1+2*S4)*M4 -> -0.1532792426 | X4: =(1-2*S4)*N4-(1+2*S4) -> -2.083428616 | Y4: =R4*(1-L4^2)*P4/2 -> 0.003698659829 | Z4: =Y4*Q4/(Q4-1) -> 0.01469752364 | AA4: =(W4*(T4*U4+V4)*O4+X4)/((1+T4^2)*U4+2*T4*V4) -> -0.823237819 | AB4: =(W4*O4+X4*(T4*U4+V4))/((1+T4^2)*U4+2*T4*V4) -> -1.134285077 | AC4: =M4+(1-M4)^2*N4/(1-M4*N4) -> 0.05098587574 | AD4: =(1-M4)^2/(1-M4*N4)*O4 -> 0.6751041324 | AE4: =AC4+Z4*(1+AB4/SQRT(Q4)+N4) -> 0.05152511799 | AF4: =AD4+Z4*(AA4/SQRT(Q4)+(1+M4)*O4) -> 0.6756336004 | AG4: =1-AE4-AF4 -> 0.2728412816 | AI4: 750 | AJ4: 5.224340677 | AK4: 67.56632806 | AL4: =AJ4/100 -> 0.05224340677 | AM4: =AK4/100 -> 0.6756632806 | AO4: =(AJ4/100-AE4)^2+(AK4/100-AF4)^2 -> 5.168196813e-07
A5: 740 | B5: 59.44726819 | C5: 1.001884068 | D5: 1.454439807 | E5: 33.08240475 | F5: 0.5575484839 | G5: -0.1487912702 | H5: 0.01 | I5: =(1-G5)*C5 -> 1.150955671 | J5: =F5*(1-G5)/(F5*(1-G5)+E5) -> 0.01899322452 | K5: =(F5*(1-G5)+E5)*H5 -> 0.3372291158 | L5: =SQRT(1-1/D5^2) -> 0.7261370958 | M5: =(D5-1)^2/(D5+1)^2 -> 0.03428056425 | N5: 0.01746362807 | O5: 0.7137452908 | P5: 0.01870844713 | Q5: 1.335404288 | R5: 0.933711286 | S5: 0.5409253345 | T5: 0.9361833971 | U5: 0.3996398783 | V5: 1.076899267 | W5: -0.1532176847 | X5: -2.083280079 | Y5: 0.004128847561 | Z5: 0.0164389095 | AA5: -0.8104700066 | AB5: -1.132316762 | AC5: 0.05057714494 | AD5: 0.6660476091 | AE5: 0.05119539941 | AF5: 0.6666537072 | AG5: 0.2821508934 | AI5: 740 | AJ5: 5.146053791 | AK5: 66.66689281 | AL5: =AJ5/100 -> 0.05146053791 | AM5: 0.6666689281 | AO5: =(AJ5/100-AE5)^2+(AK5/100-AF5)^2 -> 7.053009805e-08
A6: 730 | B6: 62.74503714 | C6: 1.000816141 | D6: 1.45464428 | E6: 34.91761317 | F6: 0.5569541827 | G6: 0.1989798078 | H6: 0.01 | I6: 0.8016739379 | J6: =F6*(1-G6)/(F6*(1-G6)+E6) -> 0.01261550636 | K6: 0.3536374472 | L6: =SQRT(1-1/D6^2) -> 0.7262285935 | M6: =(D6-1)^2/(D6+1)^2 -> 0.0343057038 | N6: 0.01691222508 | O6: 0.7021294802 | P6: 0.01234554012 | Q6: 1.337663616 | R6: 0.9336642858 | S6: 0.540869436 | T6: 0.935295789 | U6: 0.4205073218 | V6: 1.084816301 | W6: -0.1531543891 | X6: -2.083121258 | Y6: 0.00272368726 | Z6: 0.01078996131 | AA6: -0.7957354689 | AB6: -1.130969632 | AC6: 0.05008661686 | AD6: 0.6551618269 | AE6: 0.05050796929 | AF6: 0.6555740652 | AG6: 0.2939179655 | AI6: 730 | AJ6: 5.094269753 | AK6: 65.62121992 | AL6: 0.05094269753 | AM6: 0.6562121992 | AO6: 5.962037091e-07
A7: 720 | B7: 69.36852185 | C7: 1.002493719 | D7: 1.454854862 | E7: 38.60358241 | F7: 0.5578877543 | G7: -0.3266646862 | H7: 0.01 | I7: 1.329973014 | J7: 0.01881189998 | K7: 0.3934371239 | L7: 0.726322773 | M7: 0.03433159984 | N7: 0.01562999712 | O7: 0.6747337408 | P7: 0.0185242876 | Q7: 1.335190288 | R7: 0.9336158736 | S7: 0.5408118853 | T7: 0.9360620552 | U7: 0.470440851 | V7: 1.10513103 | W7: -0.153089245 | X7: -2.08289955 | Y7: 0.00408545477 | Z7: 0.0162739188 | AA7: -0.7597738722 | AB7: -1.125631152 | AC7: 0.04891463908 | AD7: 0.6295374557 | AE7: 0.04958972913 | AF7: 0.6301944772 | AG7: 0.3202157937 | AI7: 720 | AJ7: 4.98533082 | AK7: 63.02236685 | AL7: 0.0498533082 | AM7: 0.6302236685 | AO7: 7.032605938e-08
A8: 710 | B8: 90.39619597 | C8: 1.485260518 | D8: 1.455071951 | E8: 50.30548306 | F8: 0.8265474785 | G8: -0.1548370721 | H8: 0.01 | I8: 1.715233908 | J8: 0.01862129283 | K8: 0.5126001073 | L8: 0.7264198069 | M8: 0.03435830159 | N8: 0.01232516924 | O8: 0.598936254 | P8: 0.01833045142 | Q8: 1.335114599 | R8: 0.9335659577 | S8: 0.5407525759 | T8: 0.9359859297 | U8: 0.6275382173 | V8: 1.180594856 | W8: -0.1530221336 | X8: -2.082509717 | Y8: 0.004041282714 | Z8: 0.01610068785 | AA8: -0.6626262761 | AB8: -1.113983749 | AC8: 0.04585594577 | AD8: 0.5587230326 | AE8: 0.04663249352 | AF8: 0.5594644118 | AG8: 0.3939030947 | AI8: 710 | AJ8: 4.745432139 | AK8: 55.91673607 | AL8: 0.04745432138 | AM8: 0.5591673607 | AO8: 7.636404017e-07
A9: 700 | B9: 146.2424096 | C9: 1.477922857 | D9: 1.455295973 | E9: 81.38390096 | F9: 0.8224640697 | G9: -2.610755661 | H9: 0.01 | I9: =(1-G9)*C9 -> 5.336418321 | J9: 0.03520556527 | K9: 0.8435361775 | L9: 0.7265198805 | M9: 0.03438586198 | N9: 0.006363465609 | O9: 0.4301866144 | P9: 0.03524318811 | Q9: 1.328630842 | R9: 0.9335144393 | S9: 0.5406913931 | T9: 0.9381608103 | U9: 1.132922202 | V9: 1.511129616 | W9: -0.1529529274 | X9: -2.081900663 | Y9: 0.0077671837 | Z9: 0.03140216469 | AA9: -0.4533882761 | AB9: -1.092473813 | AC9: 0.04032052376 | AD9: 0.4011983741 | AE9: 0.04216008018 | AF9: 0.4028199487 | AG9: 0.5550199711 | AI9: 700 | AJ9: 4.312555313 | AK9: 40.25783563 | AL9: 0.04312555313 | AM9: 0.4025783563 | AO9: 9.905049373e-07
A10: 690 | B10: 319.7312203 | C10: 2.452996818 | D10: 1.455527386 | E10: 177.9304241 | F10: 1.365092729 | G10: -4.503739288 | H10: 0.01 | I10: 13.50065496 | J10: 0.04051429639 | K10: 1.854435386 | L10: 0.7266231927 | M10: 0.03441433799 | N10: 0.0008433295327 | O10: 0.1565413031 | P10: =J10/(1-J10)*(1-M10)/(1-M10*N10) -> 0.04077305055 | Q10: 1.326417845 | R10: 0.9334612124 | S10: 0.5406282137 | T10: 0.9388333834 | U10: 4.17264886 | V10: 4.290803947 | W10: -0.1528814895 | X10: -2.081324953 | Y10: 0.008982530986 | Z10: 0.03650103561 | AA10: -0.1431913094 | AB10: -1.075485679 | AC10: 0.03520064388 | AD10: 0.1459564077 | AE10: 0.03764696417 | AF10: 0.1473287887 | AG10: 0.8150242472 | AI10: 690 | AJ10: 3.850918889 | AK10: 14.73423944 | AL10: 0.03850918889 | AM10: 0.1473423944 | AO10: 7.436165852e-07
A11: 680 | B11: 486.7324996 | C11: 2.161891518 | D11: 1.455766684 | E11: 270.866636 | F11: 1.20309263 | G11: -6.899610666 | H11: 0.01 | I11: 17.07810129 | J11: 0.03389786016 | K11: 2.803705994 | L11: 0.7267299578 | M11: 0.03444379097 | N11: 0.0001264278816 | O11: 0.06058511799 | P11: 0.03387885248 | Q11: 1.328822087 | R11: 0.9334061623 | S11: 0.5405629051 | T11: 0.9378703723 | U11: 12.64487851 | V11: 12.68435858 | W11: -0.1528076726 | X11: -2.081136067 | Y11: 0.007460807034 | Z11: 0.03015030186 | AA11: -0.04853580553 | AB11: -1.074179496 | AC11: 0.03456166005 | AD11: 0.05648367833 | AE11: 0.03662038122 | AF11: 0.05710379072 | AG11: 0.9062758281 | AI11: 680 | AJ11: 3.75738442 | AK11: 5.712516242 | AL11: 0.0375738442 | AM11: 0.05712516242 | AO11: 9.095483882e-07
A12: 670 | B12: 464.9652106 | C12: 3.400030324 | D12: 1.456014399 | E12: 258.7531397 | F12: 1.892116875 | G12: -3.49975813 | H12: 0.01 | I12: 15.29931409 | J12: 0.0318560154 | K12: 2.67267208 | L12: 0.7268404062 | M12: 0.03447428714 | N12: 0.0001644530082 | O12: 0.06906742484 | P12: 0.03177004335 | Q12: 1.329442451 | R12: 0.9333491657 | S12: 0.5404953245 | T12: 0.9375343011 | U12: 10.87400304 | V12: 10.91988745 | W12: -0.1527313182 | X12: -2.081003968 | Y12: 0.006993597206 | Z12: 0.02822218261 | AA12: -0.0563158076 | AB12: -1.074380672 | AC12: 0.03462759767 | AD12: 0.06438777442 | AE12: 0.03655694878 | AF12: 0.0650257718 | AG12: 0.8984172794 | AI12: 670 | AJ12: 3.742332935 | AK12: 6.515215528 | AL12: 0.03742332935 | AM12: 0.06515215528 | AO12: 7.665880713e-07
A13: 660 | B13: 345.625184 | C13: 1.979182814 | D13: 1.456271105 | E13: 192.3404149 | F13: 1.101415236 | G13: -3.378669767 | H13: 0.01 | I13: 8.666187951 | J13: 0.02446062376 | K13: 1.971631485 | L13: 0.7269547866 | M13: 0.03450589801 | N13: 0.0006688919757 | O13: 0.13922952 | P13: 0.02420930785 | Q13: 1.332093989 | R13: 0.9332900894 | S13: 0.5404253178 | T13: 0.9364794419 | U13: 4.815440368 | V13: 4.918177095 | W13: -0.1526522554 | X13: -2.080904716 | Y13: 0.005327022933 | Z13: 0.02136773159 | AA13: -0.1250009407 | AB13: -1.076130192 | AC13: 0.03512943936 | AD13: 0.129789811 | AE13: 0.03658841472 | AF13: 0.1305532677 | AG13: 0.8328583176 | AI13: 660 | AJ13: 3.754349112 | AK13: 13.0519387 | AL13: 0.03754349113 | AM13: 0.130519387 | AO13: 9.133188402e-07
A14: 650 | B14: 305.5666155 | C14: 2.119191276 | D14: 1.456537424 | E14: 170.0478215 | F14: 1.179329945 | G14: -2.400486233 | H14: 0.01 | I14: 7.206280759 | J14: 0.02303997835 | K14: 1.740581168 | L14: 0.727073367 | M14: 0.03453870089 | N14: 0.001062811893 | O14: 0.1754184234 | P14: 0.02276963592 | Q14: 1.3324534 | R14: 0.9332287891 | S14: 0.5403527186 | T14: 0.9362273451 | U14: 3.661576111 | V14: 3.795673803 | W14: -0.1525702999 | X14: -2.080791212 | Y14: 0.005008076141 | Z14: 0.02007207049 | AA14: -0.1626901925 | AB14: -1.077234782 | AC14: 0.03552940072 | AD14: 0.1635162374 | AE14: 0.03689113282 | AF14: 0.1643298948 | AG14: 0.7987789724 | AI14: 650 | AJ14: 3.784351111 | AK14: 16.42795144 | AL14: 0.03784351111 | AM14: 0.1642795144 | AO14: 9.09562582e-07
A15: 640 | B15: 227.8044185 | C15: 1.753406693 | D15: 1.456814027 | E15: 126.7731589 | F15: 0.9757708249 | G15: -1.006890608 | H15: 0.01 | I15: 3.518895425 | J15: 0.01521202236 | K15: 1.287314242 | L15: 0.7271964376 | M15: 0.03457277953 | N15: 0.002633827653 | O15: 0.2760110875 | P15: 0.01491431478 | Q15: 1.335212082 | R15: 0.9331651089 | S15: 0.5402773469 | T15: 0.9351292195 | U15: 2.100061642 | V15: 2.325996324 | W15: -0.1524852526 | X15: -2.080766861 | Y15: 0.003278865275 | Z15: 0.01306033034 | AA15: -0.27288459 | AB15: -1.082240629 | AC15: 0.0370278614 | AD15: 0.2572794838 | AE15: 0.03789043841 | AF15: 0.2579245974 | AG15: 0.7041849642 | AI15: 640 | AJ15: 3.883043408 | AK15: 25.77544876 | AL15: 0.03883043408 | AM15: 0.2577544876 | AO15: 9.125292411e-07
A16: 630 | B16: 211.0990158 | C16: 2.72462445 | D16: 1.457101644 | E16: 117.4766023 | F16: 1.516253506 | G16: -0.5230613739 | H16: 0.01 | I16: 4.149770258 | J16: 0.01927894849 | K16: 1.197859494 | L16: 0.7273243119 | M16: 0.03460822471 | N16: 0.003153056733 | O16: 0.3018396104 | P16: 0.0189796777 | Q16: 1.333492305 | R16: 0.9330988796 | S16: 0.5401990079 | T16: 0.9355963544 | U16: 1.8685425 | V16: 2.119304384 | W16: -0.1523968978 | X16: -2.080651515 | Y16: 0.004170679421 | Z16: 0.01667675334 | AA16: -0.3023588944 | AB16: -1.083422947 | AC16: 0.03754713525 | AD16: 0.2813395666 | AE16: 0.03863007677 | AF16: 0.2821809233 | AG16: 0.6791889999 | AI16: 630 | AJ16: 3.932813167 | AK16: 28.21332891 | AL16: 0.03932813168 | AM16: 0.2821332891 | AO16: 4.895496673e-07
A17: 620 | B17: 207.2858622 | C17: 1.072924523 | D17: 1.457401065 | E17: 115.3545823 | F17: 0.5970824971 | G17: -2.797275764 | H17: 0.01 | I17: 4.074190288 | J17: 0.01927606584 | K17: 1.176218692 | L17: 0.7274573298 | M17: 0.03464513501 | N17: 0.003296034001 | O17: 0.3084428537 | P17: 0.01897615469 | Q17: 1.333291501 | R17: 0.9330299175 | S17: 0.5401174903 | T17: 0.9355256111 | U17: 1.815946747 | V17: 2.073080459 | W17: -0.1523050023 | X17: -2.080499438 | Y17: 0.004167883979 | Z17: 0.01667310529 | AA17: -0.3099476978 | AB17: -1.083797278 | AC17: 0.0377170929 | AD17: 0.2874738116 | AE17: 0.0387955983 | AF17: 0.2883191731 | AG17: 0.6728852286 | AI17: 620 | AJ17: 3.957421303 | AK17: 28.83320543 | AL17: 0.03957421302 | AM17: 0.2883320543 | AO17: =(AJ17/100-AE17)^2+(AK17/100-AF17)^2 -> 6.064068183e-07
A18: 610 | B18: 190.0897512 | C18: 1.065146613 | D18: 1.457713148 | E18: 105.7849466 | F18: 0.5927540903 | G18: -2.52525313 | H18: 0.01 | I18: 3.754911433 | J18: 0.01937072386 | K18: 1.078745548 | L18: 0.7275958602 | M18: 0.03468361766 | N18: 0.004009940352 | O18: 0.3400217993 | P18: 0.01907089511 | Q18: 1.333045744 | R18: 0.932958023 | S18: 0.5400325646 | T18: 0.9354647311 | U18: 1.593425553 | V18: 1.881224333 | W18: -0.1522093129 | X18: -2.080386186 | Y18: 0.00418657662 | Z18: 0.01675715195 | AA18: -0.3465088496 | AB18: -1.085897768 | AC18: 0.03842074306 | AD18: 0.3168885301 | AE18: 0.03948471247 | AF18: 0.3177548271 | AG18: 0.6427604604 | AI18: 610 | AJ18: 4.006386995 | AK18: 31.77557232 | AL18: 0.04006386995 | AM18: 0.3177557232 | AO18: 3.354241911e-07
A19: 600 | B19: 176.2625701 | C19: 1.021775019 | D19: 1.458038829 | E19: 98.09012026 | F19: 0.5686177982 | G19: -1.019080124 | H19: 0.01 | I19: 2.063045633 | J19: 0.01156898085 | K19: 0.9923820516 | L19: 0.7277403035 | M19: 0.03472378939 | N19: 0.00477150096 | O19: 0.3706926295 | P19: 0.01129984018 | Q19: 1.335738137 | R19: 0.9328829785 | S19: 0.5399439815 | T19: 0.9343681743 | U19: 1.415463028 | V19: 1.733071142 | W19: -0.1521095547 | X19: -2.080269149 | Y19: 0.00247931264 | Z19: 0.009863974569 | AA19: -0.3824466419 | AB19: -1.088805104 | AC19: 0.03917041109 | AD19: 0.3454531197 | AE19: 0.03978876206 | AF19: 0.3459724999 | AG19: 0.614238738 | AI19: 600 | AJ19: 4.060443163 | AK19: 34.60215749 | AL19: 0.04060443163 | AM19: 0.3460215749 | AO19: 6.677251862e-07
A20: 590 | B20: 167.8836497 | C20: 1.118072565 | D20: 1.458379127 | E20: 93.42725106 | F20: 0.6222073827 | G20: -0.2944105078 | H20: 0.01 | I20: 1.447244877 | J20: 0.008546844808 | K20: 0.9423264284 | L20: 0.7278910958 | M20: 0.03476577755 | N20: 0.005280288004 | O20: 0.389720124 | P20: 0.008322351655 | Q20: 1.336625423 | R20: 0.9328045471 | S20: 0.5398514694 | T20: 0.9338979559 | U20: 1.31811415 | V20: 1.654516519 | W20: -0.1520054286 | X20: -2.080123793 | Y20: 0.001825012492 | Z20: 0.007246505838 | AA20: -0.4050105674 | AB20: -1.090573726 | AC20: 0.03968620425 | AD20: 0.363159983 | AE20: 0.04013533946 | AF20: 0.3635436987 | AG20: 0.5963209619 | AI20: 590 | AJ20: 4.112970829 | AK20: 36.35400118 | AL20: 0.04112970829 | AM20: 0.3635400118 | AO20: 9.887829689e-07
A21: 580 | B21: 155.0584964 | C21: 1.467724034 | D21: 1.458735156 | E21: 86.29005323 | F21: 0.8167884248 | G21: -0.2111364019 | H21: 0.01 | I21: 1.777614005 | J21: 0.01133421379 | K21: 0.8727929543 | L21: 0.7280487119 | M21: 0.03480972129 | N21: 0.006075782495 | O21: 0.4177830692 | P21: 0.01106742775 | Q21: 1.335353166 | R21: 0.9327224695 | S21: 0.5397547321 | T21: 0.934175308 | U21: 1.188480458 | V21: 1.553217885 | W21: -0.151896609 | X21: -2.079992546 | Y21: 0.002425583556 | Z21: 0.009658506338 | AA21: -0.4386095338 | AB21: -1.092801242 | AC21: 0.04047107068 | AD21: 0.3892858121 | AE21: 0.04105442675 | AF21: 0.3897954564 | AG21: 0.5691501169 | AI21: 580 | AJ21: 4.197185278 | AK21: 39.01487081 | AL21: 0.04197185278 | AM21: 0.3901487081 | AO21: 9.664573501e-07
A22: 570 | B22: 139.7904453 | C22: 1.372678922 | D22: 1.459108131 | E22: 77.79338282 | F22: 0.7638958199 | G22: -0.1134051532 | H22: 0.01 | I22: 1.528347785 | J22: 0.01081489412 | K22: 0.7864390836 | L22: 0.7282136704 | M22: 0.03485577288 | N22: 0.007230734385 | O22: 0.4554637795 | P22: 0.01055471209 | Q22: 1.335292891 | R22: 0.9326364624 | S22: 0.5396534459 | T22: 0.9340210883 | U22: 1.039122645 | V22: 1.442142805 | W22: -0.1517827405 | X22: -2.079880339 | Y22: 0.002311819012 | Z22: 0.009206743053 | AA22: -0.4842354637 | AB22: -1.096481305 | AC22: 0.04159292438 | AD22: 0.4243730056 | AE22: 0.042130111 | AF22: 0.4248543979 | AG22: 0.5330154911 | AI22: 570 | AJ22: 4.307116509 | AK22: 42.51085278 | AL22: 0.04307116509 | AM22: 0.4251085278 | AO22: 9.501647624e-07
A23: 560 | B23: 127.3806446 | C23: 1.018160173 | D23: 1.459499387 | E23: 70.88732871 | F23: 0.5666061365 | G23: -0.8914053032 | H23: 0.01 | I23: 1.925753552 | J23: 0.01489294868 | K23: 0.7195901056 | L23: 0.7283865378 | M23: 0.03490409925 | N23: 0.008276532232 | O23: 0.4869518139 | P23: 0.01459463424 | Q23: 1.333517005 | R23: 0.9325462151 | S23: 0.5395472568 | T23: 0.9344589015 | U23: 0.9299566009 | V23: 1.36558386 | W23: -0.1516634348 | X23: -2.079749142 | Y23: 0.003194668135 | Z23: 0.01277339453 | AA23: -0.5227504314 | AB23: -1.099453046 | AC23: 0.04261517256 | AD23: 0.4536828986 | AE23: 0.04333288199 | AF23: 0.4543377197 | AG23: 0.5023293983 | AI23: 560 | AJ23: 4.41485238 | AK23: 45.43831889 | AL23: 0.0441485238 | AM23: 0.4543831889 | AO23: 6.673390202e-07
A24: 550 | B24: 127.6671772 | C24: 1.037097084 | D24: 1.459910386 | E24: 71.04678411 | F24: 0.5771445271 | G24: -1.735369165 | H24: 0.01 | I24: 2.836843384 | J24: 0.02173759377 | K24: 0.7262548745 | L24: 0.7285679348 | M24: 0.03495488377 | N24: 0.008178824578 | O24: 0.4837171836 | P24: 0.02145002978 | Q24: 1.330685901 | R24: 0.9324513864 | S24: 0.5394357766 | T24: 0.9352591471 | U24: 0.9392718428 | V24: 1.371944458 | W24: -0.1515382668 | X24: -2.07951663 | Y24: 0.004692148044 | Z24: 0.01888128652 | AA24: -0.5187008458 | AB24: -1.098437846 | AC24: 0.04257410012 | AD24: 0.4506204824 | AE24: 0.0436306577 | AF24: 0.4515828752 | AG24: 0.5047864671 | AI24: 550 | AJ24: 4.432980776 | AK24: 45.16178648 | AL24: 0.04432980776 | AM24: 0.4516178648 | AO24: 4.90035084e-07
A25: 540 | B25: 132.8907026 | C25: 1.848276989 | D25: 1.460342738 | E25: 73.95367599 | F25: 1.028566144 | G25: -0.8203928649 | H25: 0.01 | I25: 3.364590243 | J25: 0.02469328107 | K25: 0.7582607046 | L25: 0.728758542 | M25: 0.0350083282 | N25: 0.007683418557 | O25: 0.4684805449 | P25: 0.02443869339 | Q25: 1.329287818 | R25: 0.9323516009 | S25: 0.5393185794 | T25: 0.9355475487 | U25: 0.9899295476 | V25: 1.407110695 | W25: -0.1514067706 | X25: -2.079241361 | Y25: 0.005342175081 | Z25: 0.02156559664 | AA25: -0.5000310107 | AB25: -1.096473966 | AC25: 0.04216512121 | AD25: 0.4363706419 | AE25: 0.04338714122 | AF25: 0.4374744394 | AG25: 0.5191384194 | AI25: 540 | AJ25: 4.423972606 | AK25: 43.71561875 | AL25: 0.04423972606 | AM25: 0.4371561875 | AO25: 8.281851945e-07
A26: 530 | B26: 141.3338666 | C26: 2.865928635 | D26: 1.460798216 | E26: 78.65229677 | F26: 1.594889286 | G26: -0.6817200483 | H26: 0.01 | I26: 4.819689643 | J26: 0.03297688928 | K26: 0.8133445406 | L26: 0.7289591073 | M26: 0.03506465505 | N26: 0.006892987313 | O26: 0.4433727057 | P26: 0.03291364868 | Q26: 1.325851398 | R26: 0.9322464449 | S26: 0.5391951961 | T26: 0.9365448597 | U26: 1.079564917 | V26: 1.471550342 | W26: -0.1512684344 | X26: -2.078930736 | Y26: 0.007189460634 | Z26: 0.02925307824 | AA26: -0.4694798751 | AB26: -1.093131472 | AC26: 0.04148426868 | AD26: 0.4129242276 | AE26: 0.04316766656 | AF26: 0.4144217611 | AG26: 0.5424105723 | AI26: 530 | AJ26: 4.39747119 | AK26: 41.42506778 | AL26: 0.04397471189 | AM26: 0.4142506778 | AO26: 6.805916856e-07
A27: 520 | B27: 175.3990253 | C27: 3.98092735 | D27: 1.461278775 | E27: 97.6095576 | F27: 2.21538607 | G27: -0.8764501387 | H27: 0.01 | I27: 7.470011679 | J27: 0.0408489693 | K27: 1.017666191 | L27: 0.7291704543 | M27: 0.03512411015 | N27: 0.00458851027 | O27: 0.3614374827 | P27: 0.04109940733 | Q27: 1.322524656 | R27: 0.9321354612 | S27: 0.53906511 | T27: 0.9374958001 | U27: 1.456390518 | V27: 1.766655977 | W27: -0.1511226948 | X27: -2.078488721 | Y27: 0.008970536988 | Z27: 0.03678402913 | AA27: -0.3718978946 | AB27: -1.085240047 | AC27: 0.03939663519 | AD27: 0.3365472898 | AE27: 0.04163716178 | AF27: 0.3384139392 | AG27: 0.619948899 | AI27: 520 | AJ27: 4.252552509 | AK27: 33.83063139 | AL27: 0.04252552509 | AM27: 0.3383063139 | AO27: 8.007725777e-07
A28: 510 | B28: 257.9280785 | C28: 2.800242172 | D28: 1.461786581 | E28: 143.5369757 | F28: 1.558334769 | G28: -2.776511562 | H28: 0.01 | I28: 10.57514694 | J28: 0.03938554898 | K28: 1.49422045 | L28: 0.7293934914 | M28: 0.03518696572 | N28: 0.001772223234 | O28: 0.224423486 | P28: 0.0395601594 | Q28: 1.322758017 | R28: 0.9320181438 | S28: 0.5389277503 | T28: 0.937174237 | U28: 2.698472315 | V28: 2.877803474 | W28: -0.150968931 | X28: -2.077993478 | Y28: 0.008627489952 | Z28: 0.03535801098 | AA28: -0.2161215373 | AB28: -1.077086568 | AC28: 0.03683676775 | AD28: 0.2089208148 | AE28: 0.03914446342 | AF28: 0.2104909519 | AG28: 0.7503645847 | AI28: 510 | AJ28: 4.010473013 | AK28: 21.03862238 | AL28: 0.04010473013 | AM28: 0.2103862238 | AO28: 9.3308011e-07
A29: 500 | B29: 372.8766346 | C29: 1.853598217 | D29: 1.462324035 | E29: 207.5058471 | F29: 1.031527408 | G29: -6.55870819 | H29: 0.01 | I29: 14.01080802 | J29: 0.03621417105 | K29: 2.153028618 | L29: 0.7296292229 | M29: 0.03525352392 | N29: 0.0004754508617 | O29: 0.1161319054 | P29: 0.0362508749 | Q29: 1.323622548 | R29: 0.9318939311 | S29: 0.5387824851 | T29: 0.9366155987 | U29: 5.910950592 | V29: 5.99494261 | W29: -0.1508064566 | X29: -2.077601849 | Y29: 0.007898920518 | Z29: 0.03230673933 | AA29: -0.1021019912 | AB29: -1.073840574 | AC29: 0.03569605046 | AD29: 0.1080899294 | AE29: 0.03786373845 | AF29: 0.1091069223 | AG29: 0.8530293393 | AI29: 500 | AJ29: 3.883239269 | AK29: 10.89398352 | AL29: 0.03883239269 | AM29: 0.1089398352 | AO29: 9.662091449e-07
A30: 490 | B30: 462.7510278 | C30: 2.130709913 | D30: 1.462893804 | E30: 257.520947 | F30: 1.185740066 | G30: -6.510984852 | H30: 0.01 | I30: 16.00372988 | J30: 0.03342782421 | K30: 2.664270226 | L30: 0.7298787613 | M30: 0.0353241209 | N30: 0.0001713624439 | O30: 0.06965016385 | P30: 0.03336244485 | Q30: 1.324312202 | R30: 0.9317621986 | S30: 0.5386286134 | T30: 0.9361042694 | U30: 10.7047495 | V30: 10.75135628 | W30: -0.1506345122 | X30: -2.077270466 | Y30: 0.007262854763 | Z30: 0.02965749401 | AA30: -0.05707477998 | AB30: -1.073252847 | AC30: 0.03548359168 | AD30: 0.06481680361 | AE30: 0.03748685989 | AF30: 0.06548451895 | AG30: 0.8970286212 | AI30: 490 | AJ30: 3.842255592 | AK30: 6.547622726 | AL30: 0.03842255592 | AM30: 0.06547622726 | AO30: 8.755958259e-07
A31: 480 | B31: 487.064656 | C31: 2.250365724 | D31: 1.463498859 | E31: 271.0514811 | F31: 1.252328525 | G31: -6.270449225 | H31: 0.01 | I31: 16.36116973 | J31: 0.0324996631 | K31: 2.80156472 | L31: 0.7301433418 | M31: 0.03539913157 | N31: 0.0001304921571 | O31: 0.06071498628 | P31: 0.03240241565 | Q31: 1.324270606 | R31: 0.9316222498 | S31: 0.5384653556 | T31: 0.9358352342 | U31: 12.54375796 | V31: 12.58355529 | W31: -0.1504522547 | X31: -2.07694075 | Y31: 0.007046970751 | Z31: 0.02877873003 | AA31: -0.04883254929 | AB31: -1.073143493 | AC31: 0.03552054919 | AD31: 0.05649281352 | AE31: 0.03746559675 | AF31: 0.05708075016 | AG31: 0.9054536531 | AI31: 480 | AJ31: 3.84231937 | AK31: 5.683829427 | AL31: 0.0384231937 | AM31: 0.05683829427 | AO31: 9.75776763e-07
A32: 470 | B32: 494.9379005 | C32: 1.696884763 | D32: 1.464142521 | E32: 275.4329416 | F32: 0.9443163708 | G32: -9.690470799 | H32: 0.01 | I32: 18.14049701 | J32: 0.03535618943 | K32: 2.855281282 | L32: 0.7304243392 | M32: 0.03547897522 | N32: 0.0001174641274 | O32: 0.05753963398 | P32: 0.0353518364 | Q32: 1.322771328 | R32: 0.9314733064 | S32: 0.5382918428 | T32: 0.9360637088 | U32: 13.32120687 | V32: 13.35868827 | W32: -0.1502587468 | X32: -2.076592681 | Y32: 0.007680432739 | Z32: 0.03147570845 | AA32: -0.04599556895 | AB32: -1.072809203 | AC32: 0.03558825265 | AD32: 0.05352939102 | AE32: 0.03770768766 | AF32: 0.05414596982 | AG32: 0.9081463425 | AI32: 470 | AJ32: 3.842001915 | AK32: 5.399448783 | AL32: 0.03842001915 | AM32: 0.05399448783 | AO32: 5.303629473e-07
A33: 460 | B33: 493.5660162 | C33: 1.658137092 | D33: 1.464828506 | E33: 274.669488 | F33: 0.922753292 | G33: -9.501946682 | H33: 0.01 | I33: 17.41366734 | J33: 0.0340789818 | K33: 2.843601939 | L33: 0.7307232873 | M33: 0.03556412202 | N33: 0.0001205287992 | O33: 0.05821559883 | P33: 0.03402672993 | Q33: 1.322812236 | R33: 0.9313144956 | S33: 0.5381071038 | T33: 0.9357279873 | U33: 13.14362768 | V33: 13.18161404 | W33: -0.1500529431 | X33: -2.076223394 | Y33: 0.007384362621 | Z33: 0.03025946396 | AA33: -0.04660923759 | AB33: -1.072810348 | AC33: 0.03567623074 | AD33: 0.0541486891 | AE33: 0.03771426829 | AF33: 0.05474664629 | AG33: 0.9075390854 | AI33: 460 | AJ33: 3.842336297 | AK33: 5.464111426 | AL33: 0.03842336297 | AM33: 0.05464111426 | AO33: 5.13952278e-07
A34: 450 | B34: 537.781868 | C34: 1.69364185 | D34: 1.465560991 | E34: 299.2756096 | F34: 0.9425116894 | G34: -9.325918039 | H34: 0.01 | I34: 17.48840693 | J34: 0.03149530547 | K34: 3.09007908 | L34: 0.7310419015 | M34: 0.03565510075 | N34: 7.380963908e-05 | O34: 0.04549835625 | P34: 0.03136011347 | Q34: 1.323313789 | R34: 0.9311448363 | S34: 0.5379100503 | T34: 0.9352080479 | U34: 17.47408949 | V34: 17.5026799 | W34: -0.1498336754 | X34: -2.075825697 | Y34: 0.006797623006 | Z34: 0.02782247021 | AA34: -0.03521748633 | AB34: -1.072797234 | AC34: 0.03572374102 | AD34: 0.04231181208 | AE34: 0.03760157784 | AF34: 0.04277105315 | AG34: 0.919627369 | AI34: 450 | AJ34: 3.85390079 | AK34: 4.306244742 | AL34: 0.0385390079 | AM34: 0.04306244742 | AO34: 9.63685748e-07
A35: 440 | B35: 616.2645906 | C35: 1.728744767 | D35: 1.46634468 | E35: 342.9512446 | F35: 0.9620464627 | G35: -10.62141601 | H35: 0.01 | I35: 20.09046211 | J35: 0.03157115203 | K35: 3.541315868 | L35: 0.7313821062 | M35: 0.03575250798 | N35: 3.001640191e-05 | O35: 0.02897517448 | P35: 0.03143487196 | Q35: 1.322779819 | R35: 0.930963222 | S35: 0.5376994591 | T35: 0.935030581 | U35: 29.35629241 | V35: 29.37331959 | W35: -0.1495996346 | X35: -2.075401181 | Y35: 0.00680521873 | Z35: 0.02788837925 | AA35: -0.02111567016 | AB35: -1.072592014 | AC35: 0.03578041646 | AD35: 0.02694037036 | AE35: 0.03766120774 | AF35: 0.02726531458 | AG35: 0.9350734777 | AI35: 440 | AJ35: 3.855530024 | AK35: 2.768081343 | AL35: 0.03855530023 | AM35: 0.02768081343 | AO35: 9.720406894e-07
A36: 430 | B36: 600.8118927 | C36: 1.965276136 | D36: 1.467184888 | E36: 334.3518183 | F36: 1.093676169 | G36: -9.030986506 | H36: 0.01 | I36: 19.7136584 | J36: 0.03176929356 | K36: 3.453224692 | L36: 0.7317460659 | M36: 0.03585701893 | N36: 3.590387504e-05 | O36: 0.03164343137 | P36: 0.03163520908 | Q36: 1.322165116 | R36: 0.9307684009 | S36: 0.5374739514 | T36: 0.9348556766 | U36: 26.50153405 | V36: 26.52039418 | W36: -0.1493493491 | X36: -2.074950594 | Y36: 0.006839315744 | Z36: 0.02806854077 | AA36: -0.0233492405 | AB36: -1.072466767 | AC36: 0.0358903942 | AD36: 0.02941487578 | AE36: 0.03778047387 | AF36: 0.02976494134 | AG36: 0.9324545848 | AI36: 430 | AJ36: 3.868932367 | AK36: 3.007763719 | AL36: 0.03868932367 | AM36: 0.03007763719 | AO36: 9.237866517e-07
A37: 420 | B37: 571.5736621 | C37: 1.68482414 | D37: 1.468087644 | E37: 318.0807429 | F37: 0.9376046341 | G37: -9.57893148 | H37: 0.01 | I37: 17.82363914 | J37: 0.03024044919 | K37: 3.279995981 | L37: 0.7321362225 | M37: 0.03596940049 | N37: 5.092896951e-05 | O37: 0.03762840803 | P37: 0.03006185579 | Q37: 1.322157963 | R37: 0.9305589519 | S37: 0.5372319681 | T37: 0.9344373106 | U37: 21.7112477 | V37: 21.73426504 | W37: -0.1490811604 | X37: -2.074467729 | Y37: 0.006489716355 | Z37: 0.02663423274 | AA37: -0.02842007906 | AB37: -1.07247711 | AC37: 0.03601673167 | AD37: 0.03497021308 | AE37: 0.03781032129 | AF37: 0.03535016561 | AG37: 0.9268395131 | AI37: 420 | AJ37: 3.873070597 | AK37: 3.568653324 | AL37: 0.03873070598 | AM37: 0.03568653324 | AO37: 9.602511387e-07
A38: 410 | B38: 531.9772502 | C38: 2.827224886 | D38: 1.469059808 | E38: 296.0453397 | F38: 1.573350649 | G38: -5.195634245 | H38: 0.01 | I38: 17.51645132 | J38: 0.03187743785 | K38: 3.057932449 | L38: 0.7325553401 | M38: 0.03609052687 | N38: 7.967220653e-05 | O38: 0.04698473822 | P38: 0.03173880445 | Q38: 1.320924609 | R38: 0.9303332558 | S38: 0.5369717401 | T38: 0.9344206128 | U38: 16.78513732 | V38: 16.81489919 | W38: -0.1487931931 | X38: -2.073949371 | Y38: 0.006841008965 | Z38: 0.02815756983 | AA38: -0.03660447608 | AB38: -1.072273975 | AC38: 0.03616455225 | AD38: 0.04365465468 | AE38: 0.03805425373 | AF38: 0.04412858847 | AG38: 0.9178171578 | AI38: 410 | AJ38: 3.898939491 | AK38: 4.430952449 | AL38: 0.03898939491 | AM38: 0.04430952449 | AO38: 9.072268587e-07
A39: 400 | B39: 474.3065033 | C39: 1.610677678 | D39: 1.470109214 | E39: 263.9515691 | F39: 0.8963421278 | G39: -9.15291132 | H39: 0.01 | I39: 16.35306763 | J39: 0.03332874481 | K39: 2.730520513 | L39: 0.7330065575 | M39: 0.03622139854 | N39: 0.0001539094308 | O39: 0.06518535105 | P39: 0.03322919758 | Q39: 1.31971463 | R39: 0.9300894604 | S39: 0.5366912528 | T39: 0.9343605576 | U39: 11.49320138 | V39: 11.53662333 | W39: -0.1484833197 | X39: -2.0733938 | Y39: 0.007150153783 | Z39: 0.02951432833 | AA39: -0.05312641561 | AB39: -1.072171106 | AC39: 0.03636436107 | AD39: 0.06054900195 | AE39: 0.03833733057 | AF39: 0.06117768214 | AG39: 0.9004849873 | AI39: 400 | AJ39: 3.929933548 | AK39: 6.118671134 | AL39: 0.03929933548 | AM39: 0.06118671134 | AO39: 9.255349785e-07
AJ40: 3.9601928 | AK40: 6.783491685
AJ41: 3.994468213 | AK41: 7.259892123
AJ42: 4.021827698 | AK42: 8.76492534
AJ43: 4.054393053 | AK43: 10.237287
AJ44: 4.105734825 | AK44: 10.61939249

Sheet Dilution5_water
A1: X= | B1: 0.5565 | C1: g/L | AI1: dilution 5
A3: l (nm) | B3: Abs,l (m2/kg) | C3: Ssca,l (m2/kg) | D3: n | E3: k (1/m) | F3: ss (1/m) | G3: g | H3: d (m) | I3: Ssca,tr,λ (m2/kg) | J3: wtr | K3: ttr | L3: mc | M3: R1 | N3: Ctr | O3: Etr | P3: c | Q3: k2 | R3: g | S3: gbar | T3: j | U3: s | V3: c | W3: k1 | X3: k2 | Y3: D1 | Z3: D | AA3: A | AB3: B | AC3: R0dh | AD3: T0dh | AE3: Rdh | AF3: Tdh | AG3: Adh | AI3: l (nm) | AJ3: Rdh | AK3: Tdh | AL3: Rdh | AM3: Tdh | AO3: error
A4: 750 | B4: 42.75100382 | C4: 1067.768565 | D4: =1.32711+0.0026/(A4/1000)^2+0.00005/(A4/1000)^4 -> 1.331890247 | E4: =B4*B$1 -> 23.79093362 | F4: =C4*B$1 -> 594.2132067 | G4: 0.9752481054 | H4: 0.01 | I4: =(1-G4)*C4 -> 26.42929502 | J4: =F4*(1-G4)/(F4*(1-G4)+E4) -> 0.3820349935 | K4: =(F4*(1-G4)+E4)*H4 -> 0.384988363 | L4: =SQRT(1-1/D4^2) -> 0.6605152657 | M4: =(D4-1)^2/(D4+1)^2 -> 0.02025688994 | N4: =M4*EXP(-2*K4) -> 0.009379423058 | O4: =EXP(-K4) -> 0.6804585546 | P4: =J4/(1-J4)*(1-M4)/(1-M4*N4) -> 0.6058066036 | Q4: =4/(1+L4)^2*(1-J4)/(1-J4*L4) -> 1.199040772 | R4: =(1-M4)/(1+M4) -> 0.9602906089 | S4: =R4/(1+L4) -> 0.578308811 | T4: =2*S4/SQRT(Q4) -> 1.056264854 | U4: =SINH(SQRT(Q4)*K4) -> 0.434163005 | V4: =COSH(SQRT(Q4)*K4) -> 1.090182331 | W4: =(1-2*S4)-(1+2*S4)*M4 -> -0.2003039877 | X4: =(1-2*S4)*N4-(1+2*S4) -> -2.158086605 | Y4: =R4*(1-L4^2)*P4/2 -> 0.1639720445 | Z4: =Y4*Q4/(Q4-1) -> 0.9877833825 | AA4: =(W4*(T4*U4+V4)*O4+X4)/((1+T4^2)*U4+2*T4*V4) -> -0.7354056213 | AB4: =(W4*O4+X4*(T4*U4+V4))/((1+T4^2)*U4+2*T4*V4) -> -1.079800911 | AC4: =M4+(1-M4)^2*N4/(1-M4*N4) -> 0.02926187681 | AD4: =(1-M4)^2/(1-M4*N4)*O4 -> 0.6532939515 | AE4: =AC4+Z4*(1+AB4/SQRT(Q4)+N4) -> 0.05224399579 | AF4: =AD4+Z4*(AA4/SQRT(Q4)+(1+M4)*O4) -> 0.6756609614 | AG4: =1-AE4-AF4 -> 0.2720950428 | AI4: 750 | AJ4: 5.224340677 | AK4: 67.56632806 | AL4: =AJ4/100 -> 0.05224340677 | AM4: =AK4/100 -> 0.6756632806 | AO4: =(AJ4/100-AE4)^2+(AK4/100-AF4)^2 -> 5.725684245e-12
A5: 740 | B5: 45.07845343 | C5: 1707.170878 | D5: =1.32711+0.0026/(A5/1000)^2+0.00005/(A5/1000)^4 -> 1.332024733 | E5: 25.08615933 | F5: 950.0405935 | G5: 0.9845236142 | H5: 0.01 | I5: 26.42083506 | J5: =F5*(1-G5)/(F5*(1-G5)+E5) -> 0.3695258459 | K5: =(F5*(1-G5)+E5)*H5 -> 0.3978935405 | L5: =SQRT(1-1/D5^2) -> 0.6606014233 | M5: =(D5-1)^2/(D5+1)^2 -> 0.02027097168 | N5: 0.009146788326 | O5: 0.6717335363 | P5: 0.5743333562 | Q5: 1.209866537 | R5: 0.960263553 | S5: 0.5782625135 | T5: 1.051444377 | U5: 0.4517650848 | V5: 1.097311119 | W5: -0.2002398848 | X5: -2.157956728 | Y5: 0.1554174977 | Z5: 0.8959714695 | AA5: -0.7271069739 | AB5: -1.082476691 | AC5: 0.02905231814 | AD5: 0.6448957498 | AE5: 0.05147202723 | AF5: 0.6666745139 | AG5: 0.2818534589 | AI5: 740 | AJ5: 5.146053791 | AK5: 66.66689281 | AL5: =AJ5/100 -> 0.05146053791 | AM5: 0.6666689281 | AO5: =(AJ5/100-AE5)^2+(AK5/100-AF5)^2 -> 1.63205257e-10
A6: 730 | B6: 47.60025902 | C6: 654.3721739 | D6: 1.332165031 | E6: 26.48954414 | F6: 364.1581148 | G6: 0.9591320793 | H6: 0.01 | I6: 26.74283008 | J6: =F6*(1-G6)/(F6*(1-G6)+E6) -> 0.3597218034 | K6: 0.4137192908 | L6: =SQRT(1-1/D6^2) -> 0.6606912654 | M6: =(D6-1)^2/(D6+1)^2 -> 0.0202856656 | N6: 0.008868236204 | O6: 0.6611865263 | P6: 0.5505232273 | Q6: 1.21816207 | R6: 0.9602353218 | S6: 0.5782142303 | T6: 1.047770665 | U6: 0.4726578581 | V6: 1.106076603 | W6: -0.2001730472 | X6: -2.157815705 | Y6: 0.1489386009 | Z6: 0.8316356487 | AA6: -0.7160709672 | AB6: -1.084097126 | AC6: 0.02879928659 | AD6: 0.6347475824 | AE6: 0.05094796194 | AF6: 0.6562121467 | AG6: 0.2928398913 | AI6: 730 | AJ6: 5.094269753 | AK6: 65.62121992 | AL6: 0.05094269753 | AM6: 0.6562121992 | AO6: 2.771686463e-11
A7: 720 | B7: 53.94006162 | C7: 994.0982907 | D7: 1.332311487 | E7: 30.01764429 | F7: 553.2156988 | G7: 0.972095745 | H7: 0.01 | I7: 27.73957225 | J7: 0.3396143069 | K7: 0.4545471625 | L7: 0.6607850063 | M7: 0.02030100808 | N7: 0.008179051733 | O7: 0.6347353348 | P7: 0.5039101431 | Q7: 1.234808923 | R7: 0.9602058453 | S7: 0.5781638452 | T7: 1.04059335 | U7: 0.5268549217 | V7: 1.130299123 | W7: -0.2001033162 | X7: -2.157606303 | Y7: 0.1362937389 | Z7: 0.7167390531 | AA7: -0.6872457967 | AB7: -1.086652907 | AC7: 0.02815264837 | AD7: 0.609326569 | AE7: 0.04986044249 | AF7: 0.6302268606 | AG7: 0.3199126969 | AI7: 720 | AJ7: 4.98533082 | AK7: 63.02236685 | AL7: 0.0498533082 | AM7: 0.6302236685 | AO7: 6.108788678e-11
A8: 710 | B8: 72.53400213 | C8: 1396.080435 | D8: 1.332464467 | E8: 40.36517219 | F8: 776.9187619 | G8: 0.9777726752 | H8: 0.01 | I8: 31.03113329 | J8: 0.299629148 | K8: 0.5763399786 | L8: 0.6608828766 | M8: 0.02031703825 | N8: 0.006415903944 | O8: 0.5619513613 | P8: 0.4191776958 | Q8: 1.266328493 | R8: 0.9601750486 | S8: 0.5781112336 | T8: 1.027467787 | U8: 0.6949964144 | V8: 1.217793092 | W8: -0.2000305214 | X8: -2.157224775 | Y8: 0.1133462911 | Z8: 0.5389345932 | AA8: -0.6039866462 | AB8: -1.088706676 | AC8: 0.02647568902 | AD8: 0.5394192646 | AE8: 0.04746475637 | AF8: 0.5591661935 | AG8: 0.3933690501 | AI8: 710 | AJ8: 4.745432139 | AK8: 55.91673607 | AL8: 0.04745432138 | AM8: 0.5591673607 | AO8: 1.102511292e-10
A9: 700 | B9: 123.7042513 | C9: 1638.060001 | D9: 1.332624369 | E9: 68.84141583 | F9: 911.5803906 | G9: 0.9755068523 | H9: 0.01 | I9: =(1-G9)*C9 -> 40.12124555 | J9: 0.244902328 | K9: 0.9116888899 | L9: 0.6609851238 | M9: 0.02033379827 | N9: 0.003283489278 | O9: 0.4018449787 | P9: 0.3177583007 | Q9: 1.306242387 | R9: 0.9601428507 | S9: 0.5780562613 | T9: 1.011552014 | U9: 1.241031248 | V9: 1.593787489 | W9: -0.1999544796 | X9: -2.156625116 | Y9: 0.08589883221 | Z9: 0.3663917879 | AA9: -0.4159428848 | AB9: -1.085368077 | AC9: 0.02348532395 | AD9: 0.3856948086 | AE9: 0.0431349238 | AF9: 0.4025791309 | AG9: 0.5542859453 | AI9: 700 | AJ9: 4.312555313 | AK9: 40.25783563 | AL9: 0.04312555313 | AM9: 0.4025783563 | AO9: 8.840939036e-11
A10: 690 | B10: 278.0037798 | C10: 1723.351253 | D10: 1.332791621 | E10: 154.7091035 | F10: 959.0449724 | G10: 0.9590562248 | H10: 0.01 | I10: =(1-G10)*C10 -> 70.56050629 | J10: 0.20243183 | K10: 1.939760252 | L10: 0.6610920147 | M10: 0.02035133362 | N10: 0.0004204733997 | O10: 0.1437384066 | P10: =J10/(1-J10)*(1-M10)/(1-M10*N10) -> 0.2486480488 | Q10: 1.334858754 | R10: 0.9601091645 | S10: 0.5779987839 | T10: 1.000551076 | U10: 4.648773946 | V10: 4.755112954 | W10: -0.1998749936 | X10: -2.156063161 | Y10: 0.06719719849 | Z10: 0.2678704608 | AA10: -0.1289345158 | AB10: -1.07925797 | AC10: 0.02075487023 | AD10: 0.1379485837 | AE10: 0.03851196403 | AF10: 0.1473419777 | AG10: 0.8141460583 | AI10: 690 | AJ10: 3.850918889 | AK10: 14.73423944 | AL10: 0.03850918889 | AM10: 0.1473423944 | AO10: 7.875067806e-12
A11: 680 | B11: 420.8171059 | C11: 1544.139757 | D11: 1.332966686 | E11: 234.1847194 | F11: 859.3137747 | G11: 0.9341226071 | H11: 0.01 | I11: 101.7239014 | J11: 0.1946716143 | K11: 2.907940706 | L11: 0.6612038365 | M11: 0.0203696934 | N11: 6.069868575e-05 | O11: 0.05458802702 | P11: 0.2368058203 | Q11: 1.339763727 | R11: 0.9600738957 | S11: 0.5779386458 | T11: 0.9986139395 | U11: 14.46233445 | V11: 14.4968658 | W11: -0.1997918511 | X11: -2.155886753 | Y11: 0.06397767411 | Z11: 0.252278158 | AA11: -0.04273138421 | AB11: -1.0788804 | AC11: 0.02042794452 | AD11: 0.05238685895 | AE11: 0.03757473792 | AF11: 0.05712525325 | AG11: 0.9053000088 | AI11: 680 | AJ11: 3.75738442 | AK11: 5.712516242 | AL11: 0.0375738442 | AM11: 0.05712516242 | AO11: 8.069929239e-13
A12: 670 | B12: 402.0354213 | C12: 1382.149976 | D12: 1.333150061 | E12: 223.732712 | F12: 769.1664616 | G12: 0.9304220162 | H12: 0.01 | I12: 96.16720867 | J12: 0.1930283039 | K12: 2.772497636 | L12: 0.6613208995 | M12: 0.02038893071 | N12: 7.965877092e-05 | O12: 0.06250569316 | P12: 0.2343241668 | Q12: 1.340671228 | R12: 0.9600369426 | S12: 0.5778756789 | T12: 0.9981671378 | U12: 12.3718689 | V12: 12.41221737 | W12: -0.1997048228 | X12: -2.155763765 | Y12: 0.06328735672 | Z12: 0.249059889 | AA12: -0.04981778759 | AB12: -1.079124496 | AC12: 0.0204653744 | AD12: 0.05998292624 | AE12: 0.03742422936 | AF12: 0.06515213393 | AG12: 0.8974236367 | AI12: 670 | AJ12: 3.742332935 | AK12: 6.515215528 | AL12: 0.03742332935 | AM12: 0.06515215528 | AO12: 8.104793141e-13
A13: 660 | B13: 298.7565893 | C13: 907.293377 | D13: 1.333342287 | E13: 166.2580419 | F13: 504.9087643 | G13: 0.9212077411 | H13: 0.01 | I13: 71.48769464 | J13: 0.1930825073 | K13: 2.06040944 | L13: 0.6614435385 | M13: 0.02040910301 | N13: 0.0003312645916 | O13: 0.1274017958 | P13: 0.2344020881 | Q13: 1.340474743 | R13: 0.9599981949 | S13: 0.5778097015 | T13: 0.9981263187 | U13: 5.386328454 | V13: 5.478369668 | W13: -0.1996136614 | X13: -2.155670954 | Y13: 0.06328759481 | Z13: 0.249168034 | AA13: -0.112119021 | AB13: -1.080027315 | AC13: 0.02072698611 | AD13: 0.1222553765 | AE13: 0.03754458241 | AF13: 0.1305185417 | AG13: 0.8319368759 | AI13: 660 | AJ13: 3.754349112 | AK13: 13.0519387 | AL13: 0.03754349113 | AM13: 0.130519387 | AO13: 1.905509005e-12
A14: 650 | B14: 263.9065213 | C14: 1305.826818 | D14: 1.333543948 | E14: 146.8639791 | F14: 726.692624 | G14: 0.9509852632 | H14: 0.01 | I14: 64.00475781 | J14: 0.1951892536 | K14: 1.824826268 | L14: 0.6615721158 | M14: 0.02043027263 | N14: 0.0005311903841 | O14: 0.1612456552 | P14: 0.2375758025 | Q14: 1.338945558 | R14: 0.9599575333 | S14: 0.577740517 | T14: 0.9985765475 | U14: 4.070025771 | V14: 4.191075014 | W14: -0.1995180992 | X14: -2.155563624 | Y14: 0.06412236982 | Z14: 0.2533042851 | AA14: -0.1467479208 | AB14: -1.080510646 | AC14: 0.02093998553 | AD14: 0.1547260523 | AE14: 0.03784670162 | AF14: 0.1642804734 | AG14: 0.797872825 | AI14: 650 | AJ14: 3.784351111 | AK14: 16.42795144 | AL14: 0.03784351111 | AM14: 0.1642795144 | AO14: 1.109903916e-11
A15: 640 | B15: 195.3447002 | C15: 1309.704258 | D15: 1.333755679 | E15: 108.7093257 | F15: 728.8504194 | G15: 0.9621118946 | H15: 0.01 | I15: 49.6222129 | J15: 0.2025670008 | K15: 1.363240872 | L15: 0.6617070238 | M15: 0.02045250718 | N15: 0.001338599251 | O15: 0.2558303187 | P15: 0.2488352383 | Q15: 1.333974278 | R15: 0.9599148279 | S15: 0.5776679127 | T15: 1.000309775 | U15: 2.310641303 | V15: 2.517749636 | W15: -0.1994178468 | X15: -2.155543758 | Y15: 0.06713701424 | Z15: 0.26816152 | AA15: -0.2486508532 | AB15: -1.082879215 | AC15: 0.02173694612 | AD15: 0.2454793117 | AE15: 0.0388357327 | AF15: 0.2577548003 | AG15: 0.703409467 | AI15: 640 | AJ15: 3.883043408 | AK15: 25.77544876 | AL15: 0.03883043408 | AM15: 0.2577544876 | AO15: 2.817314732e-11
A16: 630 | B16: 181.1750742 | C16: 1411.19116 | D16: 1.333978169 | E16: 100.8239288 | F16: 785.3278808 | G16: 0.9665359684 | H16: 0.01 | I16: 47.22414552 | J16: 0.2067614136 | K16: 1.271041658 | L16: 0.6618486879 | M16: 0.0204758802 | N16: 0.001611498196 | O16: 0.2805392437 | P16: 0.2553260495 | Q16: 1.331042614 | R16: 0.9598699379 | S16: 0.5775916574 | T16: 1.001278584 | U16: 2.051451194 | V16: 2.282203322 | W16: -0.1993125901 | X16: -2.155433392 | Y16: 0.06886207037 | Z16: 0.2768777982 | AA16: -0.2763064556 | AB16: -1.083434558 | AC16: 0.02202211137 | AD16: 0.2691771691 | AE16: 0.03933323265 | AF16: 0.2821320884 | AG16: 0.678534679 | AI16: 630 | AJ16: 3.932813167 | AK16: 28.21332891 | AL16: 0.03932813168 | AM16: 0.2821332891 | AO16: 2.746163127e-11
A17: 620 | B17: 177.5673341 | C17: 1422.534627 | D17: 1.334212167 | E17: 98.81622144 | F17: 791.6405199 | G17: 0.9670395147 | H17: 0.01 | I17: 46.88743169 | J17: 0.2088947923 | K17: 1.249090772 | L17: 0.6619975703 | M17: 0.02050047174 | N17: 0.001685844043 | O17: 0.2867654136 | P17: 0.2586500763 | Q17: 1.329447668 | R17: 0.9598227099 | S17: 0.5775115001 | T17: 1.001739985 | U17: 1.992380223 | V17: 2.229255247 | W17: -0.1992019882 | X17: -2.155284345 | Y17: 0.06973067082 | Z17: 0.2813899951 | AA17: -0.2833588469 | AB17: -1.083406875 | AC17: 0.022117959 | AD17: 0.2751377887 | AE17: 0.03958040689 | AF17: 0.2883321442 | AG17: 0.6720874489 | AI17: 620 | AJ17: 3.957421303 | AK17: 28.83320543 | AL17: 0.03957421302 | AM17: 0.2883320543 | AO17: =(AJ17/100-AE17)^2+(AK17/100-AF17)^2 -> 3.837203962e-11
A18: 610 | B18: 162.5721865 | C18: 1387.83408 | D18: 1.334458488 | E18: 90.47142181 | F18: 772.3296657 | G18: 0.9682985189 | H18: 0.01 | I18: 43.99639593 | J18: 0.2129868705 | K18: 1.149554161 | L18: 0.6621541732 | M18: 0.02052636908 | N18: 0.002059785875 | O18: 0.3167779697 | P18: 0.2650830541 | Q18: 1.326543322 | R18: 0.9597729766 | S18: 0.5774271677 | T18: 1.002689554 | U18: 1.7461914 | V18: 2.012258533 | W18: -0.1990856708 | X18: -2.155173302 | Y18: 0.07143488513 | Z18: 0.2901957061 | AA18: -0.3174284972 | AB18: -1.084404682 | AC18: 0.02250254651 | AD18: 0.303919685 | AE18: 0.04007023081 | AF18: 0.3177551936 | AG18: 0.6421745756 | AI18: 610 | AJ18: 4.006386995 | AK18: 31.77557232 | AL18: 0.04006386995 | AM18: 0.3177557232 | AO18: 4.074105852e-11
A19: 600 | B19: 149.3366889 | C19: 1334.765082 | D19: 1.334718025 | E19: 83.10586735 | F19: 742.7967679 | G19: 0.9688623133 | H19: 0.01 | I19: 41.56149698 | J19: 0.2177155157 | K19: 1.062348404 | L19: 0.6623190439 | M19: 0.02055366754 | N19: 0.002455529906 | O19: 0.3456431466 | P19: 0.2726008639 | Q19: 1.32319 | R19: 0.9597205552 | S19: 0.5773383628 | T19: 1.00380489 | U19: 1.549699942 | V19: 1.844334544 | W19: -0.1989632347 | X19: -2.155056539 | Y19: 0.07342821619 | Z19: 0.3006265091 | AA19: -0.3505868859 | AB19: -1.085397898 | AC19: 0.0229094134 | AD19: 0.3315974318 | AE19: 0.04060951733 | AF19: 0.3460180996 | AG19: 0.6133723831 | AI19: 600 | AJ19: 4.060443163 | AK19: 34.60215749 | AL19: 0.04060443163 | AM19: 0.3460215749 | AO19: 3.794197348e-11
A20: 590 | B20: 141.3910658 | C20: 1447.347932 | D20: 1.334991749 | E20: 78.68412813 | F20: 805.4491242 | G20: 0.9720255149 | H20: 0.01 | I20: 40.48881321 | J20: 0.2226129324 | K20: 1.012161527 | L20: 0.6624927788 | M20: 0.02058247139 | N20: 0.002718599225 | O20: 0.3634325607 | P20: 0.2804821663 | Q20: 1.31969301 | R20: 0.9596652461 | S20: 0.5772447606 | T20: 1.004971017 | U20: 1.44304589 | V20: 1.755671222 | W20: -0.1988342402 | X20: -2.154909516 | Y20: 0.0755158059 | Z20: 0.3117293092 | AA20: -0.3712047638 | AB20: -1.085763243 | AC20: 0.02319045727 | AD20: 0.3486453527 | AE20: 0.04113767575 | AF20: 0.3635407293 | AG20: 0.595321595 | AI20: 590 | AJ20: 4.112970829 | AK20: 36.35400118 | AL20: 0.04112970829 | AM20: 0.3635400118 | AO20: 6.399523747e-11
A21: 580 | B21: 129.9991283 | C21: 1477.127411 | D21: 1.335280727 | E21: 72.34451487 | F21: 822.0214042 | G21: 0.9735963539 | H21: 0.01 | I21: 39.00154941 | J21: 0.2307774735 | K21: 0.9404887712 | L21: 0.66267603 | M21: 0.0206128949 | N21: 0.003142250628 | O21: 0.3904369544 | P21: 0.2938488076 | Q21: 1.31394677 | R21: 0.9596068304 | S21: 0.5771460062 | T21: 1.006993819 | U21: 1.299356957 | V21: 1.639612302 | W21: -0.1986982073 | X21: -2.154776837 | Y21: 0.07907552909 | Z21: 0.3309511229 | AA21: -0.4026760719 | AB21: -1.086308929 | AC21: 0.02362713411 | AD21: 0.3745310346 | AE21: 0.0419804435 | AF21: 0.3901499616 | AG21: 0.5678695949 | AI21: 580 | AJ21: 4.197185278 | AK21: 39.01487081 | AL21: 0.04197185278 | AM21: 0.3901487081 | AO21: 7.537166087e-11
A22: 570 | B22: 116.2369718 | C22: 1512.332011 | D22: 1.335586127 | E22: 64.68587481 | F22: 841.6127641 | G22: 0.97546659 | H22: 0.01 | I22: 37.10266123 | J22: 0.2419639365 | K22: 0.8533350579 | L22: 0.6628695103 | M22: 0.0206450635 | N22: 0.003746440238 | O22: 0.4259918527 | P22: 0.3126327585 | Q22: 1.306039111 | R22: 0.9595450677 | S22: 0.5770417111 | T22: 1.009855212 | U22: 1.137303846 | V22: 1.514417392 | W22: -0.1985546113 | X22: -2.154660687 | Y22: 0.08408645936 | Z22: 0.3588436922 | AA22: -0.4443574558 | AB22: -1.087096456 | AC22: 0.0242386875 | AD22: 0.4086157653 | AE22: 0.04308038319 | AF22: 0.425108689 | AG22: 0.5318109278 | AI22: 570 | AJ22: 4.307116509 | AK22: 42.51085278 | AL22: 0.04307116509 | AM22: 0.4251085278 | AO22: 8.499945042e-11
A23: 560 | B23: 105.4325938 | C23: 1494.50527 | D23: 1.335909231 | E23: 58.67323845 | F23: 831.6921828 | G23: 0.9760521031 | H23: 0.01 | I23: 35.79025817 | J23: 0.2534310678 | K23: 0.7859051712 | L23: 0.6630740014 | M23: 0.02067911513 | N23: 0.004294408886 | O23: 0.4557070221 | P23: 0.3324708131 | Q23: 1.297795201 | R23: 0.9594796938 | S23: 0.5769314492 | T23: 1.012863981 | U23: 1.019806206 | V23: 1.428287331 | W23: -0.1984028773 | X23: -2.154523649 | Y23: 0.08937281069 | Z23: 0.3894878239 | AA23: -0.4793078385 | AB23: -1.087474015 | AC23: 0.02479811705 | AD23: 0.4370934742 | AE23: 0.04415829857 | AF23: 0.4543839759 | AG23: 0.5014577255 | AI23: 560 | AJ23: 4.41485238 | AK23: 45.43831889 | AL23: 0.0441485238 | AM23: 0.4543831889 | AO23: 9.616546027e-11
A24: 550 | B24: 106.1042676 | C24: 1511.517085 | D24: 1.336251452 | E24: 59.04702493 | F24: 841.1592579 | G24: 0.9759820422 | H24: 0.01 | I24: 36.30355355 | J24: 0.2549266835 | K24: 0.7924995248 | L24: 0.6632903612 | M24: 0.0207152018 | N24: 0.004245538927 | O24: 0.4527118155 | P24: 0.3350915646 | Q24: 1.296489756 | R24: 0.9594104178 | S24: 0.5768147524 | T24: 1.013168806 | U24: 1.029912766 | V24: 1.435520918 | W24: -0.1982423745 | X24: -2.154281745 | Y24: 0.09002467232 | Z24: 0.3936596902 | AA24: -0.4757352094 | AB24: -1.086914638 | AC24: 0.02478702628 | AD24: 0.4341882354 | AE24: 0.04433959136 | AF24: 0.4516186933 | AG24: 0.5040417153 | AI24: 550 | AJ24: 4.432980776 | AK24: 45.16178648 | AL24: 0.04432980776 | AM24: 0.4516178648 | AO24: 9.640527255e-11
A25: 540 | B25: 110.8528496 | C25: 1526.578684 | D25: 1.336614348 | E25: 61.68961082 | F25: 849.5410375 | G25: 0.9753674425 | H25: 0.01 | I25: 37.60353717 | J25: 0.2532968637 | K25: 0.8261597926 | L25: 0.6635195331 | M25: 0.02075349133 | N25: 0.003976471644 | O25: 0.4377270254 | P25: 0.3322077124 | Q25: 1.297370514 | R25: 0.9593369182 | S25: 0.5766911053 | T25: 1.012607727 | U25: 1.08617325 | V25: 1.476405205 | W25: -0.1980724097 | X25: -2.153992131 | Y25: 0.08919461505 | Z25: 0.3891389973 | AA25: -0.4580701119 | AB25: -1.085940483 | AC25: 0.02456693904 | AD25: 0.4197814724 | AE25: 0.04424918663 | AF25: 0.437156683 | AG25: 0.5185941304 | AI25: 540 | AJ25: 4.423972606 | AK25: 43.71561875 | AL25: 0.04423972606 | AM25: 0.4371561875 | AO25: 8.974783832e-11
A26: 530 | B26: 118.8473508 | C26: 1584.330427 | D26: 1.336999638 | E26: 66.1385507 | F26: 881.6798826 | G26: 0.975019333 | H26: 0.01 | I26: 39.57763087 | J26: 0.2498193812 | K26: 0.8816350228 | L26: 0.6637625569 | M26: 0.02079416943 | N26: 0.003565850469 | O26: 0.4141052863 | P26: 0.3261117769 | Q26: 1.29952236 | R26: 0.9592588397 | S26: 0.5765599399 | T26: 1.011538882 | U26: 1.182983836 | V26: 1.54901606 | W26: -0.1978922193 | X26: -2.153665882 | Y26: 0.08750033543 | Z26: 0.3796332344 | AA26: -0.4303561547 | AB26: -1.084664053 | AC26: 0.02421351751 | AD26: 0.3970918373 | AE26: 0.0439839558 | AF26: 0.4142511024 | AG26: 0.5417649418 | AI26: 530 | AJ26: 4.39747119 | AK26: 41.42506778 | AL26: 0.04397471189 | AM26: 0.4142506778 | AO26: 8.563001848e-11
A27: 520 | B27: 149.7780523 | C27: 1640.923659 | D27: 1.337409228 | E27: 83.35148611 | F27: 913.174016 | G27: 0.9719985411 | H27: 0.01 | I27: 45.9482564 | J27: 0.2347576915 | K27: 1.089216908 | L27: 0.6640205801 | M27: 0.02083744199 | N27: 0.002359188368 | O27: 0.3364798853 | P27: 0.3003979783 | Q27: 1.309602255 | R27: 0.9591757882 | S27: 0.5764206282 | T27: 1.007395028 | U27: 1.595275075 | V27: 1.882791163 | W27: -0.1977009612 | X27: -2.153201838 | Y27: 0.08054462922 | Z27: 0.3406998057 | AA27: -0.3403926187 | AB27: -1.0818022 | AC27: 0.02309944701 | AD27: 0.3226190841 | AE27: 0.0425332013 | AF27: 0.3383061618 | AG27: 0.6191606369 | AI27: 520 | AJ27: 4.252552509 | AK27: 33.83063139 | AL27: 0.04252552509 | AM27: 0.3383063139 | AO27: 5.894736277e-11
A28: 510 | B28: 222.7680396 | C28: 1780.4655 | D28: 1.337845232 | E28: 123.9704141 | F28: 990.8290507 | G28: 0.9661694954 | H28: 0.01 | I28: 60.23404634 | J28: 0.2128395843 | K28: 1.574906608 | L28: 0.6642948725 | M28: 0.02088353784 | N28: 0.0008950711815 | O28: 0.2070268863 | P28: 0.2647473528 | Q28: 1.323932542 | R28: 0.9590873257 | S28: 0.5762724753 | T28: 1.001670639 | U28: 2.980064117 | V28: 3.143371142 | W28: -0.1974977044 | X28: -2.152681489 | Y28: 0.07093295169 | Z28: 0.2899074062 | AA28: -0.1959068721 | AB28: -1.078751513 | AC28: 0.02174163091 | AD28: 0.1984739777 | AE28: 0.04010955935 | AF28: 0.2103859041 | AG28: 0.7495045365 | AI28: 510 | AJ28: 4.010473013 | AK28: 21.03862238 | AL28: 0.04010473013 | AM28: 0.2103862238 | AO28: 2.342358658e-11
A29: 500 | B29: 322.317802 | C29: 1710.588796 | D29: 1.33831 | E29: 179.3698568 | F29: 951.9426651 | G29: 0.9522439816 | H29: 0.01 | I29: 81.69091011 | J29: 0.2022008627 | K29: 2.248308483 | L29: 0.6645868412 | M29: 0.02093271191 | N29: 0.000233329452 | O29: 0.10557766 | P29: 0.2481441856 | Q29: 1.330495388 | R29: 0.9589929646 | S29: 0.5761147096 | T29: 0.9989235982 | U29: 6.649924363 | V29: 6.724692858 | W29: -0.1972814176 | X29: -2.152264939 | Y29: 0.0664318096 | Z29: 0.2674385768 | AA29: -0.09096737794 | AB29: -1.077494697 | AC29: 0.02115637626 | AD29: 0.1012043627 | AE29: 0.03883430389 | AF29: 0.1089396632 | AG29: 0.8522260329 | AI29: 500 | AJ29: 3.883239269 | AK29: 10.89398352 | AL29: 0.03883239269 | AM29: 0.1089398352 | AO29: 3.682255817e-12
A30: 490 | B30: 398.7134822 | C30: 1676.550277 | D30: 1.338806154 | E30: 221.8840528 | F30: 933.0002292 | G30: 0.9410929 | H30: 0.01 | I30: 98.76071486 | J30: 0.1985242962 | K30: 2.768443906 | L30: 0.6648980496 | M30: 0.02098524889 | N30: 8.2655984e-05 | O30: 0.06275958859 | P30: 0.2425008652 | Q30: 1.332461124 | R30: 0.9588921605 | S30: 0.5759464735 | T30: 0.9978949981 | U30: 12.19289432 | V30: 12.23383308 | W30: -0.1970509561 | X30: -2.151905502 | Y30: 0.06486608172 | Z30: 0.2599748542 | AA30: -0.05033098698 | AB30: -1.077341965 | AC30: 0.0210644723 | AD30: 0.06015327987 | AE30: 0.0384234691 | AF30: 0.06547611869 | AG30: 0.8961004122 | AI30: 490 | AJ30: 3.842255592 | AK30: 6.547622726 | AL30: 0.03842255592 | AM30: 0.06547622726 | AO30: 8.456767836e-13
A31: 480 | B31: 419.6715813 | C31: 1672.682706 | D31: 1.339336623 | E31: 233.547235 | F31: 930.8479256 | G31: 0.9379630868 | H31: 0.01 | I31: 103.7680718 | J31: 0.198242665 | K31: 2.91294167 | L31: 0.6652302386 | M31: 0.02104146756 | N31: 6.207647395e-05 | O31: 0.05431571573 | P31: 0.2420577816 | Q31: 1.332211263 | R31: 0.9587843036 | S31: 0.5757668107 | T31: 0.9976772567 | U31: 14.40838694 | V31: 14.44304726 | W31: -0.1968050464 | X31: -2.151543028 | Y31: 0.0646890063 | Z31: 0.2594115019 | AA31: -0.04272437091 | AB31: -1.077209527 | AC31: 0.02110095923 | AD31: 0.05205406691 | AE31: 0.03842406363 | AF31: 0.05683829695 | AG31: 0.9047376394 | AI31: 480 | AJ31: 3.84231937 | AK31: 5.683829427 | AL31: 0.0384231937 | AM31: 0.05683829427 | AO31: 7.568002095e-13
A32: 470 | B32: 427.396161 | C32: 1660.614091 | D32: 1.339904689 | E32: 237.8459636 | F32: 924.1317415 | G32: 0.9365255698 | H32: 0.01 | I32: 105.4065331 | J32: 0.1978340844 | K32: 2.965046993 | L32: 0.6655853507 | M32: 0.02110172581 | N32: 5.609328575e-05 | O32: 0.05155804631 | P32: 0.2414209694 | Q32: 1.332012623 | R32: 0.9586687099 | S32: 0.5755746528 | T32: 0.9974186526 | U32: 15.29967813 | V32: 15.33232373 | W32: -0.1965422684 | X32: -2.151157784 | Y32: 0.06445635353 | Z32: 0.2585946155 | AA32: -0.0402769525 | AB32: -1.077136225 | AC32: 0.02115547681 | AD32: 0.04940513519 | AE32: 0.0384209129 | AF32: 0.05399463567 | AG32: 0.9075844514 | AI32: 470 | AJ32: 3.842001915 | AK32: 5.399448783 | AL32: 0.03842001915 | AM32: 0.05399448783 | AO32: 8.206366347e-13
A33: 460 | B33: 425.7979858 | C33: 1642.16974 | D33: 1.34051404 | E33: 236.9565791 | F33: 913.8674605 | G33: 0.9362188018 | H33: 0.01 | I33: 104.7395538 | J33: 0.1974215695 | K33: 2.952441407 | L33: 0.6659655594 | M33: 0.02116642664 | N33: 5.770182149e-05 | O33: 0.05221207926 | P33: 0.2407778344 | Q33: 1.331783397 | R33: 0.9585446092 | S33: 0.5753688027 | T33: 0.9971477362 | U33: 15.07379749 | V33: 15.10693122 | W33: -0.1962610351 | X33: -2.150746303 | Y33: 0.06421790056 | Z33: 0.2577715901 | AA33: -0.04086389054 | AB33: -1.077080906 | AC33: 0.0212217117 | AD33: 0.050025246 | AE33: 0.0384242654 | AF33: 0.0546412825 | AG33: 0.9069344521 | AI33: 460 | AJ33: 3.842336297 | AK33: 5.464111426 | AL33: 0.03842336297 | AM33: 0.05464111426 | AO33: 8.426759479e-13
A34: 450 | B34: 460.5221219 | C34: 1658.905393 | D34: 1.341168832 | E34: 256.2805608 | F34: 923.1808512 | G34: 0.9313954292 | H34: 0.01 | I34: 113.8084925 | J34: 0.1981584991 | K34: 3.196149869 | L34: 0.6663733026 | M34: 0.02123602515 | N34: 3.555762355e-05 | O34: 0.04091944629 | P34: 0.2418814023 | Q34: 1.33078526 | R34: 0.9584111319 | S34: 0.5751479158 | T34: 0.9971386612 | U34: 19.9512775 | V34: 19.97632283 | W34: -0.195959568 | X34: -2.150301176 | Y34: 0.06444028121 | Z34: 0.2592502955 | AA34: -0.03101974396 | AB34: -1.076792647 | AC34: 0.02127008863 | AD34: 0.0391999965 | AE34: 0.03853964089 | AF34: 0.04306252009 | AG34: 0.918397839 | AI34: 450 | AJ34: 3.85390079 | AK34: 4.306244742 | AL34: 0.0385390079 | AM34: 0.04306244742 | AO34: 4.059588682e-13
A35: 440 | B35: 525.6560164 | C35: 900.1166131 | D35: 1.341873763 | E35: 292.5275731 | F35: 500.9148952 | G35: 0.8559073671 | H35: 0.01 | I35: 129.7001727 | J35: 0.1979079085 | K35: 3.647057193 | L35: 0.6668113218 | M35: 0.02131103694 | N35: 1.448141348e-05 | O35: 0.02606772832 | P35: 0.2414814304 | Q35: 1.330378517 | R35: 0.9582672934 | S35: 0.5749104778 | T35: 0.9968793683 | U35: 33.55617418 | V35: 33.57107126 | W35: -0.1956358693 | X35: -2.149823125 | Y35: 0.06425650305 | Z35: 0.2587500908 | AA35: -0.01861700952 | AB35: -1.076629864 | AC35: 0.02132490771 | AD35: 0.02496851431 | AE35: 0.03855528565 | AF35: 0.02768087785 | AG35: 0.9337638365 | AI35: 440 | AJ35: 3.855530024 | AK35: 2.768081343 | AL35: 0.03855530023 | AM35: 0.02768081343 | AO35: 4.3624365e-15
A36: 430 | B36: 513.0080557 | C36: 1532.301188 | D36: 1.342634156 | E36: 285.488983 | F36: 852.7256108 | G36: 0.9170163956 | H36: 0.01 | I36: 127.1558756 | J36: 0.1986301779 | K36: 3.562512278 | L36: 0.667282709 | M36: 0.02139204808 | N36: 1.721446453e-05 | O36: 0.02836746816 | P36: 0.2425610971 | Q36: 1.329309988 | R36: 0.9581119745 | S36: 0.5746547777 | T36: 0.9968363894 | U36: 30.38672599 | V36: 30.40317609 | W36: -0.1952876887 | X36: -2.149312126 | Y36: 0.0644602578 | Z36: 0.260203661 | AA36: -0.02050855843 | AB36: -1.076404825 | AC36: 0.02140853392 | AD36: 0.02716678319 | AE36: 0.0386896085 | AF36: 0.03007755565 | AG36: 0.9312328359 | AI36: 430 | AJ36: 3.868932367 | AK36: 3.007763719 | AL36: 0.03868932367 | AM36: 0.03007763719 | AO36: 8.777755531e-14
A37: 420 | B37: 487.9471635 | C37: 1511.356551 | D37: 1.34345607 | E37: 271.5425965 | F37: 841.0699206 | G37: 0.9200955463 | H37: 0.01 | I37: 120.7641196 | J37: 0.1983931018 | K37: 3.38747829 | L37: 0.6677909613 | M37: 0.02147972706 | N37: 2.453027972e-05 | O37: 0.03379378767 | P37: 0.2421782733 | Q37: 1.328805059 | R37: 0.9579438994 | S37: 0.574378877 | T37: 0.9965470765 | U37: 24.81186995 | V37: 24.83201341 | W37: -0.1949124841 | X37: -2.148761403 | Y37: 0.06426852297 | Z37: 0.2597293932 | AA37: -0.02501578878 | AB37: -1.076306114 | AC37: 0.02150321486 | AD37: 0.03235763378 | AE37: 0.03873086668 | AF37: 0.03568696936 | AG37: 0.925582164 | AI37: 420 | AJ37: 3.873070597 | AK37: 3.568653324 | AL37: 0.03873070598 | AM37: 0.03568653324 | AO37: 2.160234925e-13
A38: 410 | B38: 455.1912141 | C38: 1491.762206 | D38: 1.344346419 | E38: 253.3139107 | F38: 830.1656674 | G38: 0.9236390555 | H38: 0.01 | I38: 113.912371 | J38: 0.2001610498 | K38: 3.167061452 | L38: 0.6683400459 | M38: 0.02157483921 | N38: 3.828890471e-05 | O38: 0.04212720904 | P38: 0.2448527532 | Q38: 1.326975796 | R38: 0.9577616081 | S38: 0.5740805722 | T38: 0.9967158045 | U38: 19.19122765 | V38: 19.21726356 | W38: -0.1945073756 | X38: -2.148166817 | Y38: 0.064879879 | Z38: 0.2633039817 | AA38: -0.03216057663 | AB38: -1.075958282 | AC38: 0.02161149381 | AD38: 0.04032907594 | AE38: 0.03898997991 | AF38: 0.04430959522 | AG38: 0.9167004249 | AI38: 410 | AJ38: 3.898939491 | AK38: 4.430952449 | AL38: 0.03898939491 | AM38: 0.04430952449 | AO38: 3.47233764e-13
A39: 400 | B39: 406.7754019 | C39: 1496.668902 | D39: 1.345313125 | E39: 226.3705112 | F39: 832.8962442 | G39: 0.931090261 | H39: 0.01 | I39: 103.1350634 | J39: 0.2022611231 | K39: 2.83765174 | L39: 0.6689344778 | M39: 0.02167826413 | N39: 7.434838161e-05 | O39: 0.05856302586 | P39: 0.2480470461 | Q39: 1.324879666 | R39: 0.9575634231 | S39: 0.5737573499 | T39: 0.9969423388 | U39: 13.08714527 | V39: 13.1252951 | W39: -0.1940690906 | X39: -2.147525667 | Y39: 0.06561828176 | Z39: 0.2675954711 | AA39: -0.04678075563 | AB39: -1.075626805 | AC39: 0.02174942408 | AD39: 0.05605154824 | AE39: 0.03930022375 | AF39: 0.06118675926 | AG39: 0.899513017 | AI39: 400 | AJ39: 3.929933548 | AK39: 6.118671134 | AL39: 0.03929933548 | AM39: 0.06118671134 | AO39: 7.91322808e-13
AJ40: 3.9601928 | AK40: 6.783491685
AJ41: 3.994468213 | AK41: 7.259892123
AJ42: 4.021827698 | AK42: 8.76492534
AJ43: 4.054393053 | AK43: 10.237287
AJ44: 4.105734825 | AK44: 10.61939249

Sheet Dilution4
A1: X= | B1: 1.113 | C1: g/L | AI1: dilution 4 | AK1: 1.113 | AL1: g/L
A3: l (nm) | B3: Abs,l (m2/kg) | C3: Ssca,l (m2/kg) | D3: n | E3: k (1/m) | F3: ss (1/m) | G3: g | H3: d (m) | J3: wtr | K3: ttr | L3: mc | M3: R1 | N3: Ctr | O3: Etr | P3: c | Q3: k2 | R3: g | S3: gbar | T3: j | U3: s | V3: c | W3: k1 | X3: k2 | Y3: D1 | Z3: D | AA3: A | AB3: B | AC3: R0dh | AD3: T0dh | AE3: Rdh | AF3: Tdh | AG3: Adh | AI3: l (nm) | AJ3: Rdh | AK3: Tdh | AL3: Rdh | AM3: Tdh | AO3: error
A4: 750 | B4: 44.77469278 | C4: 124.8423992 | D4: =1.32711+0.0026/(A4/1000)^2+0.00005/(A4/1000)^4 -> 1.331890247 | E4: =B4*B$1 -> 49.83423307 | F4: =C4*B$1 -> 138.9495903 | G4: 0.8043313253 | H4: 0.01 | J4: =F4*(1-G4)/(F4*(1-G4)+E4) -> 0.352989677 | K4: =(F4*(1-G4)+E4)*H4 -> 0.7702231525 | L4: =SQRT(1-1/D4^2) -> 0.6605152657 | M4: =(D4-1)^2/(D4+1)^2 -> 0.02025688994 | N4: =M4*EXP(-2*K4) -> 0.004340756642 | O4: =EXP(-K4) -> 0.4629097573 | P4: =J4/(1-J4)*(1-M4)/(1-M4*N4) -> 0.5345658393 | Q4: =4/(1+L4)^2*(1-J4)/(1-J4*L4) -> 1.223990101 | R4: =(1-M4)/(1+M4) -> 0.9602906089 | S4: =R4/(1+L4) -> 0.578308811 | T4: =2*S4/SQRT(Q4) -> 1.045444187 | U4: =SINH(SQRT(Q4)*K4) -> 0.9590641457 | V4: =COSH(SQRT(Q4)*K4) -> 1.385569932 | W4: =(1-2*S4)-(1+2*S4)*M4 -> -0.2003039877 | X4: =(1-2*S4)*N4-(1+2*S4) -> -2.157297461 | Y4: =R4*(1-L4^2)*P4/2 -> 0.1446894984 | Z4: =Y4*Q4/(Q4-1) -> 0.7906533041 | AA4: =(W4*(T4*U4+V4)*O4+X4)/((1+T4^2)*U4+2*T4*V4) -> -0.4850265594 | AB4: =(W4*O4+X4*(T4*U4+V4))/((1+T4^2)*U4+2*T4*V4) -> -1.069422155 | AC4: =M4+(1-M4)^2*N4/(1-M4*N4) -> 0.02442393372 | AD4: =(1-M4)^2/(1-M4*N4)*O4 -> 0.4443845593 | AE4: =AC4+Z4*(1+AB4/SQRT(Q4)+N4) -> 0.05424014782 | AF4: =AD4+Z4*(AA4/SQRT(Q4)+(1+M4)*O4) -> 0.4711725178 | AG4: =1-AE4-AF4 -> 0.4745873343 | AI4: 750 | AJ4: 5.423963785 | AK4: 47.1171187 | AL4: =AJ4/100 -> 0.05423963785 | AM4: =AK4/100 -> 0.471171187 | AO4: =(AJ4/100-AE4)^2+(AK4/100-AF4)^2 -> 2.031137611e-12
A5: 740 | B5: 47.01313719 | C5: 147.2231558 | D5: =1.32711+0.0026/(A5/1000)^2+0.00005/(A5/1000)^4 -> 1.332024733 | E5: 52.32562169 | F5: 163.8593724 | G5: 0.8321869202 | H5: 0.01 | J5: =F5*(1-G5)/(F5*(1-G5)+E5) -> 0.3444824085 | K5: =(F5*(1-G5)+E5)*H5 -> 0.7982336763 | L5: =SQRT(1-1/D5^2) -> 0.6606014233 | M5: =(D5-1)^2/(D5+1)^2 -> 0.02027097168 | N5: 0.004107122015 | O5: 0.4501233259 | P5: 0.5149023012 | Q5: 1.230982579 | R5: 0.960263553 | S5: 0.5782625135 | T5: 1.042387229 | U5: 1.006039198 | V5: 1.418490349 | W5: -0.2002398848 | X5: -2.157167894 | Y5: 0.139335155 | Z5: 0.7425631374 | AA5: -0.470599327 | AB5: -1.070372869 | AC5: 0.0242135989 | AD5: 0.4320953869 | AE5: 0.05344806381 | AF5: 0.4581534298 | AG5: 0.4883985064 | AI5: 740 | AJ5: 5.344807625 | AK5: 45.81533566 | AL5: =AJ5/100 -> 0.05344807625 | AM5: 0.4581533566 | AO5: =(AJ5/100-AE5)^2+(AK5/100-AF5)^2 -> 5.513189154e-15
A6: 730 | B6: 49.89198392 | C6: 100.6360278 | D6: 1.332165031 | E6: 55.5297781 | F6: 112.007899 | G6: 0.7487384596 | H6: 0.01 | J6: =F6*(1-G6)/(F6*(1-G6)+E6) -> 0.3363481484 | K6: 0.8367305533 | L6: =SQRT(1-1/D6^2) -> 0.6606912654 | M6: =(D6-1)^2/(D6+1)^2 -> 0.0202856656 | N6: 0.003805522883 | O6: 0.4331242878 | P6: 0.4965714208 | Q6: 1.237562105 | R6: 0.9602353218 | S6: 0.5782142303 | T6: 1.039525794 | U6: 1.07118976 | V6: 1.465417176 | W6: -0.2001730472 | X6: -2.157023753 | Y6: 0.1343424745 | Z6: 0.6998471212 | AA6: -0.4512668857 | AB6: -1.070921236 | AC6: 0.02393864136 | AD6: 0.4157621889 | AE6: 0.05273250633 | AF6: 0.4411399879 | AG6: 0.5061275058 | AI6: 730 | AJ6: 5.273252487 | AK6: 44.11398595 | AL6: 0.05273252487 | AM6: 0.4411398595 | AO6: 1.682381169e-14
A7: 720 | B7: 57.10592169 | C7: 455.8459417 | D7: 1.332311487 | E7: 63.55889084 | F7: 507.3565331 | G7: 0.9420408208 | H7: 0.01 | J7: 0.3163127285 | K7: 0.9296485907 | L7: 0.6607850063 | M7: 0.02030100808 | N7: 0.003162533233 | O7: 0.3946923846 | P7: 0.4532937372 | Q7: 1.253493965 | R7: 0.9602058453 | S7: 0.5781638452 | T7: 1.032808497 | U7: 1.239202926 | V7: 1.592364246 | W7: -0.2001033162 | X7: -2.156822082 | Y7: 0.1226034029 | Z7: 0.6062575325 | AA7: -0.4074460363 | AB7: -1.07240478 | AC7: 0.02333663436 | AD7: 0.3788540664 | AE7: 0.05080754681 | AF7: 0.4023662384 | AG7: 0.5468262148 | AI7: 720 | AJ7: 5.080671788 | AK7: 40.23645913 | AL7: 0.05080671787 | AM7: 0.4023645913 | AO7: 3.399798342e-12
A8: 710 | B8: 77.32363157 | C8: 1393.052368 | D8: 1.332464467 | E8: 86.06120194 | F8: 1550.467285 | G8: 0.9788042784 | H8: 0.01 | J8: 0.2763373386 | K8: 1.189244748 | L8: 0.6608828766 | M8: 0.02031703825 | N8: 0.00188319605 | O8: 0.3044511145 | P8: 0.3741153929 | Q8: 1.283800821 | R8: 0.9601750486 | S8: 0.5781112336 | T8: 1.020451996 | U8: 1.793896934 | V8: 2.053793127 | W8: -0.2000305214 | X8: -2.156516665 | Y8: 0.1011613753 | Z8: 0.4576133937 | AA8: -0.3047136264 | AB8: -1.074375708 | AC8: 0.02212455887 | AD8: 0.2922168771 | AE8: 0.0466833103 | AF8: 0.3113013264 | AG8: 0.6420153632 | AI8: 710 | AJ8: 4.667498112 | AK8: 31.12961742 | AL8: 0.04667498112 | AM8: 0.3112961742 | AO8: 9.592152225e-11
A9: 700 | B9: 131.5822553 | C9: 1071.196546 | D9: 1.332624369 | E9: 146.4510501 | F9: 1192.241755 | G9: 0.9635833016 | H9: 0.01 | J9: 0.2286713964 | K9: 1.898685585 | L9: 0.6609851238 | M9: 0.02033379827 | N9: 0.0004560801445 | O9: 0.1497653437 | P9: 0.2904387506 | Q9: 1.317456142 | R9: 0.9601428507 | S9: 0.5780562613 | T9: 1.007237815 | U9: 4.36359016 | V9: 4.47670851 | W9: -0.1999544796 | X9: -2.156183722 | Y9: 0.07851360438 | Z9: 0.3258347112 | AA9: -0.1359925442 | AB9: -1.075836573 | AC9: 0.02077152336 | AD9: 0.1437380026 | AE9: 0.04135024513 | AF9: 0.1549239423 | AG9: 0.8037258126 | AI9: 700 | AJ9: 4.13498807 | AK9: 15.49227587 | AL9: 0.0413498807 | AM9: 0.1549227587 | AO9: 1.533699858e-12
A10: 690 | B10: 291.1565965 | C10: 1697.689397 | D10: 1.332791621 | E10: 324.0572919 | F10: 1889.528299 | G10: 0.9566113429 | H10: 0.01 | J10: 0.2019106868 | K10: 4.060413873 | L10: 0.6610920147 | M10: 0.02035133362 | N10: 6.050095016e-06 | O10: 0.01724188169 | P10: 0.2478438893 | Q10: 1.33519989 | R10: 0.9601091645 | S10: 0.5779987839 | T10: 1.00042325 | U10: 54.52239142 | V10: 54.5315612 | W10: -0.1998749936 | X10: -2.155998512 | Y10: 0.06697987418 | Z10: 0.2668005666 | AA10: -0.01160357195 | AB10: -1.077786947 | AC10: 0.02035713997 | AD10: 0.01654723434 | AE10: 0.03830423356 | AF10: 0.01856179617 | AG10: 0.9431339703 | AI10: 690 | AJ10: 3.830397964 | AK10: 1.856156087 | AL10: 0.03830397964 | AM10: 0.01856156087 | AO10: 1.198441705e-13
A11: 680 | B11: 429.9703911 | C11: 1273.97902 | D11: 1.332966686 | E11: 478.5570453 | F11: 1417.938649 | G11: 0.9173533244 | H11: 0.01 | J11: 0.1967081944 | K11: 5.957449609 | L11: 0.6612038365 | M11: 0.0203696934 | N11: 1.362729036e-07 | O11: 0.002586500155 | P11: 0.2398895495 | Q11: 1.338444231 | R11: 0.9600738957 | S11: 0.5779386458 | T11: 0.9991060565 | U11: 492.3027051 | V11: 492.3037207 | W11: -0.1997918511 | X11: -2.155877313 | Y11: 0.06481080322 | Z11: 0.2563070597 | AA11: -0.001354267115 | AB11: -1.078420943 | AC11: 0.02036982418 | AD11: 0.002482200934 | AE11: 0.03775898962 | AF11: 0.002858612978 | AG11: 0.9593823974 | AI11: 680 | AJ11: 3.775895596 | AK11: 0.285859603 | AL11: 0.03775895595 | AM11: 0.00285859603 | AO11: 1.420741925e-15
A12: 670 | B12: 413.1060773 | C12: 1343.604916 | D12: 1.333150061 | E12: 459.787064 | F12: 1495.432272 | G12: 0.925716803 | H12: 0.01 | J12: 0.1945889485 | K12: 5.70872554 | L12: 0.6613208995 | M12: 0.02038893071 | N12: 2.243150682e-07 | O12: 0.003316897103 | P12: 0.2366760283 | Q12: 1.339663411 | R12: 0.9600369426 | S12: 0.5778756789 | T12: 0.9985425233 | U12: 370.312989 | V12: 370.3143392 | W12: -0.1997048228 | X12: -2.155751393 | Y12: 0.06392255837 | Z12: 0.2521163885 | AA12: -0.001788920191 | AB12: -1.078662208 | AC12: 0.02038914597 | AD12: 0.00318302001 | AE12: 0.03754842663 | AF12: 0.003646646743 | AG12: 0.9588049266 | AI12: 670 | AJ12: 3.754826069 | AK12: 0.364678432 | AL12: 0.03754826069 | AM12: 0.00364678432 | AO12: 4.646233424e-14
A13: 660 | B13: 313.4283379 | C13: 1380.719843 | D13: 1.333342287 | E13: 348.84574 | F13: 1536.741185 | G13: 0.9456973454 | H13: 0.01 | J13: 0.1930375131 | K13: 4.322948658 | L13: 0.6614435385 | M13: 0.02040910301 | N13: 3.588875742e-06 | O13: 0.01326072449 | P13: 0.2343328314 | Q13: 1.340503753 | R13: 0.9599981949 | S13: 0.5778097015 | T13: 0.9981155185 | U13: 74.58379628 | V13: 74.59049985 | W13: -0.1996136614 | X13: -2.155619961 | Y13: 0.06326889579 | Z13: 0.2490785828 | AA13: -0.008563566377 | AB13: -1.07883543 | AC13: 0.02041254689 | AD13: 0.01272496995 | AE13: 0.03740141387 | AF13: 0.01425305697 | AG13: 0.9483455292 | AI13: 660 | AJ13: 3.740116954 | AK13: 1.425281072 | AL13: 0.03740116954 | AM13: 0.01425281072 | AO13: 1.203409305e-13
A14: 650 | B14: 278.5455099 | C14: 982.6477632 | D14: 1.333543948 | E14: 310.0211525 | F14: 1093.68696 | G14: 0.9321789413 | H14: 0.01 | J14: 0.1930654578 | K14: 3.841961601 | L14: 0.6615721158 | M14: 0.02043027263 | N14: 9.401317425e-06 | O14: 0.02145148081 | P14: 0.2343698333 | Q14: 1.340316425 | R14: 0.9599575333 | S14: 0.577740517 | T14: 0.9980657479 | U14: 42.71853958 | V14: 42.73024249 | W14: -0.1995180992 | X14: -2.155482496 | Y14: 0.06325706982 | Z14: 0.2491342862 | AA14: -0.01477919919 | AB14: -1.078809804 | AC14: 0.02043929373 | AD14: 0.02058391933 | AE14: 0.0374227006 | AF14: 0.02285701159 | AG14: 0.9397202878 | AI14: 650 | AJ14: 3.742225408 | AK14: 2.285705466 | AL14: 0.03742225409 | AM14: 0.02285705466 | AO14: 2.012269375e-13
A15: 640 | B15: 208.828827 | C15: 1388.303337 | D15: 1.333755679 | E15: 232.4264845 | F15: 1545.181614 | G15: 0.9637653715 | H15: 0.01 | J15: 0.1941264212 | K15: 2.884155662 | L15: 0.6617070238 | M15: 0.02045250718 | N15: 6.39147031e-05 | O15: 0.05590196977 | P15: 0.2359629386 | Q15: 1.339454885 | R15: 0.9599148279 | S15: 0.5776679127 | T15: 0.9982612087 | U15: 14.06322934 | V15: 14.09873822 | W15: -0.1994178468 | X15: -2.155345754 | Y15: 0.06366400226 | Z15: 0.2512117594 | AA15: -0.04391236635 | AB15: -1.078810069 | AC15: 0.02051383427 | AD15: 0.05363875309 | AE15: 0.03757722752 | AF15: 0.05843767146 | AG15: 0.903985101 | AI15: 640 | AJ15: 3.75772214 | AK15: 5.843774606 | AL15: 0.03757722139 | AM15: 0.05843774606 | AO15: 5.602747359e-15
A16: 630 | B16: 194.5800178 | C16: 1479.321028 | D16: 1.333978169 | E16: 216.5675598 | F16: 1646.484305 | G16: 0.9679151084 | H16: 0.01 | J16: 0.1960960809 | K16: 2.693948303 | L16: 0.6618486879 | M16: 0.0204758802 | N16: 9.360710527e-05 | O16: 0.06761345328 | P16: 0.2389355303 | Q16: 1.33799682 | R16: 0.9598699379 | S16: 0.5775916574 | T16: 0.9986731341 | U16: 11.25738934 | V16: 11.30171734 | W16: -0.1993125901 | X16: -2.155197841 | Y16: 0.06444150658 | Z16: 0.2550986454 | AA16: -0.05457383402 | AB16: -1.078614801 | AC16: 0.02056569335 | AD16: 0.06487303541 | AE16: 0.03781421138 | AF16: 0.07043877973 | AG16: 0.8917470089 | AI16: 630 | AJ16: 3.781361223 | AK16: 7.043788594 | AL16: 0.03781361223 | AM16: 0.07043788594 | AO16: 1.157849528e-12
A17: 620 | B17: 190.9191672 | C17: 1921.896576 | D17: 1.334212167 | E17: 212.4930331 | F17: 2139.070889 | G17: 0.9756094055 | H17: 0.01 | J17: 0.1971283147 | K17: 2.646662437 | L17: 0.6619975703 | M17: 0.02050047174 | N17: 0.0001030153806 | O17: 0.07088740989 | P17: 0.2404960874 | Q17: 1.337134245 | R17: 0.9598227099 | S17: 0.5775115001 | T17: 0.9988565613 | U17: 10.64520313 | V17: 10.69206948 | W17: -0.1992019882 | X17: -2.15503897 | Y17: 0.06483645297 | Z17: 0.2571528789 | AA17: -0.05762169781 | AB17: -1.078468508 | AC17: 0.0205993069 | AD17: 0.06801089464 | AE17: 0.03794434395 | AF17: 0.07379934335 | AG17: 0.8882563127 | AI17: 620 | AJ17: 3.794336319 | AK17: 7.380017617 | AL17: 0.03794336319 | AM17: 0.07380017617 | AO17: =(AJ17/100-AE17)^2+(AK17/100-AF17)^2 -> 1.655474717e-12
A18: 610 | B18: 175.3826583 | C18: 1397.079057 | D18: 1.334458488 | E18: 195.2008987 | F18: 1554.94899 | G18: 0.9688087663 | H18: 0.01 | J18: 0.1990170034 | K18: 2.43701676 | L18: 0.6621541732 | M18: 0.02052636908 | N18: 0.0001568723027 | O18: 0.08742126145 | P18: 0.2433666325 | Q18: 1.335705959 | R18: 0.9597729766 | S18: 0.5774271677 | T18: 0.999244525 | U18: 8.329437773 | V18: 8.389251076 | W18: -0.1990856708 | X18: -2.154878628 | Y18: 0.06558271895 | Z18: 0.2609403445 | AA18: -0.07319937879 | AB18: -1.078368813 | AC18: 0.02067686793 | AD18: 0.08386948272 | AE18: 0.03818385055 | AF18: 0.09062249053 | AG18: 0.8711936589 | AI18: 610 | AJ18: 3.818384767 | AK18: 9.0622576 | AL18: 0.03818384767 | AM18: 0.090622576 | AO18: 7.312195107e-15
A19: 600 | B19: 161.5764147 | C19: 1354.584345 | D19: 1.334718025 | E19: 179.8345495 | F19: 1507.652376 | G19: 0.969917999 | H19: 0.01 | J19: 0.2014017205 | K19: 2.251877498 | L19: 0.6623190439 | M19: 0.02055366754 | N19: 0.0002274748488 | O19: 0.1052015234 | P19: 0.2470116751 | Q19: 1.333942178 | R19: 0.9597205552 | S19: 0.5773383628 | T19: 0.9997511436 | U19: 6.700405454 | V19: 6.774616834 | W19: -0.1989632347 | X19: -2.154711911 | Y19: 0.06653547029 | Z19: 0.2657779578 | AA19: -0.09043889979 | AB19: -1.078267625 | AC19: 0.02077188862 | AD19: 0.1009218837 | AE19: 0.03848159093 | AF19: 0.108645203 | AG19: 0.8528732061 | AI19: 600 | AJ19: 3.848155379 | AK19: 10.86448485 | AL19: 0.03848155379 | AM19: 0.1086448485 | AO19: 1.270243828e-13
A20: 590 | B20: 153.313014 | C20: 1311.015087 | D20: 1.334991749 | E20: 170.6373846 | F20: 1459.159792 | G20: 0.969900523 | H20: 0.01 | J20: 0.2047002837 | K20: 2.145573311 | L20: 0.6624927788 | M20: 0.02058247139 | N20: 0.0002817579776 | O20: 0.1170009399 | P20: 0.2520913871 | Q20: 1.33156627 | R20: 0.9596652461 | S20: 0.5772447606 | T20: 1.000480441 | U20: 5.903874088 | V20: 5.987965368 | W20: -0.1988342402 | X20: -2.15453305 | Y20: 0.06787199523 | Z20: 0.2725731403 | AA20: -0.1021742973 | AB20: -1.077983649 | AC20: 0.02085275175 | AD20: 0.1122348198 | AE20: 0.03887018928 | AF20: 0.1206477566 | AG20: 0.8404820542 | AI20: 590 | AJ20: 3.887013674 | AK20: 12.06472965 | AL20: 0.03887013674 | AM20: 0.1206472965 | AO20: 2.144350168e-13
A21: 580 | B21: 141.381929 | C21: 2122.941382 | D21: 1.335280727 | E21: 157.358087 | F21: 2362.833758 | G21: 0.9822536917 | H21: 0.01 | J21: 0.2104051741 | K21: 1.992896632 | L21: 0.66267603 | M21: 0.0206128949 | N21: 0.0003829402073 | O21: 0.136300042 | P21: 0.2609816252 | Q21: 1.327587169 | R21: 0.9596068304 | S21: 0.5771460062 | T21: 1.001807243 | U21: 4.918030663 | V21: 5.018667711 | W21: -0.1986982073 | X21: -2.154351097 | Y21: 0.07023087915 | Z21: 0.2846192493 | AA21: -0.1217370607 | AB21: -1.077553533 | AC21: 0.0209802137 | AD21: 0.1307399098 | AE21: 0.03953079641 | AF21: 0.1402616419 | AG21: 0.8202075617 | AI21: 580 | AJ21: 3.952446937 | AK21: 14.02637629 | AL21: 0.03952446938 | AM21: 0.1402637629 | AO21: 4.453020224e-11
A22: 570 | B22: 126.7235225 | C22: 2015.988761 | D22: 1.335586127 | E22: 141.0432806 | F22: 2243.795491 | G22: 0.9824440639 | H22: 0.01 | J22: 0.218316204 | K22: 1.804352109 | L22: 0.6628695103 | M22: 0.0206450635 | N22: 0.0005592112428 | O22: 0.1645810526 | P22: 0.2735268681 | Q22: 1.32209902 | R22: 0.9595450677 | S22: 0.5770417111 | T22: 1.003702974 | U22: 3.918242582 | V22: 4.043837897 | W22: -0.1985546113 | X22: -2.154169587 | Y22: 0.07356844494 | Z22: 0.3019716389 | AA22: -0.1510857648 | AB22: -1.077107532 | AC22: 0.02118142938 | AD22: 0.15785745 | AE22: 0.04044780678 | AF22: 0.16890357 | AG22: 0.7906486232 | AI22: 570 | AJ22: 4.044701099 | AK22: 16.8906118 | AL22: 0.04044701099 | AM22: 0.168906118 | AO22: 7.125303497e-12
A23: 560 | B23: 115.105915 | C23: 1031.705404 | D23: 1.335909231 | E23: 128.1128834 | F23: 1148.288115 | G23: 0.9672640081 | H23: 0.01 | J23: 0.2268534509 | K23: 1.657032338 | L23: 0.6630740014 | M23: 0.02067911513 | N23: 0.000752059064 | O23: 0.1907040865 | P23: 0.2873527374 | Q23: 1.316117622 | R23: 0.9594796938 | S23: 0.5769314492 | T23: 1.005788944 | U23: 3.271525662 | V23: 3.42094726 | W23: -0.1984028773 | X23: -2.153978612 | Y23: 0.07724444009 | Z23: 0.3215979173 | AA23: -0.1788602417 | AB23: -1.076622472 | AC23: 0.02140040318 | AD23: 0.1829012974 | AE23: 0.0414331758 | AF23: 0.1953601211 | AG23: 0.7632067031 | AI23: 560 | AJ23: 4.1433146 | AK23: 19.5360281 | AL23: 0.041433146 | AM23: 0.195360281 | AO23: 2.645101231e-14
A24: 550 | B24: 115.6214201 | C24: 775.6844122 | D24: 1.336251452 | E24: 128.6866406 | F24: 863.3367507 | G24: 0.9554902282 | H24: 0.01 | J24: 0.2299449622 | K24: 1.671135624 | L24: 0.6632903612 | M24: 0.0207152018 | N24: 0.0007324183366 | O24: 0.1880334092 | P24: 0.2924271792 | Q24: 1.313760803 | R24: 0.9594104178 | S24: 0.5768147524 | T24: 1.006487081 | U24: 3.321344153 | V24: 3.468620329 | W24: -0.1982423745 | X24: -2.153742026 | Y24: 0.07856258935 | Z24: 0.3289526591 | AA24: -0.1761501677 | AB24: -1.076041629 | AC24: 0.0214176007 | AD24: 0.1803265339 | AE24: 0.04179196864 | AF24: 0.1929076192 | AG24: 0.7653004121 | AI24: 550 | AJ24: 4.179190159 | AK24: 19.29079628 | AL24: 0.04179190159 | AM24: 0.1929079628 | AO24: 1.225425535e-13
A25: 540 | B25: 120.1832263 | C25: 810.304442 | D25: 1.336614348 | E25: 133.7639309 | F25: 901.8688439 | G25: 0.9555823083 | H25: 0.01 | J25: 0.2304583617 | K25: 1.738228631 | L25: 0.6635195331 | M25: 0.02075349133 | N25: 0.0006416304443 | O25: 0.1758315875 | P25: 0.2932636001 | Q25: 1.313132677 | R25: 0.9593369182 | S25: 0.5766911053 | T25: 1.00651197 | U25: 3.596396928 | V25: 3.732836838 | W25: -0.1980724097 | X25: -2.153480625 | Y25: 0.07873849083 | Z25: 0.3301925759 | AA25: -0.1633144901 | AB25: -1.075541736 | AC25: 0.02136877418 | AD25: 0.168611326 | AE25: 0.04185987394 | AF25: 0.180816062 | AG25: 0.777324064 | AI25: 540 | AJ25: 4.185979604 | AK25: 18.08164422 | AL25: 0.04185979605 | AM25: 0.1808164422 | AO25: 1.506011863e-13
A26: 530 | B26: 128.0689215 | C26: 802.3579109 | D26: 1.336999638 | E26: 142.5407097 | F26: 893.0243548 | G26: 0.952164679 | H26: 0.01 | J26: 0.2305860931 | K26: 1.852588164 | L26: 0.6637625569 | M26: 0.02079416943 | N26: 0.0005114508974 | O26: 0.156830737 | P26: 0.2934618756 | Q26: 1.312749381 | R26: 0.9592588397 | S26: 0.5765599399 | T26: 1.006429941 | U26: 4.116587213 | V26: 4.236306207 | W26: -0.1978922193 | X26: -2.153198193 | Y26: 0.07873991179 | Z26: 0.3305067151 | AA26: -0.1435319623 | AB26: -1.074945708 | AC26: 0.0212845763 | AD26: 0.1503778197 | AE26: 0.0418787934 | AF26: 0.1618856783 | AG26: 0.7962355283 | AI26: 530 | AJ26: 4.187785387 | AK26: 16.18862952 | AL26: 0.04187785387 | AM26: 0.1618862952 | AO26: 1.263260074e-12
A27: 520 | B27: 160.3538552 | C27: 1043.236558 | D27: 1.337409228 | E27: 178.4738408 | F27: 1161.122289 | G27: 0.9564637254 | H27: 0.01 | J27: 0.2207225738 | K27: 2.290247797 | L27: 0.6640205801 | M27: 0.02083744199 | N27: 0.0002135799316 | O27: 0.1012413715 | P27: 0.2773392819 | Q27: 1.319058057 | R27: 0.9591757882 | S27: 0.5764206282 | T27: 1.003777726 | U27: 6.903324226 | V27: 6.975377077 | W27: -0.1977009612 | X27: -2.1528739 | Y27: 0.07436198391 | Z27: 0.3074292337 | AA27: -0.08725697212 | AB27: -1.075115416 | AC27: 0.02104221465 | AD27: 0.09706653995 | AE27: 0.04075201461 | AF27: 0.1054828532 | AG27: 0.8537651322 | AI27: 520 | AJ27: 4.075173616 | AK27: 10.54820703 | AL27: 0.04075173616 | AM27: 0.1054820703 | AO27: 6.903898748e-13
A28: 510 | B28: 236.8834959 | C28: 1394.01664 | D28: 1.337845232 | E28: 263.6513309 | F28: 1551.54052 | G28: 0.955472099 | H28: 0.01 | J28: 0.2076312494 | K28: 3.327381736 | L28: 0.6642948725 | M28: 0.02088353784 | N28: 2.689533878e-05 | O28: 0.03588694366 | P28: 0.2565665144 | Q28: 1.327343812 | R28: 0.9590873257 | S28: 0.5762724753 | T28: 1.000382665 | U28: 23.10097343 | V28: 23.12260741 | W28: -0.1974977044 | X28: -2.152549053 | Y28: 0.0687410846 | Z28: 0.2787376753 | AA28: -0.02681830985 | AB28: -1.07614518 | AC28: 0.02090932158 | AD28: 0.03440372138 | AE28: 0.03929415731 | AF28: 0.03812729722 | AG28: 0.9225785455 | AI28: 510 | AJ28: 3.929415822 | AK28: 3.812728543 | AL28: 0.03929415822 | AM28: 0.03812728543 | AO28: 1.396013851e-16
A29: 500 | B29: 340.4190713 | C29: 1028.51345 | D29: 1.33831 | E29: 378.8864263 | F29: 1144.73547 | G29: 0.9168403129 | H29: 0.01 | J29: 0.2008002609 | K29: 4.740822698 | L29: 0.6645868412 | M29: 0.02093271191 | N29: 1.595876287e-06 | O29: 0.008731459876 | P29: 0.2459922893 | Q29: 1.331399497 | R29: 0.9589929646 | S29: 0.5761147096 | T29: 0.9985843729 | U29: 118.7587739 | V29: 118.762984 | W29: -0.1972814176 | X29: -2.152229662 | Y29: 0.06585571564 | Z29: 0.2645757386 | AA29: -0.005398902664 | AB29: -1.076880704 | AC29: 0.02093424167 | AD29: 0.008369739824 | AE29: 0.03858633741 | AF29: 0.009490284691 | AG29: 0.9519233779 | AI29: 500 | AJ29: 3.858629823 | AK29: 0.94902303 | AL29: 0.03858629823 | AM29: 0.0094902303 | AO29: 4.493177828e-15
A30: 490 | B30: 416.8978865 | C30: 954.3480828 | D30: 1.338806154 | E30: 464.0073477 | F30: 1062.189416 | G30: 0.891760338 | H30: 0.01 | J30: 0.1985756794 | K30: 5.789783711 | L30: 0.6648980496 | M30: 0.02098524889 | N30: 1.963233204e-07 | O30: 0.003058643657 | P30: 0.2425787628 | Q30: 1.332428143 | R30: 0.9588921605 | S30: 0.5759464735 | T30: 0.9979073481 | U30: 399.4337334 | V30: 399.4349851 | W30: -0.1970509561 | X30: -2.151892977 | Y30: 0.06488691839 | Z30: 0.2600777281 | AA30: -0.001651330543 | AB30: -1.077073838 | AC30: 0.02098543706 | AD30: 0.00293161784 | AE30: 0.03838726461 | AF30: 0.003371734419 | AG30: 0.958241001 | AI30: 490 | AJ30: 3.838720679 | AK30: 0.3371853041 | AL30: 0.03838720679 | AM30: 0.003371853041 | AO30: 1.741483207e-14
A31: 480 | B31: 437.4089938 | C31: 1031.553893 | D31: 1.339336623 | E31: 486.8362101 | F31: 1148.119482 | G31: 0.8952727672 | H31: 0.01 | J31: 0.1980632708 | K31: 6.070755864 | L31: 0.6652302386 | M31: 0.02104146756 | N31: 1.122236737e-07 | O31: 0.002309426938 | P31: 0.2417843233 | Q31: 1.332326196 | R31: 0.9587843036 | S31: 0.5757668107 | T31: 0.9976342236 | U31: 552.3097822 | V31: 552.3106875 | W31: -0.1968050464 | X31: -2.151533638 | Y31: 0.06461592563 | Z31: 0.2590511714 | AA31: -0.001203709774 | AB31: -1.077041045 | AC31: 0.02104157511 | AD31: 0.002213261963 | AE31: 0.03837280582 | AF31: 0.002553961788 | AG31: 0.9590732324 | AI31: 480 | AJ31: 3.837272287 | AK31: 0.2554080364 | AL31: 0.03837272287 | AM31: 0.002554080364 | AO31: 2.094221871e-14
A32: 470 | B32: 445.2512 | C32: 1000.042442 | D32: 1.339904689 | E32: 495.5645856 | F32: 1113.047238 | G32: 0.8902802981 | H32: 0.01 | J32: 0.1977102539 | K32: 6.176877967 | L32: 0.6655853507 | M32: 0.02110172581 | N32: 9.102274795e-08 | O32: 0.002076901899 | P32: 0.2412323325 | Q32: 1.332091806 | R32: 0.9586687099 | S32: 0.5755746528 | T32: 0.9973890075 | U32: 623.8906086 | V32: 623.89141 | W32: -0.1965422684 | X32: -2.151149319 | Y32: 0.06440598985 | Z32: 0.258346306 | AA32: -0.001068610596 | AB32: -1.076980819 | AC32: 0.02110181303 | AD32: 0.001990174283 | AE32: 0.03837815459 | AF32: 0.002298860149 | AG32: 0.9593229853 | AI32: 470 | AJ32: 3.837815881 | AK32: 0.2298862867 | AL32: 0.03837815881 | AM32: 0.002298862867 | AO32: 2.516338586e-17
A33: 460 | B33: 444.3197415 | C33: 998.1887096 | D33: 1.34051404 | E33: 494.5278723 | F33: 1110.984034 | G33: 0.8904826129 | H33: 0.01 | J33: 0.1974555018 | K33: 6.161999408 | L33: 0.6659655594 | M33: 0.02116642664 | N33: 9.405954306e-08 | O33: 0.002108034234 | P33: 0.2408291069 | Q33: 1.331761741 | R33: 0.9585446092 | S33: 0.5753688027 | T33: 0.9971558436 | U33: 612.7282894 | V33: 612.7291054 | W33: -0.1962610351 | X33: -2.15073762 | Y33: 0.06423157548 | Z33: 0.2578391185 | AA33: -0.001087182671 | AB33: -1.076900416 | AC33: 0.02116651676 | AD33: 0.002019739571 | AE33: 0.03839709308 | AF33: 0.002331872026 | AG33: 0.9592710349 | AI33: 460 | AJ33: 3.839709639 | AK33: 0.2331874187 | AL33: 0.03839709639 | AM33: 0.002331874187 | AO33: 1.566489894e-17
A34: 450 | B34: 477.3332863 | C34: 986.1301768 | D34: 1.341168832 | E34: 531.2719476 | F34: 1097.562887 | G34: 0.8806999326 | H34: 0.01 | J34: 0.1977304397 | K34: 6.62211274 | L34: 0.6663733026 | M34: 0.02123602515 | N34: 3.759925053e-08 | O34: 0.001330616727 | P34: 0.2412299317 | Q34: 1.331058249 | R34: 0.9584111319 | S34: 0.5751479158 | T34: 0.9970364034 | U34: 1039.903541 | V34: 1039.904021 | W34: -0.195959568 | X34: -2.150295837 | Y34: 0.06426672115 | Z34: 0.2583918375 | AA34: -0.0006490483093 | AB34: -1.076743498 | AC34: 0.02123606117 | AD34: 0.001274702774 | AE34: 0.03847499235 | AF34: 0.001480460516 | AG34: 0.9600445471 | AI34: 450 | AJ34: 3.847488403 | AK34: 0.1480489237 | AL34: 0.03847488403 | AM34: 0.001480489237 | AO34: 1.255702417e-14
A35: 440 | B35: 533.701792 | C35: 1166.862258 | D35: 1.341873763 | E35: 594.0100945 | F35: 1298.717694 | G35: 0.8868982917 | H35: 0.01 | J35: 0.198255808 | K35: 7.408972842 | L35: 0.6668113218 | M35: 0.02131103694 | N35: 7.820824454e-09 | O35: 0.0006057926196 | P35: 0.2420108224 | Q35: 1.330156965 | R35: 0.9582672934 | S35: 0.5749104778 | T35: 0.9969623853 | U35: 2570.360078 | V35: 2570.360272 | W35: -0.1956358693 | X35: -2.149820957 | Y35: 0.06439737052 | Z35: 0.2594481413 | AA35: -0.0002690813752 | AB35: -1.076545555 | AC35: 0.02131104443 | AD35: 0.0005802476088 | AE35: 0.0385829492 | AF35: 0.0006802371874 | AG35: 0.9607368136 | AI35: 440 | AJ35: 3.858298659 | AK35: 0.06801981728 | AL35: 0.03858298659 | AM35: 0.0006801981728 | AO35: 2.919965767e-15
A36: 430 | B36: 522.9857341 | C36: 1117.661683 | D36: 1.342634156 | E36: 582.083122 | F36: 1243.957453 | G36: 0.8844983513 | H36: 0.01 | J36: 0.1979699758 | K36: 7.257622588 | L36: 0.667282709 | M36: 0.02139204808 | N36: 1.062579621e-08 | O36: 0.0007047816015 | P36: 0.2415557856 | Q36: 1.329729821 | R36: 0.9581119745 | S36: 0.5746547777 | T36: 0.9966790122 | U36: 2155.765723 | V36: 2155.765955 | W36: -0.1952876887 | X36: -2.149309557 | Y36: 0.06419309774 | Z36: 0.2588770285 | AA36: -0.0003190131505 | AB36: -1.07644222 | AC36: 0.02139205825 | AD36: 0.0006749506798 | AE36: 0.03861033437 | AF36: 0.0007896877591 | AG36: 0.9605999779 | AI36: 430 | AJ36: 3.86103046 | AK36: 0.07897724616 | AL36: 0.0386103046 | AM36: 0.0007897724616 | AO36: 8.060884956e-15
A37: 420 | B37: 501.4787512 | C37: 1010.670925 | D37: 1.34345607 | E37: 558.1458501 | F37: 1124.876739 | G37: 0.8772304244 | H37: 0.01 | J37: 0.1983502134 | K37: 6.9624649 | L37: 0.6677909613 | M37: 0.02147972706 | N37: 1.925345108e-08 | O37: 0.0009467600276 | P37: 0.2421128381 | Q37: 1.328832284 | R37: 0.9579438994 | S37: 0.574378877 | T37: 0.996536868 | U37: 1529.709739 | V37: 1529.710066 | W37: -0.1949124841 | X37: -2.148757757 | Y37: 0.06425115799 | Z37: 0.2596430377 | AA37: -0.0004448178289 | AB37: -1.076242494 | AC37: 0.02147974549 | AD37: 0.0009065245489 | AE37: 0.0387121183 | AF37: 0.001057434474 | AG37: 0.9602304472 | AI37: 420 | AJ37: 3.871216058 | AK37: 0.1057456182 | AL37: 0.03871216059 | AM37: 0.001057456182 | AO37: 2.258913613e-15
A38: 410 | B38: 471.1463214 | C38: 952.1273712 | D38: 1.344346419 | E38: 524.3858557 | F38: 1059.717764 | G38: 0.8771135476 | H38: 0.01 | J38: 0.1989349308 | K38: 6.546108123 | L38: 0.6683400459 | M38: 0.02157483921 | N38: 4.447032423e-08 | O38: 0.001435692277 | P38: 0.2429801889 | Q38: 1.327753914 | R38: 0.9577616081 | S38: 0.5740805722 | T38: 0.9964237039 | U38: 943.7066833 | V38: 943.7072131 | W38: -0.1945073756 | X38: -2.148161151 | Y38: 0.0643836961 | Z38: 0.2608228335 | AA38: -0.0007109924134 | AB38: -1.076004706 | AC38: 0.02157488178 | AD38: 0.001374410895 | AE38: 0.0388405204 | AF38: 0.001596015693 | AG38: 0.9595634639 | AI38: 410 | AJ38: 3.88404429 | AK38: 0.1596020727 | AL38: 0.0388404429 | AM38: 0.001596020727 | AO38: 6.031642219e-15
A39: 400 | B39: 424.0254852 | C39: 987.3097156 | D39: 1.345313125 | E39: 471.940365 | F39: 1098.875713 | G39: 0.8909346287 | H39: 0.01 | J39: 0.2025200797 | K39: 5.917896527 | L39: 0.6689344778 | M39: 0.02167826413 | N39: 1.56965747e-07 | O39: 0.002690854368 | P39: 0.2484448719 | Q39: 1.324714972 | R39: 0.9575634231 | S39: 0.5737573499 | T39: 0.9970043089 | U39: 454.0145959 | V39: 454.0156972 | W39: -0.1940690906 | X39: -2.147514723 | Y39: 0.06572352245 | Z39: 0.2681272555 | AA39: -0.00144756064 | AB39: -1.075368387 | AC39: 0.02167841437 | AD39: 0.002575452832 | AE39: 0.03928882529 | AF39: 0.002975362439 | AG39: 0.9577358123 | AI39: 400 | AJ39: 3.928876877 | AK39: 0.2975401292 | AL39: 0.03928876877 | AM39: 0.002975401292 | AO39: 4.704352581e-15
AJ40: 3.958074212 | AK40: 0.3581103942
AJ41: 3.981324911 | AK41: 0.4154043445
AJ42: 4.008591413 | AK42: 0.6045518574
AJ43: 4.023986816 | AK43: 0.8361802002
AJ44: 4.089945078 | AK44: 0.8954025497

Sheet Dilution3
A1: X= | B1: 5.565 | C1: g/L | AI1: dilution 3 | AK1: 5.565 | AL1: g/L
A3: l (nm) | B3: Abs,l (m2/kg) | C3: Ssca,l (m2/kg) | D3: n | E3: k (1/m) | F3: ss (1/m) | G3: g | H3: d (m) | J3: wtr | K3: ttr | L3: mc | M3: R1 | N3: Ctr | O3: Etr | P3: c | Q3: k2 | R3: g | S3: gbar | T3: j | U3: s | V3: c | W3: k1 | X3: k2 | Y3: D1 | Z3: D | AA3: A | AB3: B | AC3: R0dh | AD3: T0dh | AE3: Rdh | AF3: Tdh | AG3: Adh | AI3: l (nm) | AJ3: Rdh | AK3: Tdh | AL3: Rdh | AM3: Tdh | AO3: error
A4: 750 | B4: 17.91245479 | C4: 33.15374384 | D4: =1.32711+0.0026/(A4/1000)^2+0.00005/(A4/1000)^4 -> 1.331890247 | E4: =B4*B$1 -> 99.68281092 | F4: =C4*B$1 -> 184.5005845 | G4: 0.2368287123 | H4: 0.01 | J4: =F4*(1-G4)/(F4*(1-G4)+E4) -> 0.5854983954 | K4: =(F4*(1-G4)+E4)*H4 -> 2.404883595 | L4: =SQRT(1-1/D4^2) -> 0.6605152657 | M4: =(D4-1)^2/(D4+1)^2 -> 0.02025688994 | N4: =M4*EXP(-2*K4) -> 0.0001650887268 | O4: =EXP(-K4) -> 0.09027600354 | P4: =J4/(1-J4)*(1-M4)/(1-M4*N4) -> 1.38392694 | Q4: =4/(1+L4)^2*(1-J4)/(1-J4*L4) -> 0.980503587 | R4: =(1-M4)/(1+M4) -> 0.9602906089 | S4: =R4/(1+L4) -> 0.578308811 | T4: =2*S4/SQRT(Q4) -> 1.16806016 | U4: =SINH(SQRT(Q4)*K4) -> 5.363399869 | V4: =COSH(SQRT(Q4)*K4) -> 5.455827907 | W4: =(1-2*S4)-(1+2*S4)*M4 -> -0.2003039877 | X4: =(1-2*S4)*N4-(1+2*S4) -> -2.156643478 | Y4: =R4*(1-L4^2)*P4/2 -> 0.3745837837 | Z4: =Y4*Q4/(Q4-1) -> -18.83837524 | AA4: =(W4*(T4*U4+V4)*O4+X4)/((1+T4^2)*U4+2*T4*V4) -> -0.09315409786 | AB4: =(W4*O4+X4*(T4*U4+V4))/((1+T4^2)*U4+2*T4*V4) -> -0.9948376222 | AC4: =M4+(1-M4)^2*N4/(1-M4*N4) -> 0.02041535857 | AD4: =(1-M4)^2/(1-M4*N4)*O4 -> 0.0866559152 | AE4: =AC4+Z4*(1+AB4/SQRT(Q4)+N4) -> 0.1054624354 | AF4: =AD4+Z4*(AA4/SQRT(Q4)+(1+M4)*O4) -> 0.1237857201 | AG4: =1-AE4-AF4 -> 0.7707518445 | AI4: 750 | AJ4: 10.54631329 | AK4: 12.37850952 | AL4: =AJ4/100 -> 0.1054631329 | AM4: =AK4/100 -> 0.1237850952 | AO4: =(AJ4/100-AE4)^2+(AK4/100-AF4)^2 -> 8.769227523e-13
A5: 740 | B5: 19.1494779 | C5: 78.96870537 | D5: =1.32711+0.0026/(A5/1000)^2+0.00005/(A5/1000)^4 -> 1.332024733 | E5: 106.5668445 | F5: 439.4608454 | G5: 0.671544881 | H5: 0.01 | J5: =F5*(1-G5)/(F5*(1-G5)+E5) -> 0.5752786226 | K5: =(F5*(1-G5)+E5)*H5 -> 2.509100088 | L5: =SQRT(1-1/D5^2) -> 0.6606014233 | M5: =(D5-1)^2/(D5+1)^2 -> 0.02027097168 | N5: 0.0001341213516 | O5: 0.08134140643 | P5: 1.327031622 | Q5: 0.9937165879 | R5: 0.960263553 | S5: 0.5782625135 | T5: 1.160175702 | U5: 6.057597125 | V5: 6.139583286 | W5: -0.2002398848 | X5: -2.15654602 | Y5: 0.359101438 | Z5: -56.79160482 | AA5: -0.08331874663 | AB5: -0.9984313936 | AC5: 0.02039971095 | AD5: 0.0780773042 | AE5: 0.1026856521 | AF5: 0.1116680577 | AG5: 0.7856462902 | AI5: 740 | AJ5: 10.26855469 | AK5: 11.16677707 | AL5: =AJ5/100 -> 0.1026855469 | AM5: 0.1116677707 | AO5: =(AJ5/100-AE5)^2+(AK5/100-AF5)^2 -> 9.343495076e-14
A6: 730 | B6: 21.9030002 | C6: 85.91631995 | D6: 1.332165031 | E6: 121.8901961 | F6: 478.1243205 | G6: 0.6891140512 | H6: 0.01 | J6: =F6*(1-G6)/(F6*(1-G6)+E6) -> 0.5494431424 | K6: 2.705323291 | L6: =SQRT(1-1/D6^2) -> 0.6606912654 | M6: =(D6-1)^2/(D6+1)^2 -> 0.0202856656 | N6: 9.065156531e-05 | O6: 0.06684870874 | P6: 1.194740028 | Q6: 1.025889857 | R6: 0.9602353218 | S6: 0.5782142303 | T6: 1.14174312 | U6: 7.712138414 | V6: 7.77670103 | W6: -0.2001730472 | X6: -2.156442641 | Y6: 0.323225069 | Z6: 12.80784663 | AA6: -0.06695093293 | AB6: -1.006980653 | AC6: 0.02037267678 | AD6: 0.06416419442 | AE6: 0.09590721139 | AF6: 0.09111251678 | AG6: 0.8129802718 | AI6: 730 | AJ6: 9.590775967 | AK6: 9.111236409 | AL6: 0.09590775967 | AM6: 0.09111236409 | AO6: 3.239177702e-13
A7: 720 | B7: 30.0678777 | C7: 71.68710998 | D7: 1.332311487 | E7: 167.3277394 | F7: 398.938767 | G7: 0.6142352742 | H7: 0.01 | J7: 0.4790936773 | K7: 3.212242435 | L7: 0.6607850063 | M7: 0.02030100808 | N7: 3.291541052e-05 | O7: 0.04026621759 | P7: 0.9010601061 | Q7: 1.105360097 | R7: 0.9602058453 | S7: 0.5781638452 | T7: 1.099838794 | U7: 14.62764311 | V7: 14.66178512 | W7: -0.2001033162 | X7: -2.156332836 | Y7: 0.2437118057 | Z7: 2.556843745 | AA7: -0.03723061947 | AB7: -1.026974561 | AC7: 0.02033260064 | AD7: 0.03864794875 | AE7: 0.07972320767 | AF7: 0.05314993786 | AG7: 0.8671268545 | AI7: 720 | AJ7: 7.972292185 | AK7: 5.314996074 | AL7: 0.07972292185 | AM7: 0.05314996074 | AO7: 8.221877388e-14
A8: 710 | B8: 53.90989458 | C8: 55.38407175 | D8: 1.332464467 | E8: 300.0085633 | F8: 308.2123593 | G8: 0.4676429332 | H8: 0.01 | J8: 0.3535518526 | K8: 4.640875909 | L8: 0.6608828766 | M8: 0.02031703825 | N8: 1.891676207e-06 | O8: 0.00964924207 | P8: 0.5358028186 | Q8: 1.223184916 | R8: 0.9601750486 | S8: 0.5781112336 | T8: 1.045430932 | U8: 84.7342238 | V8: 84.7401244 | W8: -0.2000305214 | X8: -2.156222763 | Y8: 0.1448819029 | Z8: 0.7940382418 | AA8: -0.007025686067 | AB8: -1.054170168 | AC8: 0.02031885384 | AD8: 0.009261137419 | AE8: 0.05751510293 | AF8: 0.01203456628 | AG8: 0.9304503308 | AI8: 710 | AJ8: 5.750933647 | AK8: 1.202787917 | AL8: 0.05750933647 | AM8: 0.01202787917 | AO8: 7.796947091e-11
A9: 700 | B9: 104.7361921 | C9: 59.32406993 | D9: 1.332624369 | E9: 582.8569093 | F9: 330.1384492 | G9: 0.410637302 | H9: 0.01 | J9: 0.2502755727 | K9: 7.774281964 | L9: 0.6609851238 | M9: 0.02033379827 | N9: 3.593875227e-09 | O9: 0.0004204092299 | P9: 0.3270355224 | Q9: 1.302466557 | R9: 0.9601428507 | S9: 0.5780562613 | T9: 1.01301719 | U9: 3566.368614 | V9: 3566.368755 | W9: -0.1999544796 | X9: -2.156112523 | Y9: 0.08840672109 | Z9: 0.3806926585 | AA9: -0.0001909531666 | AB9: -1.071085009 | AC9: 0.02033380172 | AD9: 0.0004034860208 | AE9: 0.04374115826 | AF9: 0.0005030902181 | AG9: 0.9557557515 | AI9: 700 | AJ9: 4.373764992 | AK9: 0.05143890865 | AL9: 0.04373764992 | AM9: 0.0005143890865 | AO9: 1.399728906e-10
A10: 690 | B10: 119.7758974 | C10: 56.07242713 | D10: 1.332791621 | E10: 666.5528689 | F10: 312.043057 | G10: 0.4283864046 | H10: 0.01 | J10: 0.21110621 | K10: 8.449209226 | L10: 0.6610920147 | M10: 0.02035133362 | N10: 9.326162684e-10 | O10: 0.0002140696291 | P10: 0.2621517874 | Q10: 1.329140446 | R10: 0.9601091645 | S10: 0.5779987839 | T10: 1.002701081 | U10: 8499.877418 | V10: 8499.877477 | W10: -0.1998749936 | X10: -2.155997568 | Y10: 0.07084658728 | Z10: 0.2860938717 | AA10: -8.460640014e-05 | AB10: -1.076544868 | AC10: 0.02035133451 | AD10: 0.0002054450869 | AE10: 0.03929516076 | AF10: 0.0002469399877 | AG10: 0.9604578993 | AI10: 690 | AJ10: 3.929521561 | AK10: 0.02467550675 | AL10: 0.03929521561 | AM10: 0.0002467550675 | AO10: 3.720337347e-14
A11: 680 | B11: 157.1174998 | C11: 40.92724207 | D11: 1.332966686 | E11: 874.3588864 | F11: 227.7601021 | G11: 0.0009535329521 | H11: 0.01 | J11: 0.2065001826 | K11: 11.01901812 | L11: 0.6612038365 | M11: 0.0203696934 | N11: 5.469995431e-12 | O11: 1.638706724e-05 | P11: 0.2549387319 | Q11: 1.332042559 | R11: 0.9600738957 | S11: 0.5779386458 | T11: 1.001503984 | U11: 166767.9677 | V11: 166767.9677 | W11: -0.1997918511 | X11: -2.155877292 | Y11: 0.06887663102 | Z11: 0.2763097725 | AA11: -4.862767584e-06 | AB11: -1.077128654 | AC11: 0.02036969341 | AD11: 1.572626756e-05 | AE11: 0.03880711829 | AF11: 1.918222492e-05 | AG11: 0.9611736995 | AI11: 680 | AJ11: 3.879509092 | AK11: 0.0274599806 | AL11: 0.03879509092 | AM11: 0.000274599806 | AO11: 6.538279836e-08
A12: 670 | B12: 155.1225382 | C12: 39.34784033 | D12: 1.333150061 | E12: 863.2569251 | F12: 218.9707315 | G12: 0 | H12: 0.01 | J12: 0.2023333354 | K12: 10.82227657 | L12: 0.6613208995 | M12: 0.02038893071 | N12: 8.114924089e-12 | O12: 1.995009673e-05 | P12: 0.2484847166 | Q12: 1.334626793 | R12: 0.9600369426 | S12: 0.5778756789 | T12: 1.0004249 | U12: 134511.0079 | V12: 134511.0079 | W12: -0.1997048228 | X12: -2.155751358 | Y12: 0.06711190362 | Z12: 0.2676693752 | AA12: -5.996585126e-06 | AB12: -1.077646733 | AC12: 0.02038893071 | AD12: 1.914486788e-05 | AE12: 0.03837173669 | AF12: 2.320438979e-05 | AG12: 0.9616050589 | AI12: 670 | AJ12: 3.849768519 | AK12: 0.02643969908 | AL12: 0.03849768519 | AM12: 0.0002643969908 | AO12: 7.40368955e-08
A13: 660 | B13: 135.0870848 | C13: 33.97879288 | D13: 1.333342287 | E13: 751.7596268 | F13: 189.0919824 | G13: 1.818576032e-07 | H13: 0.01 | J13: 0.2009795733 | K13: 9.408515748 | L13: 0.6614435385 | M13: 0.02040910301 | N13: 1.373064608e-10 | O13: 8.202259923e-05 | P13: 0.2463989078 | Q13: 1.335352319 | R13: 0.9599981949 | S13: 0.5778097015 | T13: 1.000038897 | U13: 26346.56722 | V13: 26346.56724 | W13: -0.1996136614 | X13: -2.155619403 | Y13: 0.06652668653 | Z13: 0.2649051761 | AA13: -2.863992258e-05 | AB13: -1.07778874 | AC13: 0.02040910314 | AD13: 7.870874887e-05 | AE13: 0.03824078699 | AF13: 9.431496549e-05 | AG13: 0.961664898 | AI13: 660 | AJ13: 3.824048996 | AK13: 0.02547529483 | AL13: 0.03824048996 | AM13: 0.0002547529483 | AO13: 2.574043456e-08
A14: 650 | B14: 10.93173113 | C14: 8.115824228 | D14: 1.333543948 | E14: 60.83508372 | F14: 45.16456183 | G14: 0.6611604455 | H14: 0.01 | J14: 0.200995753 | K14: 0.7613862373 | L14: 0.6615721158 | M14: 0.02043027263 | N14: 0.004455972266 | O14: 0.4670185795 | P14: 0.2464408438 | Q14: 1.3351749 | R14: 0.9599575333 | S14: 0.577740517 | T14: 0.9999855899 | U14: 0.9977476451 | V14: 1.412621805 | W14: -0.1995180992 | X14: -2.156173853 | Y14: 0.06651506911 | Z14: 0.2649639063 | AA14: -0.4938665761 | AB14: -1.097425019 | AC14: 0.02470642063 | AD14: 0.4481716775 | AE14: 0.03920357126 | AF14: 0.4611957014 | AG14: 0.4996007274 | AI14: 650 | AJ14: 3.825983286 | AK14: 0.02431772778 | AL14: 0.03825983286 | AM14: 0.0002431772778 | AO14: 0.2124781201
A15: 640 | B15: 11.01735098 | C15: 8.134741915 | D15: 1.333755679 | E15: 61.3115582 | F15: 45.26983876 | G15: 0.6584411937 | H15: 0.01 | J15: 0.2014007113 | K15: 0.7677387029 | L15: 0.6617070238 | M15: 0.02045250718 | N15: 0.004404505832 | O15: 0.4640612631 | P15: 0.2470567379 | Q15: 1.334735775 | R15: 0.9599148279 | S15: 0.5776679127 | T15: 1.000024384 | U15: 1.007936471 | V15: 1.419836586 | W15: -0.1994178468 | X15: -2.156020003 | Y15: 0.0666571658 | Z15: 0.2657908432 | AA15: -0.4902920048 | AB15: -1.097053214 | AC15: 0.02467906981 | AD15: 0.4453130649 | AE15: 0.03925180208 | AF15: 0.4583820747 | AG15: 0.5023661232 | AI15: 640 | AJ15: 3.831786275 | AK15: 0.02270155007 | AL15: 0.03831786275 | AM15: 0.0002270155007 | AO15: 0.2099069305
A16: 630 | B16: 11.14946741 | C16: 8.175157852 | D16: 1.333978169 | E16: 62.04678613 | F16: 45.49475345 | G16: 0.6525096908 | H16: 0.01 | J16: 0.2030547707 | K16: 0.7785577208 | L16: 0.6618486879 | M16: 0.0204758802 | N16: 0.004315150388 | O16: 0.4590676378 | P16: 0.2495963507 | Q16: 1.333472347 | R16: 0.9598699379 | S16: 0.5775916574 | T16: 1.000365949 | U16: 1.025152725 | V16: 1.432109671 | W16: -0.1993125901 | X16: -2.155852954 | Y16: 0.06731675633 | Z16: 0.269182839 | AA16: -0.4842484079 | AB16: -1.096307688 | AC16: 0.02461649261 | AD16: 0.4404994003 | AE16: 0.03940387223 | AF16: 0.4537210931 | AG16: 0.5068750347 | AI16: 630 | AJ16: 3.851110101 | AK16: 0.0202168191 | AL16: 0.03851110101 | AM16: 0.000202168191 | AO16: 0.2056802123
A17: 620 | B17: 11.13863691 | C17: 8.18564646 | D17: 1.334212167 | E17: 61.98651439 | F17: 45.55312255 | G17: 0.6509777466 | H17: 0.01 | J17: 0.2041334989 | K17: 0.7788556787 | L17: 0.6619975703 | M17: 0.02050047174 | N17: 0.004317759098 | O17: 0.4589308753 | P17: 0.2512561665 | Q17: 1.332574711 | R17: 0.9598227099 | S17: 0.5775115001 | T17: 1.000563944 | U17: 1.025211877 | V17: 1.432152014 | W17: -0.1992019882 | X17: -2.155692352 | Y17: 0.06773731247 | Z17: 0.2714127879 | AA17: -0.4840665784 | AB17: -1.096082789 | AC17: 0.02464337998 | AD17: 0.4403461287 | AE17: 0.03952007468 | AF17: 0.4536469595 | AG17: 0.5068329658 | AI17: 620 | AJ17: 3.8643713 | AK17: 0.02017758361 | AL17: 0.038643713 | AM17: 0.0002017758361 | AO17: =(AJ17/100-AE17)^2+(AK17/100-AF17)^2 -> 0.2056133026
A18: 610 | B18: 11.08859312 | C18: 8.191666171 | D18: 1.334458488 | E18: 61.7080207 | F18: 45.58662224 | G18: 0.6501045839 | H18: 0.01 | J18: 0.2053933002 | K18: 0.7765857086 | L18: 0.6621541732 | M18: 0.02052636908 | N18: 0.004342885283 | O18: 0.459973818 | P18: 0.2532010576 | Q18: 1.331548175 | R18: 0.9597729766 | S18: 0.5774271677 | T18: 1.000803389 | U18: 1.020968975 | V18: 1.429117786 | W18: -0.1990856708 | X18: -2.15552685 | Y18: 0.06823291111 | Z18: 0.2740338063 | AA18: -0.4853003375 | AB18: -1.09593158 | AC18: 0.02469316827 | AD18: 0.4413237761 | AE18: 0.03965604286 | AF18: 0.4547106989 | AG18: 0.5056332582 | AI18: 610 | AJ18: 3.879690528 | AK18: 0.02071603509 | AL18: 0.03879690528 | AM18: 0.0002071603509 | AO18: 0.2065742047
A19: 600 | B19: 11.007968 | C19: 8.210389159 | D19: 1.334718025 | E19: 61.25934193 | F19: 45.69081567 | G19: 0.6473851868 | H19: 0.01 | J19: 0.2082348897 | K19: 0.7737060037 | L19: 0.6623190439 | M19: 0.02055366754 | N19: 0.004373778963 | O19: 0.4613003159 | P19: 0.2576183681 | Q19: 1.329471342 | R19: 0.9597205552 | S19: 0.5773383628 | T19: 1.001430748 | U19: 1.015232871 | V19: 1.425025538 | W19: -0.1989632347 | X19: -2.155353247 | Y19: 0.06939250652 | Z19: 0.2800102377 | AA19: -0.4868454343 | AB19: -1.095555925 | AC19: 0.02474987705 | AD19: 0.442572153 | AE19: 0.03993132031 | AF19: 0.4561664471 | AG19: 0.5039022326 | AI19: 600 | AJ19: 3.912272692 | AK19: 0.02146287819 | AL19: 0.03912272692 | AM19: 0.0002146287819 | AO19: 0.2078927144
A20: 590 | B20: 10.9250679 | C20: 8.241967687 | D20: 1.334991749 | E20: 60.79800287 | F20: 45.86655018 | G20: 0.6428097548 | H20: 0.01 | J20: 0.2122681204 | K20: 0.7718108718 | L20: 0.6624927788 | M20: 0.02058247139 | N20: 0.004396540874 | O20: 0.4621753697 | P20: 0.263945053 | Q20: 1.326589993 | R20: 0.9596652461 | S20: 0.5772447606 | T20: 1.002355175 | U20: 1.010749046 | V20: 1.421834601 | W20: -0.1988342402 | X20: -2.155168741 | Y20: 0.071063425 | Z20: 0.2886555944 | AA20: -0.4878230072 | AB20: -1.094947442 | AC20: 0.02480027313 | AD20: 0.4433858649 | AE20: 0.04031181951 | AF20: 0.4572842219 | AG20: 0.5024039586 | AI20: 590 | AJ20: 3.957950235 | AK20: 0.02203609513 | AL20: 0.03957950235 | AM20: 0.0002203609513 | AO20: 0.2089079093
A21: 580 | B21: 10.62923677 | C21: 8.257374935 | D21: 1.335280727 | E21: 59.1517026 | F21: 45.95229151 | G21: 0.6405868908 | H21: 0.01 | J21: 0.2182686514 | K21: 0.7566755857 | L21: 0.66267603 | M21: 0.0206128949 | N21: 0.004538359824 | O21: 0.4692237311 | P21: 0.2734820636 | Q21: 1.322373152 | R21: 0.9596068304 | S21: 0.5771460062 | T21: 1.003780325 | U21: 0.9841693249 | V21: 1.403064239 | W21: -0.1986982073 | X21: -2.154992245 | Y21: 0.0735947818 | Z21: 0.3018854483 | AA21: -0.4961701096 | AB21: -1.094561972 | AC21: 0.02496649284 | AD21: 0.4501210896 | AE21: 0.04087576299 | AF21: 0.4644373514 | AG21: 0.4946868856 | AI21: 580 | AJ21: 4.025896549 | AK21: 0.02621375456 | AL21: 0.04025896549 | AM21: 0.0002621375456 | AO21: 0.2154590096
A22: 570 | B22: 9.928315785 | C22: 8.226456343 | D22: 1.335586127 | E22: 55.25107734 | F22: 45.78022955 | G22: 0.6431347498 | H22: 0.01 | J22: 0.2282124139 | K22: 0.7158845042 | L22: 0.6628695103 | M22: 0.0206450635 | N22: 0.004931815751 | O22: 0.4887596106 | P22: 0.2896181757 | Q22: 1.31545038 | R22: 0.9595450677 | S22: 0.5770417111 | T22: 1.00623627 | U22: 0.9164849972 | V22: 1.356445631 | W22: -0.1985546113 | X22: -2.154843333 | Y22: 0.07789640178 | Z22: 0.3248335011 | AA22: -0.5194245265 | AB22: -1.094643938 | AC22: 0.02537582766 | AD22: 0.4688347183 | AE22: 0.04178653498 | AF22: 0.4837666386 | AG22: 0.4744468264 | AI22: 570 | AJ22: 4.138884783 | AK22: 0.0414529073 | AL22: 0.04138884783 | AM22: 0.000414529073 | AO22: 0.23362942
A23: 560 | B23: 9.112587075 | C23: 8.191063743 | D23: 1.335909231 | E23: 50.71154707 | F23: 45.58326973 | G23: 0.6484166195 | H23: 0.01 | J23: 0.2401383315 | K23: 0.6673786714 | L23: 0.6630740014 | M23: 0.02067911513 | N23: 0.005443198878 | O23: 0.5130516937 | P23: 0.3095286514 | Q23: 1.307055131 | R23: 0.9594796938 | S23: 0.5769314492 | T23: 1.009269749 | U23: 0.8392055072 | V23: 1.305475348 | W23: -0.1984028773 | X23: -2.154700405 | Y23: 0.08320563632 | Z23: 0.3541851055 | AA23: -0.5483239387 | AB23: -1.094821878 | AC23: 0.02590010826 | AD23: 0.4921075697 | AE23: 0.04283579083 | AF23: 0.5077090388 | AG23: 0.4494551704 | AI23: 560 | AJ23: 4.277164459 | AK23: 0.07138359762 | AL23: 0.04277164459 | AM23: 0.0007138359762 | AO23: 0.2570441398
A24: 550 | B24: 9.019394243 | C24: 8.231743424 | D24: 1.336251452 | E24: 50.19292896 | F24: 45.80965216 | G24: 0.6417191304 | H24: 0.01 | J24: 0.2464163591 | K24: 0.6660565097 | L24: 0.6632903612 | M24: 0.0207152018 | N24: 0.005467135462 | O24: 0.5137304797 | P24: 0.3202552627 | Q24: 1.302450185 | R24: 0.9594104178 | S24: 0.5768147524 | T24: 1.010847855 | U24: 0.8354828771 | V24: 1.30308543 | W24: -0.1982423745 | X24: -2.154469418 | Y24: 0.08603879695 | Z24: 0.370511418 | AA24: -0.5488882027 | AB24: -1.093721388 | AC24: 0.02595877153 | AD24: 0.4927226726 | AE24: 0.04341457546 | AF24: 0.5088098106 | AG24: 0.4477756139 | AI24: 550 | AJ24: 4.352277041 | AK24: 0.0730328771 | AL24: 0.04352277041 | AM24: 0.000730328771 | AO24: 0.2581447716
A25: 540 | B25: 9.259452101 | C25: 8.280474344 | D25: 1.336614348 | E25: 51.52885094 | F25: 46.08083972 | G25: 0.630128253 | H25: 0.01 | J25: 0.2485531852 | K25: 0.6857285164 | L25: 0.6635195331 | M25: 0.02075349133 | N25: 0.005265928361 | O25: 0.5037231253 | P25: 0.3239370195 | Q25: 1.300691469 | R25: 0.9593369182 | S25: 0.5766911053 | T25: 1.011314194 | U25: 0.8642523239 | V25: 1.321715582 | W25: -0.1980724097 | X25: -2.15418991 | Y25: 0.08697401255 | Z25: 0.376220704 | AA25: -0.5367548177 | AB25: -1.092347753 | AC25: 0.02580366689 | AD25: 0.4830848502 | AE25: 0.0436622106 | AF25: 0.4994644355 | AG25: 0.4568733539 | AI25: 540 | AJ25: 4.379551649 | AK25: 0.0591790396 | AL25: 0.04379551649 | AM25: 0.000591790396 | AO25: 0.2488739338
A26: 530 | B26: 9.684101841 | C26: 8.443113232 | D26: 1.336999638 | E26: 53.89202675 | F26: 46.98592514 | G26: 0.6176024031 | H26: 0.01 | J26: 0.2500344 | K26: 0.7185933161 | L26: 0.6637625569 | M26: 0.02079416943 | N26: 0.004940596137 | O26: 0.4874374443 | P26: 0.3264953728 | Q26: 1.2993722 | R26: 0.9592588397 | S26: 0.5765599399 | T26: 1.011597329 | U26: 0.9138478413 | V26: 1.354665227 | W26: -0.1978922193 | X26: -2.153876383 | Y26: 0.08760325954 | Z26: 0.3802264876 | AA26: -0.5171765639 | AB26: -1.090553098 | AC26: 0.02553191742 | AD26: 0.4674245186 | AE26: 0.04387070476 | AF26: 0.4841050102 | AG26: 0.472024285 | AI26: 530 | AJ26: 4.399306059 | AK26: 0.04151277697 | AL26: 0.04399306059 | AM26: 0.0004151277697 | AO26: 0.2339559174
A27: 520 | B27: 11.12639197 | C27: 8.188290757 | D27: 1.337409228 | E27: 61.91837131 | F27: 45.56783806 | G27: 0.5819139985 | H27: 0.01 | J27: 0.2352890994 | K27: 0.8096964653 | L27: 0.6640205801 | M27: 0.02083744199 | N27: 0.004126206796 | O27: 0.4449931166 | P27: 0.30129829 | Q27: 1.309240128 | R27: 0.9591757882 | S27: 0.5764206282 | T27: 1.007534337 | U27: 1.064816265 | V27: 1.460764758 | W27: -0.1977009612 | X27: -2.153471911 | Y27: 0.08078602655 | Z27: 0.3420264647 | AA27: -0.4669358528 | AB27: -1.089352593 | AC27: 0.02479382136 | AD27: 0.4266779813 | AE27: 0.04260596683 | AF27: 0.4424739652 | AG27: 0.514920068 | AI27: 520 | AJ27: 4.231103659 | AK27: 0.01507922026 | AL27: 0.04231103659 | AM27: 0.0001507922026 | AO27: 0.1956498764
A28: 510 | B28: 11.93980431 | C28: 8.633578146 | D28: 1.337845232 | E28: 66.44501098 | F28: 48.04586238 | G28: 0.6178079562 | H28: 0.01 | J28: 0.2165220131 | K28: 0.8480775732 | L28: 0.6642948725 | M28: 0.02088353784 | N28: 0.00382977494 | O28: 0.4282373962 | P28: 0.2706103144 | Q28: 1.321504047 | R28: 0.9590873257 | S28: 0.5762724753 | T28: 1.002590589 | U28: 1.136869179 | V28: 1.514090992 | W28: -0.1974977044 | X28: -2.153129163 | Y28: 0.07250379715 | Z28: 0.2980182123 | AA28: -0.4472792148 | AB28: -1.090884956 | AC28: 0.02455531819 | AD28: 0.4105707734 | AE28: 0.04090959618 | AF28: 0.4249041161 | AG28: 0.5341862877 | AI28: 510 | AJ28: 4.024504185 | AK28: 0.009624939365 | AL28: 0.04024504185 | AM28: 9.624939365e-05 | AO28: 0.1804621652
A29: 500 | B29: 12.17504748 | C29: 8.305900938 | D29: 1.33831 | E29: 67.75413925 | F29: 46.22233872 | G29: 0.6168773018 | H29: 0.01 | J29: 0.2072105366 | K29: 0.8546296638 | L29: 0.6645868412 | M29: 0.02093271191 | N29: 0.003788816764 | O29: 0.425440718 | P29: 0.25591807 | Q29: 1.327245595 | R29: 0.9589929646 | S29: 0.5761147096 | T29: 1.000145795 | U29: 1.151554656 | V29: 1.525148559 | W29: -0.1972814176 | X29: -2.152806189 | Y29: 0.06851299158 | Z29: 0.2778756005 | AA29: -0.4440412979 | AB29: -1.091989555 | AC29: 0.0245648565 | AD29: 0.4078482275 | AE29: 0.04010693375 | AF29: 0.4214403435 | AG29: 0.5384527228 | AI29: 500 | AJ29: 3.926947951 | AK29: 0.008828657511 | AL29: 0.03926947951 | AM29: 8.828657511e-05 | AO29: 0.1775382572
A30: 490 | B30: 12.16059282 | C30: 8.28147369 | D30: 1.338806154 | E30: 67.67369907 | F30: 46.08640109 | G30: 0.6244910199 | H30: 0.01 | J30: 0.2036473026 | K30: 0.8497955654 | L30: 0.6648980496 | M30: 0.02098524889 | N30: 0.003835227006 | O30: 0.4275023193 | P30: 0.2503787097 | Q30: 1.329160065 | R30: 0.9588921605 | S30: 0.5759464735 | T30: 0.9991333992 | U30: 1.144150919 | V30: 1.519566163 | W30: -0.1970509561 | X30: -2.152475491 | Y30: 0.06697331092 | Z30: 0.2704406143 | AA30: -0.4465271373 | AB30: -1.092596245 | AC30: 0.02466149434 | AD30: 0.4097810784 | AE30: 0.039842633 | AF30: 0.4230767804 | AG30: 0.5370805866 | AI30: 490 | AJ30: 3.892508983 | AK30: 0.009261949521 | AL30: 0.03892508984 | AM30: 9.261949521e-05 | AO30: 0.1789164422
A31: 480 | B31: 12.10642864 | C31: 8.262903268 | D31: 1.339336623 | E31: 67.37227538 | F31: 45.98305668 | G31: 0.6283474251 | H31: 0.01 | J31: 0.202336223 | K31: 0.844619968 | L31: 0.6652302386 | M31: 0.02104146756 | N31: 0.003885513695 | O31: 0.4297206348 | P31: 0.248343943 | Q31: 1.329580023 | R31: 0.9587843036 | S31: 0.5757668107 | T31: 0.998663971 | U31: 1.135336834 | V31: 1.512940754 | W31: -0.1968050464 | X31: -2.152122407 | Y31: 0.06636895863 | Z31: 0.2677432956 | AA31: -0.4491862583 | AB31: -1.092871769 | AC31: 0.02476549218 | AD31: 0.4118606576 | AE31: 0.03978478063 | AF31: 0.425035554 | AG31: 0.5351796653 | AI31: 480 | AJ31: 3.882495403 | AK31: 0.009769913487 | AL31: 0.03882495403 | AM31: 9.769913487e-05 | AO31: 0.1805731018
A32: 470 | B32: 12.20525974 | C32: 8.282667416 | D32: 1.339904689 | E32: 67.92227047 | F32: 46.09304417 | G32: 0.6269491352 | H32: 0.01 | J32: 0.2020158752 | K32: 0.8511732046 | L32: 0.6655853507 | M32: 0.02110172581 | N32: 0.003845902978 | O32: 0.4269137808 | P32: 0.2478358096 | Q32: 1.329329726 | R32: 0.9586687099 | S32: 0.5755746528 | T32: 0.9984246568 | U32: 1.146661126 | V32: 1.52145711 | W32: -0.1965422684 | X32: -2.151730611 | Y32: 0.06616903494 | Z32: 0.2670893581 | AA32: -0.4458570341 | AB32: -1.092581454 | AC32: 0.02478733003 | AD32: 0.4091198453 | AE32: 0.03980277747 | AF32: 0.422265413 | AG32: 0.5379318095 | AI32: 470 | AJ32: 3.883293986 | AK32: 0.009087202276 | AL32: 0.03883293986 | AM32: 9.087202276e-05 | AO32: 0.1782322836
A33: 460 | B33: 12.26088388 | C33: 8.293050814 | D33: 1.34051404 | E33: 68.2318188 | F33: 46.15082778 | G33: 0.6268264159 | H33: 0.01 | J33: 0.2015382774 | K33: 0.8545408861 | L33: 0.6659655594 | M33: 0.02116642664 | N33: 0.003831799381 | O33: 0.4254784893 | P33: 0.2470856496 | Q33: 1.329147802 | R33: 0.9585446092 | S33: 0.5753688027 | T33: 0.9981358791 | U33: 1.152474455 | V33: 1.525843166 | W33: -0.1962610351 | X33: -2.151315202 | Y33: 0.06590025911 | Z33: 0.2661150523 | AA33: -0.4441634687 | AB33: -1.092419421 | AC33: 0.02483802952 | AD33: 0.4076904587 | AE33: 0.03981509334 | AF33: 0.4207892612 | AG33: 0.5393956454 | AI33: 460 | AJ33: 3.882757306 | AK33: 0.008754842869 | AL33: 0.03882757306 | AM33: 8.754842869e-05 | AO33: 0.1769909063
A34: 450 | B34: 123.283332 | C34: 31.23564748 | D34: 1.341168832 | E34: 686.0717424 | F34: 173.8263782 | G34: 0 | H34: 0.01 | J34: 0.2021476429 | K34: 8.598981206 | L34: 0.6663733026 | M34: 0.02123602515 | N34: 7.212620055e-10 | O34: 0.000184293455 | P34: 0.2479842651 | Q34: 1.328232581 | R34: 0.9584111319 | S34: 0.5751479158 | T34: 0.9980963823 | U34: 10067.72819 | V34: 10067.72824 | W34: -0.195959568 | X34: -2.150295832 | Y34: 0.06606616146 | Z34: 0.267344661 | AA34: -7.15717824e-05 | AB34: -1.076172227 | AC34: 0.02123602584 | AD34: 0.0001765492447 | AE34: 0.03893950469 | AF34: 0.0002102628054 | AG34: 0.9608502325 | AI34: 450 | AJ34: 3.893214226 | AK34: 0.008488044184 | AL34: 0.03893214226 | AM34: 8.488044184e-05 | AO34: 1.577494247e-08
A35: 440 | B35: 125.169697 | C35: 31.84489926 | D35: 1.341873763 | E35: 696.569364 | F35: 177.2168644 | G35: 7.145533716e-05 | H35: 0.01 | J35: 0.2028033444 | K35: 8.737735653 | L35: 0.6668113218 | M35: 0.02131103694 | N35: 5.484080552e-10 | O35: 0.0001604167161 | P35: 0.2489741941 | Q35: 1.327250041 | R35: 0.9582672934 | S35: 0.5749104778 | T35: 0.9980535544 | U35: 11769.63424 | V35: 11769.63428 | W35: -0.1956358693 | X35: -2.149820956 | Y35: 0.06625027456 | Z35: 0.2686957023 | AA35: -6.146049758e-05 | AB35: -1.075957625 | AC35: 0.02131103746 | AD35: 0.0001536522779 | AE35: 0.03906118114 | AF35: 0.0001833397061 | AG35: 0.9607554791 | AI35: 440 | AJ35: 3.905932545 | AK35: 0.009020903035 | AL35: 0.03905932545 | AM35: 9.020903035e-05 | AO35: 8.676766342e-09
A36: 430 | B36: 135.201869 | C36: 34.17873744 | D36: 1.342634156 | E36: 752.398401 | F36: 190.2046739 | G36: 1.212838497e-05 | H36: 0.01 | J36: 0.201784651 | K36: 9.42600768 | L36: 0.667282709 | M36: 0.02139204808 | N36: 1.389716207e-10 | O36: 8.060034081e-05 | P36: 0.2473869542 | Q36: 1.327298107 | R36: 0.9581119745 | S36: 0.5746547777 | T36: 0.9975915917 | U36: 26014.45846 | V36: 26014.45848 | W36: -0.1952876887 | X36: -2.149309555 | Y36: 0.06574272231 | Z36: 0.2666076859 | AA36: -2.858440327e-05 | AB36: -1.075950442 | AC36: 0.02139204821 | AD36: 7.718881238e-05 | AE36: 0.03901042735 | AF36: 9.25223566e-05 | AG36: 0.9608970503 | AI36: 430 | AJ36: 3.900934934 | AK36: 0.00858028322 | AL36: 0.03900934934 | AM36: 8.58028322e-05 | AO36: 4.631411241e-11
A37: 420 | B37: 12.21573571 | C37: 8.293441091 | D37: 1.34345607 | E37: 67.98056921 | F37: 46.15299967 | G37: 0.6241198381 | H37: 0.01 | J37: 0.2033081975 | K37: 0.853285662 | L37: 0.6677909613 | M37: 0.02147972706 | N37: 0.003898290949 | O37: 0.4260128955 | P37: 0.2497300108 | Q37: 1.325673125 | R37: 0.9579438994 | S37: 0.574378877 | T37: 0.997723565 | U37: 1.148307363 | V37: 1.522698197 | W37: -0.1949124841 | X37: -2.149337655 | Y37: 0.06627257979 | Z37: 0.2697667421 | AA37: -0.4448352857 | AB37: -1.091644733 | AC37: 0.02521266072 | AD37: 0.4079423261 | AE37: 0.04025991236 | AF37: 0.4211105739 | AG37: 0.5386295138 | AI37: 420 | AJ37: 3.923350811 | AK37: 0.008874396137 | AL37: 0.03923350811 | AM37: 8.874396137e-05 | AO37: 0.1772604348
A38: 410 | B38: 12.03997697 | C38: 8.25852204 | D38: 1.344346419 | E38: 67.00247184 | F38: 45.95867515 | G38: 0.6244884131 | H38: 0.01 | J38: 0.2048174141 | K38: 0.8426048688 | L38: 0.6683400459 | M38: 0.02157483921 | N38: 0.004000094744 | O38: 0.4305874375 | P38: 0.2520374705 | Q38: 1.324007323 | R38: 0.9577616081 | S38: 0.5740805722 | T38: 0.9978325157 | U38: 1.128748449 | V38: 1.508003005 | W38: -0.1945073756 | X38: -2.148753803 | Y38: 0.06678365007 | Z38: 0.272901368 | AA38: -0.4502752064 | AB38: -1.091626759 | AC38: 0.0254045236 | AD38: 0.4122437324 | AE38: 0.04049594824 | AF38: 0.4254948883 | AG38: 0.5340091635 | AI38: 410 | AJ38: 3.94594109 | AK38: 0.009991680692 | AL38: 0.0394594109 | AM38: 9.991680692e-05 | AO38: 0.1809619562
A39: 400 | B39: 23.5387958 | C39: 9.451361821 | D39: 1.345313125 | E39: 130.9933986 | F39: 52.59682853 | G39: 0.3473493153 | H39: 0.01 | J39: 0.2076409353 | K39: 1.653207548 | L39: 0.6689344778 | M39: 0.02167826413 | N39: 0.0007944501886 | O39: 0.1914348862 | P39: 0.2563776297 | Q39: 1.321444543 | R39: 0.9575634231 | S39: 0.5737573499 | T39: 0.998237284 | U39: 3.269632432 | V39: 3.419136768 | W39: -0.1940690906 | X39: -2.147631893 | Y39: 0.06782205153 | Z39: 0.2788135055 | AA39: -0.1794160548 | AB39: -1.077566472 | AC39: 0.02243865616 | AD39: 0.183228054 | AE39: 0.04011710483 | AF39: 0.1942435877 | AG39: 0.7656393075 | AI39: 400 | AJ39: 3.982895255 | AK39: 0.01157926566 | AL39: 0.03982895255 | AM39: 0.0001157926566 | AO39: 0.03768568385
AJ40: 4.008662939 | AK40: 0.01232613385
AJ41: 4.041762113 | AK41: 0.01264802076
AJ42: 4.067321062 | AK42: 0.01205852401
AJ43: 4.108793497 | AK43: 0.01656206174
AJ44: 4.157437563 | AK44: 0.01784309209

Sheet Dilution2
A1: X= | B1: 11.13 | C1: g/L | AI1: dilution 2 | AK1: 11.13 | AL1: g/L
A3: l (nm) | B3: Abs,l (m2/kg) | C3: Ssca,l (m2/kg) | D3: n | E3: k (1/m) | F3: ss (1/m) | G3: g | H3: d (m) | J3: wtr | K3: ttr | L3: mc | M3: R1 | N3: Ctr | O3: Etr | P3: c | Q3: k2 | R3: g | S3: gbar | T3: j | U3: s | V3: c | W3: k1 | X3: k2 | Y3: D1 | Z3: D | AA3: A | AB3: B | AC3: R0dh | AD3: T0dh | AE3: Rdh | AF3: Tdh | AG3: Adh | AI3: l (nm) | AJ3: Rdh | AK3: Tdh | AL3: Rdh | AM3: Tdh | AO3: error
A4: 750 | B4: 0.7549928137 | C4: 11.04414634 | D4: =1.32711+0.0026/(A4/1000)^2+0.00005/(A4/1000)^4 -> 1.331890247 | E4: =B4*B$1 -> 8.403070017 | F4: =C4*B$1 -> 122.9213488 | G4: 0.8134552832 | H4: 0.01 | J4: =F4*(1-G4)/(F4*(1-G4)+E4) -> 0.7318174697 | K4: =(F4*(1-G4)+E4)*H4 -> 0.3133339822 | L4: =SQRT(1-1/D4^2) -> 0.6605152657 | M4: =(D4-1)^2/(D4+1)^2 -> 0.02025688994 | N4: =M4*EXP(-2*K4) -> 0.01082466163 | O4: =EXP(-K4) -> 0.7310057289 | P4: =J4/(1-J4)*(1-M4)/(1-M4*N4) -> 2.674112946 | Q4: =4/(1+L4)^2*(1-J4)/(1-J4*L4) -> 0.7530618827 | R4: =(1-M4)/(1+M4) -> 0.9602906089 | S4: =R4/(1+L4) -> 0.578308811 | T4: =2*S4/SQRT(Q4) -> 1.332829118 | U4: =SINH(SQRT(Q4)*K4) -> 0.2752714961 | V4: =COSH(SQRT(Q4)*K4) -> 1.037195448 | W4: =(1-2*S4)-(1+2*S4)*M4 -> -0.2003039877 | X4: =(1-2*S4)*N4-(1+2*S4) -> -2.158312955 | Y4: =R4*(1-L4^2)*P4/2 -> 0.7237949609 | Z4: =Y4*Q4/(Q4-1) -> -2.207283354 | AA4: =(W4*(T4*U4+V4)*O4+X4)/((1+T4^2)*U4+2*T4*V4) -> -0.6698354219 | AB4: =(W4*O4+X4*(T4*U4+V4))/((1+T4^2)*U4+2*T4*V4) -> -0.9001998998 | AC4: =M4+(1-M4)^2*N4/(1-M4*N4) -> 0.03064972429 | AD4: =(1-M4)^2/(1-M4*N4)*O4 -> 0.7018437819 | AE4: =AC4+Z4*(1+AB4/SQRT(Q4)+N4) -> 0.08918978429 | AF4: =AD4+Z4*(AA4/SQRT(Q4)+(1+M4)*O4) -> 0.7593913688 | AG4: =1-AE4-AF4 -> 0.1514188469 | AI4: 750 | AJ4: 16.39579582 | AK4: 6.491981235 | AL4: =AJ4/100 -> 0.1639579582 | AM4: =AK4/100 -> 0.06491981235 | AO4: =(AJ4/100-AE4)^2+(AK4/100-AF4)^2 -> 0.4878810225
A5: 740 | B5: 0.8534937725 | C5: 15.01851215 | D5: =1.32711+0.0026/(A5/1000)^2+0.00005/(A5/1000)^4 -> 1.332024733 | E5: 9.499385688 | F5: 167.1560402 | G5: 0.8576501857 | H5: 0.01 | J5: =F5*(1-G5)/(F5*(1-G5)+E5) -> 0.7146818992 | K5: =(F5*(1-G5)+E5)*H5 -> 0.3329401697 | L5: =SQRT(1-1/D5^2) -> 0.6606014233 | M5: =(D5-1)^2/(D5+1)^2 -> 0.02027097168 | N5: 0.01041565077 | O5: 0.71681308 | P5: 2.454602312 | Q5: 0.7840128796 | R5: 0.960263553 | S5: 0.5782625135 | T5: 1.306151149 | U5: 0.2990888497 | V5: 1.043769199 | W5: -0.2002398848 | X5: -2.158155337 | Y5: 0.6642277435 | Z5: -2.411084073 | AA5: -0.668567679 | AB5: -0.9160802317 | AC5: 0.03027074295 | AD5: 0.6881919337 | AE5: 0.08857801869 | AF5: 0.7453839262 | AG5: 0.1660380551 | AI5: 740 | AJ5: 15.52647352 | AK5: 5.192910333 | AL5: =AJ5/100 -> 0.1552647352 | AM5: 0.05192910333 | AO5: =(AJ5/100-AE5)^2+(AK5/100-AF5)^2 -> 0.4853267096
A6: 730 | B6: 1.096324654 | C6: 20.50374453 | D6: 1.332165031 | E6: 12.2020934 | F6: 228.2066766 | G6: 0.8901437805 | H6: 0.01 | J6: =F6*(1-G6)/(F6*(1-G6)+E6) -> 0.6726205163 | K6: 0.3727201615 | L6: =SQRT(1-1/D6^2) -> 0.6606912654 | M6: =(D6-1)^2/(D6+1)^2 -> 0.0202856656 | N6: 0.009626061748 | O6: 0.6888579748 | P6: 2.013274192 | Q6: 0.8546083104 | R6: 0.9602353218 | S6: 0.5782142303 | T6: 1.250936359 | U6: 0.3514197019 | V6: 1.059950851 | W6: -0.2001730472 | X6: -2.157934251 | Y6: 0.5446713717 | Z6: -3.201563184 | AA6: -0.6655156827 | AB6: -0.9495195153 | AC6: 0.02952695097 | AD6: 0.6613226977 | AE6: 0.08552848958 | AF6: 0.7159808529 | AG6: 0.1984906576 | AI6: 730 | AJ6: 13.64305735 | AK6: 3.211812155 | AL6: 0.1364305735 | AM6: 0.03211812155 | AO6: 0.4702592574
A7: 720 | B7: 1.846314798 | C7: 22.95876546 | D7: 1.332311487 | E7: 20.5494837 | F7: 255.5310596 | G7: 0.8951206946 | H7: 0.01 | J7: 0.5660033268 | K7: 0.4734940374 | L7: 0.6607850063 | M7: 0.02030100808 | N7: 0.007874915615 | O7: 0.6228222977 | P7: 1.277893556 | Q7: 1.005425152 | R7: 0.9602058453 | S7: 0.5781638452 | T7: 1.153203769 | U7: 0.492815602 | V7: 1.114839548 | W7: -0.2001033162 | X7: -2.157558758 | Y7: 0.3456348183 | Z7: 64.05533414 | AA7: -0.6364684563 | AB7: -1.009856908 | AC7: 0.02786064029 | AD7: 0.5978867244 | AE7: 0.07566038613 | AF7: 0.6438296349 | AG7: 0.280509979 | AI7: 720 | AJ7: 10.06545258 | AK7: 0.924745094 | AL7: 0.1006545258 | AM7: 0.00924745094 | AO7: 0.4033192552
A8: 710 | B8: 3.882316077 | C8: 34.24557827 | D8: 1.332464467 | E8: 43.21017794 | F8: 381.1532861 | G8: 0.9283909495 | H8: 0.01 | J8: 0.387126211 | K8: 0.7050420285 | L8: 0.6608828766 | M8: 0.02031703825 | N8: 0.004959851494 | O8: 0.4940878081 | P8: 0.6188862723 | Q8: 1.194234653 | R8: 0.9601750486 | S8: 0.5781112336 | T8: 1.058026559 | U8: 0.8490025998 | V8: 1.31179473 | W8: -0.2000305214 | X8: -2.156997307 | Y8: 0.1673477961 | Z8: 1.02892318 | AA8: -0.5191932347 | AB8: -1.063540084 | AC8: 0.02507787784 | AD8: 0.4742627481 | AE8: 0.05774035132 | AF8: 0.504129433 | AG8: 0.4381302157 | AI8: 710 | AJ8: 6.277311563 | AK8: 0.05687045416 | AL8: 0.06277311564 | AM8: 0.0005687045416 | AO8: 0.253598736
A9: 700 | B9: 5.41719476 | C9: 19.55580698 | D9: 1.332624369 | E9: 60.29337768 | F9: 217.6561317 | G9: 0.9049257763 | H9: 0.01 | J9: 0.2555165908 | K9: 0.8098686545 | L9: 0.6609851238 | M9: 0.02033379827 | N9: 0.004025089441 | O9: 0.4449165002 | P9: 0.3362619694 | Q9: 1.298752554 | R9: 0.9601428507 | S9: 0.5780562613 | T9: 1.014464603 | U9: 1.059678125 | V9: 1.457023586 | W9: -0.1999544796 | X9: -2.156740889 | Y9: 0.09090088417 | Z9: 0.395169025 | AA9: -0.4664701836 | AB9: -1.086844087 | AC9: 0.02419717742 | AD9: 0.4270417235 | AE9: 0.0440908133 | AF9: 0.4446842402 | AG9: 0.5112249465 | AI9: 700 | AJ9: 4.436563015 | AK9: 0.01491345268 | AL9: 0.04436563015 | AM9: 0.0001491345268 | AO9: 0.1976115357
A10: 690 | B10: 5.7270313 | C10: 16.95760396 | D10: 1.332791621 | E10: 63.74185837 | F10: 188.738132 | G10: 0.9079655145 | H10: 0.01 | J10: 0.2141527509 | K10: 0.8111227525 | L10: 0.6610920147 | M10: 0.02035133362 | N10: 0.004018468817 | O10: 0.444358881 | P10: 0.2669877838 | Q10: 1.327113984 | R10: 0.9601091645 | S10: 0.5779987839 | T10: 1.003466336 | U10: 1.076456918 | V10: 1.469271757 | W10: -0.1998749936 | X10: -2.156624439 | Y10: 0.07215351655 | Z10: 0.2927295853 | AA10: -0.4664322497 | AB10: -1.093543537 | AC10: 0.02420821981 | AD10: 0.4264912114 | AE10: 0.04023970094 | AF10: 0.4406928684 | AG10: 0.5190674306 | AI10: 690 | AJ10: 3.96286285 | AK10: 0.01396958971 | AL10: 0.03962862849 | AM10: 0.0001396958971 | AO10: 0.1940874713
A11: 680 | B11: 5.63912884 | C11: 16.34699941 | D11: 1.332966686 | E11: 62.76350399 | F11: 181.9421034 | G11: 0.9081077844 | H11: 0.01 | J11: 0.2103488051 | K11: 0.7948256697 | L11: 0.6612038365 | M11: 0.0203696934 | N11: 0.004155350742 | O11: 0.4516599661 | P11: 0.2609778965 | Q11: 1.329500099 | R11: 0.9600738957 | S11: 0.5779386458 | T11: 1.002461136 | U11: 1.05025328 | V11: 1.45018342 | W11: -0.1997918511 | X11: -2.156525016 | Y11: 0.07050822818 | Z11: 0.2844936817 | AA11: -0.4752251099 | AB11: -1.09472594 | AC11: 0.02435781943 | AD11: 0.4334837122 | AE11: 0.03992791098 | AF11: 0.4473414697 | AG11: 0.5127306194 | AI11: 680 | AJ11: 3.922471047 | AK11: 0.016649055 | AL11: 0.03922471046 | AM11: 0.00016649055 | AO11: 0.1999659564
A12: 670 | B12: 5.675222737 | C12: 16.24594417 | D12: 1.333150061 | E12: 63.16522907 | F12: 180.8173586 | G12: 0.9081056581 | H12: 0.01 | J12: 0.2082704563 | K12: 0.7978132125 | L12: 0.6613208995 | M12: 0.02038893071 | N12: 0.004134497164 | O12: 0.4503126262 | P12: 0.2577158403 | Q12: 1.330725027 | R12: 0.9600369426 | S12: 0.5778756789 | T12: 1.00189048 | U12: 1.055871092 | V12: 1.454257117 | W12: -0.1997048228 | X12: -2.156395311 | Y12: 0.0696050883 | Z12: 0.2800672019 | AA12: -0.4736436672 | AB12: -1.094897703 | AC12: 0.02435688515 | AD12: 0.4321734705 | AE12: 0.03975958742 | AF12: 0.4458700929 | AG12: 0.5143703197 | AI12: 670 | AJ12: 3.901210188 | AK12: 0.01608765246 | AL12: 0.03901210188 | AM12: 0.0001608765246 | AO12: 0.1986572643
A13: 660 | B13: 61.02819956 | C13: 15.78800019 | D13: 1.333342287 | E13: 679.2438611 | F13: 175.7204421 | G13: 0.0001507490073 | H13: 0.01 | J13: 0.2055049497 | K13: 8.549378135 | L13: 0.6614435385 | M13: 0.02040910301 | N13: 7.654704365e-10 | O13: 0.0001936654959 | P13: 0.2533820418 | Q13: 1.332389024 | R13: 0.9599981949 | S13: 0.5778097015 | T13: 1.001150346 | U13: 9655.933841 | V13: 9655.933893 | W13: -0.1996136614 | X13: -2.155619403 | Y13: 0.06841210385 | Z13: 0.2742314867 | AA13: -7.506462558e-05 | AB13: -1.077190132 | AC13: 0.02040910375 | AD13: 0.0001858410856 | AE13: 0.03872652228 | AF13: 0.0002222006513 | AG13: 0.9610512771 | AI13: 660 | AJ13: 3.868655204 | AK13: 0.01583918251 | AL13: 0.03868655205 | AM13: 0.0001583918251 | AO13: 5.669185847e-09
A14: 650 | B14: 5.760127046 | C14: 16.36471322 | D14: 1.333543948 | E14: 64.11021402 | F14: 182.1392582 | G14: 0.9091607407 | H14: 0.01 | J14: 0.2051363251 | K14: 0.8065560931 | L14: 0.6615721158 | M14: 0.02043027263 | N14: 0.00407106879 | O14: 0.4463927571 | P14: 0.2528258053 | Q14: 1.332465598 | R14: 0.9599575333 | S14: 0.577740517 | T14: 1.001001709 | U14: 1.071483325 | V14: 1.46563178 | W14: -0.1995180992 | X14: -2.156114008 | Y14: 0.06823838799 | Z14: 0.2734878583 | AA14: -0.4689951633 | AB14: -1.094968107 | AC14: 0.02433701951 | AD14: 0.4283748575 | AE14: 0.03951344963 | AF14: 0.4418355818 | AG14: 0.5186509686 | AI14: 650 | AJ14: 3.870083213 | AK14: 0.01455983943 | AL14: 0.03870083213 | AM14: 0.0001455983943 | AO14: 0.1950907018
A15: 640 | B15: 5.830326492 | C15: 18.10136113 | D15: 1.333755679 | E15: 64.89153385 | F15: 201.4681494 | G15: 0.9171743425 | H15: 0.01 | J15: 0.2045487457 | K15: 0.815782658 | L15: 0.6617070238 | M15: 0.02045250718 | N15: 0.004000983314 | O15: 0.4422930277 | P15: 0.2519093499 | Q15: 1.332677236 | R15: 0.9599148279 | S15: 0.5776679127 | T15: 1.000796438 | U15: 1.087264496 | V15: 1.477208206 | W15: -0.1994178468 | X15: -2.155957321 | Y15: 0.06796642521 | Z15: 0.2722678259 | AA15: -0.4640967649 | AB15: -1.094667414 | AC15: 0.02429181802 | AD15: 0.4244207688 | AE15: 0.03947289013 | AF15: 0.4378491589 | AG15: 0.522677951 | AI15: 640 | AJ15: 3.865294695 | AK15: 0.01312136961 | AL15: 0.03865294695 | AM15: 0.0001312136961 | AO15: 0.1915976718
A16: 630 | B16: 5.930282154 | C16: 18.83412798 | D16: 1.333978169 | E16: 66.00404038 | F16: 209.6238444 | G16: 0.9183543882 | H16: 0.01 | J16: 0.2059082291 | K16: 0.831189074 | L16: 0.6618486879 | M16: 0.0204758802 | N16: 0.003884015223 | O16: 0.4355310996 | P16: 0.2540110926 | Q16: 1.331603106 | R16: 0.9598699379 | S16: 0.5775916574 | T16: 1.001067835 | U16: 1.113131791 | V16: 1.496349686 | W16: -0.1993125901 | X16: -2.155786049 | Y16: 0.06850742322 | Z16: 0.2751020598 | AA16: -0.4560040347 | AB16: -1.093848663 | AC16: 0.02420276298 | AD16: 0.4179111717 | AE16: 0.03959968714 | AF16: 0.4314685925 | AG16: 0.5289317204 | AI16: 630 | AJ16: 3.881552935 | AK16: 0.01110688754 | AL16: 0.03881552935 | AM16: 0.0001110688754 | AO16: 0.1860699281
A17: 620 | B17: 65.24354193 | C17: 29.44829762 | D17: 1.334212167 | E17: 726.1606216 | F17: 327.7595525 | G17: 0.4220089484 | H17: 0.01 | J17: 0.2069042461 | K17: 9.156027101 | L17: 0.6619975703 | M17: 0.02050047174 | N17: 2.28528181e-10 | O17: 0.0001055815307 | P17: 0.2555335978 | Q17: 1.330757765 | R17: 0.9598227099 | S17: 0.5775115001 | T17: 1.00124677 | U17: 19324.05573 | V17: 19324.05576 | W17: -0.1992019882 | X17: -2.155023 | Y17: 0.06889048498 | Z17: 0.2771712643 | AA17: -3.83548021e-05 | AB17: -1.076840214 | AC17: 0.02050047196 | AD17: 0.000101296961 | AE17: 0.03893984439 | AF17: 0.0001219455663 | AG17: 0.96093821 | AI17: 620 | AJ17: 3.89439404 | AK17: 0.01064110632 | AL17: 0.0389439404 | AM17: 0.0001064110632 | AO17: =(AJ17/100-AE17)^2+(AK17/100-AF17)^2 -> 2.580980464e-10
A18: 610 | B18: 2.969496593 | C18: 12.77698615 | D18: 1.334458488 | E18: 33.05049708 | F18: 142.2078559 | G18: 0.9388903504 | H18: 0.01 | J18: 0.2081962642 | K18: 0.4174076932 | L18: 0.6621541732 | M18: 0.02052636908 | N18: 0.008907512037 | O18: 0.6587522964 | P18: 0.2575891392 | Q18: 1.329707564 | R18: 0.9597729766 | S18: 0.5774271677 | T18: 1.001495817 | U18: 0.5001266597 | V18: 1.118090638 | W18: -0.1990856708 | X18: -2.156233702 | Y18: 0.06941541634 | Z18: 0.2799517339 | AA18: -0.7307484467 | AB18: -1.117465766 | AC18: 0.02907351913 | AD18: 0.6321018369 | AE18: 0.04022546974 | AF18: 0.6428982184 | AG18: 0.3168763119 | AI18: 610 | AJ18: 3.909832835 | AK18: 0.01100944484 | AL18: 0.03909832835 | AM18: 0.0001100944484 | AO18: 0.4131778427
A19: 600 | B19: 2.961395827 | C19: 12.77779122 | D19: 1.334718025 | E19: 32.96033555 | F19: 142.2168163 | G19: 0.9379786381 | H19: 0.01 | J19: 0.2111131719 | K19: 0.4178081618 | L19: 0.6623190439 | M19: 0.02055366754 | N19: 0.008912217342 | O19: 0.6584885396 | P19: 0.2621566214 | Q19: 1.327574045 | R19: 0.9597205552 | S19: 0.5773383628 | T19: 1.002146088 | U19: 0.5002106552 | V19: 1.118128213 | W19: -0.1989632347 | X19: -2.156055238 | Y19: 0.07061493787 | Z19: 0.2861843305 | AA19: -0.7301157389 | AB19: -1.116823351 | AC19: 0.02910485877 | AD19: 0.631813746 | AE19: 0.04044323702 | AF19: 0.6427900827 | AG19: 0.3167666803 | AI19: 600 | AJ19: 3.943336249 | AK19: 0.0109611582 | AL19: 0.03943336248 | AM19: 0.000109611582 | AO19: 0.4130392078
A20: 590 | B20: 2.977207938 | C20: 12.77968671 | D20: 1.334991749 | E20: 33.13632435 | F20: 142.2379131 | G20: 0.9363786542 | H20: 0.01 | J20: 0.2145127191 | K20: 0.4218569181 | L20: 0.6624927788 | M20: 0.02058247139 | N20: 0.00885273078 | O20: 0.6558278698 | P20: 0.267522863 | Q20: 1.325102859 | R20: 0.9596652461 | S20: 0.5772447606 | T20: 1.002917478 | U20: 0.504925104 | V20: 1.120245223 | W20: -0.1988342402 | X20: -2.155857175 | Y20: 0.0720266991 | Z20: 0.2935771936 | AA20: -0.7264105181 | AB20: -1.115768144 | AC20: 0.029076078 | AD20: 0.6292232382 | AE20: 0.04069378779 | AF20: 0.6404630728 | AG20: 0.3188431394 | AI20: 590 | AJ20: 3.982375741 | AK20: 0.01008520875 | AL20: 0.03982375741 | AM20: 0.0001008520875 | AO20: 0.4100645307
A21: 580 | B21: 2.965767427 | C21: 12.78149288 | D21: 1.335280727 | E21: 33.00899146 | F21: 142.2580157 | G21: 0.934223746 | H21: 0.01 | J21: 0.220864779 | K21: 0.4236619084 | L21: 0.66267603 | M21: 0.0206128949 | N21: 0.008833868517 | O21: 0.6546451746 | P21: 0.2776815968 | Q21: 1.320637767 | R21: 0.9596068304 | S21: 0.5771460062 | T21: 1.004439617 | U21: 0.5063318825 | V21: 1.12088 | W21: -0.1986982073 | X21: -2.155655008 | Y21: 0.07472488783 | Z21: 0.3077756868 | AA21: -0.7242873431 | AB21: -1.114335069 | AC21: 0.02908787687 | AD21: 0.6280494259 | AE21: 0.04114157557 | AF21: 0.6397080707 | AG21: 0.3191503538 | AI21: 580 | AJ21: 4.054415941 | AK21: 0.009790007516 | AL21: 0.04054415941 | AM21: 9.790007516e-05 | AO21: 0.4091015272
A22: 570 | B22: 2.920367874 | C22: 12.78364035 | D22: 1.335586127 | E22: 32.50369444 | F22: 142.2819171 | G22: 0.9313630392 | H22: 0.01 | J22: 0.2310365636 | K22: 0.422694928 | L22: 0.6628695103 | M22: 0.0206450635 | N22: 0.008864782274 | O22: 0.6552785097 | P22: 0.2943029615 | Q22: 1.31353412 | R22: 0.9595450677 | S22: 0.5770417111 | T22: 1.00696998 | U22: 0.5036214632 | V22: 1.119658242 | W22: -0.1985546113 | X22: -2.155449338 | Y22: 0.07915643304 | Z22: 0.3316215654 | AA22: -0.7240608473 | AB22: -1.112369432 | AC22: 0.02914915249 | AD22: 0.6286163144 | AE22: 0.04184741401 | AF22: 0.640900734 | AG22: 0.317251852 | AI22: 570 | AJ22: 4.170502901 | AK22: 0.01016346988 | AL22: 0.04170502901 | AM22: 0.0001016346988 | AO22: 0.410623506
A23: 560 | B23: 2.896529256 | C23: 12.47322047 | D23: 1.335909231 | E23: 32.23837062 | F23: 138.8269438 | G23: 0.9245437418 | H23: 0.01 | J23: 0.2452457593 | K23: 0.4271373234 | L23: 0.6630740014 | M23: 0.02067911513 | N23: 0.00880086149 | O23: 0.6523739599 | P23: 0.3182731534 | Q23: 1.303520276 | R23: 0.9594796938 | S23: 0.5769314492 | T23: 1.010637279 | U23: 0.5072314116 | V23: 1.121286629 | W23: -0.1984028773 | X23: -2.155217025 | Y23: 0.08555628094 | Z23: 0.3674362329 | AA23: -0.7189813076 | AB23: -1.109100921 | AC23: 0.02912128846 | AD23: 0.6257857887 | AE23: 0.04285215543 | AF23: 0.6390606024 | AG23: 0.3180872421 | AI23: 560 | AJ23: 4.336013079 | AK23: 0.009445396175 | AL23: 0.04336013079 | AM23: 9.445396175e-05 | AO23: 0.4082779969
A24: 550 | B24: 2.88055711 | C24: 12.3485354 | D24: 1.336251452 | E24: 32.06060064 | F24: 137.439199 | G24: 0.9217485877 | H24: 0.01 | J24: 0.2511901885 | K24: 0.4281541206 | L24: 0.6632903612 | M24: 0.0207152018 | N24: 0.008798309281 | O24: 0.651710965 | P24: 0.3285635026 | Q24: 1.299116651 | R24: 0.9594104178 | S24: 0.5768147524 | T24: 1.012143942 | U24: 0.5076065089 | V24: 1.12145636 | W24: -0.1982423745 | X24: -2.154981185 | Y24: 0.08827086319 | Z24: 0.3833760096 | AA24: -0.7175301132 | AB24: -1.107743667 | AC24: 0.0291543072 | AD24: 0.6251039093 | AE24: 0.0433057084 | AF24: 0.6387834671 | AG24: 0.3179108245 | AI24: 550 | AJ24: 4.407966137 | AK24: 0.009334022163 | AL24: 0.04407966137 | AM24: 9.334022163e-05 | AO24: 0.4079256772
A25: 540 | B25: 2.893452379 | C25: 12.26860956 | D25: 1.336614348 | E25: 32.20412498 | F25: 136.5496244 | G25: 0.9199668722 | H25: 0.01 | J25: 0.2533695824 | K25: 0.4313261852 | L25: 0.6635195331 | M25: 0.02075349133 | N25: 0.008758828116 | O25: 0.649646971 | P25: 0.332368441 | Q25: 1.297319409 | R25: 0.9593369182 | S25: 0.5766911053 | T25: 1.012627671 | U25: 0.5112823455 | V25: 1.123124943 | W25: -0.1980724097 | X25: -2.154725659 | Y25: 0.08923776915 | Z25: 0.389378851 | AA25: -0.7147260434 | AB25: -1.106977594 | AC25: 0.02915406644 | AD25: 0.6230751535 | AE25: 0.04351152546 | AF25: 0.6369471325 | AG25: 0.319541342 | AI25: 540 | AJ25: 4.436022997 | AK25: 0.008740192519 | AL25: 0.04436022997 | AM25: 8.740192519e-05 | AO25: 0.4055910367
A26: 530 | B26: 2.887464493 | C26: 12.25942991 | D26: 1.336999638 | E26: 32.13747981 | F26: 136.4474549 | G26: 0.9195415993 | H26: 0.01 | J26: 0.2546244749 | K26: 0.431158238 | L26: 0.6637625569 | M26: 0.02079416943 | N26: 0.00877894425 | O26: 0.6497560865 | P26: 0.3345632982 | Q26: 1.296154375 | R26: 0.9592588397 | S26: 0.5765599399 | T26: 1.012852243 | U26: 0.5108198321 | V26: 1.122914467 | W26: -0.1978922193 | X26: -2.154464111 | Y26: 0.0897679964 | Z26: 0.39288017 | AA26: -0.7147130303 | AB26: -1.106661343 | AC26: 0.02921334489 | AD26: 0.6231285158 | AE26: 0.04364537965 | AF26: 0.6370730942 | AG26: 0.3192815261 | AI26: 530 | AJ26: 4.45326519 | AK26: 0.008778730976 | AL26: 0.0445326519 | AM26: 8.778730976e-05 | AO26: 0.4057510685
A27: 520 | B27: 3.053608685 | C27: 12.499219 | D27: 1.337409228 | E27: 33.98666466 | F27: 139.1163075 | G27: 0.9235045524 | H27: 0.01 | J27: 0.2384525846 | K27: 0.4462842888 | L27: 0.6640205801 | M27: 0.02083744199 | N27: 0.008535064271 | O27: 0.6400018009 | P27: 0.3066458769 | Q27: 1.307078094 | R27: 0.9591757882 | S27: 0.5764206282 | T27: 1.008367273 | U27: 0.5326535634 | V27: 1.1330136 | W27: -0.1977009612 | X27: -2.154145766 | Y27: 0.08221985578 | Z27: 0.349968866 | AA27: -0.7041654525 | AB27: -1.10864753 | AC27: 0.02902196997 | AD27: 0.6137168371 | AE27: 0.0426088684 | AF27: 0.6268120816 | AG27: 0.33057905 | AI27: 520 | AJ27: 4.267107963 | AK27: 0.006144199178 | AL27: 0.04267107963 | AM27: 6.144199178e-05 | AO27: 0.3928163681
A28: 510 | B28: 3.159826074 | C28: 12.78472008 | D28: 1.337845232 | E28: 35.1688642 | F28: 142.2939345 | G28: 0.9310890653 | H28: 0.01 | J28: 0.2180260832 | K28: 0.4497447223 | L28: 0.6642948725 | M28: 0.02088353784 | N28: 0.008494948909 | O28: 0.6377909447 | P28: 0.2730408271 | Q28: 1.320508144 | R28: 0.9590873257 | S28: 0.5762724753 | T28: 1.002968585 | U28: 0.5401329386 | V28: 1.136548983 | W28: -0.1974977044 | X28: -2.153840812 | Y28: 0.07315499702 | Z28: 0.3014019181 | AA28: -0.7032453204 | AB28: -1.112209962 | AC28: 0.02902882742 | AD28: 0.6115389266 | AE28: 0.04127379569 | AF28: 0.6233332577 | AG28: 0.3353929466 | AI28: 510 | AJ28: 4.040982723 | AK28: 0.005506175156 | AL28: 0.04040982723 | AM28: 5.506175156e-05 | AO28: 0.388476456
A29: 500 | B29: 3.207385168 | C29: 12.78205151 | D29: 1.33831 | E29: 35.69819692 | F29: 142.2642333 | G29: 0.933927295 | H29: 0.01 | J29: 0.20843024 | K29: 0.4509797964 | L29: 0.6645868412 | M29: 0.02093271191 | N29: 0.008493944566 | O29: 0.6370037118 | P29: 0.2578465348 | Q29: 1.326450567 | R29: 0.9589929646 | S29: 0.5761147096 | T29: 1.000445476 | U29: 0.5430716039 | V29: 1.13794849 | W29: -0.1972814176 | X29: -2.153522447 | Y29: 0.06902926967 | Z29: 0.2804832435 | AA29: -0.7030706811 | AB29: -1.113798771 | AC29: 0.02907622367 | AD29: 0.6107229901 | AE29: 0.04069289223 | AF29: 0.6219095626 | AG29: 0.3373975452 | AI29: 500 | AJ29: 3.940144658 | AK29: 0.005275628245 | AL29: 0.03940144658 | AM29: 5.275628245e-05 | AO29: 0.3867075554
A30: 490 | B30: 3.193109759 | C30: 12.78072597 | D30: 1.338806154 | E30: 35.53931162 | F30: 142.24948 | G30: 0.9353750413 | H30: 0.01 | J30: 0.2055090341 | K30: 0.447321784 | L30: 0.6648980496 | M30: 0.02098524889 | N30: 0.008577789009 | O30: 0.6393381464 | P30: 0.2532849432 | Q30: 1.327953988 | R30: 0.9588921605 | S30: 0.5759464735 | T30: 0.9995870139 | U30: 0.5386137414 | V30: 1.135827787 | W30: -0.1970509561 | X30: -2.153195853 | Y30: 0.06775069363 | Z30: 0.2743366664 | AA30: -0.7062337773 | AB30: -1.114534331 | AC30: 0.02920828152 | AD30: 0.612896684 | AE30: 0.04056849411 | AF30: 0.6238429619 | AG30: 0.335588544 | AI30: 490 | AJ30: 3.912304521 | AK30: 0.00568054825 | AL30: 0.03912304521 | AM30: 5.68054825e-05 | AO30: 0.3891112582
A31: 480 | B31: 3.180398247 | C31: 12.78022061 | D31: 1.339336623 | E31: 35.39783249 | F31: 142.2438553 | G31: 0.9359688535 | H31: 0.01 | J31: 0.2046479986 | K31: 0.4450586963 | L31: 0.6652302386 | M31: 0.02104146756 | N31: 0.008639785392 | O31: 0.6407866631 | P31: 0.2519366664 | Q31: 1.32808674 | R31: 0.9587843036 | S31: 0.5757668107 | T31: 0.9992252555 | U31: 0.5356825117 | V31: 1.134440723 | W31: -0.1968050464 | X31: -2.152842839 | Y31: 0.06732910008 | Z31: 0.2725464767 | AA31: -0.7081040507 | AB31: -1.114772204 | AC31: 0.02932299616 | AD31: 0.6142158442 | AE31: 0.04058289229 | AF31: 0.6250696154 | AG31: 0.3343474923 | AI31: 480 | AJ31: 3.907069326 | AK31: 0.005963539527 | AL31: 0.03907069326 | AM31: 5.963539527e-05 | AO31: 0.3906397619
A32: 470 | B32: 3.204081055 | C32: 12.78037398 | D32: 1.339904689 | E32: 35.66142215 | F32: 142.2455624 | G32: 0.9357297941 | H32: 0.01 | J32: 0.2040496064 | K32: 0.4480357373 | L32: 0.6655853507 | M32: 0.02110172581 | N32: 0.008613091856 | O32: 0.6388818517 | P32: 0.2509956895 | Q32: 1.328018706 | R32: 0.9586687099 | S32: 0.5755746528 | T32: 0.9989173576 | U32: 0.5395627073 | V32: 1.136278098 | W32: -0.1965422684 | X32: -2.152451168 | Y32: 0.06701268302 | Z32: 0.2713079925 | AA32: -0.7057260448 | AB32: -1.114520825 | AC32: 0.02935665107 | AD32: 0.6123146043 | AE32: 0.04061059851 | AF32: 0.6231574171 | AG32: 0.3362319844 | AI32: 470 | AJ32: 3.904962778 | AK32: 0.005578986582 | AL32: 0.03904962778 | AM32: 5.578986582e-05 | AO32: 0.3882580745
A33: 460 | B33: 3.200729967 | C33: 12.78018498 | D33: 1.34051404 | E33: 35.62412453 | F33: 142.2434588 | G33: 0.9359457959 | H33: 0.01 | J33: 0.2036706561 | K33: 0.4473541607 | L33: 0.6659655594 | M33: 0.02116642664 | N33: 0.008651285787 | O33: 0.639317447 | P33: 0.2503941244 | Q33: 1.32777604 | R33: 0.9585446092 | S33: 0.5753688027 | T33: 0.998651347 | U33: 0.5386168861 | V33: 1.135829279 | W33: -0.1962610351 | X33: -2.152041679 | Y33: 0.06678266306 | Z33: 0.2705274613 | AA33: -0.7062746284 | AB33: -1.114523867 | AC33: 0.02945687286 | AD33: 0.6126519277 | AE33: 0.04066415441 | AF33: 0.6234511326 | AG33: 0.335884713 | AI33: 460 | AJ33: 3.905219793 | AK33: 0.005653785148 | AL33: 0.03905219793 | AM33: 5.653785148e-05 | AO33: 0.3886234192
A34: 450 | B34: 3.195449096 | C34: 12.78010728 | D34: 1.341168832 | E34: 35.56534844 | F34: 142.242594 | G34: 0.9360348059 | H34: 0.01 | J34: 0.2037119537 | K34: 0.4466392357 | L34: 0.6663733026 | M34: 0.02123602515 | N34: 0.008692152157 | O34: 0.6397746745 | P34: 0.2504404445 | Q34: 1.327227282 | R34: 0.9584111319 | S34: 0.5751479158 | T34: 0.9984743112 | U34: 0.5375606104 | V34: 1.135328767 | W34: -0.195959568 | X34: -2.151602226 | Y34: 0.06672051888 | Z34: 0.2706170839 | AA34: -0.7068120118 | AB34: -1.114444658 | AC34: 0.02956446099 | AD34: 0.6130038031 | AE34: 0.04075101524 | AF34: 0.6237844702 | AG34: 0.3354645146 | AI34: 450 | AJ34: 3.910641909 | AK34: 0.005745383639 | AL34: 0.03910641909 | AM34: 5.745383639e-05 | AO34: 0.3890380956
A35: 440 | B35: 106.7212277 | C35: 334.5540882 | D35: 1.341873763 | E35: 1187.807264 | F35: 3723.587002 | G35: 0.9182131228 | H35: 0.01 | J35: 0.2040680795 | K35: 14.92347817 | L35: 0.6668113218 | M35: 0.02131103694 | N35: 2.324000078e-15 | O35: =EXP(-K35) -> 3.302294325e-07 | P35: 0.2509249496 | Q35: 1.326437957 | R35: 0.9582672934 | S35: 0.5749104778 | T35: 0.9983590265 | U35: 14568686.73 | V35: 14568686.73 | W35: -0.1956358693 | X35: -2.149820956 | Y35: 0.06676935683 | Z35: 0.2713085514 | AA35: -6.928062312e-08 | AB35: -1.075793152 | AC35: 0.02131103694 | AD35: 3.163043463e-07 | AE35: 0.03919497802 | AF35: 3.914873203e-07 | AG35: 0.9608046305 | AI35: 440 | AJ35: 3.91944778 | AK35: 0.00530083541 | AL35: 0.0391944778 | AM35: 5.30083541e-05 | AO35: 2.768784897e-09
A36: 430 | B36: 3.197590833 | C36: 12.78016344 | D36: 1.342634156 | E36: 35.58918598 | F36: 142.2432191 | G36: 0.9359750225 | H36: 0.01 | J36: 0.2037555213 | K36: 0.4469630488 | L36: 0.667282709 | M36: 0.02139204808 | N36: 0.008750345368 | O36: 0.6395675406 | P36: 0.2504684307 | Q36: 1.326036136 | R36: 0.9581119745 | S36: 0.5746547777 | T36: 0.998066176 | U36: 0.5377217567 | V36: 1.135405076 | W36: -0.1952876887 | X36: -2.150616066 | Y36: 0.06656162019 | Z36: 0.2707157394 | AA36: -0.7064704602 | AB36: -1.114118786 | AC36: 0.02977359108 | AD36: 0.6126115736 | AE36: 0.04093899376 | AF36: 0.6233716345 | AG36: 0.3356893718 | AI36: 430 | AJ36: 3.921920538 | AK36: 0.00570683615 | AL36: 0.03921920538 | AM36: 5.70683615e-05 | AO36: 0.388524006
A37: 420 | B37: 3.233021979 | C37: 12.78091822 | D37: 1.34345607 | E37: 35.98353463 | F37: 142.2516198 | G37: 0.935054496 | H37: 0.01 | J37: 0.2042938171 | K37: 0.4522213777 | L37: 0.6677909613 | M37: 0.02147972706 | N37: 0.008694292774 | O37: 0.6362133107 | P37: 0.2512774005 | Q37: 1.325042216 | R37: 0.9579438994 | S37: 0.574378877 | T37: 0.9979610662 | U37: 0.5443844541 | V37: 1.138575616 | W37: -0.1949124841 | X37: -2.150051098 | Y37: 0.06668322128 | Z37: 0.2718357156 | AA37: -0.7021639393 | AB37: -1.113427603 | AC37: 0.02980608408 | AD37: 0.6092892548 | AE37: 0.04106704487 | AF37: 0.6201321471 | AG37: 0.338800808 | AI37: 420 | AJ37: 3.933645249 | AK37: 0.005078412623 | AL37: 0.03933645249 | AM37: 5.078412623e-05 | AO37: 0.3845038916
A38: 410 | B38: 3.170191849 | C38: 12.78048156 | D38: 1.344346419 | E38: 35.28423528 | F38: 142.2467597 | G38: 0.9357975056 | H38: 0.01 | J38: 0.2056111697 | K38: 0.4441683208 | L38: 0.6683400459 | M38: 0.02157483921 | N38: 0.008874581175 | O38: 0.6413574579 | P38: 0.2532936769 | Q38: 1.32349916 | R38: 0.9577616081 | S38: 0.5740805722 | T38: 0.9980240583 | U38: 0.5335156519 | V38: 1.133419142 | W38: -0.1945073756 | X38: -2.149476012 | Y38: 0.06711651346 | Z38: 0.2745869545 | AA38: -0.7084734716 | AB38: -1.113676797 | AC38: 0.03007224292 | AD38: 0.614099205 | AE38: 0.04128241766 | AF38: 0.6249078654 | AG38: 0.3338097169 | AI38: 410 | AJ38: 3.954257369 | AK38: 0.006077839169 | AL38: 0.03954257369 | AM38: 6.077839169e-05 | AO38: 0.3904369092
A39: 400 | B39: 6.157451824 | C39: 21.17132053 | D39: 1.345313125 | E39: 68.5324388 | F39: 235.6367975 | G39: 0.923534298 | H39: 0.01 | J39: 0.2081804051 | K39: 0.8655057193 | L39: 0.6689344778 | M39: 0.02167826413 | N39: 0.003839333052 | O39: 0.4208386726 | P39: 0.2572358265 | Q39: 1.321098496 | R39: 0.9575634231 | S39: 0.5737573499 | T39: 0.9983680141 | U39: 1.167199239 | V39: 1.536995141 | W39: -0.1940690906 | X39: -2.148081058 | Y39: 0.06804907862 | Z39: 0.2799749503 | AA39: -0.4386986081 | AB39: -1.090163417 | AC39: 0.02535324719 | AD39: 0.4028238678 | AE39: 0.04085502504 | AF39: 0.4163417248 | AG39: 0.5428032502 | AI39: 400 | AJ39: 3.988624931 | AK39: 0.007628211242 | AL39: 0.03988624931 | AM39: 7.628211242e-05 | AO39: 0.1732778573

Sheet Dilution1
A1: X= | B1: 55.65 | C1: g/L | AI1: dilution 1 | AK1: 55.65 | AL1: g/L
A3: l (nm) | B3: Abs,l (m2/kg) | C3: Ssca,l (m2/kg) | D3: n | E3: k (1/m) | F3: ss (1/m) | G3: g | H3: d (m) | J3: wtr | K3: ttr | L3: mc | M3: R1 | N3: Ctr | O3: Etr | P3: c | Q3: k2 | R3: g | S3: gbar | T3: j | U3: s | V3: c | W3: k1 | X3: k2 | Y3: D1 | Z3: D | AA3: A | AB3: B | AC3: R0dh | AD3: T0dh | AE3: Rdh | AF3: Tdh | AG3: Adh | AI3: l (nm) | AJ3: Rdh | AK3: Tdh | AL3: Rdh | AM3: Tdh | AO3: error
A4: 750 | B4: 0.03254408322 | C4: 0.5305960669 | D4: =1.32711+0.0026/(A4/1000)^2+0.00005/(A4/1000)^4 -> 1.331890247 | E4: =B4*B$1 -> 1.811078231 | F4: =C4*B$1 -> 29.52767112 | G4: 0.4347656485 | H4: 0.01 | J4: =F4*(1-G4)/(F4*(1-G4)+E4) -> 0.9021098706 | L4: =SQRT(1-1/D4^2) -> 0.6605152657 | M4: =(D4-1)^2/(D4+1)^2 -> 0.02025688994 | N4: =M4*EXP(-2*K4) ->  | O4: =EXP(-K4) ->  | P4: =J4/(1-J4)*(1-M4)/(1-M4*N4) ->  | Q4: =4/(1+L4)^2*(1-J4)/(1-J4*L4) -> 0.3513811452 | R4: =(1-M4)/(1+M4) -> 0.9602906089 | S4: =R4/(1+L4) -> 0.578308811 | T4: =2*S4/SQRT(Q4) -> 1.951194566 | U4: =SINH(SQRT(Q4)*K4) ->  | V4: =COSH(SQRT(Q4)*K4) ->  | W4: =(1-2*S4)-(1+2*S4)*M4 -> -0.2003039877 | X4: =(1-2*S4)*N4-(1+2*S4) ->  | Y4: =R4*(1-L4^2)*P4/2 ->  | Z4: =Y4*Q4/(Q4-1) ->  | AA4: =(W4*(T4*U4+V4)*O4+X4)/((1+T4^2)*U4+2*T4*V4) ->  | AB4: =(W4*O4+X4*(T4*U4+V4))/((1+T4^2)*U4+2*T4*V4) ->  | AC4: =M4+(1-M4)^2*N4/(1-M4*N4) ->  | AD4: =(1-M4)^2/(1-M4*N4)*O4 ->  | AE4: =AC4+Z4*(1+AB4/SQRT(Q4)+N4) ->  | AF4: =AD4+Z4*(AA4/SQRT(Q4)+(1+M4)*O4) ->  | AG4: =1-AE4-AF4 ->  | AI4: 750 | AJ4: 32.84352875 | AK4: 0.2462034949 | AL4: =AJ4/100 -> 0.3284352875 | AM4: =AK4/100 -> 0.002462034949 | AO4: =(AJ4/100-AE4)^2+(AK4/100-AF4)^2 -> 
A5: 740 | B5: 0.04485465839 | C5: 0.3681730717 | D5: =1.32711+0.0026/(A5/1000)^2+0.00005/(A5/1000)^4 -> 1.332024733 | E5: 2.49616174 | F5: 20.48883144 | G5: 0.1769029321 | H5: 0.01 | J5: =F5*(1-G5)/(F5*(1-G5)+E5) -> 0.8710690815 | K5: =(F5*(1-G5)+E5)*H5 -> 0.1936045882 | L5: =SQRT(1-1/D5^2) -> 0.6606014233 | M5: =(D5-1)^2/(D5+1)^2 -> 0.02027097168 | N5: 0.01376295716 | O5: 0.8239836527 | P5: 6.620986129 | Q5: 0.4404903673 | R5: 0.960263553 | S5: 0.5782625135 | T5: 1.742556336 | U5: 0.1288481795 | V5: 1.008266757 | W5: -0.2002398848 | X5: -2.158679274 | Y5: 1.79167218 | Z5: -1.410546469 | AA5: -0.5855408422 | AB5: -0.7005908205 | AC5: 0.03348529382 | AD5: 0.7911370573 | AE5: 0.09248759851 | AF5: 0.849756477 | AG5: 0.05775592449 | AI5: 740 | AJ5: 28.08144093 | AK5: 0.09465355521 | AL5: =AJ5/100 -> 0.2808144093 | AM5: 0.0009465355521 | AO5: =(AJ5/100-AE5)^2+(AK5/100-AF5)^2 -> 0.7559453043
A6: 730 | B6: 0.06961457798 | C6: 0.6272049348 | D6: 1.332165031 | E6: 3.874051265 | F6: 34.90395462 | G6: 0.5488096675 | H6: 0.01 | J6: =F6*(1-G6)/(F6*(1-G6)+E6) -> 0.8025697378 | K6: 0.1962237816 | L6: =SQRT(1-1/D6^2) -> 0.6606912654 | M6: =(D6-1)^2/(D6+1)^2 -> 0.0202856656 | N6: 0.01370097428 | O6: 0.8218283041 | P6: 3.983723996 | Q6: 0.60957883 | R6: 0.9602353218 | S6: 0.5782142303 | T6: 1.481166338 | U6: 0.1538027659 | V6: 1.011758514 | W6: -0.2001730472 | X6: -2.158571683 | Y6: 1.07775703 | Z6: -1.682741408 | AA6: -0.6772438963 | AB6: -0.8141867369 | AC6: 0.03344006722 | AD6: 0.7890431263 | AE6: 0.0824387812 | AF6: 0.8377110707 | AG6: 0.07985014812 | AI6: 730 | AJ6: 21.06800175 | AK6: 0.02887863237 | AL6: 0.2106800175 | AM6: 0.0002887863237 | AO6: 0.717721897
A7: 720 | B7: 0.1225055005 | C7: 0.7404213388 | D7: 1.332311487 | E7: 6.817431106 | F7: 41.2044475 | G7: 0.6961205535 | H7: 0.01 | J7: 0.6474705752 | K7: 0.1933861581 | L7: 0.6607850063 | M7: 0.02030100808 | N7: 0.01378937306 | O7: 0.8241636552 | P7: 1.799860798 | Q7: 0.893532114 | R7: 0.9602058453 | S7: 0.5781638452 | T7: 1.223279908 | U7: 0.183821602 | V7: 1.016754829 | W7: -0.2001033162 | X7: -2.158483351 | Y7: 0.4868125023 | Z7: -4.085575666 | AA7: -0.802067468 | AB7: -0.9655476217 | AC7: 0.03353989389 | AD7: 0.791262117 | AE7: 0.06485240485 | AF7: 0.8223645918 | AG7: 0.1127830034 | AI7: 720 | AJ7: 12.66716195 | AK7: 0.008984645952 | AL7: 0.1266716194 | AM7: 8.984645952e-05 | AO7: 0.6799573721
A8: 710 | B8: 18.13475845 | C8: 160.095492 | D8: 1.332464467 | E8: 1009.199308 | F8: 8909.314131 | G8: 0.9199516742 | H8: 0.01 | J8: 0.4140652791 | K8: 17.22374988 | L8: 0.6608828766 | M8: 0.02031703825 | N8: 2.225877892e-17 | O8: 3.309942649e-08 | P8: 0.6923172234 | Q8: 1.169726863 | R8: 0.9601750486 | S8: 0.5781112336 | T8: 1.069052842 | U8: 61528563.11 | V8: 61528563.11 | W8: -0.2000305214 | X8: -2.156222467 | Y8: 0.1872036377 | Z8: 1.290173638 | AA8: -1.138600006e-08 | AB8: -1.042130207 | AC8: 0.02031703825 | AD8: 3.176812471e-08 | AE8: 0.06732813209 | AF8: 6.175733248e-08 | AG8: 0.9326718062 | AI8: 710 | AJ8: 6.732813358 | AK8: 0.002210829983 | AL8: 0.06732813358 | AM8: 2.210829983e-05 | AO8: 4.860500382e-10
A9: 700 | B9: 0.2575646609 | C9: 0.575956231 | D9: 1.332624369 | E9: 14.33347338 | F9: 32.05196426 | G9: 0.8407876537 | H9: 0.01 | J9: 0.2625502254 | K9: 0.1943654181 | L9: 0.6609851238 | M9: 0.02033379827 | N9: 0.01378462175 | O9: 0.8233569797 | P9: 0.34888301 | Q9: 1.293719298 | R9: 0.9601428507 | S9: 0.5780562613 | T9: 1.016436091 | U9: 0.2228798974 | V9: 1.0245367 | W9: -0.1999544796 | X9: -2.158264475 | Y9: 0.09431269952 | Z9: 0.4154107692 | AA9: -0.9323064229 | AB9: -1.129696209 | AC9: 0.03356724127 | AD9: 0.7904350122 | AE9: 0.042113629 | AF9: 0.7989217273 | AG9: 0.1589646437 | AI9: 700 | AJ9: 4.52163744 | AK9: 0.002503075488 | AL9: 0.0452163744 | AM9: 2.503075488e-05 | AO9: 0.6382455587
A10: 690 | B10: 0.2805773853 | C10: 0.5749649802 | D10: 1.332791621 | E10: 15.61413149 | F10: 31.99680115 | G10: 0.8588115119 | H10: 0.01 | J10: 0.2244011884 | K10: 0.2013171147 | L10: 0.6610920147 | M10: 0.02035133362 | N10: 0.01360601827 | O10: 0.8176531006 | P10: 0.283516698 | Q10: 1.320226695 | R10: 0.9601091645 | S10: 0.5779987839 | T10: 1.006080347 | U10: 0.2333839724 | V10: 1.026872961 | W10: -0.1998749936 | X10: -2.158120074 | Y10: 0.07662045982 | Z10: 0.3158898933 | AA10: -0.9323562312 | AB10: -1.138189899 | AC10: 0.03341280268 | AD10: 0.7849284386 | AE10: 0.04068582842 | AF10: 0.7921468924 | AG10: 0.1671672792 | AI10: 690 | AJ10: 4.076618433 | AK10: 0.001590128396 | AL10: 0.04076618433 | AM10: 1.590128396e-05 | AO10: 0.6274715135
A11: 680 | B11: 0.2741470393 | C11: 0.4423904992 | D11: 1.332966686 | E11: 15.25628274 | F11: 24.61903128 | G11: 0.8210226676 | H11: 0.01 | J11: 0.2240936572 | K11: 0.1966253128 | L11: 0.6612038365 | M11: 0.0203696934 | N11: 0.01374668292 | O11: 0.8214983806 | P11: 0.2830115115 | Q11: 1.320296038 | R11: 0.9600738957 | S11: 0.5779386458 | T11: 1.005949251 | U11: 0.2278576189 | V11: 1.025631071 | W11: -0.1997918511 | X11: -2.158020087 | Y11: 0.07646103559 | Z11: 0.3151809277 | AA11: -0.9373789389 | AB11: -1.138866622 | AC11: 0.03356574383 | AD11: 0.7885927184 | AE11: 0.04068935579 | AF11: 0.7956653415 | AG11: 0.1636453028 | AI11: 680 | AJ11: 4.07454896 | AK11: 0.00200737995 | AL11: 0.0407454896 | AM11: 2.00737995e-05 | AO11: 0.6330513951
A12: 670 | B12: 0.275209869 | C12: 0.6242039235 | D12: 1.333150061 | E12: 15.31542921 | F12: 34.73694834 | G12: 0.874755923 | H12: 0.01 | J12: 0.2212240022 | K12: 0.1966602624 | L12: 0.6613208995 | M12: 0.02038893071 | N12: 0.01375870365 | O12: 0.82146967 | P12: 0.2783525592 | Q12: 1.322087622 | R12: 0.9600369426 | S12: 0.5778756789 | T12: 1.005157905 | U12: 0.2280560037 | V12: 1.025675163 | W12: -0.1997048228 | X12: -2.157894295 | Y12: 0.07517874894 | Z12: 0.308589609 | AA12: -0.9378519825 | AB12: -1.139504529 | AC12: 0.03359600837 | AD12: 0.7885345894 | AE12: 0.0406104597 | AF12: 0.7954988146 | AG12: 0.1638907257 | AI12: 670 | AJ12: 4.043643713 | AK12: 0.002066281701 | AL12: 0.04043643713 | AM12: 2.066281701e-05 | AO12: 0.6327855202
A13: 660 | B13: 17.90287591 | C13: 160.8505855 | D13: 1.333342287 | E13: 996.2950444 | F13: 8951.33508 | G13: 0.9692045751 | H13: 0.01 | J13: 0.2167215991 | K13: 12.71955212 | L13: 0.6614435385 | M13: 0.02040910301 | N13: =M13*EXP(-2*K13) -> 1.827095812e-13 | O13: 2.992049004e-06 | P13: 0.2710383759 | Q13: 1.324954893 | R13: 0.9599981949 | S13: 0.5778097015 | T13: 1.003955073 | U13: 1141561.489 | V13: 1141561.489 | W13: -0.1996136614 | X13: -2.155619403 | Y13: 0.07317924106 | Z13: 0.298377392 | AA13: -7.682529101e-07 | AB13: -1.0756825 | AC13: 0.02040910301 | AD13: 2.871165214e-06 | AE13: 0.03995009289 | AF13: 3.58300034e-06 | AG13: 0.9600463241 | AI13: 660 | AJ13: 3.99501133 | AK13: 0.002555017634 | AL13: 0.03995011329 | AM13: 2.555017634e-05 | AO13: 4.825572381e-10
A14: 650 | B14: 0.3015765229 | C14: 0.6273081811 | D14: 1.333543948 | E14: 16.7827335 | F14: 34.90970028 | G14: 0.8671821701 | H14: 0.01 | J14: 0.2164691074 | K14: 0.2141936413 | L14: 0.6615721158 | M14: 0.02043027263 | N14: 0.01331152858 | O14: 0.8071920641 | P14: 0.2707031338 | Q14: 1.324961619 | R14: 0.9599575333 | S14: 0.577740517 | T14: 1.003832315 | U14: 0.2490573195 | V14: 1.030548179 | W14: -0.1995180992 | X14: -2.157550724 | Y14: 0.07306352866 | Z14: 0.297900938 | AA14: -0.9201103934 | AB14: -1.138145994 | AC14: 0.03320691578 | AD14: 0.7747573766 | AE14: 0.04051715213 | AF14: 0.7820055479 | AG14: 0.1774773 | AI14: 650 | AJ14: 3.993560672 | AK14: 0.001662249106 | AL14: 0.03993560672 | AM14: 1.662249106e-05 | AO14: 0.6115070177
A15: 640 | B15: 0.2825374606 | C15: 0.803508176 | D15: 1.333755679 | E15: 15.72320968 | F15: 44.71522999 | G15: 0.9039768198 | H15: 0.01 | J15: 0.2145035852 | K15: 0.2001690827 | L15: 0.6617070238 | M15: 0.02045250718 | N15: 0.01370509018 | O15: 0.8185923316 | P15: 0.2675701098 | Q15: 1.326101865 | R15: 0.9599148279 | S15: 0.5776679127 | T15: 1.003274554 | U15: 0.232554424 | V15: 1.026684742 | W15: -0.1994178468 | X15: -2.157464717 | Y15: 0.07219177799 | Z15: 0.293569776 | AA15: -0.935260902 | AB15: -1.14046674 | AC15: 0.03360641045 | AD15: 0.7856704479 | AE15: 0.0404590934 | AF15: 0.7924723048 | AG15: 0.1670686018 | AI15: 640 | AJ15: 3.973391891 | AK15: 0.001630305852 | AL15: 0.03973391891 | AM15: 1.630305852e-05 | AO15: 0.6279870405
A16: 630 | B16: 0.3088407939 | C16: 0.5440645501 | D16: 1.333978169 | E16: 17.18699018 | F16: 30.27719222 | G16: 0.8447580121 | H16: 0.01 | J16: 0.2147498979 | K16: 0.2188728169 | L16: 0.6618486879 | M16: 0.0204758802 | N16: 0.01321697495 | O16: 0.8034238936 | P16: 0.2679523977 | Q16: 1.325758854 | R16: 0.9598699379 | S16: 0.5775916574 | T16: 1.003271878 | U16: 0.254689754 | V16: 1.031923869 | W16: -0.1993125901 | X16: -2.157234369 | Y16: 0.07226742787 | Z16: 0.2941107543 | AA16: -0.9154599346 | AB16: -1.137821982 | AC16: 0.03316057098 | AD16: 0.7710677891 | AE16: 0.04052020474 | AF16: 0.7783622004 | AG16: 0.1811175949 | AI16: 630 | AJ16: 3.977843761 | AK16: 0.0006182912293 | AL16: 0.03977843761 | AM16: 6.182912293e-06 | AO16: 0.6058386402
A17: 620 | B17: 0.2841689066 | C17: 0.7517543102 | D17: 1.334212167 | E17: 15.81399965 | F17: 41.83512736 | G17: 0.8963926264 | H17: 0.01 | J17: 0.2151248631 | K17: 0.2014842732 | L17: 0.6619975703 | M17: 0.02050047174 | N17: 0.01370114425 | O17: 0.8175164344 | P17: 0.2685445037 | Q17: 1.32532127 | R17: 0.9598227099 | S17: 0.5775115001 | T17: 1.003298236 | U17: 0.2340394886 | V17: 1.027022143 | W17: -0.1992019882 | X17: -2.157146993 | Y17: 0.07239815529 | Z17: 0.2949417209 | AA17: -0.9336849101 | AB17: -1.140041403 | AC17: 0.03364930757 | AD17: 0.7845614339 | AE17: 0.04055581366 | AF17: 0.7914160591 | AG17: 0.1680281273 | AI17: 620 | AJ17: 3.983258724 | AK17: 0.001497046092 | AL17: 0.03983258724 | AM17: 1.497046092e-05 | AO17: =(AJ17/100-AE17)^2+(AK17/100-AF17)^2 -> 0.6263162061
A18: 610 | B18: 0.2908176144 | C18: 0.7722367727 | D18: 1.334458488 | E18: 16.18400024 | F18: 42.9749764 | G18: 0.8960037294 | H18: 0.01 | J18: 0.2163940289 | K18: 0.2065323752 | L18: 0.6621541732 | M18: 0.02052636908 | N18: 0.01358064484 | O18: 0.8133999271 | P18: 0.2705586144 | Q18: 1.324278601 | R18: 0.9597729766 | S18: 0.5774271677 | T18: 1.003546564 | U18: 0.2399158174 | V18: 1.028377168 | W18: -0.1990856708 | X18: -2.156957357 | Y18: 0.07291044539 | Z18: 0.2977493497 | AA18: -0.9280686516 | AB18: -1.13900156 | AC18: 0.03355884618 | AD18: 0.7805679363 | AE18: 0.04064821129 | AF18: 0.7876013648 | AG18: 0.1717504239 | AI18: 610 | AJ18: 3.999212622 | AK18: 0.001383206459 | AL18: 0.03999212623 | AM18: 1.383206459e-05 | AO18: 0.6202945522
A19: 600 | B19: 0.2977792709 | C19: 0.7790759288 | D19: 1.334718025 | E19: 16.57141643 | F19: 43.35557544 | G19: 0.8924655164 | H19: 0.01 | J19: 0.2195676449 | K19: 0.2123363584 | L19: 0.6623190439 | M19: 0.02055366754 | N19: 0.01344176535 | O19: 0.8086926412 | P19: 0.2756345946 | Q19: 1.321952102 | R19: 0.9597205552 | S19: 0.5773383628 | T19: 1.00427477 | U19: 0.2465686507 | V19: 1.029949562 | W19: -0.1989632347 | X19: -2.156755854 | Y19: 0.07424538685 | Z19: 0.3048554257 | AA19: -0.9213569477 | AB19: -1.137427135 | AC19: 0.03345211981 | AD19: 0.7760054696 | AE19: 0.04082039863 | AF19: 0.7833123282 | AG19: 0.1758672732 | AI19: 600 | AJ19: 4.035992623 | AK19: 0.001547496369 | AL19: 0.04035992623 | AM19: 1.547496369e-05 | AO19: 0.6135541723
A20: 590 | B20: 0.297418904 | C20: 0.5153794363 | D20: 1.334991749 | E20: 16.55136201 | F20: 28.68086563 | G20: 0.8350371523 | H20: 0.01 | J20: 0.2223068863 | K20: 0.2128263928 | L20: 0.6624927788 | M20: 0.02058247139 | N20: 0.01344741675 | O20: 0.8082964512 | P20: 0.2800481809 | Q20: 1.319898645 | R20: 0.9596652461 | S20: 0.5772447606 | T20: 1.004892729 | U20: 0.2469531444 | V20: 1.030041677 | W20: -0.1988342402 | X20: -2.156567006 | Y20: 0.07539896153 | Z20: 0.3110953692 | AA20: -0.9203209738 | AB20: -1.136667547 | AC20: 0.03348559418 | AD20: 0.7755800651 | AE20: 0.04097282633 | AF20: 0.783004619 | AG20: 0.1760225546 | AI20: 590 | AJ20: 4.06837964 | AK20: 0.0009736056094 | AL20: 0.04068379641 | AM20: 9.736056094e-06 | AO20: 0.6130810703
A21: 580 | B21: 0.2959700232 | C21: 0.5149438344 | D21: 1.335280727 | E21: 16.47073179 | F21: 28.65662438 | G21: 0.8303210387 | H21: 0.01 | J21: 0.2279281037 | K21: 0.2133315805 | L21: 0.66267603 | M21: 0.0206128949 | N21: 0.01345369359 | O21: 0.8078882128 | P21: 0.2892111083 | Q21: 1.315880678 | R21: 0.9596068304 | S21: 0.5771460062 | T21: 1.006253573 | U21: 0.2471664352 | V21: 1.030092834 | W21: -0.1986982073 | X21: -2.15636781 | Y21: 0.07782751134 | Z21: 0.3242101386 | AA21: -0.9187497966 | AB21: -1.135225157 | AC21: 0.03352124545 | AD21: 0.7751406096 | AE21: 0.04124446401 | AF21: 0.782798901 | AG21: 0.1759566349 | AI21: 580 | AJ21: 4.133344412 | AK21: 0.0009481876183 | AL21: 0.04133344412 | AM21: 9.481876183e-06 | AO21: 0.6127592827
A22: 570 | B22: 0.2803819594 | C22: 0.7338012276 | D22: 1.335586127 | E22: 15.60325604 | F22: 40.83603832 | G22: 0.8801159345 | H22: 0.01 | J22: 0.2388227226 | K22: 0.2049884633 | L22: 0.6628695103 | M22: 0.0206450635 | N22: 0.01370141769 | O22: 0.8146567148 | P22: 0.3073638669 | Q22: 1.308206859 | R22: 0.9595450677 | S22: 0.5770417111 | T22: 1.009018181 | U22: 0.2366133878 | V22: 1.027611743 | W22: -0.1985546113 | X22: -2.156194584 | Y22: 0.0826693256 | Z22: 0.3508960801 | AA22: -0.9254338436 | AB22: -1.133658308 | AC22: 0.03379030606 | AD22: 0.7815877426 | AE22: 0.04169984329 | AF22: 0.7894359205 | AG22: 0.1688642362 | AI22: 570 | AJ22: 4.259325265 | AK22: 0.001320325851 | AL22: 0.04259325265 | AM22: 1.320325851e-05 | AO22: 0.6231890246
A23: 560 | B23: 0.2998278898 | C23: 0.5294510703 | D23: 1.335909231 | E23: 16.68542207 | F23: 29.46395206 | G23: 0.8082705928 | H23: 0.01 | J23: 0.2529315161 | K23: 0.2233452813 | L23: 0.6630740014 | M23: 0.02067911513 | N23: 0.01322929511 | O23: 0.7998386323 | P23: 0.3316548666 | Q23: 1.298146743 | R23: 0.9594796938 | S23: 0.5769314492 | T23: 1.012726828 | U23: 0.2572265343 | V23: 1.032552899 | W23: -0.1984028773 | X23: -2.155898396 | Y23: 0.08915347283 | Z23: 0.3881789521 | AA23: -0.9037919651 | AB23: -1.12783166 | AC23: 0.03337039915 | AD23: 0.7673106669 | AE23: 0.04243424723 | AF23: 0.7762911784 | AG23: 0.1812745744 | AI23: 560 | AJ23: 4.426309109 | AK23: 0.0005452130506 | AL23: 0.04426309109 | AM23: 5.452130506e-06 | AO23: 0.6026228735
A24: 550 | B24: 0.2704941465 | C24: 0.7162778309 | D24: 1.336251452 | E24: 15.05299925 | F24: 39.86086129 | G24: 0.867339461 | H24: 0.01 | J24: 0.2599662292 | K24: 0.2034096259 | L24: 0.6632903612 | M24: 0.0207152018 | N24: 0.01379144628 | O24: 0.8159439412 | P24: 0.3441109569 | Q24: 1.292921846 | R24: 0.9594104178 | S24: 0.5768147524 | T24: 1.014565799 | U24: 0.2333580959 | V24: 1.02686708 | W24: -0.1982423745 | X24: -2.155748278 | Y24: 0.09244779459 | Z24: 0.4080534619 | AA24: -0.9229368441 | AB24: -1.128498592 | AC24: 0.03394496072 | AD24: 0.7827128071 | AE24: 0.04264758476 | AF24: 0.7913490596 | AG24: 0.1660033556 | AI24: 550 | AJ24: 4.512436866 | AK24: 0.001508532815 | AL24: 0.04512436866 | AM24: 1.508532815e-05 | AO24: 0.6262155933
A25: 540 | B25: 0.2778189482 | C25: 0.7112190611 | D25: 1.336614348 | E25: 15.46062447 | F25: 39.57934075 | G25: 0.8616882517 | H25: 0.01 | J25: 0.2614908409 | K25: 0.2093491228 | L25: 0.6635195331 | M25: 0.02075349133 | N25: 0.01365377778 | O25: 0.8111120085 | P25: 0.3468292432 | Q25: 1.291574492 | R25: 0.9593369182 | S25: 0.5766911053 | T25: 1.014877254 | U25: 0.2401709323 | V25: 1.028436715 | W25: -0.1980724097 | X25: -2.155476457 | Y25: 0.09312035717 | Z25: 0.4124910836 | AA25: -0.9164464666 | AB25: -1.127299936 | AC25: 0.03385013389 | AD25: 0.7780150095 | AE25: 0.04281219746 | AF25: 0.7869047116 | AG25: 0.1702830909 | AI25: 540 | AJ25: 4.532912016 | AK25: 0.00115233667 | AL25: 0.04532912016 | AM25: 1.15233667e-05 | AO25: 0.6192072246
A26: 530 | B26: 0.2679911233 | C26: 0.7458084355 | D26: 1.336999638 | E26: 14.91370601 | F26: 41.50423943 | G26: 0.8727953892 | H26: 0.01 | J26: 0.2614504411 | K26: 0.2019323664 | L26: 0.6637625569 | M26: 0.02079416943 | N26: 0.01388498303 | O26: 0.8171501929 | P26: 0.3467441454 | Q26: 1.291325227 | R26: 0.9592588397 | S26: 0.5765599399 | T26: 1.014744349 | U26: 0.2314879826 | V26: 1.026443708 | W26: -0.1978922193 | X26: -2.155245947 | Y26: 0.09303628749 | Z26: 0.4123916976 | AA26: -0.9240921435 | AB26: -1.128165467 | AC26: 0.034111548 | AD26: 0.7837458958 | AE26: 0.04281321571 | AF26: 0.792382196 | AG26: 0.1648045883 | AI26: 530 | AJ26: 4.53486681 | AK26: 0.001584800805 | AL26: 0.0453486681 | AM26: 1.584800805e-05 | AO26: 0.6278508579
A27: 520 | B27: 0.2992726964 | C27: 0.5248523462 | D27: 1.337409228 | E27: 16.65452555 | F27: 29.20803307 | G27: 0.8165971104 | H27: 0.01 | J27: 0.2433669197 | K27: 0.2201136322 | L27: 0.6640205801 | M27: 0.02083744199 | N27: 0.013417022 | O27: 0.8024276112 | P27: s | Q27: 1.303697982 | R27: 0.9591757882 | S27: 0.5764206282 | T27: 1.009673629 | U27: 0.2539790095 | V27: 1.031748679 | W27: -0.1977009612 | X27: -2.154891931 | AA27: -0.9086781076 | AB27: -1.130253723 | AC27: 0.03370473421 | AD27: 0.7695500949 | AI27: 520 | AJ27: 4.323861599 | AK27: 0.0006925239164 | AL27: 0.04323861599 | AM27: 6.925239164e-06
A28: 510 | B28: 0.2867515607 | C28: 0.7618817285 | D28: 1.337845232 | E28: 15.95772435 | F28: 42.39871819 | G28: 0.8919884012 | H28: 0.01 | J28: 0.2229873602 | K28: 0.2053727769 | L28: 0.6642948725 | M28: 0.02088353784 | N28: 0.01384903606 | O28: 0.8143436913 | P28: 0.2810684759 | Q28: 1.317206527 | R28: 0.9590873257 | S28: 0.5762724753 | T28: 1.004224784 | U28: 0.2378941426 | V28: 1.0279074 | W28: -0.1974977044 | X28: -2.154657551 | Y28: 0.07530582048 | Z28: 0.3127089442 | AA28: -0.9276626406 | AB28: -1.136908395 | AC28: 0.03416402097 | AD28: 0.780911943 | AE28: 0.04143405089 | AF28: 0.788125405 | AG28: 0.1704405441 | AI28: 510 | AJ28: 4.095525742 | AK28: 0.001156360752 | AL28: 0.04095525742 | AM28: 1.156360752e-05 | AO28: 0.6211236562
A29: 500 | B29: 0.3048902091 | C29: 0.5302839321 | D29: 1.33831 | E29: 16.96714014 | F29: 29.51030082 | G29: 0.8443417753 | H29: 0.01 | J29: 0.2130510284 | K29: 0.2156066117 | L29: 0.6645868412 | M29: 0.02093271191 | N29: 0.01360040912 | O29: 0.806052331 | P29: 0.2651387849 | Q29: 1.323425021 | R29: 0.9589929646 | S29: 0.5761147096 | T29: 1.001588407 | U29: 0.2505853565 | V29: 1.030918533 | W29: -0.1972814176 | X29: -2.154299802 | Y29: 0.07098151115 | Z29: 0.2904497233 | AA29: -0.9186107179 | AB29: -1.137720974 | AC29: 0.03397340615 | AD29: 0.7728798372 | AE29: 0.04112533321 | AF29: 0.7799704335 | AG29: 0.1789042332 | AI29: 500 | AJ29: 3.989837646 | AK29: 0.0007642246098 | AL29: 0.03989837646 | AM29: 7.642246098e-06 | AO29: 0.6083434612
A30: 490 | B30: 0.3096436111 | C30: 0.5362089138 | D30: 1.338806154 | E30: 17.23166696 | F30: 29.84002606 | G30: 0.8455878846 | H30: 0.01 | J30: 0.2109800008 | K30: 0.218393285 | L30: 0.6648980496 | M30: 0.02098524889 | N30: 0.0135587648 | O30: 0.8038092533 | P30: 0.2618581546 | Q30: 1.324389656 | R30: 0.9588921605 | S30: 0.5759464735 | T30: 1.000931205 | U30: 0.2539860156 | V30: 1.031750404 | W30: -0.1970509561 | X30: -2.153952428 | Y30: 0.07004392517 | Z30: 0.2859691986 | AA30: -0.9159909514 | AB30: -1.137710374 | AC30: 0.03398461536 | AD30: 0.770646236 | AE30: 0.04111995591 | AF30: 0.777718815 | AG30: 0.1811612291 | AI30: 490 | AJ30: 3.971035362 | AK30: 0.0007160678202 | AL30: 0.03971035361 | AM30: 7.160678202e-06 | AO30: 0.6048374042
A31: 480 | B31: 0.2994870125 | C31: 0.8173688155 | D31: 1.339336623 | E31: 16.66645225 | F31: 45.48657458 | G31: 0.9023127796 | H31: 0.01 | J31: 0.2104915268 | K31: 0.2110990928 | L31: 0.6652302386 | M31: 0.02104146756 | N31: 0.0137948723 | O31: 0.8096938281 | P31: 0.2610767497 | Q31: 1.324288322 | R31: 0.9587843036 | S31: 0.5757668107 | T31: 1.000657254 | U31: 0.2453244581 | V31: 1.029652412 | W31: -0.1968050464 | X31: -2.153624008 | Y31: 0.06977175201 | Z31: 0.2849252044 | AA31: -0.9236526353 | AB31: -1.138691775 | AC31: 0.03426575727 | AD31: 0.776203326 | AE31: 0.04118855627 | AF31: 0.7830692423 | AG31: 0.1757422015 | AI31: 480 | AJ31: 3.969571352 | AK31: 0.001081775962 | AL31: 0.03969571352 | AM31: 1.081775962e-05 | AO31: 0.6131827248
A32: 470 | B32: 0.3153431061 | C32: 0.5434126702 | D32: 1.339904689 | E32: 17.54884386 | F32: 30.2409151 | G32: 0.8466920358 | H32: 0.01 | J32: 0.2089776686 | K32: 0.2218501698 | L32: 0.6655853507 | M32: 0.02110172581 | N32: 0.01354008425 | O32: 0.8010353746 | P32: 0.2586859267 | Q32: 1.324824792 | R32: 0.9586687099 | S32: 0.5755746528 | T32: 1.000120738 | U32: 0.2581359171 | V32: 1.032779818 | W32: -0.1965422684 | X32: -2.15319588 | Y32: 0.06906587934 | Z32: 0.2816909037 | AA32: -0.9125903976 | AB32: -1.137465522 | AC32: 0.03408010911 | AD32: 0.7678049808 | AE32: 0.0412090987 | AF32: 0.7748693113 | AG32: 0.18392159 | AI32: 470 | AJ32: 3.95751524 | AK32: 0.0006273442855 | AL32: 0.0395751524 | AM32: 6.273442855e-06 | AO32: 0.6004153972
A33: 460 | B33: 0.2948560687 | C33: 0.7814881085 | D33: 1.34051404 | E33: 16.40874022 | F33: 43.48981324 | G33: 0.9006084882 | H33: 0.01 | J33: 0.2085024546 | K33: 0.2073125851 | L33: 0.6659655594 | M33: 0.02116642664 | N33: 0.0139822841 | O33: 0.8127655519 | P33: 0.257928307 | Q33: 1.324650996 | R33: 0.9585446092 | S33: 0.5753688027 | T33: 0.9998286347 | U33: 0.2408737374 | V33: 1.028601068 | W33: -0.1962610351 | X33: -2.152845261 | Y33: 0.06879210627 | Z33: 0.2806876716 | AA33: -0.9278410336 | AB33: -1.139409733 | AC33: 0.03456703105 | AD33: 0.7789535355 | AE33: 0.04130240456 | AF33: 0.7856355678 | AG33: 0.1730620276 | AI33: 460 | AJ33: 3.956650972 | AK33: 0.001154340249 | AL33: 0.03956650972 | AM33: 1.154340249e-05 | AO33: 0.6172081211
A34: 450 | B34: 0.3028252926 | C34: 0.5225357901 | D34: 1.341168832 | E34: 16.85222753 | F34: 29.07911672 | G34: 0.8477476609 | H34: 0.01 | J34: 0.208056796 | K34: 0.2127959107 | L34: 0.6663733026 | M34: 0.02123602515 | N34: 0.01387525749 | O34: 0.8083210901 | P34: 0.2572135432 | Q34: 1.32442232 | R34: 0.9584111319 | S34: 0.5751479158 | T34: 0.9995310743 | U34: 0.2473482498 | V34: 1.030136475 | W34: -0.195959568 | X34: -2.152381225 | Y34: 0.06852495851 | Z34: 0.2797464257 | AA34: -0.9220536293 | AB34: -1.138622949 | AC34: 0.03453214709 | AD34: 0.7745827986 | AE34: 0.04138233886 | AF34: 0.7813758631 | AG34: 0.177241798 | AI34: 450 | AJ34: 3.9567554 | AK34: 0.0009310709602 | AL34: 0.039567554 | AM34: 9.310709602e-06 | AO34: 0.6105369826
A35: 440 | B35: 16.96034774 | C35: 160.3601987 | D35: 1.341873763 | E35: 943.8433515 | F35: 8924.045056 | G35: 0.9720358278 | H35: 0.01 | J35: 0.2091119361 | K35: 11.93396885 | L35: 0.6668113218 | M35: 0.02131103694 | N35: 9.181020309e-13 | O35: 6.563616274e-06 | P35: 0.2587667626 | Q35: 1.323183475 | R35: 0.9582672934 | S35: 0.5749104778 | T35: 0.9995860469 | U35: 457925.995 | V35: 457925.995 | W35: -0.1956358693 | X35: -2.149820956 | Y35: 0.06885600788 | Z35: 0.2819114803 | AA35: -1.816330999e-06 | AB35: -1.075133005 | AC35: 0.02131103694 | AD35: 6.28684227e-06 | AE35: 0.03973204116 | AF35: 7.731492985e-06 | AG35: 0.9602602273 | AI35: 440 | AJ35: 3.97320342 | AK35: 0.0004317416065 | AL35: 0.03973203421 | AM35: 4.317416065e-06 | AO35: 1.165596961e-11
A36: 430 | B36: 15.24820767 | C36: 131.5126109 | D36: 1.342634156 | E36: 848.562757 | F36: 7318.676798 | G36: 0.9694221526 | H36: 0.01 | J36: 0.2086901999 | K36: 10.72352139 | L36: 0.667282709 | M36: 0.02139204808 | N36: 1.037337388e-11 | O36: 2.202083753e-05 | P36: 0.2580858837 | Q36: 1.32285949 | R36: 0.9581119745 | S36: 0.5746547777 | T36: 0.9992638096 | U36: 113615.8606 | V36: 113615.8606 | W36: -0.1952876887 | X36: -2.149309555 | Y36: 0.06858594721 | Z36: 0.2810187526 | AA36: -6.883808937e-06 | AB36: -1.075050499 | AC36: 0.02139204809 | AD36: 2.108877307e-05 | AE36: 0.03974271559 | AF36: 2.572749368e-05 | AG36: 0.9602315569 | AI36: 430 | AJ36: 3.972810984 | AK36: 0.001135905774 | AL36: 0.03972810983 | AM36: 1.135905774e-05 | AO36: 4.197798971e-10
A37: 420 | B37: 15.25106219 | C37: 131.5717 | D37: 1.34345607 | E37: 848.7216109 | F37: 7321.965104 | G37: 0.9691735767 | H37: 0.01 | J37: 0.2100738609 | K37: 10.74431607 | L37: 0.6677909613 | M37: 0.02147972706 | N37: 9.991585261e-12 | O37: 2.156764965e-05 | P37: 0.2602288005 | Q37: 1.321322881 | R37: 0.9579438994 | S37: 0.574378877 | T37: 0.999364638 | U37: 115533.5484 | V37: 115533.5484 | W37: -0.1949124841 | X37: -2.148757754 | Y37: 0.0690587162 | Z37: 0.2839787245 | AA37: -6.755165909e-06 | AB37: -1.074720295 | AC37: 0.02147972707 | AD37: 2.065106605e-05 | AE37: 0.03995096181 | AF37: 2.523852755e-05 | AG37: 0.9600237997 | AI37: 420 | AJ37: 3.993483067 | AK37: 0.0007908493212 | AL37: 0.03993483067 | AM37: 7.908493212e-06 | AO37: 5.605439075e-10
A38: 410 | B38: 15.24491655 | C38: 131.5512632 | D38: 1.344346419 | E38: 848.379606 | F38: 7320.827797 | G38: 0.9690552431 | H38: 0.01 | J38: 0.2107515528 | K38: 10.74920843 | L38: 0.6683400459 | M38: 0.02157483921 | N38: 9.938109049e-12 | O38: 2.146239063e-05 | P38: 0.2612670607 | Q38: 1.320193091 | R38: 0.9577616081 | S38: 0.5740805722 | T38: 0.9992729186 | U38: 115572.8455 | V38: 115572.8456 | W38: -0.1945073756 | X38: -2.148161144 | Y38: 0.0692292615 | Z38: 0.2854402399 | AA38: -6.738204895e-06 | AB38: -1.074471186 | AC38: 0.02157483922 | AD38: 2.054628555e-05 | AE38: 0.04008885474 | AF38: 2.513074484e-05 | AG38: 0.9598860145 | AI38: 410 | AJ38: 4.007251501 | AK38: 0.0007290411974 | AL38: 0.04007251501 | AM38: 7.290411974e-06 | AO38: 5.852642308e-10
A39: 400 | B39: 15.94100881 | C39: 150.5379659 | D39: 1.345313125 | E39: 887.1171401 | F39: 8377.437802 | G39: 0.9711361824 | H39: 0.01 | J39: 0.2141909197 | K39: 11.28921976 | L39: 0.6689344778 | M39: 0.02167826413 | N39: 3.391039166e-12 | O39: 1.250702884e-05 | P39: 0.2666648141 | Q39: 1.317223283 | R39: 0.9575634231 | S39: 0.5737573499 | T39: 0.9998355127 | U39: 211827.9477 | V39: 211827.9477 | W39: -0.1940690906 | X39: -2.1475147 | Y39: 0.07054341981 | Z39: 0.2929212321 | AA39: -3.748634122e-06 | AB39: -1.073845667 | AC39: 0.02167826414 | AD39: 1.197064513e-05 | AE39: 0.04052853571 | AF39: 1.475689875e-05 | AG39: 0.9594567074 | AI39: 400 | AJ39: 4.052854299 | AK39: 0.001713052989 | AL39: 0.04052854299 | AM39: 1.713052989e-05 | AO39: 5.634177844e-12
G110: 0

Sheet Dilution0
A1: X= | B1: 111.3 | C1: g/L | AI1: dilution 1 | AK1: 111.3 | AL1: g/L
A3: l (nm) | B3: Abs,l (m2/kg) | C3: Ssca,l (m2/kg) | D3: n | E3: k (1/m) | F3: ss (1/m) | G3: g | H3: d (m) | J3: wtr | K3: ttr | L3: mc | M3: R1 | N3: Ctr | O3: Etr | P3: c | Q3: k2 | R3: g | S3: gbar | T3: j | U3: s | V3: c | W3: k1 | X3: k2 | Y3: D1 | Z3: D | AA3: A | AB3: B | AC3: R0dh | AD3: T0dh | AE3: Rdh | AF3: Tdh | AG3: Adh | AI3: l (nm) | AJ3: Rdh | AK3: Tdh | AL3: Rdh | AM3: Tdh | AO3: error
A4: 750 | B4: 0.009148656891 | C4: 0.3142894361 | D4: =1.32711+0.0026/(A4/1000)^2+0.00005/(A4/1000)^4 -> 1.331890247 | E4: =B4*B$1 -> 1.018245512 | F4: =C4*B$1 -> 34.98041424 | G4: 0.6867260176 | H4: 0.01 | J4: =F4*(1-G4)/(F4*(1-G4)+E4) -> 0.9149811232 | K4: =(F4*(1-G4)+E4)*H4*B$1 -> 13.33006619 | L4: =SQRT(1-1/D4^2) -> 0.6605152657 | M4: =(D4-1)^2/(D4+1)^2 -> 0.02025688994 | N4: =M4*EXP(-2*K4) -> 5.348406226e-14 | O4: =EXP(-K4) -> 1.624896894e-06 | P4: =J4/(1-J4)*(1-M4)/(1-M4*N4) -> 10.54408721 | Q4: =4/(1+L4)^2*(1-J4)/(1-J4*L4) -> 0.3117369758 | R4: =(1-M4)/(1+M4) -> 0.9602906089 | S4: =R4/(1+L4) -> 0.578308811 | T4: =2*S4/SQRT(Q4) -> 2.071551077 | U4: =SINH(SQRT(Q4)*K4) -> 853.6174046 | V4: =COSH(SQRT(Q4)*K4) -> 853.6179903 | W4: =(1-2*S4)-(1+2*S4)*M4 -> -0.2003039877 | X4: =(1-2*S4)*N4-(1+2*S4) -> -2.156617622 | Y4: =R4*(1-L4^2)*P4/2 -> 2.853939735 | Z4: =Y4*Q4/(Q4-1) -> -1.292643235 | AA4: =(W4*(T4*U4+V4)*O4+X4)/((1+T4^2)*U4+2*T4*V4) -> -0.0002678959138 | AB4: =(W4*O4+X4*(T4*U4+V4))/((1+T4^2)*U4+2*T4*V4) -> -0.7021265152 | AC4: =M4+(1-M4)^2*N4/(1-M4*N4) -> 0.02025688994 | AD4: =(1-M4)^2/(1-M4*N4)*O4 -> 1.559732942e-06 | AE4: =AC4+Z4*(1+AB4/SQRT(Q4)+N4) -> 0.3531620095 | AF4: =AD4+Z4*(AA4/SQRT(Q4)+(1+M4)*O4) -> 0.0006196436871 | AG4: =1-AE4-AF4 -> 0.6462183468 | AI4: 750 | AJ4: 35.31606293 | AK4: 0.06170363777 | AL4: =AJ4/100 -> 0.3531606293 | AM4: =AK4/100 -> 0.0006170363777 | AO4: =(AJ4/100-AE4)^2+(AK4/100-AF4)^2 -> 8.703142258e-12
A5: 740 | B5: 0.01206383295 | C5: 0.1846691012 | D5: =1.32711+0.0026/(A5/1000)^2+0.00005/(A5/1000)^4 -> 1.332024733 | E5: 1.342704608 | F5: 20.55367096 | G5: 0.5103296239 | H5: 0.01 | J5: =F5*(1-G5)/(F5*(1-G5)+E5) -> 0.8822935282 | K5: 12.69624521 | L5: =SQRT(1-1/D5^2) -> 0.6606014233 | M5: =(D5-1)^2/(D5+1)^2 -> 0.02027097168 | N5: 1.901323863e-13 | O5: 3.06260344e-06 | P5: 7.343764263 | Q5: 0.4092902533 | R5: 0.960263553 | S5: 0.5782625135 | T5: 1.807754012 | U5: =SINH(SQRT(Q5)*K5) -> 1684.757175 | V5: 1684.757472 | W5: -0.2002398848 | X5: -2.156525027 | Y5: 1.987259582 | Z5: -1.376930011 | AA5: -0.000162585891 | AB5: -0.7680605136 | AC5: 0.02027097168 | AD5: 2.939698007e-06 | AE5: 0.296412325 | AF5: 0.000348565487 | AG5: 0.7032391096 | AI5: 740 | AJ5: 29.64109993 | AK5: 0.03485031766 | AL5: =AJ5/100 -> 0.2964109993 | AM5: 0.0003485031766 | AO5: =(AJ5/100-AE5)^2+(AK5/100-AF5)^2 -> 1.7612446e-12
A6: 730 | B6: 0.01814315513 | C6: 0.4662781933 | D6: 1.332165031 | E6: 2.019333166 | F6: 51.89676291 | G6: 0.8343486944 | H6: 0.01 | J6: =F6*(1-G6)/(F6*(1-G6)+E6) -> 0.809785776 | K6: 11.81571896 | L6: =SQRT(1-1/D6^2) -> 0.6606912654 | M6: =(D6-1)^2/(D6+1)^2 -> 0.0202856656 | N6: 1.107098266e-12 | O6: 7.387516337e-06 | P6: 4.170869643 | Q6: 0.5933205634 | R6: 0.9602353218 | S6: 0.5782142303 | T6: 1.501322769 | U6: 4483.604728 | V6: 4483.60484 | W6: -0.2001730472 | X6: -2.156428461 | Y6: 1.128387429 | Z6: -1.64624863 | AA6: -7.746321367e-05 | AB6: -0.8621152308 | AC6: 0.0202856656 | AD6: 7.090834989e-06 | AE6: 0.2165732988 | AF6: 0.0001602389384 | AG6: 0.7832664622 | AI6: 730 | AJ6: 21.65756797 | AK6: 0.01573567139 | AL6: 0.2165756797 | AM6: 0.0001573567139 | AO6: 1.397591757e-11
A7: 720 | B7: 0.03151007296 | C7: 0.3377208242 | D7: 1.332311487 | E7: 3.507071121 | F7: 37.58832773 | G7: 0.8269319147 | H7: 0.01 | J7: 0.6497276121 | K7: 11.14381348 | L7: 0.6607850063 | M7: 0.02030100808 | N7: 4.247410158e-12 | O7: 1.446449577e-05 | P7: 1.817264245 | Q7: 0.8901316072 | R7: 0.9602058453 | S7: 0.5781638452 | T7: 1.225614286 | U7: 18410.61538 | V7: 18410.6154 | W7: -0.2001033162 | X7: -2.15632769 | Y7: 0.4915196529 | Z7: -3.982193309 | AA7: -2.494589138e-05 | AB7: -0.9688685519 | AC7: 0.02030100808 | AD7: 1.388316934e-05 | AE7: 0.1275123505 | AF7: 6.040513274e-05 | AG7: 0.8724272443 | AI7: 720 | AJ7: 12.75151252 | AK7: 0.005262373709 | AL7: 0.1275151252 | AM7: 5.262373709e-05 | AO7: 6.824912732e-11
A8: 710 | B8: 0.05570471951 | C8: 0.3045061282 | D8: 1.332464467 | E8: 6.199935282 | F8: 33.89153207 | G8: 0.8710074188 | H8: 0.01 | J8: 0.4135342209 | K8: 11.76629262 | L8: 0.6608828766 | M8: 0.02031703825 | N8: 1.224019914e-12 | O8: 7.7618285e-06 | P8: 0.6908031887 | Q8: 1.170221595 | R8: 0.9601750486 | S8: 0.5781112336 | T8: 1.068826837 | U8: 168594.1155 | V8: 168594.1155 | W8: -0.2000305214 | X8: -2.156222467 | Y8: 0.1867942405 | Z8: 1.28415348 | AA8: -3.73862818e-06 | AB8: -1.042244053 | AC8: 0.02031703825 | AD8: 7.449637711e-06 | AE8: 0.06723521264 | AF8: 1.318144413e-05 | AG8: 0.9327516059 | AI8: 710 | AJ8: 6.723514795 | AK8: 0.001201821943 | AL8: 0.06723514796 | AM8: 1.201821943e-05 | AO8: 1.357276253e-12
A9: 700 | B9: 0.06665905898 | C9: 0.08443867305 | D9: 1.332624369 | E9: 7.419153264 | F9: 9.39802431 | G9: 0.7159161951 | H9: 0.01 | J9: 0.2646279966 | K9: 11.22903448 | L9: 0.6609851238 | M9: 0.02033379827 | N9: 3.587592316e-12 | O9: 1.328288116e-05 | P9: 0.3525387194 | Q9: 1.292221595 | R9: 0.9601428507 | S9: 0.5780562613 | T9: 1.017024952 | U9: 174828.6535 | V9: 174828.6535 | W9: -0.1999544796 | X9: -2.156112523 | Y9: 0.09530093859 | Z9: 0.4214265231 | AA9: -4.348128056e-06 | AB9: -1.068956792 | AC9: 0.02033379827 | AD9: 1.27481903e-05 | AE9: 0.04546995129 | AF9: 1.68478071e-05 | AG9: 0.9545132009 | AI9: 700 | AJ9: 4.547032356 | AK9: 0.001382232771 | AL9: 0.04547032356 | AM9: 1.382232771e-05 | AO9: 9.292110752e-12
A10: 690 | B10: 0.0783484164 | C10: 0.177965228 | D10: 1.332791621 | E10: 8.720178746 | F10: 19.80752988 | G10: 0.870807609 | H10: 0.01 | J10: 0.2268769964 | K10: 12.55370607 | L10: 0.6610920147 | M10: 0.02035133362 | N10: 2.538530147e-13 | O10: 3.531788806e-06 | P10: 0.2874830343 | Q10: 1.318546404 | R10: 0.9601091645 | S10: 0.5779987839 | T10: 1.006721192 | U10: 910746.0681 | V10: 910746.0681 | W10: -0.1998749936 | X10: -2.155997568 | Y10: 0.07769236321 | Z10: 0.321588895 | AA10: -9.396399853e-07 | AB10: -1.074388199 | AC10: 0.02035133362 | AD10: 3.389498367e-06 | AE10: 0.04104551101 | AF10: 4.285240209e-06 | AG10: 0.9589502038 | AI10: 690 | AJ10: 4.1040771 | AK10: 0.0005192047033 | AL10: 0.041040771 | AM10: 5.192047033e-06 | AO10: 2.32899298e-11
A11: 680 | B11: 0.07489349522 | C11: 0.142588242 | D11: 1.332966686 | E11: 8.335646018 | F11: 15.87007133 | G11: 0.8455355337 | H11: 0.01 | J11: 0.2272513445 | K11: 12.00594003 | L11: 0.6612038365 | M11: 0.0203696934 | N11: 7.599018103e-13 | O11: 6.107823709e-06 | P11: 0.2880914806 | Q11: 1.318153723 | R11: 0.9600738957 | S11: 0.5779386458 | T11: 1.006766373 | U11: 484550.8869 | V11: 484550.8869 | W11: -0.1997918511 | X11: -2.155877292 | Y11: 0.07783348753 | Z11: 0.3224746213 | AA11: -1.712908119e-06 | AB11: -1.074304075 | AC11: 0.0203696934 | AD11: 5.861529002e-06 | AE11: 0.04109955678 | AF11: 7.390155226e-06 | AG11: 0.9588930531 | AI11: 680 | AJ11: 4.110069751 | AK11: 0.0008264598544 | AL11: 0.04110069751 | AM11: 8.264598544e-06 | AO11: 2.06593381e-12
A12: 670 | B12: 0.07127278728 | C12: 0.1996454133 | D12: 1.333150061 | E12: 7.932661224 | F12: 22.22053451 | G12: 0.897347953 | H12: 0.01 | J12: 0.2233270735 | K12: 11.36778642 | L12: 0.6613208995 | M12: 0.02038893071 | N12: 2.725590625e-12 | O12: 1.156200329e-05 | P12: 0.2816805708 | Q12: 1.320668915 | R12: 0.9600369426 | S12: 0.5778756789 | T12: 1.005697648 | U12: 235803.4489 | V12: 235803.4489 | W12: -0.1997048228 | X12: -2.155751358 | Y12: 0.07607759375 | Z12: 0.313324144 | AA12: -3.423785953e-06 | AB12: -1.074813724 | AC12: 0.02038893071 | AD12: 1.109533594e-05 | AE12: 0.04067092804 | AF12: 1.385837606e-05 | AG12: 0.9593152136 | AI12: 670 | AJ12: 4.066870212 | AK12: 0.001145569941 | AL12: 0.04066870212 | AM12: 1.145569941e-05 | AO12: 1.072753957e-11
A13: 660 | B13: 0.07100740606 | C13: 0.2094982646 | D13: 1.333342287 | E13: 7.903124294 | F13: 23.31715685 | G13: 0.9051083165 | H13: 0.01 | J13: 0.2187291064 | K13: 11.25880589 | L13: 0.6614435385 | M13: 0.02040910301 | N13: 3.392730595e-12 | O13: 1.289325965e-05 | P13: 0.2742519186 | Q13: 1.323610758 | R13: 0.9599981949 | S13: 0.5778097015 | T13: 1.004464705 | U13: 211063.8049 | V13: 211063.8049 | W13: -0.1996136614 | X13: -2.155619403 | Y13: 0.07404688431 | Z13: 0.3028615407 | AA13: -3.825886863e-06 | AB13: -1.07540901 | AC13: 0.02040910302 | AD13: 1.237235037e-05 | AE13: 0.04017208794 | AF13: 1.534976327e-05 | AG13: 0.9598125623 | AI13: 660 | AJ13: 4.017279029 | AK13: 0.001736672881 | AL13: 0.04017279029 | AM13: 1.736672881e-05 | AO13: 4.561449385e-12
A14: 650 | B14: 0.07710460914 | C14: 0.1413936621 | D14: 1.333543948 | E14: 8.581742997 | F14: 15.73711459 | G14: 0.8476636645 | H14: 0.01 | J14: 0.2183548114 | K14: 12.21971311 | L14: 0.6615721158 | M14: 0.02043027263 | N14: 4.970112468e-13 | O14: 4.932260741e-06 | P14: 0.2736455955 | Q14: 1.323700241 | R14: 0.9599575333 | S14: 0.577740517 | T14: 1.004310486 | U14: 637875.3912 | V14: 637875.3912 | W14: -0.1995180992 | X14: -2.155481034 | Y14: 0.07385770726 | Z14: 0.3020246895 | AA14: -1.332138977e-06 | AB14: -1.07542272 | AC14: 0.02043027263 | AD14: 4.732784584e-06 | AE14: 0.04014459313 | AF14: 5.903182126e-06 | AG14: 0.9598495037 | AI14: 650 | AJ14: 4.014604807 | AK14: 0.0007187322736 | AL14: 0.04014604807 | AM14: 7.187322736e-06 | AO14: 3.765864491e-12
A15: 640 | B15: 0.07735924538 | C15: 0.141676134 | D15: 1.333755679 | E15: 8.610084011 | F15: 15.76855372 | G15: 0.8497608519 | H15: 0.01 | J15: 0.2157777832 | K15: 12.21978069 | L15: 0.6617070238 | M15: 0.02045250718 | N15: 4.974849012e-13 | O15: 4.931927403e-06 | P15: 0.2695212938 | Q15: 1.325252936 | R15: 0.9599148279 | S15: 0.5776679127 | T15: 1.003595841 | U15: 643205.289 | V15: 643205.289 | W15: -0.1994178468 | X15: -2.155335825 | Y15: 0.07271821735 | Z15: 0.2962925782 | AA15: -1.325602841e-06 | AB15: -1.075733829 | AC15: 0.02045250718 | AD15: 4.732249892e-06 | AE15: 0.03987488716 | AF15: 5.882249514e-06 | AG15: 0.9601192306 | AI15: 640 | AJ15: 3.987639785 | AK15: 0.0007202738751 | AL15: 0.03987639785 | AM15: 7.202738751e-06 | AO15: 4.025886223e-12
A16: 630 | B16: 0.08464303447 | C16: 0.1579560518 | D16: 1.333978169 | E16: 9.420769736 | F16: 17.58050857 | G16: 0.851771729 | H16: 0.01 | J16: 0.2166786229 | K16: 13.38571501 | L16: 0.6618486879 | M16: 0.0204758802 | N16: 4.836801321e-14 | O16: 1.536943258e-06 | P16: 0.2709512897 | Q16: 1.324473378 | R16: 0.9598699379 | S16: 0.5775916574 | T16: 1.003758627 | U16: 2450752.347 | V16: 2450752.347 | W16: -0.1993125901 | X16: -2.155183315 | Y16: 0.07307623648 | Z16: 0.2982911277 | AA16: -3.719039098e-07 | AB16: -1.075570324 | AC16: 0.0204758802 | AD16: 1.474647107e-06 | AE16: 0.03998962907 | AF16: 1.846097066e-06 | AG16: 0.9600085248 | AI16: 630 | AJ16: 3.998501301 | AK16: 0.0001993363159 | AL16: 0.03998501301 | AM16: 1.993363159e-06 | AO16: 2.132967433e-11
A17: 620 | B17: 0.07728901127 | C17: 0.1413164843 | D17: 1.334212167 | E17: 8.602266955 | F17: 15.7285247 | G17: 0.8484926127 | H17: 0.01 | J17: 0.2169260306 | K17: 12.22658841 | L17: 0.6619975703 | M17: 0.02050047174 | N17: 4.919082369e-13 | O17: 4.898466248e-06 | P17: 0.2713395578 | Q17: 1.324120886 | R17: 0.9598227099 | S17: 0.5775115001 | T17: 1.003752903 | U17: 644379.64 | V17: 644379.64 | W17: -0.1992019882 | X17: -2.155023 | Y17: 0.07315168687 | Z17: 0.2988442914 | AA17: -1.31993376e-06 | AB17: -1.075493389 | AC17: 0.02050047174 | AD17: 4.699683185e-06 | AE17: 0.04003321544 | AF17: 5.850778007e-06 | AG17: 0.9599609338 | AI17: 620 | AJ17: 4.003467917 | AK17: 0.0007351384147 | AL17: 0.04003467917 | AM17: 7.351384147e-06 | AO17: =(AJ17/100-AE17)^2+(AK17/100-AF17)^2 -> 4.394328649e-12
A18: 610 | B18: 0.0771271542 | C18: 0.1411257173 | D18: 1.334458488 | E18: 8.584252263 | F18: 15.70729233 | G18: 0.8468075404 | H18: 0.01 | J18: 0.2189382389 | K18: 12.23241649 | L18: 0.6621541732 | M18: 0.02052636908 | N18: 4.868219681e-13 | O18: 4.870000627e-06 | P18: 0.2745547695 | Q18: 1.322579684 | R18: 0.9597729766 | S18: 0.5774271677 | T18: 1.004190909 | U18: 643421.6703 | V18: 643421.6703 | W18: -0.1990856708 | X18: -2.154854335 | Y18: 0.07398733384 | Z18: 0.3033487521 | AA18: -1.317525738e-06 | AB18: -1.075174189 | AC18: 0.02052636908 | AD18: 4.672125652e-06 | AE18: 0.04027257926 | AF18: 5.83222957e-06 | AG18: 0.9597215885 | AI18: 610 | AJ18: 4.027403593 | AK18: 0.000732851561 | AL18: 0.04027403593 | AM18: 7.32851561e-06 | AO18: 4.360753971e-12
A19: 600 | B19: 0.07526095629 | C19: 0.1390957772 | D19: 1.334718025 | E19: 8.376544436 | F19: 15.48136001 | G19: 0.845786878 | H19: 0.01 | J19: 0.2217981032 | K19: 11.98030228 | L19: 0.6623190439 | M19: 0.02055366754 | N19: 8.071067631e-13 | O19: 6.266439189e-06 | P19: 0.2791554988 | Q19: 1.320456619 | R19: 0.9597205552 | S19: 0.5773383628 | T19: 1.004843305 | U19: 476180.7095 | V19: 476180.7095 | W19: -0.1989632347 | X19: -2.154676726 | Y19: 0.0751937834 | Z19: 0.3098395328 | AA19: -1.747658941e-06 | AB19: -1.074735727 | AC19: 0.02055366754 | AD19: 6.011489851e-06 | AE19: 0.04060783688 | AF19: 7.521758863e-06 | AG19: 0.9593846414 | AI19: 600 | AJ19: 4.06084013 | AK19: 0.0008664160412 | AL19: 0.0406084013 | AM19: 8.664160412e-06 | AO19: 1.623648916e-12
A20: 590 | B20: 0.07175081236 | C20: 0.1995757635 | D20: 1.334991749 | E20: 7.985865416 | F20: 22.21278248 | G20: 0.8953904346 | H20: 0.01 | J20: 0.2253903339 | K20: 11.47451239 | L20: 0.6624927788 | M20: 0.02058247139 | N20: 2.222607102e-12 | O20: 1.0391604e-05 | P20: 0.2849838485 | Q20: 1.317822367 | R20: 0.9596652461 | S20: 0.5772447606 | T20: 1.00568404 | U20: 262809.5919 | V20: 262809.5919 | W20: -0.1988342402 | X20: -2.154489521 | Y20: 0.07672781936 | Z20: 0.3181451241 | AA20: -3.068053357e-06 | AB20: -1.074191886 | AC20: 0.02058247139 | AD20: 9.9682365e-06 | AE20: 0.04102768658 | AF20: 1.249204543e-05 | AG20: 0.9589598214 | AI20: 590 | AJ20: 4.102609873 | AK20: 0.001042371995 | AL20: 0.04102609873 | AM20: 1.042371995e-05 | AO20: 6.799228212e-12
A21: 580 | B21: 0.07301282487 | C21: 0.1391939246 | D21: 1.335280727 | E21: 8.126327408 | F21: 15.49228381 | G21: 0.8419037813 | H21: 0.01 | J21: 0.231596481 | K21: 11.77064157 | L21: 0.66267603 | M21: 0.0206128949 | N21: 1.231089484e-12 | O21: 7.728145966e-06 | P21: 0.2951868406 | Q21: 1.313389301 | R21: 0.9596068304 | S21: 0.5771460062 | T21: 1.007207505 | U21: 360910.2166 | V21: 360910.2166 | W21: -0.1986982073 | X21: -2.154292012 | Y21: 0.07943559749 | Z21: 0.3329081862 | AA21: -2.246592885e-06 | AB21: -1.073278177 | AC21: 0.0206128949 | AD21: 7.412830668e-06 | AE21: 0.04174697951 | AF21: 9.386018234e-06 | AG21: 0.9582436345 | AI21: 580 | AJ21: 4.174678326 | AK21: 0.0009969712782 | AL21: 0.04174678326 | AM21: 9.969712782e-06 | AO21: 3.7921351e-13
A22: 570 | B22: 0.07374508999 | C22: 0.1382307409 | D22: 1.335586127 | E22: 8.207828516 | F22: 15.38508147 | G22: 0.8289178186 | H22: 0.01 | J22: 0.2428161833 | K22: 12.06485524 | L22: 0.6628695103 | M22: 0.0206450635 | N22: 6.845672396e-13 | O22: 5.758375008e-06 | P22: 0.3140627447 | Q22: 1.305449121 | R22: 0.9595450677 | S22: 0.5770417111 | T22: 1.010083385 | U22: 484903.06 | V22: 484903.06 | W22: -0.1985546113 | X22: -2.154083422 | Y22: 0.08447107192 | Z22: 0.3610181825 | AA22: -1.668268231e-06 | AB22: -1.071638837 | AC22: 0.0206450635 | AD22: 5.5230653e-06 | AE22: 0.04305498845 | AF22: 7.117735292e-06 | AG22: 0.9569378938 | AI22: 570 | AJ22: 4.305540801 | AK22: 0.0007936943762 | AL22: 0.04305540801 | AM22: 7.936943762e-06 | AO22: 8.471247825e-13
A23: 560 | B23: 0.08024861581 | C23: 0.1569355885 | D23: 1.335909231 | E23: 8.93167094 | F23: 17.466931 | G23: 0.8224617909 | H23: 0.01 | J23: 0.2577179567 | K23: 13.39241579 | L23: 0.6630740014 | M23: 0.02067911513 | N23: 4.819782038e-14 | O23: 1.526678972e-06 | P23: 0.3400170861 | Q23: 1.294766902 | R23: 0.9594796938 | S23: 0.5769314492 | T23: 1.014047771 | U23: 2075663.459 | V23: 2075663.459 | W23: -0.1984028773 | X23: -2.153862898 | Y23: 0.09140135455 | Z23: 0.4014814688 | AA23: -4.062048046e-07 | AB23: -1.069419966 | AC23: 0.02067911513 | AD23: 1.464191079e-06 | AE23: 0.04483348382 | AF23: 1.946476685e-06 | AG23: 0.9551645697 | AI23: 560 | AJ23: 4.482739687 | AK23: 0.0001504777762 | AL23: 0.04482739687 | AM23: 1.504777762e-06 | AO23: 3.724603979e-11
A24: 550 | B24: 0.07527478517 | C24: 0.1413507126 | D24: 1.336251452 | E24: 8.378083589 | F24: 15.73233432 | G24: 0.8078735094 | H24: 0.01 | J24: 0.2651243358 | K24: 12.68895881 | L24: 0.6632903612 | M24: 0.0207152018 | N24: 1.971512717e-13 | O24: 3.085000276e-06 | P24: 0.3533008974 | Q24: 1.289240025 | R24: 0.9594104178 | S24: 0.5768147524 | T24: 1.016013468 | U24: 903917.8751 | V24: 903917.8751 | W24: -0.1982423745 | X24: -2.153629505 | Y24: 0.09491673584 | Z24: 0.4230757999 | AA24: -8.895725817e-07 | AB24: -1.068261467 | AC24: 0.0207152018 | AD24: 2.958511303e-06 | AE24: 0.0457490403 | AF24: 3.959276327e-06 | AG24: 0.9542470004 | AI24: 550 | AJ24: 4.574414968 | AK24: 0.0004778440761 | AL24: 0.04574414968 | AM24: 4.778440761e-06 | AO24: 2.458913573e-11
A25: 540 | B25: 0.07313482539 | C25: 0.1395198302 | D25: 1.336614348 | E25: 8.139906065 | F25: 15.5285571 | G25: 0.8093249784 | H25: 0.01 | J25: 0.2667289042 | K25: 12.35520601 | L25: 0.6635195331 | M25: 0.02075349133 | N25: 3.850308964e-13 | O25: 4.307271091e-06 | P25: 0.3562029783 | Q25: 1.287829217 | R25: 0.9593369182 | S25: 0.5766911053 | T25: 1.01635192 | U25: 614065.7578 | V25: 614065.7578 | W25: -0.1980724097 | X25: -2.153382211 | Y25: 0.095637116 | Z25: 0.4279074711 | AA25: -1.285645138e-06 | AB25: -1.067959511 | AC25: 0.02075349134 | AD25: 4.130344438e-06 | AE25: 0.04596662732 | AF25: 5.526932139e-06 | AG25: 0.9540278457 | AI25: 540 | AJ25: 4.59648776 | AK25: 0.0005892586089 | AL25: 0.0459648776 | AM25: 5.892586089e-06 | AO25: 3.195213207e-12
A26: 530 | B26: 0.07205497253 | C26: 0.1373389847 | D26: 1.336999638 | E26: 8.019718443 | F26: 15.28582899 | G26: 0.8085699465 | H26: 0.01 | J26: 0.2673303188 | K26: 12.18277057 | L26: 0.6637625569 | M26: 0.02079416943 | N26: 5.44655026e-13 | O26: 5.117878468e-06 | P26: 0.3572843446 | Q26: 1.287122756 | R26: 0.9592588397 | S26: 0.5765599399 | T26: 1.016399576 | U26: 503017.659 | V26: 503017.659 | W26: -0.1978922193 | X26: -2.15311988 | Y26: 0.09586436986 | Z26: 0.4297437577 | AA26: -1.55504145e-06 | AB26: -1.067804172 | AC26: 0.02079416943 | AD26: 4.907247362e-06 | AE26: 0.04606337187 | AF26: 6.563322264e-06 | AG26: 0.9539300648 | AI26: 530 | AJ26: 4.606429577 | AK26: 0.0007322429795 | AL26: 0.04606429577 | AM26: 7.322429795e-06 | AO26: 1.429828569e-12
A27: 520 | B27: 0.07677769352 | C27: 0.1429177571 | D27: 1.337409228 | E27: 8.545357289 | F27: 15.90674637 | G27: 0.8215766801 | H27: 0.01 | J27: 0.2493202042 | K27: 12.66982636 | L27: 0.6640205801 | M27: 0.02083744199 | N27: 2.060502077e-13 | O27: 3.144592154e-06 | P27: 0.3252052476 | Q27: 1.299567863 | R27: 0.9591757882 | S27: 0.5764206282 | T27: 1.011276764 | U27: 936847.9552 | V27: 936847.9552 | W27: -0.1977009612 | X27: -2.152841256 | Y27: 0.08719611308 | Z27: 0.3782691017 | AA27: -8.77168169e-07 | AB27: -1.070385387 | AC27: 0.02083744199 | AD27: 3.014907019e-06 | AE27: 0.04393222352 | AF27: 3.938134092e-06 | AG27: 0.9560638383 | AI27: 520 | AJ27: 4.392861128 | AK27: 0.0004722407447 | AL27: 0.04392861128 | AM27: 4.722407447e-06 | AO27: 1.366338718e-11
A28: 510 | B28: 0.07555375428 | C28: 0.1425162657 | D28: 1.337845232 | E28: 8.409132852 | F28: 15.86206037 | G28: 0.843332753 | H28: 0.01 | J28: 0.2281090621 | K28: 12.12524257 | L28: 0.6642948725 | M28: 0.02088353784 | N28: 6.136944411e-13 | O28: 5.420933228e-06 | P28: 0.2893483093 | Q28: 1.313771245 | R28: 0.9590873257 | S28: 0.5762724753 | T28: 1.005536863 | U28: 542958.9299 | V28: 542958.9299 | W28: -0.1974977044 | X28: -2.152544951 | Y28: 0.07752421103 | Z28: 0.3245965997 | AA28: -1.519485835e-06 | AB28: -1.073301115 | AC28: 0.02088353784 | AD28: 5.196880889e-06 | AE28: 0.04152767205 | AF28: 6.562935086e-06 | AG28: 0.958465765 | AI28: 510 | AJ28: 4.152817964 | AK28: 0.0006721871561 | AL28: 0.04152817964 | AM28: 6.721871561e-06 | AO28: 2.829177292e-13
A29: 500 | B29: 0.07989669352 | C29: 0.1478426816 | D29: 1.33831 | E29: 8.892501989 | F29: 16.45489046 | G29: 0.8498008069 | H29: 0.01 | J29: 0.2174857785 | K29: 12.64814676 | L29: 0.6645868412 | M29: 0.02093271191 | N29: 2.161647178e-13 | O29: 3.213510009e-06 | P29: 0.2721141743 | Q29: 1.320500859 | R29: 0.9589929646 | S29: 0.5761147096 | T29: 1.002696769 | U29: 1026046.649 | V29: 1026046.649 | W29: -0.1972814176 | X29: -2.152229419 | Y29: 0.07284892441 | Z29: 0.300146051 | AA29: -8.395432695e-07 | AB29: -1.074665647 | AC29: 0.02093271191 | AD29: 3.080383141e-06 | AE29: 0.04038248358 | AF29: 3.845811836e-06 | AG29: 0.9596136706 | AI29: 500 | AJ29: 4.037925244 | AK29: 0.0004147746171 | AL29: 0.04037925243 | AM29: 4.147746171e-06 | AO29: 1.053145895e-11
A30: 490 | B30: 0.08030698856 | C30: 0.1487749302 | D30: 1.338806154 | E30: 8.938167827 | F30: 16.55864973 | G30: 0.8527218755 | H30: 0.01 | J30: 0.2143578666 | K30: 12.66248381 | L30: 0.6648980496 | M30: 0.02098524889 | N30: 2.105816073e-13 | O30: 3.167766458e-06 | P30: 0.2671184557 | Q30: 1.322173878 | R30: 0.9588921605 | S30: 0.5759464735 | T30: 1.001769564 | U30: 1052747.157 | V30: 1052747.157 | W30: -0.1970509561 | X30: -2.151892947 | Y30: 0.0714509928 | Z30: 0.2932287273 | AA30: -8.219451876e-07 | AB30: -1.074995337 | AC30: 0.02098524889 | AD30: 3.036208746e-06 | AE30: 0.04007624797 | AF30: 3.774974989e-06 | AG30: 0.9599199771 | AI30: 490 | AJ30: 4.007298351 | AK30: 0.0004345182421 | AL30: 0.0400729835 | AM30: 4.345182421e-06 | AO30: 1.098185119e-11
A31: 480 | B31: 0.07607462043 | C31: 0.1392930209 | D31: 1.339336623 | E31: 8.467105254 | F31: 15.50331323 | G31: 0.8514662159 | H31: 0.01 | J31: 0.213815539 | K31: 11.98686646 | L31: 0.6652302386 | M31: 0.02104146756 | N31: 8.154852468e-13 | O31: 6.225439843e-06 | P31: 0.2662435557 | Q31: 1.322112281 | R31: 0.9587843036 | S31: 0.5757668107 | T31: 1.001480397 | U31: 483945.9146 | V31: 483945.9146 | W31: -0.1968050464 | X31: -2.151533621 | Y31: 0.07115256092 | Z31: 0.2920462217 | AA31: -1.721955862e-06 | AB31: -1.074971119 | AC31: 0.02104146756 | AD31: 5.966211334e-06 | AE31: 0.04005526924 | AF31: 7.385222972e-06 | AG31: 0.9599373455 | AI31: 480 | AJ31: 4.005547047 | AK31: 0.0008419475126 | AL31: 0.04005547046 | AM31: 8.419475126e-06 | AO31: 1.110167916e-12
A32: 470 | B32: 0.08185165776 | C32: 0.146670211 | D32: 1.339904689 | E32: 9.110089509 | F32: 16.32439448 | G32: 0.8496459668 | H32: 0.01 | J32: 0.21223854 | K32: 12.87131973 | L32: 0.6655853507 | M32: 0.02110172581 | N32: 1.394542351e-13 | O32: 2.57073237e-06 | P32: 0.2637345834 | Q32: 1.322697984 | R32: 0.9586687099 | S32: 0.5755746528 | T32: 1.000924478 | U32: 1342411.833 | V32: 1342411.833 | W32: -0.1965422684 | X32: -2.151149306 | Y32: 0.070413807 | Z32: 0.2886172374 | AA32: -6.527547367e-07 | AB32: -1.07507771 | AC32: 0.02110172581 | AD32: 2.463383294e-06 | AE32: 0.03992527995 | AF32: 3.057186975e-06 | AG32: 0.9600716629 | AI32: 470 | AJ32: 3.992133736 | AK32: 0.0003751186344 | AL32: 0.03992133736 | AM32: 3.751186344e-06 | AO32: 1.602561324e-11
A33: 460 | B33: 0.0768267199 | C33: 0.1398791759 | D33: 1.34051404 | E33: 8.550813925 | F33: 15.56855228 | G33: 0.852400267 | H33: 0.01 | J33: 0.2118141539 | K33: 12.07463436 | L33: 0.6659655594 | M33: 0.02116642664 | N33: 6.882613796e-13 | O33: 5.702337625e-06 | P33: 0.2630481201 | Q33: 1.322495577 | R33: 0.9585446092 | S33: 0.5753688027 | T33: 1.000643069 | U33: 536412.702 | V33: 536412.702 | W33: -0.1962610351 | X33: -2.150737605 | Y33: 0.07015761257 | Z33: 0.287703581 | AA33: -1.561119943e-06 | AB33: -1.075023145 | AC33: 0.02116642664 | AD33: 5.46349615e-06 | AE33: 0.03992346344 | AF33: 6.748247384e-06 | AG33: 0.9600697883 | AI33: 460 | AJ33: 3.992514729 | AK33: 0.000806477555 | AL33: 0.03992514729 | AM33: 8.06477555e-06 | AO33: 4.568606563e-12
A34: 450 | B34: 0.07535531457 | C34: 0.1388647532 | D34: 1.341168832 | E34: 8.387046511 | F34: 15.45564703 | G34: 0.8534729577 | H34: 0.01 | J34: 0.2126108211 | K34: 11.85536075 | L34: 0.6663733026 | M34: 0.02123602515 | N34: 1.070625839e-12 | O34: 7.100390673e-06 | P34: 0.2642858423 | Q34: 1.321462001 | R34: 0.9584111319 | S34: 0.5751479158 | T34: 1.000650015 | U34: 414640.1291 | V34: 414640.1291 | W34: -0.195959568 | X34: -2.150295832 | Y34: 0.07040910891 | Z34: 0.2894368901 | AA34: -1.99110958e-06 | AB34: -1.074798598 | AC34: 0.02123602515 | AD34: 6.802024578e-06 | AE34: 0.04005681285 | AF34: 8.399454342e-06 | AG34: 0.9599347877 | AI34: 450 | AJ34: 4.005651712 | AK34: 0.0009068951628 | AL34: 0.04005651712 | AM34: 9.068951628e-06 | AO34: 5.356774629e-13
A35: 440 | B35: 0.087801432 | C35: 0.1624954256 | D35: 1.341873763 | E35: 9.772299382 | F35: 18.08574087 | G35: 0.8539974416 | H35: 0.01 | J35: 0.2127280599 | K35: 13.81551743 | L35: 0.6668113218 | M35: 0.02131103694 | N35: 2.131074397e-14 | O35: 9.999931264e-07 | P35: 0.2644506856 | Q35: 1.320834518 | R35: 0.9582672934 | S35: 0.5749104778 | T35: 1.000474478 | U35: 3932125.129 | V35: 3932125.129 | W35: -0.1956358693 | X35: -2.149820956 | Y35: 0.07036845964 | Z35: 0.2896979139 | AA35: -2.34412379e-07 | AB35: -1.074655527 | AC35: 0.02131103694 | AD35: 9.578255026e-07 | AE35: 0.04012053109 | AF35: 1.194606817e-06 | AG35: 0.9598782743 | AI35: 440 | AJ35: 4.01154828 | AK35: 0.0001589094337 | AL35: 0.0401154828 | AM35: 1.589094337e-06 | AO35: 2.564078387e-11
A36: 430 | B36: 0.08385721527 | C36: 0.1515814165 | D36: 1.342634156 | E36: 9.33330806 | F36: 16.87101166 | G36: 0.8512760726 | H36: 0.01 | J36: 0.2118756762 | K36: 13.18062589 | L36: 0.667282709 | M36: 0.02139204808 | N36: 7.615635998e-14 | O36: 1.886804512e-06 | P36: 0.2630844085 | Q36: 1.320795933 | R36: 0.9581119745 | S36: 0.5746547777 | T36: 1.000044109 | U36: 1895141.271 | V36: 1895141.271 | W36: -0.1952876887 | X36: -2.149309555 | Y36: 0.06991429787 | Z36: 0.2878543982 | AA36: -4.677472135e-07 | AB36: -1.074631077 | AC36: 0.02139204808 | AD36: 1.806942725e-06 | AE36: 0.04008403903 | AF36: 2.244529804e-06 | AG36: 0.9599137164 | AI36: 430 | AJ36: 4.007972002 | AK36: 0.0003105358424 | AL36: 0.04007972002 | AM36: 3.105358424e-06 | AO36: 1.939484209e-11
A37: 420 | B37: 0.07292838643 | C37: 0.2620688419 | D37: 1.34345607 | E37: 8.116929409 | F37: 29.1682621 | G37: 0.9246841029 | H37: 0.01 | J37: 0.213000219 | K37: 11.47921848 | L37: 0.6677909613 | M37: 0.02147972706 | N37: 2.2977685e-12 | O37: 1.0342815e-05 | P37: 0.2648349306 | Q37: 1.319427068 | R37: 0.9579438994 | S37: 0.574378877 | T37: 1.000082346 | U37: 266361.1201 | V37: 266361.1201 | W37: -0.1949124841 | X37: -2.148757754 | Y37: 0.07028107679 | Z37: 0.2903033723 | AA37: -3.024535529e-06 | AB37: -1.074334643 | AC37: 0.02147972706 | AD37: 9.903265264e-06 | AE37: 0.04026488652 | AF37: 1.220591796e-05 | AG37: 0.9597229076 | AI37: 420 | AJ37: 4.026486874 | AK37: 0 | AL37: 0.04026486874 | AM37: 0 | AO37: 1.489847495e-10
A38: 410 | B38: 0.07618772957 | C38: 0.138989191 | D38: 1.344346419 | E38: 8.479694302 | F38: 15.46949696 | G38: 0.8503483271 | H38: 0.01 | J38: 0.2144598349 | K38: 12.01453494 | L38: 0.6683400459 | M38: 0.02157483921 | N38: 7.911432311e-13 | O38: 6.055552511e-06 | P38: 0.2671192483 | Q38: 1.317791622 | R38: 0.9577616081 | S38: 0.5740805722 | T38: 1.000183014 | U38: 488429.7147 | V38: 488429.7147 | W38: -0.1945073756 | X38: -2.148161144 | Y38: 0.07077994542 | Z38: 0.2935043364 | AA38: -1.688193917e-06 | AB38: -1.073982296 | AC38: 0.02157483921 | AD38: 5.797076068e-06 | AE38: 0.04048692717 | AF38: 7.181120769e-06 | AG38: 0.9595058917 | AI38: 410 | AJ38: 4.048779964 | AK38: 0.0008721048967 | AL38: 0.04048779964 | AM38: 8.721048967e-06 | AO38: 3.132594533e-12
A39: 400 | B39: 0.06975801084 | C39: 0.2132681256 | D39: 1.345313125 | E39: 7.764066606 | F39: 23.73674237 | G39: 0.9092985722 | H39: 0.01 | J39: 0.217097048 | K39: 11.03764663 | L39: 0.6689344778 | M39: 0.02167826413 | N39: 5.608496474e-12 | O39: 1.608462625e-05 | P39: 0.2712861923 | Q39: 1.315336515 | R39: 0.9575634231 | S39: 0.5737573499 | T39: 1.000552357 | U39: 157270.4747 | V39: 157270.4747 | W39: -0.1940690906 | X39: -2.1475147 | Y39: 0.07176595765 | Z39: 0.2993512649 | AA39: -4.97217698e-06 | AB39: -1.073460883 | AC39: 0.02167826414 | AD39: 1.539481162e-05 | AE39: 0.04084194746 | AF39: 1.901634027e-05 | AG39: 0.9591390362 | AI39: 400 | AJ39: 4.083962917 | AK39: 0.001965685512 | AL39: 0.04083962917 | AM39: 1.965685512e-05 | AO39: 5.784725744e-12

Sheet comparison
A1: Direct measurements (single scattering) | F1: Retrieved by inverse method (multiple scattering)
F2: dilution 0 | G2: 111.3 | H2: g/L | K2: dilution 1 | L2: 55.65 | M2: g/L | P2: dilution 2 | Q2: 11.13 | R2: g/L | U2: dilution 3 | V2: 5.565 | W2: g/L | Z2: dilution 4 | AA2: 1.113 | AB2: g/L | AF2: dilution 5 | AG2: 0.5565 | AH2: g/L | AL2: dilution 6 | AM2: 0.1113 | AN2: g/L
A3: l (nm) | B3: Abs,l (m2/kg) | C3: Ssca,l (m2/kg) | D3: (1-g)Ssca,l (m2/kg) | F3: l (nm) | G3: Abs,l (m2/kg) | H3: Ssca,l (m2/kg) | I3: g | K3: l (nm) | L3: Abs,l (m2/kg) | M3: Ssca,l (m2/kg) | N3: g | P3: l (nm) | Q3: Abs,l (m2/kg) | R3: Ssca,l (m2/kg) | S3: g | U3: l (nm) | V3: Abs,l (m2/kg) | W3: Ssca,l (m2/kg) | X3: g | Z3: l (nm) | AA3: Abs,l (m2/kg) | AB3: Ssca,l (m2/kg) | AC3: g | AD3: (1-g)Ssca,l (m2/kg) | AF3: l (nm) | AG3: Abs,l (m2/kg) | AH3: Ssca,l (m2/kg) | AI3: g | AJ3: (1-g)Ssca,l (m2/kg) | AL3: l (nm) | AM3: Abs,l (m2/kg) | AN3: Ssca,l (m2/kg) | AO3: g | AP3: (1-g)Ssca,l (m2/kg)
A4: 750 | B4: 0 | C4: 1559.277177 | D4: =C4*(1-0.979) -> 32.74482072 | F4: =Dilution0!A4 -> 750 | G4: =Dilution0!B4 -> 0.009148656891 | H4: =Dilution0!C4 -> 0.3142894361 | I4: =Dilution0!G4 -> 0.6867260176 | K4: =Dilution1!A4 -> 750 | L4: =Dilution1!B4 -> 0.03254408322 | M4: =Dilution1!C4 -> 0.5305960669 | N4: =Dilution1!G4 -> 0.4347656485 | P4: =Dilution2!A4 -> 750 | Q4: =Dilution2!B4 -> 0.7549928137 | R4: =Dilution2!C4 -> 11.04414634 | S4: =Dilution2!G4 -> 0.8134552832 | U4: =Dilution3!A4 -> 750 | V4: =Dilution3!B4 -> 17.91245479 | W4: =Dilution3!C4 -> 33.15374384 | X4: =Dilution3!G4 -> 0.2368287123 | Z4: =Dilution4!A4 -> 750 | AA4: =Dilution4!B4 -> 44.77469278 | AB4: =Dilution4!C4 -> 124.8423992 | AC4: =Dilution4!G4 -> 0.8043313253 | AD4: =AB4*(1-AC4) -> 24.42774679 | AF4: =Dilution5_water!A4 -> 750 | AG4: =Dilution5_water!B4 -> 42.75100382 | AH4: =Dilution5_water!C4 -> 1067.768565 | AI4: =Dilution5_water!G4 -> 0.9752481054 | AJ4: =AH4*(1-AI4) -> 26.42929502 | AL4: =Dilution6!A4 -> 750 | AM4: =Dilution6!B4 -> 42.90803126 | AN4: =Dilution6!C4 -> 120.038893 | AO4: =Dilution6!G4 -> 0.3997882495 | AP4: =AN4*(1-AO4) -> 72.04875412
A5: 740 | B5: 0 | C5: 1592.386471 | D5: =C5*(1-0.979) -> 33.44011589 | F5: =Dilution0!A5 -> 740 | G5: =Dilution0!B5 -> 0.01206383295 | H5: =Dilution0!C5 -> 0.1846691012 | I5: =Dilution0!G5 -> 0.5103296239 | K5: =Dilution1!A5 -> 740 | L5: =Dilution1!B5 -> 0.04485465839 | M5: =Dilution1!C5 -> 0.3681730717 | N5: =Dilution1!G5 -> 0.1769029321 | P5: =Dilution2!A5 -> 740 | Q5: =Dilution2!B5 -> 0.8534937725 | R5: =Dilution2!C5 -> 15.01851215 | S5: =Dilution2!G5 -> 0.8576501857 | U5: =Dilution3!A5 -> 740 | V5: =Dilution3!B5 -> 19.1494779 | W5: =Dilution3!C5 -> 78.96870537 | X5: =Dilution3!G5 -> 0.671544881 | Z5: =Dilution4!A5 -> 740 | AA5: =Dilution4!B5 -> 47.01313719 | AB5: =Dilution4!C5 -> 147.2231558 | AC5: =Dilution4!G5 -> 0.8321869202 | AD5: =AB5*(1-AC5) -> 24.70597119 | AF5: =Dilution5_water!A5 -> 740 | AG5: =Dilution5_water!B5 -> 45.07845343 | AH5: =Dilution5_water!C5 -> 1707.170878 | AI5: =Dilution5_water!G5 -> 0.9845236142 | AJ5: =AH5*(1-AI5) -> 26.42083506 | AL5: =Dilution6!A5 -> 740 | AM5: =Dilution6!B5 -> 44.33378369 | AN5: =Dilution6!C5 -> 197.965538 | AO5: =Dilution6!G5 -> 0.6393225782 | AP5: =AN5*(1-AO5) -> 71.40169984
A6: 730 | B6: 3.40264866 | C6: 1629.998889 | D6: 34.22997667 | F6: =Dilution0!A6 -> 730 | G6: =Dilution0!B6 -> 0.01814315513 | H6: =Dilution0!C6 -> 0.4662781933 | I6: =Dilution0!G6 -> 0.8343486944 | K6: =Dilution1!A6 -> 730 | L6: =Dilution1!B6 -> 0.06961457798 | M6: =Dilution1!C6 -> 0.6272049348 | N6: =Dilution1!G6 -> 0.5488096675 | P6: =Dilution2!A6 -> 730 | Q6: =Dilution2!B6 -> 1.096324654 | R6: =Dilution2!C6 -> 20.50374453 | S6: =Dilution2!G6 -> 0.8901437805 | U6: =Dilution3!A6 -> 730 | V6: =Dilution3!B6 -> 21.9030002 | W6: =Dilution3!C6 -> 85.91631995 | X6: =Dilution3!G6 -> 0.6891140512 | Z6: =Dilution4!A6 -> 730 | AA6: =Dilution4!B6 -> 49.89198392 | AB6: =Dilution4!C6 -> 100.6360278 | AC6: =Dilution4!G6 -> 0.7487384596 | AD6: 25.28596337 | AF6: =Dilution5_water!A6 -> 730 | AG6: =Dilution5_water!B6 -> 47.60025902 | AH6: =Dilution5_water!C6 -> 654.3721739 | AI6: =Dilution5_water!G6 -> 0.9591320793 | AJ6: 26.74283008 | AL6: =Dilution6!A6 -> 730 | AM6: =Dilution6!B6 -> 41.61988416 | AN6: =Dilution6!C6 -> 197.3095351 | AO6: =Dilution6!G6 -> 0.6451577763 | AP6: 70.01375418
A7: 720 | B7: 8.471765575 | C7: 1682.95266 | D7: 35.34200586 | F7: =Dilution0!A7 -> 720 | G7: =Dilution0!B7 -> 0.03151007296 | H7: =Dilution0!C7 -> 0.3377208242 | I7: =Dilution0!G7 -> 0.8269319147 | K7: =Dilution1!A7 -> 720 | L7: =Dilution1!B7 -> 0.1225055005 | M7: =Dilution1!C7 -> 0.7404213388 | N7: =Dilution1!G7 -> 0.6961205535 | P7: =Dilution2!A7 -> 720 | Q7: =Dilution2!B7 -> 1.846314798 | R7: =Dilution2!C7 -> 22.95876546 | S7: =Dilution2!G7 -> 0.8951206946 | U7: =Dilution3!A7 -> 720 | V7: =Dilution3!B7 -> 30.0678777 | W7: =Dilution3!C7 -> 71.68710998 | X7: =Dilution3!G7 -> 0.6142352742 | Z7: =Dilution4!A7 -> 720 | AA7: =Dilution4!B7 -> 57.10592169 | AB7: =Dilution4!C7 -> 455.8459417 | AC7: =Dilution4!G7 -> 0.9420408208 | AD7: 26.42045663 | AF7: =Dilution5_water!A7 -> 720 | AG7: =Dilution5_water!B7 -> 53.94006162 | AH7: =Dilution5_water!C7 -> 994.0982907 | AI7: =Dilution5_water!G7 -> 0.972095745 | AJ7: 27.73957225 | AL7: =Dilution6!A7 -> 720 | AM7: =Dilution6!B7 -> 42.6569407 | AN7: =Dilution6!C7 -> 210.1277279 | AO7: =Dilution6!G7 -> 0.6670194883 | AP7: 69.96843837
A8: 710 | B8: 27.77427428 | C8: 1747.994595 | D8: 36.7078865 | F8: =Dilution0!A8 -> 710 | G8: =Dilution0!B8 -> 0.05570471951 | H8: =Dilution0!C8 -> 0.3045061282 | I8: =Dilution0!G8 -> 0.8710074188 | K8: =Dilution1!A8 -> 710 | L8: =Dilution1!B8 -> 18.13475845 | M8: =Dilution1!C8 -> 160.095492 | N8: =Dilution1!G8 -> 0.9199516742 | P8: =Dilution2!A8 -> 710 | Q8: =Dilution2!B8 -> 3.882316077 | R8: =Dilution2!C8 -> 34.24557827 | S8: =Dilution2!G8 -> 0.9283909495 | U8: =Dilution3!A8 -> 710 | V8: =Dilution3!B8 -> 53.90989458 | W8: =Dilution3!C8 -> 55.38407175 | X8: =Dilution3!G8 -> 0.4676429332 | Z8: =Dilution4!A8 -> 710 | AA8: =Dilution4!B8 -> 77.32363157 | AB8: =Dilution4!C8 -> 1393.052368 | AC8: =Dilution4!G8 -> 0.9788042784 | AD8: 29.52675011 | AF8: =Dilution5_water!A8 -> 710 | AG8: =Dilution5_water!B8 -> 72.53400213 | AH8: =Dilution5_water!C8 -> 1396.080435 | AI8: =Dilution5_water!G8 -> 0.9777726752 | AJ8: 31.03113329 | AL8: =Dilution6!A8 -> 710 | AM8: =Dilution6!B8 -> 56.61972466 | AN8: =Dilution6!C8 -> 199.6328741 | AO8: =Dilution6!G8 -> 0.6267204148 | AP8: 74.51887641
A9: 700 | B9: 82.38497798 | C9: 1834.178093 | D9: 38.51773995 | F9: =Dilution0!A9 -> 700 | G9: =Dilution0!B9 -> 0.06665905898 | H9: =Dilution0!C9 -> 0.08443867305 | I9: =Dilution0!G9 -> 0.7159161951 | K9: =Dilution1!A9 -> 700 | L9: =Dilution1!B9 -> 0.2575646609 | M9: =Dilution1!C9 -> 0.575956231 | N9: =Dilution1!G9 -> 0.8407876537 | P9: =Dilution2!A9 -> 700 | Q9: =Dilution2!B9 -> 5.41719476 | R9: =Dilution2!C9 -> 19.55580698 | S9: =Dilution2!G9 -> 0.9049257763 | U9: =Dilution3!A9 -> 700 | V9: =Dilution3!B9 -> 104.7361921 | W9: =Dilution3!C9 -> 59.32406993 | X9: =Dilution3!G9 -> 0.410637302 | Z9: =Dilution4!A9 -> 700 | AA9: =Dilution4!B9 -> 131.5822553 | AB9: =Dilution4!C9 -> 1071.196546 | AC9: =Dilution4!G9 -> 0.9635833016 | AD9: 39.00944152 | AF9: =Dilution5_water!A9 -> 700 | AG9: =Dilution5_water!B9 -> 123.7042513 | AH9: =Dilution5_water!C9 -> 1638.060001 | AI9: =Dilution5_water!G9 -> 0.9755068523 | AJ9: 40.12124555 | AL9: =Dilution6!A9 -> 700 | AM9: =Dilution6!B9 -> 101.2372273 | AN9: =Dilution6!C9 -> 267.4094571 | AO9: =Dilution6!G9 -> 0.6711442622 | AP9: 87.9391343
A10: 690 | B10: 270.5824472 | C10: 1872.891842 | D10: 39.33072868 | F10: =Dilution0!A10 -> 690 | G10: =Dilution0!B10 -> 0.0783484164 | H10: =Dilution0!C10 -> 0.177965228 | I10: =Dilution0!G10 -> 0.870807609 | K10: =Dilution1!A10 -> 690 | L10: =Dilution1!B10 -> 0.2805773853 | M10: =Dilution1!C10 -> 0.5749649802 | N10: =Dilution1!G10 -> 0.8588115119 | P10: =Dilution2!A10 -> 690 | Q10: =Dilution2!B10 -> 5.7270313 | R10: =Dilution2!C10 -> 16.95760396 | S10: =Dilution2!G10 -> 0.9079655145 | U10: =Dilution3!A10 -> 690 | V10: =Dilution3!B10 -> 119.7758974 | W10: =Dilution3!C10 -> 56.07242713 | X10: =Dilution3!G10 -> 0.4283864046 | Z10: =Dilution4!A10 -> 690 | AA10: =Dilution4!B10 -> 291.1565965 | AB10: =Dilution4!C10 -> 1697.689397 | AC10: =Dilution4!G10 -> 0.9566113429 | AD10: 73.66046305 | AF10: =Dilution5_water!A10 -> 690 | AG10: =Dilution5_water!B10 -> 278.0037798 | AH10: =Dilution5_water!C10 -> 1723.351253 | AI10: =Dilution5_water!G10 -> 0.9590562248 | AJ10: 70.56050629 | AL10: =Dilution6!A10 -> 690 | AM10: =Dilution6!B10 -> 257.1176624 | AN10: =Dilution6!C10 -> 249.5081722 | AO10: =Dilution6!G10 -> 0.5224549942 | AP10: 119.1513815
A11: 680 | B11: 448.1288451 | C11: 1648.777273 | D11: 34.62432273 | F11: =Dilution0!A11 -> 680 | G11: =Dilution0!B11 -> 0.07489349522 | H11: =Dilution0!C11 -> 0.142588242 | I11: =Dilution0!G11 -> 0.8455355337 | K11: =Dilution1!A11 -> 680 | L11: =Dilution1!B11 -> 0.2741470393 | M11: =Dilution1!C11 -> 0.4423904992 | N11: =Dilution1!G11 -> 0.8210226676 | P11: =Dilution2!A11 -> 680 | Q11: =Dilution2!B11 -> 5.63912884 | R11: =Dilution2!C11 -> 16.34699941 | S11: =Dilution2!G11 -> 0.9081077844 | U11: =Dilution3!A11 -> 680 | V11: =Dilution3!B11 -> 157.1174998 | W11: =Dilution3!C11 -> 40.92724207 | X11: =Dilution3!G11 -> 0.0009535329521 | Z11: =Dilution4!A11 -> 680 | AA11: =Dilution4!B11 -> 429.9703911 | AB11: =Dilution4!C11 -> 1273.97902 | AC11: =Dilution4!G11 -> 0.9173533244 | AD11: 105.2901308 | AF11: =Dilution5_water!A11 -> 680 | AG11: =Dilution5_water!B11 -> 420.8171059 | AH11: =Dilution5_water!C11 -> 1544.139757 | AI11: =Dilution5_water!G11 -> 0.9341226071 | AJ11: 101.7239014 | AL11: =Dilution6!A11 -> 680 | AM11: =Dilution6!B11 -> 415.9439668 | AN11: =Dilution6!C11 -> 253.8043897 | AO11: =Dilution6!G11 -> 0.42226734 | AP11: 146.6310852
A12: 670 | B12: 426.189806 | C12: 1477.335627 | D12: 31.02404817 | F12: =Dilution0!A12 -> 670 | G12: =Dilution0!B12 -> 0.07127278728 | H12: =Dilution0!C12 -> 0.1996454133 | I12: =Dilution0!G12 -> 0.897347953 | K12: =Dilution1!A12 -> 670 | L12: =Dilution1!B12 -> 0.275209869 | M12: =Dilution1!C12 -> 0.6242039235 | N12: =Dilution1!G12 -> 0.874755923 | P12: =Dilution2!A12 -> 670 | Q12: =Dilution2!B12 -> 5.675222737 | R12: =Dilution2!C12 -> 16.24594417 | S12: =Dilution2!G12 -> 0.9081056581 | U12: =Dilution3!A12 -> 670 | V12: =Dilution3!B12 -> 155.1225382 | W12: =Dilution3!C12 -> 39.34784033 | X12: =Dilution3!G12 -> 0 | Z12: =Dilution4!A12 -> 670 | AA12: =Dilution4!B12 -> 413.1060773 | AB12: =Dilution4!C12 -> 1343.604916 | AC12: =Dilution4!G12 -> 0.925716803 | AD12: 99.80726867 | AF12: =Dilution5_water!A12 -> 670 | AG12: =Dilution5_water!B12 -> 402.0354213 | AH12: =Dilution5_water!C12 -> 1382.149976 | AI12: =Dilution5_water!G12 -> 0.9304220162 | AJ12: 96.16720867 | AL12: =Dilution6!A12 -> 670 | AM12: =Dilution6!B12 -> 399.0541567 | AN12: =Dilution6!C12 -> 304.6822928 | AO12: =Dilution6!G12 -> 0.5287420996 | AP12: 143.5839376
A13: 660 | B13: 296.6869819 | C13: 1407.887072 | D13: 29.56562851 | F13: =Dilution0!A13 -> 660 | G13: =Dilution0!B13 -> 0.07100740606 | H13: =Dilution0!C13 -> 0.2094982646 | I13: =Dilution0!G13 -> 0.9051083165 | K13: =Dilution1!A13 -> 660 | L13: =Dilution1!B13 -> 17.90287591 | M13: =Dilution1!C13 -> 160.8505855 | N13: =Dilution1!G13 -> 0.9692045751 | P13: =Dilution2!A13 -> 660 | Q13: =Dilution2!B13 -> 61.02819956 | R13: =Dilution2!C13 -> 15.78800019 | S13: =Dilution2!G13 -> 0.0001507490073 | U13: =Dilution3!A13 -> 660 | V13: =Dilution3!B13 -> 135.0870848 | W13: =Dilution3!C13 -> 33.97879288 | X13: =Dilution3!G13 -> 1.818576032e-07 | Z13: =Dilution4!A13 -> 660 | AA13: =Dilution4!B13 -> 313.4283379 | AB13: =Dilution4!C13 -> 1380.719843 | AC13: =Dilution4!G13 -> 0.9456973454 | AD13: 74.97675275 | AF13: =Dilution5_water!A13 -> 660 | AG13: =Dilution5_water!B13 -> 298.7565893 | AH13: =Dilution5_water!C13 -> 907.293377 | AI13: =Dilution5_water!G13 -> 0.9212077411 | AJ13: 71.48769464 | AL13: =Dilution6!A13 -> 660 | AM13: =Dilution6!B13 -> 286.5504322 | AN13: =Dilution6!C13 -> 315.5273809 | AO13: =Dilution6!G13 -> 0.60582833 | AP13: 124.3719546
A14: 650 | B14: 246.590856 | C14: 1437.838973 | D14: 30.19461843 | F14: =Dilution0!A14 -> 650 | G14: =Dilution0!B14 -> 0.07710460914 | H14: =Dilution0!C14 -> 0.1413936621 | I14: =Dilution0!G14 -> 0.8476636645 | K14: =Dilution1!A14 -> 650 | L14: =Dilution1!B14 -> 0.3015765229 | M14: =Dilution1!C14 -> 0.6273081811 | N14: =Dilution1!G14 -> 0.8671821701 | P14: =Dilution2!A14 -> 650 | Q14: =Dilution2!B14 -> 5.760127046 | R14: =Dilution2!C14 -> 16.36471322 | S14: =Dilution2!G14 -> 0.9091607407 | U14: =Dilution3!A14 -> 650 | V14: =Dilution3!B14 -> 10.93173113 | W14: =Dilution3!C14 -> 8.115824228 | X14: =Dilution3!G14 -> 0.6611604455 | Z14: =Dilution4!A14 -> 650 | AA14: =Dilution4!B14 -> 278.5455099 | AB14: =Dilution4!C14 -> 982.6477632 | AC14: =Dilution4!G14 -> 0.9321789413 | AD14: 66.64421161 | AF14: =Dilution5_water!A14 -> 650 | AG14: =Dilution5_water!B14 -> 263.9065213 | AH14: =Dilution5_water!C14 -> 1305.826818 | AI14: =Dilution5_water!G14 -> 0.9509852632 | AJ14: 64.00475781 | AL14: =Dilution6!A14 -> 650 | AM14: =Dilution6!B14 -> 248.1491343 | AN14: =Dilution6!C14 -> 219.5922373 | AO14: =Dilution6!G14 -> 0.4630107628 | AP14: 117.918668
A15: 640 | B15: 173.6858063 | C15: 1469.391069 | D15: 30.85721245 | F15: =Dilution0!A15 -> 640 | G15: =Dilution0!B15 -> 0.07735924538 | H15: =Dilution0!C15 -> 0.141676134 | I15: =Dilution0!G15 -> 0.8497608519 | K15: =Dilution1!A15 -> 640 | L15: =Dilution1!B15 -> 0.2825374606 | M15: =Dilution1!C15 -> 0.803508176 | N15: =Dilution1!G15 -> 0.9039768198 | P15: =Dilution2!A15 -> 640 | Q15: =Dilution2!B15 -> 5.830326492 | R15: =Dilution2!C15 -> 18.10136113 | S15: =Dilution2!G15 -> 0.9171743425 | U15: =Dilution3!A15 -> 640 | V15: =Dilution3!B15 -> 11.01735098 | W15: =Dilution3!C15 -> 8.134741915 | X15: =Dilution3!G15 -> 0.6584411937 | Z15: =Dilution4!A15 -> 640 | AA15: =Dilution4!B15 -> 208.828827 | AB15: =Dilution4!C15 -> 1388.303337 | AC15: =Dilution4!G15 -> 0.9637653715 | AD15: 50.30465561 | AF15: =Dilution5_water!A15 -> 640 | AG15: =Dilution5_water!B15 -> 195.3447002 | AH15: =Dilution5_water!C15 -> 1309.704258 | AI15: =Dilution5_water!G15 -> 0.9621118946 | AJ15: 49.6222129 | AL15: =Dilution6!A15 -> 640 | AM15: =Dilution6!B15 -> 175.9770572 | AN15: =Dilution6!C15 -> 238.7277915 | AO15: =Dilution6!G15 -> 0.5611714157 | AP15: 104.7605788
A16: 630 | B16: 163.003951 | C16: 1519.396328 | D16: 31.90732289 | F16: =Dilution0!A16 -> 630 | G16: =Dilution0!B16 -> 0.08464303447 | H16: =Dilution0!C16 -> 0.1579560518 | I16: =Dilution0!G16 -> 0.851771729 | K16: =Dilution1!A16 -> 630 | L16: =Dilution1!B16 -> 0.3088407939 | M16: =Dilution1!C16 -> 0.5440645501 | N16: =Dilution1!G16 -> 0.8447580121 | P16: =Dilution2!A16 -> 630 | Q16: =Dilution2!B16 -> 5.930282154 | R16: =Dilution2!C16 -> 18.83412798 | S16: =Dilution2!G16 -> 0.9183543882 | U16: =Dilution3!A16 -> 630 | V16: =Dilution3!B16 -> 11.14946741 | W16: =Dilution3!C16 -> 8.175157852 | X16: =Dilution3!G16 -> 0.6525096908 | Z16: =Dilution4!A16 -> 630 | AA16: =Dilution4!B16 -> 194.5800178 | AB16: =Dilution4!C16 -> 1479.321028 | AC16: =Dilution4!G16 -> 0.9679151084 | AD16: 47.46385484 | AF16: =Dilution5_water!A16 -> 630 | AG16: =Dilution5_water!B16 -> 181.1750742 | AH16: =Dilution5_water!C16 -> 1411.19116 | AI16: =Dilution5_water!G16 -> 0.9665359684 | AJ16: 47.22414552 | AL16: =Dilution6!A16 -> 630 | AM16: =Dilution6!B16 -> 161.055619 | AN16: =Dilution6!C16 -> 251.0679752 | AO16: =Dilution6!G16 -> 0.5945839387 | AP16: 101.7869896
A17: 620 | B17: 158.6904523 | C17: 1537.155788 | D17: 32.28027155 | F17: =Dilution0!A17 -> 620 | G17: =Dilution0!B17 -> 0.07728901127 | H17: =Dilution0!C17 -> 0.1413164843 | I17: =Dilution0!G17 -> 0.8484926127 | K17: =Dilution1!A17 -> 620 | L17: =Dilution1!B17 -> 0.2841689066 | M17: =Dilution1!C17 -> 0.7517543102 | N17: =Dilution1!G17 -> 0.8963926264 | P17: =Dilution2!A17 -> 620 | Q17: =Dilution2!B17 -> 65.24354193 | R17: =Dilution2!C17 -> 29.44829762 | S17: =Dilution2!G17 -> 0.4220089484 | U17: =Dilution3!A17 -> 620 | V17: =Dilution3!B17 -> 11.13863691 | W17: =Dilution3!C17 -> 8.18564646 | X17: =Dilution3!G17 -> 0.6509777466 | Z17: =Dilution4!A17 -> 620 | AA17: =Dilution4!B17 -> 190.9191672 | AB17: =Dilution4!C17 -> 1921.896576 | AC17: =Dilution4!G17 -> 0.9756094055 | AD17: 46.87619997 | AF17: =Dilution5_water!A17 -> 620 | AG17: =Dilution5_water!B17 -> 177.5673341 | AH17: =Dilution5_water!C17 -> 1422.534627 | AI17: =Dilution5_water!G17 -> 0.9670395147 | AJ17: 46.88743169 | AL17: =Dilution6!A17 -> 620 | AM17: =Dilution6!B17 -> 157.4783334 | AN17: =Dilution6!C17 -> 253.6574447 | AO17: =Dilution6!G17 -> 0.6006088794 | AP17: 101.3085311
A18: 610 | B18: 137.9259941 | C18: 1557.511394 | D18: 32.70773927 | F18: =Dilution0!A18 -> 610 | G18: =Dilution0!B18 -> 0.0771271542 | H18: =Dilution0!C18 -> 0.1411257173 | I18: =Dilution0!G18 -> 0.8468075404 | K18: =Dilution1!A18 -> 610 | L18: =Dilution1!B18 -> 0.2908176144 | M18: =Dilution1!C18 -> 0.7722367727 | N18: =Dilution1!G18 -> 0.8960037294 | P18: =Dilution2!A18 -> 610 | Q18: =Dilution2!B18 -> 2.969496593 | R18: =Dilution2!C18 -> 12.77698615 | S18: =Dilution2!G18 -> 0.9388903504 | U18: =Dilution3!A18 -> 610 | V18: =Dilution3!B18 -> 11.08859312 | W18: =Dilution3!C18 -> 8.191666171 | X18: =Dilution3!G18 -> 0.6501045839 | Z18: =Dilution4!A18 -> 610 | AA18: =Dilution4!B18 -> 175.3826583 | AB18: =Dilution4!C18 -> 1397.079057 | AC18: =Dilution4!G18 -> 0.9688087663 | AD18: 43.57661929 | AF18: =Dilution5_water!A18 -> 610 | AG18: =Dilution5_water!B18 -> 162.5721865 | AH18: =Dilution5_water!C18 -> 1387.83408 | AI18: =Dilution5_water!G18 -> 0.9682985189 | AJ18: 43.99639593 | AL18: =Dilution6!A18 -> 610 | AM18: =Dilution6!B18 -> 142.1408107 | AN18: =Dilution6!C18 -> 259.9759553 | AO18: =Dilution6!G18 -> 0.6233621719 | AP18: 97.91677916
A19: 600 | B19: 120.8995817 | C19: 1587.060794 | D19: 33.32827667 | F19: =Dilution0!A19 -> 600 | G19: =Dilution0!B19 -> 0.07526095629 | H19: =Dilution0!C19 -> 0.1390957772 | I19: =Dilution0!G19 -> 0.845786878 | K19: =Dilution1!A19 -> 600 | L19: =Dilution1!B19 -> 0.2977792709 | M19: =Dilution1!C19 -> 0.7790759288 | N19: =Dilution1!G19 -> 0.8924655164 | P19: =Dilution2!A19 -> 600 | Q19: =Dilution2!B19 -> 2.961395827 | R19: =Dilution2!C19 -> 12.77779122 | S19: =Dilution2!G19 -> 0.9379786381 | U19: =Dilution3!A19 -> 600 | V19: =Dilution3!B19 -> 11.007968 | W19: =Dilution3!C19 -> 8.210389159 | X19: =Dilution3!G19 -> 0.6473851868 | Z19: =Dilution4!A19 -> 600 | AA19: =Dilution4!B19 -> 161.5764147 | AB19: =Dilution4!C19 -> 1354.584345 | AC19: =Dilution4!G19 -> 0.969917999 | AD19: 40.74860758 | AF19: =Dilution5_water!A19 -> 600 | AG19: =Dilution5_water!B19 -> 149.3366889 | AH19: =Dilution5_water!C19 -> 1334.765082 | AI19: =Dilution5_water!G19 -> 0.9688623133 | AJ19: 41.56149698 | AL19: =Dilution6!A19 -> 600 | AM19: =Dilution6!B19 -> 128.3598014 | AN19: =Dilution6!C19 -> 220.218253 | AO19: =Dilution6!G19 -> 0.5667428642 | AP19: 95.41112955
A20: 590 | B20: 113.1523623 | C20: 1611.653147 | D20: 33.84471609 | F20: =Dilution0!A20 -> 590 | G20: =Dilution0!B20 -> 0.07175081236 | H20: =Dilution0!C20 -> 0.1995757635 | I20: =Dilution0!G20 -> 0.8953904346 | K20: =Dilution1!A20 -> 590 | L20: =Dilution1!B20 -> 0.297418904 | M20: =Dilution1!C20 -> 0.5153794363 | N20: =Dilution1!G20 -> 0.8350371523 | P20: =Dilution2!A20 -> 590 | Q20: =Dilution2!B20 -> 2.977207938 | R20: =Dilution2!C20 -> 12.77968671 | S20: =Dilution2!G20 -> 0.9363786542 | U20: =Dilution3!A20 -> 590 | V20: =Dilution3!B20 -> 10.9250679 | W20: =Dilution3!C20 -> 8.241967687 | X20: =Dilution3!G20 -> 0.6428097548 | Z20: =Dilution4!A20 -> 590 | AA20: =Dilution4!B20 -> 153.313014 | AB20: =Dilution4!C20 -> 1311.015087 | AC20: =Dilution4!G20 -> 0.969900523 | AD20: 39.46086841 | AF20: =Dilution5_water!A20 -> 590 | AG20: =Dilution5_water!B20 -> 141.3910658 | AH20: =Dilution5_water!C20 -> 1447.347932 | AI20: =Dilution5_water!G20 -> 0.9720255149 | AJ20: 40.48881321 | AL20: =Dilution6!A20 -> 590 | AM20: =Dilution6!B20 -> 119.9398559 | AN20: =Dilution6!C20 -> 273.8503375 | AO20: =Dilution6!G20 -> 0.6576330524 | AP20: 93.75730414
A21: 580 | B21: 98.0523431 | C21: 1636.538128 | D21: 34.36730069 | F21: =Dilution0!A21 -> 580 | G21: =Dilution0!B21 -> 0.07301282487 | H21: =Dilution0!C21 -> 0.1391939246 | I21: =Dilution0!G21 -> 0.8419037813 | K21: =Dilution1!A21 -> 580 | L21: =Dilution1!B21 -> 0.2959700232 | M21: =Dilution1!C21 -> 0.5149438344 | N21: =Dilution1!G21 -> 0.8303210387 | P21: =Dilution2!A21 -> 580 | Q21: =Dilution2!B21 -> 2.965767427 | R21: =Dilution2!C21 -> 12.78149288 | S21: =Dilution2!G21 -> 0.934223746 | U21: =Dilution3!A21 -> 580 | V21: =Dilution3!B21 -> 10.62923677 | W21: =Dilution3!C21 -> 8.257374935 | X21: =Dilution3!G21 -> 0.6405868908 | Z21: =Dilution4!A21 -> 580 | AA21: =Dilution4!B21 -> 141.381929 | AB21: =Dilution4!C21 -> 2122.941382 | AC21: =Dilution4!G21 -> 0.9822536917 | AD21: 37.67437222 | AF21: =Dilution5_water!A21 -> 580 | AG21: =Dilution5_water!B21 -> 129.9991283 | AH21: =Dilution5_water!C21 -> 1477.127411 | AI21: =Dilution5_water!G21 -> 0.9735963539 | AJ21: 39.00154941 | AL21: =Dilution6!A21 -> 580 | AM21: =Dilution6!B21 -> 108.3471073 | AN21: =Dilution6!C21 -> 275.0469856 | AO21: =Dilution6!G21 -> 0.6674571616 | AP21: 91.46490527
A22: 570 | B22: 81.27661287 | C22: 1664.558641 | D22: 34.95573146 | F22: =Dilution0!A22 -> 570 | G22: =Dilution0!B22 -> 0.07374508999 | H22: =Dilution0!C22 -> 0.1382307409 | I22: =Dilution0!G22 -> 0.8289178186 | K22: =Dilution1!A22 -> 570 | L22: =Dilution1!B22 -> 0.2803819594 | M22: =Dilution1!C22 -> 0.7338012276 | N22: =Dilution1!G22 -> 0.8801159345 | P22: =Dilution2!A22 -> 570 | Q22: =Dilution2!B22 -> 2.920367874 | R22: =Dilution2!C22 -> 12.78364035 | S22: =Dilution2!G22 -> 0.9313630392 | U22: =Dilution3!A22 -> 570 | V22: =Dilution3!B22 -> 9.928315785 | W22: =Dilution3!C22 -> 8.226456343 | X22: =Dilution3!G22 -> 0.6431347498 | Z22: =Dilution4!A22 -> 570 | AA22: =Dilution4!B22 -> 126.7235225 | AB22: =Dilution4!C22 -> 2015.988761 | AC22: =Dilution4!G22 -> 0.9824440639 | AD22: 35.39256991 | AF22: =Dilution5_water!A22 -> 570 | AG22: =Dilution5_water!B22 -> 116.2369718 | AH22: =Dilution5_water!C22 -> 1512.332011 | AI22: =Dilution5_water!G22 -> 0.97546659 | AJ22: 37.10266123 | AL22: =Dilution6!A22 -> 570 | AM22: =Dilution6!B22 -> 95.09958431 | AN22: =Dilution6!C22 -> 276.4868462 | AO22: =Dilution6!G22 -> 0.6785921487 | AP22: 88.86504314
A23: 560 | B23: 63.91233146 | C23: 1705.129404 | D23: 35.80771748 | F23: =Dilution0!A23 -> 560 | G23: =Dilution0!B23 -> 0.08024861581 | H23: =Dilution0!C23 -> 0.1569355885 | I23: =Dilution0!G23 -> 0.8224617909 | K23: =Dilution1!A23 -> 560 | L23: =Dilution1!B23 -> 0.2998278898 | M23: =Dilution1!C23 -> 0.5294510703 | N23: =Dilution1!G23 -> 0.8082705928 | P23: =Dilution2!A23 -> 560 | Q23: =Dilution2!B23 -> 2.896529256 | R23: =Dilution2!C23 -> 12.47322047 | S23: =Dilution2!G23 -> 0.9245437418 | U23: =Dilution3!A23 -> 560 | V23: =Dilution3!B23 -> 9.112587075 | W23: =Dilution3!C23 -> 8.191063743 | X23: =Dilution3!G23 -> 0.6484166195 | Z23: =Dilution4!A23 -> 560 | AA23: =Dilution4!B23 -> 115.105915 | AB23: =Dilution4!C23 -> 1031.705404 | AC23: =Dilution4!G23 -> 0.9672640081 | AD23: 33.77389973 | AF23: =Dilution5_water!A23 -> 560 | AG23: =Dilution5_water!B23 -> 105.4325938 | AH23: =Dilution5_water!C23 -> 1494.50527 | AI23: =Dilution5_water!G23 -> 0.9760521031 | AJ23: 35.79025817 | AL23: =Dilution6!A23 -> 560 | AM23: =Dilution6!B23 -> 84.53333122 | AN23: =Dilution6!C23 -> 278.7831076 | AO23: =Dilution6!G23 -> 0.6919286995 | AP23: 85.88507451
A24: 550 | B24: 62.82229142 | C24: 1743.916628 | D24: 36.62224919 | F24: =Dilution0!A24 -> 550 | G24: =Dilution0!B24 -> 0.07527478517 | H24: =Dilution0!C24 -> 0.1413507126 | I24: =Dilution0!G24 -> 0.8078735094 | K24: =Dilution1!A24 -> 550 | L24: =Dilution1!B24 -> 0.2704941465 | M24: =Dilution1!C24 -> 0.7162778309 | N24: =Dilution1!G24 -> 0.867339461 | P24: =Dilution2!A24 -> 550 | Q24: =Dilution2!B24 -> 2.88055711 | R24: =Dilution2!C24 -> 12.3485354 | S24: =Dilution2!G24 -> 0.9217485877 | U24: =Dilution3!A24 -> 550 | V24: =Dilution3!B24 -> 9.019394243 | W24: =Dilution3!C24 -> 8.231743424 | X24: =Dilution3!G24 -> 0.6417191304 | Z24: =Dilution4!A24 -> 550 | AA24: =Dilution4!B24 -> 115.6214201 | AB24: =Dilution4!C24 -> 775.6844122 | AC24: =Dilution4!G24 -> 0.9554902282 | AD24: 34.5255362 | AF24: =Dilution5_water!A24 -> 550 | AG24: =Dilution5_water!B24 -> 106.1042676 | AH24: =Dilution5_water!C24 -> 1511.517085 | AI24: =Dilution5_water!G24 -> 0.9759820422 | AJ24: 36.30355355 | AL24: =Dilution6!A24 -> 550 | AM24: =Dilution6!B24 -> 85.19330676 | AN24: =Dilution6!C24 -> 279.9134042 | AO24: =Dilution6!G24 -> 0.6926816421 | AP24: 86.02252773
A25: 540 | B25: 65.20636129 | C25: 1782.873669 | D25: 37.44034705 | F25: =Dilution0!A25 -> 540 | G25: =Dilution0!B25 -> 0.07313482539 | H25: =Dilution0!C25 -> 0.1395198302 | I25: =Dilution0!G25 -> 0.8093249784 | K25: =Dilution1!A25 -> 540 | L25: =Dilution1!B25 -> 0.2778189482 | M25: =Dilution1!C25 -> 0.7112190611 | N25: =Dilution1!G25 -> 0.8616882517 | P25: =Dilution2!A25 -> 540 | Q25: =Dilution2!B25 -> 2.893452379 | R25: =Dilution2!C25 -> 12.26860956 | S25: =Dilution2!G25 -> 0.9199668722 | U25: =Dilution3!A25 -> 540 | V25: =Dilution3!B25 -> 9.259452101 | W25: =Dilution3!C25 -> 8.280474344 | X25: =Dilution3!G25 -> 0.630128253 | Z25: =Dilution4!A25 -> 540 | AA25: =Dilution4!B25 -> 120.1832263 | AB25: =Dilution4!C25 -> 810.304442 | AC25: =Dilution4!G25 -> 0.9555823083 | AD25: 35.99185289 | AF25: =Dilution5_water!A25 -> 540 | AG25: =Dilution5_water!B25 -> 110.8528496 | AH25: =Dilution5_water!C25 -> 1526.578684 | AI25: =Dilution5_water!G25 -> 0.9753674425 | AJ25: 37.60353717 | AL25: =Dilution6!A25 -> 540 | AM25: =Dilution6!B25 -> 89.1358137 | AN25: =Dilution6!C25 -> 280.2029871 | AO25: =Dilution6!G25 -> 0.6895138559 | AP25: 86.99914504
A26: 530 | B26: 74.52300838 | C26: 1824.222769 | D26: 38.30867815 | F26: =Dilution0!A26 -> 530 | G26: =Dilution0!B26 -> 0.07205497253 | H26: =Dilution0!C26 -> 0.1373389847 | I26: =Dilution0!G26 -> 0.8085699465 | K26: =Dilution1!A26 -> 530 | L26: =Dilution1!B26 -> 0.2679911233 | M26: =Dilution1!C26 -> 0.7458084355 | N26: =Dilution1!G26 -> 0.8727953892 | P26: =Dilution2!A26 -> 530 | Q26: =Dilution2!B26 -> 2.887464493 | R26: =Dilution2!C26 -> 12.25942991 | S26: =Dilution2!G26 -> 0.9195415993 | U26: =Dilution3!A26 -> 530 | V26: =Dilution3!B26 -> 9.684101841 | W26: =Dilution3!C26 -> 8.443113232 | X26: =Dilution3!G26 -> 0.6176024031 | Z26: =Dilution4!A26 -> 530 | AA26: =Dilution4!B26 -> 128.0689215 | AB26: =Dilution4!C26 -> 802.3579109 | AC26: =Dilution4!G26 -> 0.952164679 | AD26: 38.38104823 | AF26: =Dilution5_water!A26 -> 530 | AG26: =Dilution5_water!B26 -> 118.8473508 | AH26: =Dilution5_water!C26 -> 1584.330427 | AI26: =Dilution5_water!G26 -> 0.975019333 | AJ26: 39.57763087 | AL26: =Dilution6!A26 -> 530 | AM26: =Dilution6!B26 -> 96.35249804 | AN26: =Dilution6!C26 -> 279.5407137 | AO26: =Dilution6!G26 -> 0.6807572588 | AP26: 89.24134371
A27: 520 | B27: 109.256092 | C27: 1866.458246 | D27: 39.19562317 | F27: =Dilution0!A27 -> 520 | G27: =Dilution0!B27 -> 0.07677769352 | H27: =Dilution0!C27 -> 0.1429177571 | I27: =Dilution0!G27 -> 0.8215766801 | K27: =Dilution1!A27 -> 520 | L27: =Dilution1!B27 -> 0.2992726964 | M27: =Dilution1!C27 -> 0.5248523462 | N27: =Dilution1!G27 -> 0.8165971104 | P27: =Dilution2!A27 -> 520 | Q27: =Dilution2!B27 -> 3.053608685 | R27: =Dilution2!C27 -> 12.499219 | S27: =Dilution2!G27 -> 0.9235045524 | U27: =Dilution3!A27 -> 520 | V27: =Dilution3!B27 -> 11.12639197 | W27: =Dilution3!C27 -> 8.188290757 | X27: =Dilution3!G27 -> 0.5819139985 | Z27: =Dilution4!A27 -> 520 | AA27: =Dilution4!B27 -> 160.3538552 | AB27: =Dilution4!C27 -> 1043.236558 | AC27: =Dilution4!G27 -> 0.9564637254 | AD27: 45.41863327 | AF27: =Dilution5_water!A27 -> 520 | AG27: =Dilution5_water!B27 -> 149.7780523 | AH27: =Dilution5_water!C27 -> 1640.923659 | AI27: =Dilution5_water!G27 -> 0.9719985411 | AJ27: 45.9482564 | AL27: =Dilution6!A27 -> 520 | AM27: =Dilution6!B27 -> 126.2577348 | AN27: =Dilution6!C27 -> 302.7869187 | AO27: =Dilution6!G27 -> 0.6803708203 | AP27: 96.77953445
A28: 510 | B28: 195.9641937 | C28: 1884.004896 | D28: 39.56410282 | F28: =Dilution0!A28 -> 510 | G28: =Dilution0!B28 -> 0.07555375428 | H28: =Dilution0!C28 -> 0.1425162657 | I28: =Dilution0!G28 -> 0.843332753 | K28: =Dilution1!A28 -> 510 | L28: =Dilution1!B28 -> 0.2867515607 | M28: =Dilution1!C28 -> 0.7618817285 | N28: =Dilution1!G28 -> 0.8919884012 | P28: =Dilution2!A28 -> 510 | Q28: =Dilution2!B28 -> 3.159826074 | R28: =Dilution2!C28 -> 12.78472008 | S28: =Dilution2!G28 -> 0.9310890653 | U28: =Dilution3!A28 -> 510 | V28: =Dilution3!B28 -> 11.93980431 | W28: =Dilution3!C28 -> 8.633578146 | X28: =Dilution3!G28 -> 0.6178079562 | Z28: =Dilution4!A28 -> 510 | AA28: =Dilution4!B28 -> 236.8834959 | AB28: =Dilution4!C28 -> 1394.01664 | AC28: =Dilution4!G28 -> 0.955472099 | AD28: 62.07263494 | AF28: =Dilution5_water!A28 -> 510 | AG28: =Dilution5_water!B28 -> 222.7680396 | AH28: =Dilution5_water!C28 -> 1780.4655 | AI28: =Dilution5_water!G28 -> 0.9661694954 | AJ28: 60.23404634 | AL28: =Dilution6!A28 -> 510 | AM28: =Dilution6!B28 -> 198.7442552 | AN28: =Dilution6!C28 -> 286.5825394 | AO28: =Dilution6!G28 -> 0.606663641 | AP28: 112.7233326
A29: 500 | B29: 315.9493312 | C29: 1853.317174 | D29: 38.91966065 | F29: =Dilution0!A29 -> 500 | G29: =Dilution0!B29 -> 0.07989669352 | H29: =Dilution0!C29 -> 0.1478426816 | I29: =Dilution0!G29 -> 0.8498008069 | K29: =Dilution1!A29 -> 500 | L29: =Dilution1!B29 -> 0.3048902091 | M29: =Dilution1!C29 -> 0.5302839321 | N29: =Dilution1!G29 -> 0.8443417753 | P29: =Dilution2!A29 -> 500 | Q29: =Dilution2!B29 -> 3.207385168 | R29: =Dilution2!C29 -> 12.78205151 | S29: =Dilution2!G29 -> 0.933927295 | U29: =Dilution3!A29 -> 500 | V29: =Dilution3!B29 -> 12.17504748 | W29: =Dilution3!C29 -> 8.305900938 | X29: =Dilution3!G29 -> 0.6168773018 | Z29: =Dilution4!A29 -> 500 | AA29: =Dilution4!B29 -> 340.4190713 | AB29: =Dilution4!C29 -> 1028.51345 | AC29: =Dilution4!G29 -> 0.9168403129 | AD29: 85.53085664 | AF29: =Dilution5_water!A29 -> 500 | AG29: =Dilution5_water!B29 -> 322.317802 | AH29: =Dilution5_water!C29 -> 1710.588796 | AI29: =Dilution5_water!G29 -> 0.9522439816 | AJ29: 81.69091011 | AL29: =Dilution6!A29 -> 500 | AM29: =Dilution6!B29 -> 303.7770713 | AN29: =Dilution6!C29 -> 286.4156393 | AO29: =Dilution6!G29 -> 0.5373937163 | AP29: 132.4976745
A30: 490 | B30: 407.3038554 | C30: 1788.397416 | D30: 37.55634574 | F30: =Dilution0!A30 -> 490 | G30: =Dilution0!B30 -> 0.08030698856 | H30: =Dilution0!C30 -> 0.1487749302 | I30: =Dilution0!G30 -> 0.8527218755 | K30: =Dilution1!A30 -> 490 | L30: =Dilution1!B30 -> 0.3096436111 | M30: =Dilution1!C30 -> 0.5362089138 | N30: =Dilution1!G30 -> 0.8455878846 | P30: =Dilution2!A30 -> 490 | Q30: =Dilution2!B30 -> 3.193109759 | R30: =Dilution2!C30 -> 12.78072597 | S30: =Dilution2!G30 -> 0.9353750413 | U30: =Dilution3!A30 -> 490 | V30: =Dilution3!B30 -> 12.16059282 | W30: =Dilution3!C30 -> 8.28147369 | X30: =Dilution3!G30 -> 0.6244910199 | Z30: =Dilution4!A30 -> 490 | AA30: =Dilution4!B30 -> 416.8978865 | AB30: =Dilution4!C30 -> 954.3480828 | AC30: =Dilution4!G30 -> 0.891760338 | AD30: 103.2983139 | AF30: =Dilution5_water!A30 -> 490 | AG30: =Dilution5_water!B30 -> 398.7134822 | AH30: =Dilution5_water!C30 -> 1676.550277 | AI30: =Dilution5_water!G30 -> 0.9410929 | AJ30: 98.76071486 | AL30: =Dilution6!A30 -> 490 | AM30: =Dilution6!B30 -> 387.6990587 | AN30: =Dilution6!C30 -> 271.7124008 | AO30: =Dilution6!G30 -> 0.4566795546 | AP30: 147.6269026
A31: 480 | B31: 427.0566839 | C31: 1748.845233 | D31: 36.72574989 | F31: =Dilution0!A31 -> 480 | G31: =Dilution0!B31 -> 0.07607462043 | H31: =Dilution0!C31 -> 0.1392930209 | I31: =Dilution0!G31 -> 0.8514662159 | K31: =Dilution1!A31 -> 480 | L31: =Dilution1!B31 -> 0.2994870125 | M31: =Dilution1!C31 -> 0.8173688155 | N31: =Dilution1!G31 -> 0.9023127796 | P31: =Dilution2!A31 -> 480 | Q31: =Dilution2!B31 -> 3.180398247 | R31: =Dilution2!C31 -> 12.78022061 | S31: =Dilution2!G31 -> 0.9359688535 | U31: =Dilution3!A31 -> 480 | V31: =Dilution3!B31 -> 12.10642864 | W31: =Dilution3!C31 -> 8.262903268 | X31: =Dilution3!G31 -> 0.6283474251 | Z31: =Dilution4!A31 -> 480 | AA31: =Dilution4!B31 -> 437.4089938 | AB31: =Dilution4!C31 -> 1031.553893 | AC31: =Dilution4!G31 -> 0.8952727672 | AD31: 108.0317846 | AF31: =Dilution5_water!A31 -> 480 | AG31: =Dilution5_water!B31 -> 419.6715813 | AH31: =Dilution5_water!C31 -> 1672.682706 | AI31: =Dilution5_water!G31 -> 0.9379630868 | AJ31: 103.7680718 | AL31: =Dilution6!A31 -> 480 | AM31: =Dilution6!B31 -> 412.7783913 | AN31: =Dilution6!C31 -> 296.7388371 | AO31: =Dilution6!G31 -> 0.4862804819 | AP31: 152.4405324
A32: 470 | B32: 436.5699438 | C32: 1732.065043 | D32: 36.3733659 | F32: =Dilution0!A32 -> 470 | G32: =Dilution0!B32 -> 0.08185165776 | H32: =Dilution0!C32 -> 0.146670211 | I32: =Dilution0!G32 -> 0.8496459668 | K32: =Dilution1!A32 -> 470 | L32: =Dilution1!B32 -> 0.3153431061 | M32: =Dilution1!C32 -> 0.5434126702 | N32: =Dilution1!G32 -> 0.8466920358 | P32: =Dilution2!A32 -> 470 | Q32: =Dilution2!B32 -> 3.204081055 | R32: =Dilution2!C32 -> 12.78037398 | S32: =Dilution2!G32 -> 0.9357297941 | U32: =Dilution3!A32 -> 470 | V32: =Dilution3!B32 -> 12.20525974 | W32: =Dilution3!C32 -> 8.282667416 | X32: =Dilution3!G32 -> 0.6269491352 | Z32: =Dilution4!A32 -> 470 | AA32: =Dilution4!B32 -> 445.2512 | AB32: =Dilution4!C32 -> 1000.042442 | AC32: =Dilution4!G32 -> 0.8902802981 | AD32: 109.7243586 | AF32: =Dilution5_water!A32 -> 470 | AG32: =Dilution5_water!B32 -> 427.396161 | AH32: =Dilution5_water!C32 -> 1660.614091 | AI32: =Dilution5_water!G32 -> 0.9365255698 | AJ32: 105.4065331 | AL32: =Dilution6!A32 -> 470 | AM32: =Dilution6!B32 -> 422.1238927 | AN32: =Dilution6!C32 -> 300.4598811 | AO32: =Dilution6!G32 -> 0.4872354988 | AP32: 154.0651611
A33: 460 | B33: 441.5000799 | C33: 1733.1427 | D33: 36.3959967 | F33: =Dilution0!A33 -> 460 | G33: =Dilution0!B33 -> 0.0768267199 | H33: =Dilution0!C33 -> 0.1398791759 | I33: =Dilution0!G33 -> 0.852400267 | K33: =Dilution1!A33 -> 460 | L33: =Dilution1!B33 -> 0.2948560687 | M33: =Dilution1!C33 -> 0.7814881085 | N33: =Dilution1!G33 -> 0.9006084882 | P33: =Dilution2!A33 -> 460 | Q33: =Dilution2!B33 -> 3.200729967 | R33: =Dilution2!C33 -> 12.78018498 | S33: =Dilution2!G33 -> 0.9359457959 | U33: =Dilution3!A33 -> 460 | V33: =Dilution3!B33 -> 12.26088388 | W33: =Dilution3!C33 -> 8.293050814 | X33: =Dilution3!G33 -> 0.6268264159 | Z33: =Dilution4!A33 -> 460 | AA33: =Dilution4!B33 -> 444.3197415 | AB33: =Dilution4!C33 -> 998.1887096 | AC33: =Dilution4!G33 -> 0.8904826129 | AD33: 109.3190193 | AF33: =Dilution5_water!A33 -> 460 | AG33: =Dilution5_water!B33 -> 425.7979858 | AH33: =Dilution5_water!C33 -> 1642.16974 | AI33: =Dilution5_water!G33 -> 0.9362188018 | AJ33: 104.7395538 | AL33: =Dilution6!A33 -> 460 | AM33: =Dilution6!B33 -> 419.5937128 | AN33: =Dilution6!C33 -> 296.9528584 | AO33: =Dilution6!G33 -> 0.4815302863 | AP33: 153.9610635
A34: 450 | B34: 491.6976132 | C34: 1731.708329 | D34: 36.36587491 | F34: =Dilution0!A34 -> 450 | G34: =Dilution0!B34 -> 0.07535531457 | H34: =Dilution0!C34 -> 0.1388647532 | I34: =Dilution0!G34 -> 0.8534729577 | K34: =Dilution1!A34 -> 450 | L34: =Dilution1!B34 -> 0.3028252926 | M34: =Dilution1!C34 -> 0.5225357901 | N34: =Dilution1!G34 -> 0.8477476609 | P34: =Dilution2!A34 -> 450 | Q34: =Dilution2!B34 -> 3.195449096 | R34: =Dilution2!C34 -> 12.78010728 | S34: =Dilution2!G34 -> 0.9360348059 | U34: =Dilution3!A34 -> 450 | V34: =Dilution3!B34 -> 123.283332 | W34: =Dilution3!C34 -> 31.23564748 | X34: =Dilution3!G34 -> 0 | Z34: =Dilution4!A34 -> 450 | AA34: =Dilution4!B34 -> 477.3332863 | AB34: =Dilution4!C34 -> 986.1301768 | AC34: =Dilution4!G34 -> 0.8806999326 | AD34: 117.6453965 | AF34: =Dilution5_water!A34 -> 450 | AG34: =Dilution5_water!B34 -> 460.5221219 | AH34: =Dilution5_water!C34 -> 1658.905393 | AI34: =Dilution5_water!G34 -> 0.9313954292 | AJ34: 113.8084925 | AL34: =Dilution6!A34 -> 450 | AM34: =Dilution6!B34 -> 458.2272765 | AN34: =Dilution6!C34 -> 283.3276649 | AO34: =Dilution6!G34 -> 0.4298293912 | AP34: 161.5451072
A35: 440 | B35: 583.2991244 | C35: 1639.368806 | D35: 34.42674493 | F35: =Dilution0!A35 -> 440 | G35: =Dilution0!B35 -> 0.087801432 | H35: =Dilution0!C35 -> 0.1624954256 | I35: =Dilution0!G35 -> 0.8539974416 | K35: =Dilution1!A35 -> 440 | L35: =Dilution1!B35 -> 16.96034774 | M35: =Dilution1!C35 -> 160.3601987 | N35: =Dilution1!G35 -> 0.9720358278 | P35: =Dilution2!A35 -> 440 | Q35: =Dilution2!B35 -> 106.7212277 | R35: =Dilution2!C35 -> 334.5540882 | S35: =Dilution2!G35 -> 0.9182131228 | U35: =Dilution3!A35 -> 440 | V35: =Dilution3!B35 -> 125.169697 | W35: =Dilution3!C35 -> 31.84489926 | X35: =Dilution3!G35 -> 7.145533716e-05 | Z35: =Dilution4!A35 -> 440 | AA35: =Dilution4!B35 -> 533.701792 | AB35: =Dilution4!C35 -> 1166.862258 | AC35: =Dilution4!G35 -> 0.8868982917 | AD35: 131.9741148 | AF35: =Dilution5_water!A35 -> 440 | AG35: =Dilution5_water!B35 -> 525.6560164 | AH35: =Dilution5_water!C35 -> 900.1166131 | AI35: =Dilution5_water!G35 -> 0.8559073671 | AJ35: 129.7001727 | AL35: =Dilution6!A35 -> 440 | AM35: =Dilution6!B35 -> 532.8526449 | AN35: =Dilution6!C35 -> 428.0068673 | AO35: =Dilution6!G35 -> 0.5884377262 | AP35: 176.1514795
A36: 430 | B36: 565.592609 | C36: 1575.976318 | D36: 33.09550268 | F36: =Dilution0!A36 -> 430 | G36: =Dilution0!B36 -> 0.08385721527 | H36: =Dilution0!C36 -> 0.1515814165 | I36: =Dilution0!G36 -> 0.8512760726 | K36: =Dilution1!A36 -> 430 | L36: =Dilution1!B36 -> 15.24820767 | M36: =Dilution1!C36 -> 131.5126109 | N36: =Dilution1!G36 -> 0.9694221526 | P36: =Dilution2!A36 -> 430 | Q36: =Dilution2!B36 -> 3.197590833 | R36: =Dilution2!C36 -> 12.78016344 | S36: =Dilution2!G36 -> 0.9359750225 | U36: =Dilution3!A36 -> 430 | V36: =Dilution3!B36 -> 135.201869 | W36: =Dilution3!C36 -> 34.17873744 | X36: =Dilution3!G36 -> 1.212838497e-05 | Z36: =Dilution4!A36 -> 430 | AA36: =Dilution4!B36 -> 522.9857341 | AB36: =Dilution4!C36 -> 1117.661683 | AC36: =Dilution4!G36 -> 0.8844983513 | AD36: 129.0917671 | AF36: =Dilution5_water!A36 -> 430 | AG36: =Dilution5_water!B36 -> 513.0080557 | AH36: =Dilution5_water!C36 -> 1532.301188 | AI36: =Dilution5_water!G36 -> 0.9170163956 | AJ36: 127.1558756 | AL36: =Dilution6!A36 -> 430 | AM36: =Dilution6!B36 -> 522.9460963 | AN36: =Dilution6!C36 -> 1250.221477 | AO36: =Dilution6!G36 -> 0.8603504763 | AP36: 174.5928338
